Workbook

Sheet DN-1
A1: 15 | B1: 2.5 | C1: 3.83 | D1: =$C$1 -> 3.83 | E1: 2.5 | F1: =$C$1-E1 -> 1.33 | G1: =$C$1-H1 -> 1.33 | H1: 2.5 | I1: =$C$1 -> 3.83 | J1: 3.83 | K1: 2.5 | L1: =$C$1-K1 -> 1.33 | M1: 3.83 | N1: 3.83 | O1: 3.83 | P1: 2.5 | Q1: =C1-P1 -> 1.33 | R1: 3.83 | S1: 3.83 | T1: 3.83 | U1: 3.83 | V1: 3.83 | W1: 3.83 | X1: 3.83 | Y1: 3.83 | Z1: 3.83 | AA1: sumy | BA1: =COUNTA(BC:BC) -> 80 | BC1: =B6&";"&K21&";"&P21&";"&Q24&";"&E28&";"&P28&";"&E35&";"&K35&";"&P35&";"&C38&";"&P38&";"&J40&";"&C43&";"&N43&";"&U43&";"&C46&";"&J46&";"&S46&";"&C48&";"&K48&";"&U48&";"&X48&";"&C50&";"&P50&";"&C53&";"&J53&";"&S53&";"&C55&";"&K55&";"&U55&";"&X55&";"&C57&";"&P57&";"&C209&";"&P209&";"&C224&";"&P224&";"&F226&";"&C229&";"&P229&";"&F231&";"&C233&";"&P233&";"&F235=Dane!E19 -> FALSE
A2: =$A$3 -> 9 | B2: Załącznik nr 5 | AA2: kontrolne | BA2: =SUM(BB:BB) -> 17
A3: 9 | B3: WYPEŁNIĆ DUŻYMI, DRUKOWANYMI LITERAMI, CZARNYM LUB NIEBIESKIM KOLOREM. | BA3: =IF(LEN(C209&P209)=0,1,0) -> 1 | BC3: Czy podano dane kontaktowe 114 i 115
A4: 4.5 | BA4: 209
A5: =$A$3 -> 9 | B5: 1. Identyfikator podatkowy NIP/numer PESEL (niepotrzebne skreślić)1) | O5: 2. Nr dokumentu | AY5: wiersz błędu | AZ5: kolumna błedu | BA5: 3
A6: 16.5 | AA6: =LEN(B6) -> 0 | AY6: 6 | AZ6: 2 | BA6: 1 | BB6: =IF(E35<>"",IF(B6<>"",0,1),IF(B6<>"",0,1)) -> 1 | BC6: =IF(E35<>"",IF(B6<>"","ok","Pole 1 [Identyfikator podatkowy NIP/numer PESEL]. Jeżeli deklarację składa osoba fizyczna nieprowadząca działalności gospodarczej, której nie nadano nr PESEL należy wpisać -brak."),IF(B6<>"","ok","Pole 1 [Identyfikator podatkowy NIP/numer PESEL]. Jeżeli deklarację składa inny podmiot niż osoba fizyczna należy wipsać NIP.")) -> Pole 1 [Identyfikator podatkowy NIP/numer PESEL]. Jeżeli deklarację składa inny podmiot niż osoba fizyczna należy wipsać NIP.
A7: 16.5 | B7: DN-1 | AA7: =SUM(BB7:BB10) -> 1 | AY7: 6 | AZ7: 2 | BA7: 1 długość 10 lub 11 | BB7: =IF(OR(LEN(B6)=10,LEN(B6)=11,B6="brak"),0,1) -> 1 | BC7: Pole 1 [Identyfikator podatkowy NIP/numer PESEL] zawiera błąd.
A8: =$A$7 -> 16.5 | B8: DEKLARACJA NA PODATEK OD NIERUCHOMOŚCI | AY8: 6 | AZ8: 2 | BA8: 1 NIP | BB8: =IF(B6="nie nadano",0,IF(LEN(B6)=10,IF(MOD(MOD(6*MID(B6,1,1)+5*MID(B6,2,1)+7*MID(B6,3,1)+2*MID(B6,4,1)+3*MID(B6,5,1)+4*MID(B6,6,1)+5*MID(B6,7,1)+6*MID(B6,8,1)+7*MID(B6,9,1),11),10) = 1*MID(B6,10,1),0,1),0)) -> 0 | BC8: Podany w polu 1 NIP jest błędny.
A9: =$A$3 -> 9 | M9: 3. Rok | AY9: 6 | AZ9: 2 | BA9: 1 PESEL | BB9: =IF(LEN(B6)=11,IF(MOD(10-MOD(1*MID(B6,1,1)+3*MID(B6,2,1)+7*MID(B6,3,1)+9*MID(B6,4,1)+1*MID(B6,5,1)+3*MID(B6,6,1)+5*MID(B6,7,1)+9*MID(B6,8,1)+1*MID(B6,9,1)+ 3*MID(B6,10,1),10),10)=1*MID(B6,11,1),0,1),0) -> 0 | BC9: Podany w polu 1 PESEL jest błędny.
A10: =$A$6 -> 16.5 | B10: NA ROK | M10: =Dane!AN1 -> 2022 | AY10: 6 | AZ10: 2 | BA10: 1 PESEL | BB10: =IF(AND(LEN(B6)=11,OR(K35<>"",P35<>"") ),1,0) -> 0 | BC10: W polu 1 PESEL podają wyłącznie osoby fizyczne, które nie prowadzą działalności gospodarczej.
A11: =$A$4 -> 4.5
A12: 17.25 | B12: Podstawa prawna: | E12: Art. 6 ust. 9, 10 i 11 ustawy z dnia 12 stycznia 1991 r. o podatkach i opłatach lokalnych (Dz. U. z 2018 r. poz. 1445, z późn. zm.), zwanej dalej „ustawą”.
A13: 66.75 | B13: Składający: | E13: Osoby prawne, jednostki organizacyjne oraz spółki niemające osobowości prawnej, jednostki organizacyjne Krajowego Ośrodka Wsparcia Rolnictwa, a także jednostki organizacyjne Państwowego Gospodarstwa Leśnego Lasy Państwowe będące właścicielami nieruchomości lub obiektów budowlanych, posiadaczami samoistnymi nieruchomości lub obiektów budowlanych, użytkownikami wieczystymi gruntów, posiadaczami nieruchomości lub ich części albo obiektów budowlanych lub ich części, stanowiących własność Skarbu Państwa lub jednostki samorządu terytorialnego oraz osoby fizyczne będące współwłaścicielami lub współposiadaczami nieruchomości lub obiektów budowlanych z osobami prawnymi, jednostkami organizacyjnymi nieposiadającymi osobowości prawnej lub spółkami nieposiadającymi osobowości prawnej, z wyjątkiem osób tworzących wspólnotę mieszkaniową.
A14: 24.75 | B14: Termin składania: | E14: Do dnia 31 stycznia danego roku podatkowego lub w terminie 14 dni od dnia zaistnienia okoliczności uzasadniających powstanie obowiązku podatkowego lub od dnia zaistnienia zdarzenia mającego wpływ na wysokość opodatkowania, o którym mowa w art. 6 ust. 3 ustawy.
A15: =$A$3 -> 9 | B15: Miejsce składania: | E15: Organ podatkowy właściwy ze względu na miejsce położenia przedmiotów opodatkowania.
A16: 4.5
A17: =$A$7 -> 16.5 | B17: A. MIEJSCE I CEL SKŁADANIA DEKLARACJI2)
A18: =$A$3 -> 9 | C18: 4. Nazwa i adres siedziby organu podatkowego
A19: =$A$6 -> 16.5 | C19: =Organ -> Burmistrz Miasta Kluczborka, ul.Katowicka 1, 46-200 Kluczbork
A20: =$A$3 -> 9 | C20: 5. Cel złożenia formularza (zaznaczyć właściwy kwadrat):
A21: 15 | L21: 1. złożenie deklaracji | Q21: 2. korekta deklaracji3) | AY21: 21 | AZ21: 11 | BA21: 5a i 5b | BB21: =IF(LEN(K21&P21)=1,0,1) -> 1 | BC21: W polu 5 [Cel złożenia formularza] powinna być zaznaczona jedna wartość.
A22: =$A$4 -> 4.5
A23: =$A$3 -> 9 | C23: 6. Okres – od którego deklaracja obowiązuje
A24: =$A$6 -> 16.5 | C24: (miesiąc) | AA24: =13-Q24 -> 13 | AY24: 24 | AZ24: 17 | BA24: 6 | BB24: =IF(AND(Q24>=1,Q24<=12),0,1) -> 1 | BC24: Pole 6 [Okres – od którego deklaracja obowiązuje] powinno mieć wartość 1 - 12
A25: 4.5
A26: =$A$7 -> 16.5 | B26: B. PODMIOT ZOBOWIĄZANY DO ZŁOŻENIA DEKLARACJI
A27: =$A$3 -> 9 | C27: 7. Rodzaj podmiotu (zaznaczyć właściwy kwadrat):
A28: =$A$21 -> 15 | F28: 1. właściciel, użytkownik wieczysty lub posiadacz | Q28: 2. współwłaściciel, współużytkownik wieczysty lub współposiadacz | AY28: 28 | AZ28: 5 | BA28: 7a i 7b | BB28: =IF(LEN(E28&P28)=1,0,1) -> 1 | BC28: W polu 7 [Rodzaj podmiotu] powinna być zaznaczona jedna wartość.
A29: =$A$4 -> 4.5
A30: 4.5
A31: =$A$7 -> 16.5 | B31: C. DANE PODATNIKA
A32: =$A$3 -> 9 | B32: * - dotyczy podatnika niebędącego osobą fizyczną ** - dotyczy podatnika będącego osobą fizyczną | AY32: 35 | AZ32: 5 | BA32: 8a, 8b i 8c | BB32: =IF(LEN(E35&K35&P35)<>1,1,0) -> 1 | BC32: W polu 8 [Rodzaj podatnika] powinno być zaznaczona jedna wartość.
A33: =$A$7 -> 16.5 | B33: C.1. DANE IDENTYFIKACYJNE | AY33: 35 | AZ33: 5 | BA33: 8b i nip | BB33: =IF(AND(LEN(B6)<>10,K35<>""),1-BB32,0) -> 0 | BC33: W polu 8 wybrano [Rodzaj podatnika - osoba prawna], więc pole 1 powinno zawierać NIP.
A34: =$A$3 -> 9 | C34: 8. Rodzaj podatnika (zaznaczyć właściwy kwadrat): | AY34: 35 | AZ34: 5 | BA34: 8c i nip | BB34: =IF(AND(LEN(B6)<>10,P35<>""),1-BB32,0) -> 0 | BC34: W polu 8 wybrano [Rodzaj podatnika - jednostka organizacyjna ...], więc pole 1 powinno zawierać NIP.
A35: =$A$21 -> 15 | F35: 1. osoba fizyczna | L35: 2. osoba prawna | Q35: 3. jednostka organizacyjna, wtym spółka nieposiadająca osobowości prawnej | AA35: =SUM(BB32:BB34) -> 1
A36: =$A$4 -> 4.5
A37: =$A$3 -> 9 | C37: 9. Nazwa pełna * / Nazwisko ** | P37: 10. Nazwa skrócona * / Pierwsze imię** | AB37: 12345678512347
A38: =$A$6 -> 16.5 | AB38: ="00000000000000"&J40 -> 00000000000000 | AY38: 38 | AZ38: 3 | BA38: 9 | BB38: =IF(C38="",1,0) -> 1 | BC38: Pole 9 [Nazwa pełna / Nazwisko] powinno być wypełnione
A39: =$A$3 -> 9 | C39: 11. Identyfikator REGON (w przypadku osób fizycznych REGON podaje się, o ile został nadany) | AC39: REGON | AD39: regon9 | AE39: regon14 | AF39: regon9 | AG39: regon14 | AY39: 38 | AZ39: 16 | BA39: 10 | BB39: =IF(C38&P38="",1,0) -> 1 | BC39: Pole 10 Nazwa skrócona / Pierwsze imię] powinno być wypełnione
A40: =$A$6 -> 16.5 | AA40: =LEN(J40) -> 0 | AB40: 14 | AC40: =LEFT(RIGHT($AB$38,AB40),1) -> 0 | AE40: 2 | AF40: =AD40*$AC40 -> 0 | AG40: =AE40*$AC40 -> 0 | AY40: 40 | AZ40: 10 | BA40: REGON | BB40: =IF(LEN(J40)>14,"Podany REGON jest za długi.",IF(LEN(J40)<=9,IF(AC53+0=AF53,0,1),IF(LEN(J40)>9,IF(AC53+0=AG53,0,1),1))) -> 0 | BC40: =IF(LEN(J40)>14,"Podany REGON jest za długi.",IF(LEN(J40)<=9,IF(AC53+0=AF53,"REGON 9 cyfr ok","Podany REGON jest błędny"),IF(LEN(J40)>9,IF(AC53+0=AG53,"REGON 14 cyfr ok","Podany REGON jest błędny"),1))) -> REGON 9 cyfr ok
A41: =$A$3 -> 9 | B41: Pola 12, 13, 14 wypełnia osoba fizyczna w przypadku, gdy numer PESEL nie został nadany. | AB41: =AB40-1 -> 13 | AC41: =LEFT(RIGHT($AB$38,AB41),1) -> 0 | AE41: 4 | AF41: =AD41*$AC41 -> 0 | AG41: 0
A42: =$A$3 -> 9 | C42: 12. Data urodzenia (dzień - miesiąc - rok) | N42: 13. Imię ojca | U42: 14. Imię matki | AB42: =AB41-1 -> 12 | AC42: 0 | AE42: 8 | AF42: 0 | AG42: 0 | AY42: 43 | AZ42: 3 | BA42: 12 | BB42: =IF(AND(E35<>"",C43="",B6="brak"),1,0) -> 0 | BC42: Pole 12 [Data urodzenia] wypełniają osoby fizyczne, którym nie nadano PESEL.
A43: =$A$6 -> 16.5 | AB43: 11 | AC43: 0 | AE43: 5 | AF43: 0 | AG43: 0 | AY43: 43 | AZ43: 14 | BA43: 13 | BB43: =IF(AND(E35<>"",N43="",B6="brak"),1,0) -> 0 | BC43: Pole 13 [Imię ojca] wypełniają osoby fizyczne, którym nie nadano PESEL.
A44: =$A$7 -> 16.5 | B44: C.2. ADRES SIEDZIBY * / ADRES ZAMIESZKANIA ** | AB44: 10 | AC44: 0 | AE44: 0 | AF44: 0 | AG44: 0 | AY44: 43 | AZ44: 21 | BA44: 14 | BB44: =IF(AND(E35<>"",U43="",B6="brak"),1,0) -> 0 | BC44: Pole 12 [Imię matki] wypełniają osoby fizyczne, którym nie nadano PESEL.
A45: =$A$3 -> 9 | C45: 15. Kraj | J45: 16. Województwo | S45: 17. Powiat | AB45: 9 | AC45: 0 | AD45: 8 | AE45: 9 | AF45: 0 | AG45: 0 | AY45: 46 | AZ45: 3 | BA45: 15 | BB45: =IF(C46="",1,0) -> 1 | BC45: Pole 15 [Kraj] powinno być wypełnione
A46: =$A$6 -> 16.5 | AB46: 8 | AC46: 0 | AD46: 9 | AE46: 7 | AF46: 0 | AG46: 0 | AY46: 46 | AZ46: 10 | BA46: 16 | BB46: =IF(J46="",1,0) -> 1 | BC46: Pole 16 [Województwo] powinno być wypełnione
A47: =$A$3 -> 9 | C47: 18. Gmina | K47: 19. Ulica | U47: 20. Nr domu | X47: 21. Nr lokalu | AB47: 7 | AC47: 0 | AD47: 2 | AE47: 3 | AF47: 0 | AG47: 0 | AY47: 46 | AZ47: 19 | BA47: 17 | BB47: =IF(S46="",1,0) -> 1 | BC47: Pole 17 [Powiat] powinno być wypełnione
A48: =$A$6 -> 16.5 | AB48: 6 | AC48: 0 | AD48: 3 | AE48: 6 | AF48: 0 | AG48: 0 | AY48: 48 | AZ48: 3 | BA48: 18 | BB48: =IF(C48="",1,0) -> 1 | BC48: Pole 18 [Gmina] powinno być wypełnione
A49: =$A$3 -> 9 | C49: 22. Miejscowość | P49: 23. Kod pocztowy | AB49: 5 | AC49: 0 | AD49: 4 | AE49: 1 | AF49: 0 | AG49: 0 | AY49: 48 | AZ49: 11 | BA49: 19, 20,21 | BB49: =IF(AND(K48="",U48="",X48=""),1,0) -> 1 | BC49: Pola 19 - 21 powinny zawierać dokładny adres
A50: =$A$6 -> 16.5 | AB50: 4 | AC50: 0 | AD50: 5 | AE50: 2 | AF50: 0 | AG50: 0 | AY50: 50 | AZ50: 3 | BA50: 22 | BB50: =IF(C50="",1,0) -> 1 | BC50: Pole 22 [Miejscowość] powinno być wypełnione
A51: =$A$7 -> 16.5 | B51: C.3. ADRES DO DORĘCZEŃ Należy wypełnić tylko wówczas, gdy adres do doręczeń jest inny niż w części C.2. | AB51: 3 | AC51: 0 | AD51: 6 | AE51: 4 | AF51: 0 | AG51: 0 | AY51: 50 | AZ51: 16 | BA51: 23 | BB51: =IF(P50="",1,0) -> 1 | BC51: Pole 23 [Kod pocztowy] powinno być wypełnione
A52: =$A$3 -> 9 | C52: 24. Kraj | J52: 25. Województwo | S52: 26. Powiat | AB52: 2 | AC52: 0 | AD52: 7 | AE52: 8 | AF52: 0 | AG52: 0
A53: =$A$6 -> 16.5 | AB53: 1 | AC53: 0 | AF53: =MOD(MOD(SUM(AF40:AF52),11),10) -> 0 | AG53: =MOD(MOD(SUM(AG40:AG52),11),10) -> 0 | AY53: 53 | AZ53: 3 | BA53: 24 - 32 | BB53: =IF(AND(C46=C53,J46=J53,S46=S53,C48=C55,K48=K55,U48=U55,X48=X55,C50=C57,P50=P57),1,0) -> 1 | BC53: ADRES DO DORĘCZEŃ Należy wypełnić tylko wówczas, gdy adres do doręczeń jest inny niż w części C.2.
A54: =$A$3 -> 9 | C54: 27. Gmina | K54: 28. Ulica | U54: 29. Nr domu | X54: 30. Nr lokalu
A55: =$A$6 -> 16.5
A56: =$A$3 -> 9 | C56: 31. Miejscowość | P56: 32. Kod pocztowy
A57: =$A$6 -> 16.5
A58: =$A$3 -> 9
A59: =$A$6 -> 16.5 | C59: =Wersja -> 2022.1.8.15.0.44596 | V59: DN-1(1) | Z59: 1/5
A60: 9
A61: 9 | B61: WYPEŁNIĆ DUŻYMI, DRUKOWANYMI LITERAMI, CZARNYM LUB NIEBIESKIM KOLOREM.
A62: 4.5
A63: =$A$4 -> 4.5
A64: =$A$7 -> 16.5 | B64: D. DANE O PRZEDMIOTACH OPODATKOWANIA PODLEGAJĄCYCH OPODATKOWANIU
A65: =$A$3 -> 9 | B65: D.1. GRUNTY
A66: =$A$7 -> 16.5 | N66: Powierzchnia w m2 / ha4) | S66: Stawka podatku | W66: Kwota podatku za okres, którego dotyczy deklaracja5)
A67: =$A$3 -> 9 | S67: zł gr | W67: zł gr
A68: =$A$3 -> 9 | C68: Związane z prowadzeniem działalności gospodarczej, | N68: 33. | S68: 34. | W68: 35. | AY68: 68 | AZ68: 15 | BA68: 33 | BB68: =IF(O68<0,1,0) -> 0 | BC68: ="Powierzchnia wykazana w polu "&BA68&" nie może być mniejsza od zera" -> Powierzchnia wykazana w polu 33 nie może być mniejsza od zera
A69: 19.5 | C69: bez względu na sposób zakwalifikowania w ewidencji gruntów i budynków | S69: =Dane!AN2 -> 0.99 | W69: =IF(AND($AA$24>=1,$AA$24<=12),ROUND(O68*S69*$AA$24/12,2),"Pole 6 - ???") -> Pole 6 - ??? | AA69: =Dane!AU2 -> 0 | AY69: 68 | AZ69: 15 | BA69: =IF(O68>AA69,"większa o ","mniejsza o ")& ABS(O68-AA69) -> mniejsza o 0 | BB69: =IF(O68=AA69,0,1) -> 0 | BC69: ="Powierzchnia gruntów wykazana w polu "&N68&" jest " &BA69& " od sumy gruntów w zał. ZDN-1" -> Powierzchnia gruntów wykazana w polu 33. jest mniejsza o 0 od sumy gruntów w zał. ZDN-1
A70: =$A$3 -> 9 | C70: Pod wodami powierzchniowymi stojącymi lub wodami | N70: 36. | S70: 37. | W70: 38. | AY70: 70 | AZ70: 15 | BA70: 36 | BB70: =IF(O70<0,1,0) -> 0 | BC70: ="Powierzchnia wykazana w polu "&BA70&" nie może być mniejsza od zera" -> Powierzchnia wykazana w polu 36 nie może być mniejsza od zera
A71: =$A$69 -> 19.5 | C71: powierzchniowymi płynącymi jezior i zbiorników sztucznych | S71: =Dane!AN3 -> 5.13 | W71: =IF(AND($AA$24>=1,$AA$24<=12),ROUND(O70*S71*$AA$24/12,2),"Pole 6 - ???") -> Pole 6 - ??? | AA71: =Dane!AU3 -> 0 | AY71: 70 | AZ71: 15 | BA71: =IF(O70>AA71,"większa o ","mniejsza o ")& ABS(O70-AA71) -> mniejsza o 0 | BB71: =IF(O70=AA71,0,1) -> 0 | BC71: ="Powierzchnia gruntów wykazana w polu "&N70&" jest " &BA71& " od sumy gruntów w zał. ZDN-1" -> Powierzchnia gruntów wykazana w polu 36. jest mniejsza o 0 od sumy gruntów w zał. ZDN-1
A72: =$A$3 -> 9 | C72: Pozostałe, w tym zajęte na prowadzenie odpłatnej | N72: 39. | S72: 40. | W72: 41. | AY72: 72 | AZ72: 15 | BA72: 39 | BB72: =IF(O72<0,1,0) -> 0 | BC72: ="Powierzchnia wykazana w polu "&BA72&" nie może być mniejsza od zera" -> Powierzchnia wykazana w polu 39 nie może być mniejsza od zera
A73: =$A$69 -> 19.5 | C73: statutowej działalności pożytku publicznego przez organizacje pożytku publicznego | S73: =Dane!AN4 -> 0.49 | W73: =IF(AND($AA$24>=1,$AA$24<=12),ROUND(O72*S73*$AA$24/12,2),"Pole 6 - ???") -> Pole 6 - ??? | AA73: =Dane!AU4 -> 0 | AY73: 72 | AZ73: 15 | BA73: =IF(O72>AA73,"większa o ","mniejsza o ")& ABS(O72-AA73) -> mniejsza o 0 | BB73: =IF(O72=AA73,0,1) -> 0 | BC73: ="Powierzchnia gruntów wykazana w polu "&N72&" jest " &BA73& " od sumy gruntów w zał. ZDN-1" -> Powierzchnia gruntów wykazana w polu 39. jest mniejsza o 0 od sumy gruntów w zał. ZDN-1
A74: =$A$3 -> 9 | C74: Niezabudowane objęte obszarem rewitalizacji, o którym | N74: 42. | S74: 43. | W74: 44. | AY74: 74 | AZ74: 15 | BA74: 42 | BB74: =IF(O74<0,1,0) -> 0 | BC74: ="Powierzchnia wykazana w polu "&BA74&" nie może być mniejsza od zera" -> Powierzchnia wykazana w polu 42 nie może być mniejsza od zera
A75: =$A$69*4.5 -> 87.75 | C75: mowa w ustawie z dnia 9 października 2015 r. o rewitalizacji (Dz. U. z 2018 r. poz. 1398, z późn. zm.), i położone na terenach, dla których miejscowy plan zagospodarowania przestrzennego przewiduje przeznaczenie pod zabudowę mieszkaniową, usługową albo zabudowę o przeznaczeniu mieszanym obejmującym wyłącznie te rodzaje zabudowy, jeżeli od dnia wejścia w życie tego planu w odniesieniu do tych gruntów upłynął okres 4 lat, a w tym czasie nie zakończono budowy zgodnie z przepisami prawa budowlanego | S75: =Dane!AN6 -> 3.28 | W75: =IF(AND($AA$24>=1,$AA$24<=12),ROUND(O74*S75*$AA$24/12,2),"Pole 6 - ???") -> Pole 6 - ??? | AA75: =Dane!AU6 -> 0 | AY75: 74 | AZ75: 15 | BA75: =IF(O74>AA75,"większa o ","mniejsza o ")& ABS(O74-AA75) -> mniejsza o 0 | BB75: =IF(O74=AA75,0,1) -> 0 | BC75: ="Powierzchnia gruntów wykazana w polu "&N74&" jest " &BA75& " od sumy gruntów w zał. ZDN-1" -> Powierzchnia gruntów wykazana w polu 42. jest mniejsza o 0 od sumy gruntów w zał. ZDN-1
A76: =$A$7*1.5 -> 24.75 | B76: D.1.1. INNE GRUNTY (1) Należy wypełnić tylko dla rodzajów przedmiotów opodatkowania innych niż określone w części D.1. Podać nazwę rodzaju przedmiotu opodatkowania lub jednostkę redakcyjną - zgodnie z uchwałą rady gminy.
A77: =$A$3 -> 9 | C77: 45. Rodzaj przedmiotu opodatkowania | N77: 46. | S77: 47. | W77: 48. | AY77: 46 | AZ77: 15 | BA77: 46 | BB77: =IF(O77<0,1,0) -> 0 | BC77: ="Powierzchnia wykazana w polu "&BA77&" nie może być mniejsza od zera" -> Powierzchnia wykazana w polu 46 nie może być mniejsza od zera
A78: =$A$3 -> 9 | C78: oznaczone w ewidencji gruntów i budynków jako | S78: =Dane!AN5 -> 0.24 | W78: =IF(AND($AA$24>=1,$AA$24<=12),ROUND(O77*S78*$AA$24/12,2),"Pole 6 - ???") -> Pole 6 - ??? | AA78: =Dane!AU5 -> 0 | AY78: 46 | AZ78: 15 | BA78: =IF(O77>AA78,"większa o ","mniejsza o ")& ABS(O77-AA78) -> mniejsza o 0 | BB78: =IF(O77=AA78,0,1) -> 0 | BC78: ="Powierzchnia gruntów wykazana w polu "&N77&" jest " &BA78& " od sumy gruntów w zał. ZDN-1" -> Powierzchnia gruntów wykazana w polu 46. jest mniejsza o 0 od sumy gruntów w zał. ZDN-1
A79: =$A$69*2 -> 39 | C79: dr - drogi z wyjątkiem: związanych z działalnością gospodarczą oraz podlegających wyłączeniu od opodatkowania na mocy art. 2 ust. 3 pkt 4 ustawy o podatkach i opłatach lokalnych
A80: =$A$3 -> 9 | C80: 49. Rodzaj przedmiotu opodatkowania | N80: 50. | S80: 51. | W80: 52.
A81: =$A$69 -> 19.5
A82: =$A$7*1.5 -> 24.75 | B82: D.1.2. INNE GRUNTY (2) Należy wypełnić tylko dla rodzajów przedmiotów opodatkowania innych niż określone w części D.1. Podać nazwę rodzaju przedmiotu opodatkowania lub jednostkę redakcyjną - zgodnie z uchwałą rady gminy.
A83: =$A$3 -> 9 | C83: 45. Rodzaj przedmiotu opodatkowania | N83: 46. | S83: 47. | W83: 48.
A84: =$A$69 -> 19.5
A85: =$A$3 -> 9 | C85: 49. Rodzaj przedmiotu opodatkowania | N85: 50. | S85: 51. | W85: 52.
A86: =$A$69 -> 19.5
A87: =$A$7*3 -> 49.5 | B87: D.2. BUDYNKI LUB ICH CZĘŚCI Do powierzchni użytkowej budynku lub jego części zalicza się powierzchnię mierzoną po wewnętrznej długości ścian na wszystkich kondygnacjach, z wyjątkiem powierzchni klatek schodowych oraz szybów dźwigowych; za kondygnację uważa się również garaże podziemne, piwnice, sutereny i poddasza użytkowe. Powierzchnię pomieszczeń lub ich części oraz część kondygnacji o wysokości w świetle od 1,40 m do 2,20 m zalicza się do powierzchni użytkowej budynku w 50%, a jeżeli wysokość jest mniejsza niż 1,40 m, powierzchnię tę pomija się. | AA87: =SUM(AA91:AA175) -> 0 | BC87: Suma budynków
A88: =$A$7 -> 16.5 | N88: Powierzchnia użytkowa w m2 | S88: Stawka podatku | W88: Kwota podatku za okres, którego dotyczy deklaracja5)
A89: =$A$3 -> 9 | S89: zł gr | W89: zł gr
A90: =$A$3 -> 9 | C90: Budynki mieszkalne - ogółem | N90: 53. | S90: 54. | W90: 55.
A91: =$A$69 -> 19.5 | N91: =SUM(O92:R95) -> 0 | S91: =Dane!AN7 -> 0.85 | W91: =IF(AND($AA$24>=1,$AA$24<=12),ROUND(N91*S91*$AA$24/12,2),"Pole 6 - ???") -> Pole 6 - ??? | AA91: =Dane!AU7 -> 0 | AY91: 94 | AZ91: 15 | BA91: =IF(O90>AA91,"większa o ","mniejsza o ")& ABS(O90-AA91) -> mniejsza o 0 | BB91: =IF(N91=AA91,0,1) -> 0 | BC91: ="Powierzchnia budynków wykazana w polu "&N90&" jest " &BA91& " od sumy budynków w zał. ZDN-1" -> Powierzchnia budynków wykazana w polu 53. jest mniejsza o 0 od sumy budynków w zał. ZDN-1
A92: =$A$3 -> 9 | C92: w tym kondygnacji o wysokości: | I92: - od 1,40 do 2,20 m | N92: 56.
A93: =$A$69 -> 19.5 | AY93: 92 | AZ93: 15 | BA93: 56 | BB93: =IF(O92<0,1,0) -> 0 | BC93: ="Powierzchnia wykazana w polu "&BA93&" nie może być mniejsza od zera" -> Powierzchnia wykazana w polu 56 nie może być mniejsza od zera
A94: =$A$3 -> 9 | I94: - powyżej 2,20 m | N94: 57.
A95: =$A$69 -> 19.5 | AY95: 94 | AZ95: 15 | BA95: 57 | BB95: =IF(O94<0,1,0) -> 0 | BC95: ="Powierzchnia wykazana w polu "&BA95&" nie może być mniejsza od zera" -> Powierzchnia wykazana w polu 57 nie może być mniejsza od zera
A96: =$A$3 -> 9
A97: =$A$3 -> 9
A98: 9
A99: 9
A100: 9
A101: 9
A102: 9
A103: 9
A104: 9
A105: 9
A106: 9
A107: 9
A108: 9
A109: 9
A110: =$A$6 -> 16.5 | B110: DN-1(1) | F110: 2/5 | R110: =Wersja -> 2022.1.8.15.0.44596
A111: =$A$3 -> 9
A112: 9 | B112: WYPEŁNIĆ DUŻYMI, DRUKOWANYMI LITERAMI, CZARNYM LUB NIEBIESKIM KOLOREM.
A113: 4.5
A114: =$A$3 -> 9 | C114: Związane z prowadzeniem działalności gospodarczej | N114: 58. | S114: 59. | W114: 60.
A115: =$A$69 -> 19.5 | C115: oraz budynki mieszkalne lub ich części zajęte na prowadzenie działalności gospodarczej - ogółem | N115: =SUM(O116:R119) -> 0 | S115: =Dane!AN8 -> 24.35 | W115: =IF(AND($AA$24>=1,$AA$24<=12),ROUND(N115*S115*$AA$24/12,2),"Pole 6 - ???") -> Pole 6 - ??? | AA115: =Dane!AU8 -> 0 | AY115: 118 | AZ115: 15 | BA115: =IF(O114>AA115,"większa o ","mniejsza o ")& ABS(O114-AA115) -> mniejsza o 0 | BB115: =IF(N115=AA115,0,1) -> 0 | BC115: ="Powierzchnia budynków wykazana w polu "&N114&" jest " &BA115& " od sumy budynków w zał. ZDN-1" -> Powierzchnia budynków wykazana w polu 58. jest mniejsza o 0 od sumy budynków w zał. ZDN-1
A116: =$A$3 -> 9 | C116: w tym kondygnacji o wysokości: | I116: - od 1,40 do 2,20 m | N116: 61.
A117: =$A$69 -> 19.5 | AY117: 116 | AZ117: 15 | BA117: 61 | BB117: =IF(O116<0,1,0) -> 0 | BC117: ="Powierzchnia wykazana w polu "&BA117&" nie może być mniejsza od zera" -> Powierzchnia wykazana w polu 61 nie może być mniejsza od zera
A118: =$A$3 -> 9 | I118: - powyżej 2,20 m | N118: 62.
A119: =$A$69 -> 19.5 | AY119: 118 | AZ119: 15 | BA119: 62 | BB119: =IF(O118<0,1,0) -> 0 | BC119: ="Powierzchnia wykazana w polu "&BA119&" nie może być mniejsza od zera" -> Powierzchnia wykazana w polu 62 nie może być mniejsza od zera
A120: =$A$3 -> 9 | C120: Zajęte na prowadzenie działalności gospodarczej w | N120: 63. | S120: 64. | W120: 65.
A121: =$A$69 -> 19.5 | C121: zakresie obrotu kwalifikowanym materiałem siewnym - ogółem | N121: =SUM(O122:R125) -> 0 | S121: =Dane!AN10 -> 11.88 | W121: =IF(AND($AA$24>=1,$AA$24<=12),ROUND(N121*S121*$AA$24/12,2),"Pole 6 - ???") -> Pole 6 - ??? | AA121: =Dane!AU10 -> 0 | AY121: 124 | AZ121: 15 | BA121: =IF(O120>AA121,"większa o ","mniejsza o ")& ABS(O120-AA121) -> mniejsza o 0 | BB121: =IF(N121=AA121,0,1) -> 0 | BC121: ="Powierzchnia budynków wykazana w polu "&N120&" jest " &BA121& " od sumy budynków w zał. ZDN-1" -> Powierzchnia budynków wykazana w polu 63. jest mniejsza o 0 od sumy budynków w zał. ZDN-1
A122: =$A$3 -> 9 | C122: w tym kondygnacji o wysokości: | I122: - od 1,40 do 2,20 m | N122: 66.
A123: =$A$69 -> 19.5 | AY123: 122 | AZ123: 15 | BA123: 66 | BB123: =IF(O122<0,1,0) -> 0 | BC123: ="Powierzchnia wykazana w polu "&BA123&" nie może być mniejsza od zera" -> Powierzchnia wykazana w polu 66 nie może być mniejsza od zera
A124: =$A$3 -> 9 | I124: - powyżej 2,20 m | N124: 67.
A125: =$A$69 -> 19.5 | AY125: 124 | AZ125: 15 | BA125: 67 | BB125: =IF(O124<0,1,0) -> 0 | BC125: ="Powierzchnia wykazana w polu "&BA125&" nie może być mniejsza od zera" -> Powierzchnia wykazana w polu 67 nie może być mniejsza od zera
A126: =$A$3 -> 9 | C126: Związane z udzielaniem świadczeń zdrowotnych w | N126: 68. | S126: 69. | W126: 70.
A127: =$A$69 -> 19.5 | C127: rozumieniu przepisów o działalności leczniczej, zajęte przez podmioty udzielające tych świadczeń - ogółem | N127: =SUM(O128:R131) -> 0 | S127: =Dane!AN11 -> 5.21 | W127: =IF(AND($AA$24>=1,$AA$24<=12),ROUND(N127*S127*$AA$24/12,2),"Pole 6 - ???") -> Pole 6 - ??? | AA127: =Dane!AU11 -> 0 | AY127: 130 | AZ127: 15 | BA127: =IF(O126>AA127,"większa o ","mniejsza o ")& ABS(O126-AA127) -> mniejsza o 0 | BB127: =IF(N127=AA127,0,1) -> 0 | BC127: ="Powierzchnia budynków wykazana w polu "&N126&" jest " &BA127& " od sumy budynków w zał. ZDN-1" -> Powierzchnia budynków wykazana w polu 68. jest mniejsza o 0 od sumy budynków w zał. ZDN-1
A128: =$A$3 -> 9 | C128: w tym kondygnacji o wysokości: | I128: - od 1,40 do 2,20 m | N128: 71.
A129: =$A$69 -> 19.5 | AY129: 128 | AZ129: 15 | BA129: 71 | BB129: =IF(O128<0,1,0) -> 0 | BC129: ="Powierzchnia wykazana w polu "&BA129&" nie może być mniejsza od zera" -> Powierzchnia wykazana w polu 71 nie może być mniejsza od zera
A130: =$A$3 -> 9 | I130: - powyżej 2,20 m | N130: 72.
A131: =$A$69 -> 19.5 | AY131: 130 | AZ131: 15 | BA131: 73 | BB131: =IF(O130<0,1,0) -> 0 | BC131: ="Powierzchnia wykazana w polu "&BA131&" nie może być mniejsza od zera" -> Powierzchnia wykazana w polu 73 nie może być mniejsza od zera
A132: =$A$3 -> 9 | C132: Pozostałe, w tym zajęte na prowadzenie odpłatnej | N132: 73. | S132: 74. | W132: 75.
A133: =$A$69 -> 19.5 | C133: statutowej działalności pożytku publicznego przez organizacje pożytku publicznego - ogółem | N133: =SUM(O134:R137) -> 0 | S133: =Dane!AN12 -> 6.69 | W133: =IF(AND($AA$24>=1,$AA$24<=12),ROUND(N133*S133*$AA$24/12,2),"Pole 6 - ???") -> Pole 6 - ??? | AA133: =Dane!AU12 -> 0 | AY133: 136 | AZ133: 15 | BA133: =IF(O132>AA133,"większa o ","mniejsza o ")& ABS(O132-AA133) -> mniejsza o 0 | BB133: =IF(N133=AA133,0,1) -> 0 | BC133: ="Powierzchnia budynków wykazana w polu "&N132&" jest " &BA133& " od sumy budynków w zał. ZDN-1" -> Powierzchnia budynków wykazana w polu 73. jest mniejsza o 0 od sumy budynków w zał. ZDN-1
A134: =$A$3 -> 9 | C134: w tym kondygnacji o wysokości: | I134: - od 1,40 do 2,20 m | N134: 76.
A135: =$A$69 -> 19.5 | AY135: 134 | AZ135: 15 | BA135: 76 | BB135: =IF(O134<0,1,0) -> 0 | BC135: ="Powierzchnia wykazana w polu "&BA135&" nie może być mniejsza od zera" -> Powierzchnia wykazana w polu 76 nie może być mniejsza od zera
A136: =$A$3 -> 9 | I136: - powyżej 2,20 m | N136: 77.
A137: =$A$69 -> 19.5 | AY137: 136 | AZ137: 15 | BA137: 77 | BB137: =IF(O136<0,1,0) -> 0 | BC137: ="Powierzchnia wykazana w polu "&BA137&" nie może być mniejsza od zera" -> Powierzchnia wykazana w polu 77 nie może być mniejsza od zera
A138: =$A$7*1.5 -> 24.75 | B138: D.2.1. INNE BUDYNKI LUB ICH CZĘŚCI (1) Należy wypełnić tylko dla rodzajów przedmiotów opodatkowania innych niż określone w części D.2. Podać nazwę rodzaju przedmiotu opodatkowania lub jednostkę redakcyjną - zgodnie z uchwałą rady gminy.
A139: =$A$3 -> 9 | C139: 78. Rodzaj przedmiotu opodatkowania | N139: 79. | S139: 80. | W139: 81.
A140: =$A$69*2.5 -> 48.75 | C140: związanych z prowadzeniem działalności gospodarczej oraz od budynków mieszkalnych lub ich części zajętych na prowadzenie działalności gospodarczej za każdy następny 1 m2 powierzchni użytkowej powyżej 45.000 m2 | N140: =SUM(O141:R144) -> 0 | S140: =Dane!AN9 -> 0.1 | W140: =IF(AND($AA$24>=1,$AA$24<=12),ROUND(N140*S140*$AA$24/12,2),"Pole 6 - ???") -> Pole 6 - ??? | AA140: =Dane!AU9 -> 0 | AY140: 143 | AZ140: 15 | BA140: =IF(O139>AA140,"większa o ","mniejsza o ")& ABS(O139-AA140) -> mniejsza o 0 | BB140: =IF(N140=AA140,0,1) -> 0 | BC140: ="Powierzchnia budynków wykazana w polu "&N139&" jest " &BA140& " od sumy budynków w zał. ZDN-1" -> Powierzchnia budynków wykazana w polu 79. jest mniejsza o 0 od sumy budynków w zał. ZDN-1
A141: =$A$3 -> 9 | C141: w tym kondygnacji o wysokości: | I141: - od 1,40 do 2,20 m | N141: 82.
A142: =$A$69 -> 19.5 | AY142: 141 | AZ142: 15 | BA142: 82 | BB142: =IF(O141<0,1,0) -> 0 | BC142: ="Powierzchnia wykazana w polu "&BA142&" nie może być mniejsza od zera" -> Powierzchnia wykazana w polu 82 nie może być mniejsza od zera
A143: =$A$3 -> 9 | I143: - powyżej 2,20 m | N143: 83.
A144: =$A$69 -> 19.5 | AY144: 143 | AZ144: 15 | BA144: 83 | BB144: =IF(O143<0,1,0) -> 0 | BC144: ="Powierzchnia wykazana w polu "&BA144&" nie może być mniejsza od zera" -> Powierzchnia wykazana w polu 83 nie może być mniejsza od zera
A145: =$A$3 -> 9 | C145: 84. Rodzaj przedmiotu opodatkowania | N145: 85. | S145: 86. | W145: 87.
A146: =$A$69 -> 19.5
A147: =$A$3 -> 9 | C147: w tym kondygnacji o wysokości: | I147: - od 1,40 do 2,20 m | N147: 88.
A148: =$A$69 -> 19.5
A149: =$A$3 -> 9 | I149: - powyżej 2,20 m | N149: 89.
A150: =$A$69 -> 19.5
A151: =$A$7*1.5 -> 24.75 | B151: D.2.2. INNE BUDYNKI LUB ICH CZĘŚCI (2) Należy wypełnić tylko dla rodzajów przedmiotów opodatkowania innych niż określone w części D.2. Podać nazwę rodzaju przedmiotu opodatkowania lub jednostkę redakcyjną - zgodnie z uchwałą rady gminy.
A152: =$A$3 -> 9 | C152: 78. Rodzaj przedmiotu opodatkowania | N152: 79. | S152: 80. | W152: 81.
A153: =$A$69 -> 19.5
A154: =$A$3 -> 9 | C154: w tym kondygnacji o wysokości: | I154: - od 1,40 do 2,20 m | N154: 82.
A155: =$A$69 -> 19.5
A156: =$A$3 -> 9
A157: =$A$3 -> 9
A158: =$A$3 -> 9
A159: 9
A160: 9
A161: 9
A162: 9
A163: 9
A164: =$A$6 -> 16.5 | C164: =Wersja -> 2022.1.8.15.0.44596 | V164: DN-1(1) | Z164: 3/5
A165: =$A$3 -> 9
A166: 9 | B166: WYPEŁNIĆ DUŻYMI, DRUKOWANYMI LITERAMI, CZARNYM LUB NIEBIESKIM KOLOREM.
A167: 4.5
A168: =$A$3 -> 9 | I168: - powyżej 2,20 m | N168: 83.
A169: =$A$69 -> 19.5
A170: =$A$3 -> 9 | C170: 84. Rodzaj przedmiotu opodatkowania | N170: 85. | S170: 86. | W170: 87.
A171: =$A$69 -> 19.5
A172: =$A$3 -> 9 | C172: w tym kondygnacji o wysokości: | I172: - od 1,40 do 2,20 m | N172: 88.
A173: =$A$69 -> 19.5
A174: =$A$3 -> 9 | I174: - powyżej 2,20 m | N174: 89.
A175: =$A$69 -> 19.5
A176: =$A$7 -> 16.5 | B176: D.3. BUDOWLE LUB ICH CZĘŚCI ZWIĄZANE Z PROWADZENIEM DZIAŁALNOŚCI | BC176: Suma budowli
A177: 18 | C177: GOSPODARCZEJ | N177: Wartość (po zaokrągleniu do pełnych złotych) | S177: Stawka podatku | W177: Kwota podatku za okres, którego dotyczy deklaracja5)
A178: =$A$3 -> 9 | N178: zł | S178: % | W178: zł gr
A179: =$A$3 -> 9 | C179: Budowle | N179: 90. | S179: 91. | W179: 92.
A180: =$A$69 -> 19.5 | S180: =Dane!AN14 -> 2 | W180: =IF(AND($AA$24>=1,$AA$24<=12),ROUND(O179*S180*$AA$24/1200,2),"Pole 6 - ???") -> Pole 6 - ??? | AA180: =Dane!AU14 -> 0 | AY180: 179 | AZ180: 15 | BA180: =IF(O179>AA180,"większa o ","mniejsza o ")& ROUND(ABS(O179-AA180),4) -> mniejsza o 0 | BB180: =IF(O179=AA180,0,1) -> 0 | BC180: ="Wartość budowli wykazana w polu "&N179&" jest " &BA180& " zł od łącznej wartości budowli w zał. ZDN-1" -> Wartość budowli wykazana w polu 90. jest mniejsza o 0 zł od łącznej wartości budowli w zał. ZDN-1
A181: =$A$7*1.5 -> 24.75 | B181: D.3.1. INNE BUDOWLE LUB ICH CZĘŚCI (1) Należy wypełnić tylko dla rodzajów przedmiotów opodatkowania innych niż określone w części D.3. Podać nazwę rodzaju przedmiotu opodatkowania lub jednostkę redakcyjną - zgodnie z uchwałą rady gminy. | AA181: =O179-QUOTIENT(O179,1) -> 0 | AY181: 179 | AZ181: 15 | BA181: =IF(SUM(BB180:BB181)=0,0,1) -> 0 | BB181: =IF(AA181=0,0,1) -> 0 | BC181: Wartość budowli podaje się po zaokrągleniu do pełnych złotych.
A182: =$A$3 -> 9 | C182: 93. Rodzaj przedmiotu opodatkowania | N182: 94. | S182: 95. | W182: 96.
A183: =$A$69 -> 19.5 | C183: sieci kanalizacji sanitarnej wraz z przykanalikami | S183: =Dane!AN13 -> 0.5 | W183: =IF(AND($AA$24>=1,$AA$24<=12),ROUND(O182*S183*$AA$24/1200,2),"Pole 6 - ???") -> Pole 6 - ??? | AA183: =Dane!AU13 -> 0 | AY183: 182 | AZ183: 15 | BA183: =IF(O182>AA183,"większa o ","mniejsza o ")& ABS(O182-AA183) -> mniejsza o 0 | BB183: =IF(O182=AA183,0,1) -> 0 | BC183: ="Wartość budowli wykazana w polu "&N182&" jest " &BA183& " od sumy gruntów w zał. ZDN-1" -> Wartość budowli wykazana w polu 94. jest mniejsza o 0 od sumy gruntów w zał. ZDN-1
A184: =$A$7*1.5 -> 24.75 | B184: D.3.2. INNE BUDOWLE LUB ICH CZĘŚCI (2) Należy wypełnić tylko dla rodzajów przedmiotów opodatkowania innych niż określone w części D.3. Podać nazwę rodzaju przedmiotu opodatkowania lub jednostkę redakcyjną - zgodnie z uchwałą rady gminy. | AA184: =O182-QUOTIENT(O182,1) -> 0 | BA184: =IF(SUM(BB183:BB184)=0,0,1) -> 0 | BB184: =IF(AA184=0,0,1) -> 0 | BC184: Wartość budowli podaje się po zaokrągleniu do pełnych złotych.
A185: =$A$3 -> 9 | C185: 93. Rodzaj przedmiotu opodatkowania | N185: 94. | S185: 95. | W185: 96.
A186: =$A$69 -> 19.5
A187: 4.5
A188: =$A$7 -> 16.5 | B188: E. WYSOKOŚĆ ZOBOWIĄZANIA PODATKOWEGO I RAT PODATKU
A189: =$A$3 -> 9 | C189: Łączna kwota podatku za okres, którego dotyczy deklaracja Suma kwot podatku z części D.1, D.2 i D.3. | U189: 97. zł, gr.
A190: =$A$69 -> 19.5 | U190: =IF(AND($Q$24>=1,$Q$24<=12),QUOTIENT(SUM(W186,W183,W180,W171,W153,W146,W140,W133,W127,W121,W115,W91,W86,W84,W81,W78,W75,W73,W71,W69),1),"Pole 6 - ???") -> Pole 6 - ??? | X190: zł | Y190: =IF(AND($AA$24>=1,$AA$24<=12),(AA190-U190)*100,"???") -> ??? | Z190: gr | AA190: =IF(AND($Q$24>=1,$Q$24<=12),SUM(W186,W183,W180,W171,W153,W146,W140,W133,W127,W121,W115,W91,W86,W84,W81,W78,W75,W73,W71,W69),"Pole 6 - ???") -> Pole 6 - ???
A191: =$A$3 -> 9 | C191: Kwota podatku za miesiące nieobjęte deklaracją6) Jeżeli w poz. 5 zaznaczono kwadrat 1, należy wpisać 0. | U191: 98. zł, gr. | AA191: =U192+Y192/100 -> 0
A192: =$A$69 -> 19.5 | X192: zł | Z192: gr | AA192: =SUM(BB192:BB193) -> 0 | AY192: 192 | AZ192: 21 | BA192: 6 i 98 | BB192: =IF(AND(U192>0,Q24=1),1,0) -> 0 | BC192: Ponieważ w polu 6 [Okres – od którego deklaracja obowiązuje] wpisano 1, pole 98 [Kwota podatku za miesiące nieobjęte deklaracją] powinna być równa 0.
A193: =$A$3 -> 9 | C193: Wysokość zobowiązania podatkowego7) Suma kwot z poz. 97 i 98 (po zaokrągleniu do pełnych złotych). | U193: 99. zł, gr. | BA193: 5 i 98 | BB193: =IF(AND(K21<>"",AA191<>0),1,0) -> 0 | BC193: Jeżeli w poz. 5 zaznaczono kwadrat 1, w pole 98 należy wpisać 0.
A194: =$A$69 -> 19.5 | U194: =ROUND(SUM(AA190:AA191),0) -> 0 | Z194: zł | AA194: =SUM(K196:N201,W196:Y201) -> 0 | AY194: 196 | AZ194: 11 | BA194: suma rat | BB194: =IF(SUM(K196:N201,W196:Y201)=U194,0,1) -> 0 | BC194: =IF(U194>AA194,"Suma kwot rat (pola 100 - 111) jest mniejsza o " &U194-AA194 & " od wysokości zobowiązania podatkowego (pole 99).","Suma kwot rat (pola 100 - 111) jest większa o " &AA194-U194 & " od wysokości zobowiązania podatkowego (pole 99).") -> Suma kwot rat (pola 100 - 111) jest większa o 0 od wysokości zobowiązania podatkowego (pole 99).
A195: =$A$6 -> 16.5 | C195: Suma kwot z poz. od 100 do 111 musi być równa kwocie z poz. 997). W przypadku korekty deklaracji raty, które nie zostały objęte korektą, pozostają bez zmian.
A196: =$A$71+$A$3 -> 28.5 | C196: Kwota I raty | J196: 100. | O196: zł | P196: Kwota II raty | V196: 101. | Z196: zł | AY196: 196 | AZ196: 11 | BA196: 100 | BB196: =IF(K196<0,1,0) -> 0 | BC196: ="Kwota raty "&BA196-99&" nie może być mniejsza od zera" -> Kwota raty 1 nie może być mniejsza od zera
A197: =$A$71+$A$3 -> 28.5 | C197: Kwota III raty | J197: 102. | O197: zł | P197: Kwota IV raty | V197: 103. | Z197: zł | AY197: 169 | AZ197: 23 | BA197: =BA196+1 -> 101 | BB197: =IF(W196<0,1,0) -> 0 | BC197: ="Kwota raty "&BA197-99&" nie może być mniejsza od zera" -> Kwota raty 2 nie może być mniejsza od zera
A198: 28.5 | C198: Kwota V raty | J198: 104. | O198: zł | P198: Kwota VI raty | V198: 105. | Z198: zł | AY198: 197 | AZ198: 11 | BA198: =BA197+1 -> 102 | BB198: =IF(K197<0,1,0) -> 0 | BC198: Kwota raty 3 nie może być mniejsza od zera
A199: 28.5 | C199: Kwota VII raty | J199: 106 | O199: zł | P199: Kwota VIII raty | V199: 107. | Z199: zł | AY199: 197 | AZ199: 23 | BA199: 103 | BB199: =IF(W197<0,1,0) -> 0 | BC199: Kwota raty 4 nie może być mniejsza od zera
A200: 28.5 | C200: Kwota IX raty | J200: 108. | O200: zł | P200: Kwota X raty | V200: 109. | Z200: zł | AY200: 198 | AZ200: 11 | BA200: 104 | BB200: =IF(K198<0,1,0) -> 0 | BC200: Kwota raty 5 nie może być mniejsza od zera
... 57 more rows

Sheet ZDN-1
A1: 17 | B1: 2.5 | C1: =$A$1-D1 -> 11 | D1: 6 | E1: =$A$1*0.5 -> 8.5 | F1: =$A$1*0.6 -> 10.2 | G1: =$A$1 -> 17 | H1: =$A$1 -> 17 | I1: =$A$1*0.6 -> 10.2 | J1: =$A$1*0.6 -> 10.2 | K1: =$A$1 -> 17 | L1: =$A$1*0.3 -> 5.1 | M1: =$A$1*0.3 -> 5.1 | N1: =$A$1-O1 -> 11 | O1: 6
A2: 9 | B2: Załącznik nr 6
A3: =$A$2 -> 9 | B3: WYPEŁNIĆ DUŻYMI, DRUKOWANYMI LITERAMI, CZARNYM LUB NIEBIESKIM KOLOREM.
A4: 4.5
A5: =$A$2 -> 9 | B5: 1. Identyfikator podatkowy NIP/numer PESEL (niepotrzebne skreślić)1) └────┴────┴────┴────┴────┴────┴────┴────┴────┴────┴────┘ | I5: 2. Nr dokumentu
A6: 19.5
A7: =$A$2 -> 9
A8: 16.5 | B8: ZDN-1
A9: =$A$8 -> 16.5 | B9: ZAŁĄCZNIK DO DEKLARACJI NA PODATEK OD NIERUCHOMOŚCI
B10: - DANE O PRZEDMIOTACH OPODATKOWANIA PODLEGAJĄCYCH OPODATKOWANIU
A11: =$A$2 -> 9 | M11: 3. Nr załącznika
A12: =$A$6 -> 19.5 | M12: 1 | P12: =SUM(Q:Q) -> 0 | Q12: =IF(COUNTA(C23:O30,C42:O49,C53:O60)=0,0,1) -> 0
A13: =$A$4 -> 4.5
A14: =$A$4 -> 4.5
A15: =$A$8*1.5 -> 24.75 | B15: A. DANE PODATNIKA WSKAZANEGO W CZĘŚCI C.1 DEKLARACJI DN-1 * - dotyczy podatnika niebędącego osobą fizyczną ** - dotyczy podatnika będącego osobą fizyczną
A16: =$A$2 -> 9 | C16: 4. Nazwa pełna * / Nazwisko ** | I16: 5. Nazwa skrócona * / Pierwsze imię **
A17: =$A$6 -> 19.5
A18: =$A$4 -> 4.5
A19: =$A$8 -> 16.5 | B19: B. DANE O POSZCZEGÓLNYCH PRZEDMIOTACH OPODATKOWANIA PODLEGAJĄCYCH OPODATKOWANIU
A20: 16.5 | B20: B.1. GRUNTY
A21: =$A$8*1.5 -> 24.75 | B21: Lp. | C21: Położenie (adres, w tym dzielnica) | H21: Nr księgi wieczystej (zbioru dokumentów) | I21: Nr obrębu (arkusza mapy)2) | J21: Nr działki | K21: Powierzchnia w m2 / ha3) | L21: Stawka Podatku4) | N21: Forma władania5)
A22: =$A$2 -> 9 | C22: a | H22: b | I22: c | J22: d | K22: e | L22: f | N22: g
A23: =$A$6 -> 19.5 | B23: 1 | P23: ="a."&L23 -> a.
A24: 19.5 | B24: 2 | P24: ="a."&L24 -> a.
A25: 19.5 | B25: 3 | P25: a.
A26: 19.5 | B26: 4 | P26: a.
A27: 19.5 | B27: 5 | P27: a.
A28: 19.5 | B28: 6 | P28: a.
A29: 19.5 | B29: 7 | P29: a.
A30: 19.5 | B30: 8 | P30: a.
A31: =$A$2 -> 9
A32: =$A$2*2 -> 18 | B32: 1) | C32: Numer PESEL wpisują podatnicy będący osobami fizycznymi objętymi rejestrem PESEL, nieprowadzący działalności gospodarczej lub niebędący zarejestrowanymi podatnikami podatku od towarów i usług. Identyfikator podatkowy NIP wpisują pozostali podatnicy.
A33: =$A$2 -> 9 | B33: 2) | C33: Numer obrębu należy podać wraz z numerem arkusza mapy ewidencyjnej w przypadku, gdy działki numerowane są w ramach arkusza mapy.
A34: =$A$2*2 -> 18 | B34: 3) | C34: Powierzchnię w ha należy wykazać wyłącznie w przypadku gruntów pod wodami powierzchniowymi stojącymi lub wodami powierzchniowymi płynącymi jezior i zbiorników sztucznych (z dokładnością do czterech miejsc po przecinku).
A35: =$A$8 -> 16.5 | C35: =Wersja -> 2022.1.8.15.0.44596 | N35: ZDN-1(1) | O35: 1/2
A36: =$A$2 -> 9
A37: =$A$2 -> 9 | B37: WYPEŁNIĆ DUŻYMI, DRUKOWANYMI LITERAMI, CZARNYM LUB NIEBIESKIM KOLOREM.
A38: 4.5
A39: =$A$8 -> 16.5 | B39: B.2. BUDYNKI LUB ICH CZĘŚCI
A40: =$A$8*1.5 -> 24.75 | B40: Lp. | C40: Położenie (adres, w tym dzielnica) | H40: Nr księgi wieczystej (zbioru dokumentów) | I40: Nr obrębu (arkusza mapy)2) | J40: Nr działki | K40: Powierzchnia użytkowa w m2 | L40: Stawka Podatku4) | N40: Forma władania5)
A41: =$A$2 -> 9 | C41: a | H41: b | I41: c | J41: d | K41: e | L41: f | N41: g
A42: =$A$6 -> 19.5 | B42: 1 | P42: ="b."&L42 -> b.
A43: 19.5 | B43: 2 | P43: ="b."&L43 -> b.
A44: 19.5 | B44: 3 | P44: b.
A45: 19.5 | B45: 4 | P45: b.
A46: 19.5 | B46: 5 | P46: b.
A47: 19.5 | B47: 6 | P47: b.
A48: 19.5 | B48: 7 | P48: b.
A49: 19.5 | B49: 8 | P49: b.
A50: =$A$8 -> 16.5 | B50: B.3. BUDOWLE LUB ICH CZĘŚCI ZWIĄZANE Z PROWADZENIEM DZIAŁALNOŚCI GOSPODARCZEJ
A51: 16.5 | B51: Lp. | C51: Nazwa budowli | F51: Nr inwentarzowy | G51: Położenie (adres, w tym dzielnica) | I51: Nr obrębu (arkusza mapy)2) | J51: Nr działki | K51: Wartość w zł | L51: Stawka Podatku4) | N51: Forma władania5)
A52: =$A$2 -> 9 | C52: a | F52: b | H52: c | I52: d | J52: e | K52: f | L52: g | N52: h
A53: =$A$6 -> 19.5 | B53: 1 | P53: ="c."&L53 -> c.
A54: 19.5 | B54: 2 | P54: ="c."&L54 -> c.
A55: 19.5 | B55: 3 | P55: c.
A56: 19.5 | B56: 4 | P56: c.
A57: 19.5 | B57: 5 | P57: c.
A58: 19.5 | B58: 6 | P58: c.
A59: 19.5 | B59: 7 | P59: c.
A60: 19.5 | B60: 8 | P60: c.
A61: =$A$2 -> 9
A62: 9 | B62: 4) | C62: Należy podać stawkę właściwą dla rodzaju przedmiotu opodatkowania zgodną z uchwałą rady gminy.
A63: 9 | B63: 5) | C63: Należy podać jedną z form władania: własność, użytkowanie wieczyste, posiadanie samoistne, posiadanie zależne lub posiadanie bez tytułu prawnego.
A64: =$A$2 -> 9
A65: 9
A66: 9
A67: 9
A68: =$A$8 -> 16.5 | C68: ZDN-1(1) | D68: 2/2 | M68: =Wersja -> 2022.1.8.15.0.44596
A69: 9
A70: 9 | B70: Załącznik nr 6
A71: =$A$2 -> 9 | B71: WYPEŁNIĆ DUŻYMI, DRUKOWANYMI LITERAMI, CZARNYM LUB NIEBIESKIM KOLOREM.
A72: 4.5
A73: =$A$2 -> 9 | B73: 1. Identyfikator podatkowy NIP/numer PESEL (niepotrzebne skreślić)1) └────┴────┴────┴────┴────┴────┴────┴────┴────┴────┴────┘ | I73: 2. Nr dokumentu
A74: =$A$6 -> 19.5 | C74: =$C$6 -> 0
A75: =$A$2 -> 9
A76: 16.5 | B76: ZDN-1
A77: =$A$8 -> 16.5 | B77: ZAŁĄCZNIK DO DEKLARACJI NA PODATEK OD NIERUCHOMOŚCI
B78: - DANE O PRZEDMIOTACH OPODATKOWANIA PODLEGAJĄCYCH OPODATKOWANIU
A79: =$A$2 -> 9 | M79: 3. Nr załącznika
A80: =$A$6 -> 19.5 | M80: =M12+1 -> 2 | Q80: =IF(COUNTA(C91:O98,C110:O117,C121:O128)=0,0,1) -> 0
A81: =$A$4 -> 4.5
A82: =$A$4 -> 4.5
A83: =$A$8*1.5 -> 24.75 | B83: A. DANE PODATNIKA WSKAZANEGO W CZĘŚCI C.1 DEKLARACJI DN-1 * - dotyczy podatnika niebędącego osobą fizyczną ** - dotyczy podatnika będącego osobą fizyczną
A84: =$A$2 -> 9 | C84: 4. Nazwa pełna * / Nazwisko ** | I84: 5. Nazwa skrócona * / Pierwsze imię **
A85: =$A$6 -> 19.5 | C85: =""&$C$17 ->  | I85: =""&$I$17 -> 
A86: =$A$4 -> 4.5
A87: =$A$8 -> 16.5 | B87: B. DANE O POSZCZEGÓLNYCH PRZEDMIOTACH OPODATKOWANIA PODLEGAJĄCYCH OPODATKOWANIU
A88: 16.5 | B88: B.1. GRUNTY
A89: =$A$8*1.5 -> 24.75 | B89: Lp. | C89: Położenie (adres, w tym dzielnica) | H89: Nr księgi wieczystej (zbioru dokumentów) | I89: Nr obrębu (arkusza mapy)2) | J89: Nr działki | K89: Powierzchnia w m2 / ha3) | L89: Stawka Podatku4) | N89: Forma władania5)
A90: =$A$2 -> 9 | C90: a | H90: b | I90: c | J90: d | K90: e | L90: f | N90: g
A91: =$A$6 -> 19.5 | B91: 1 | P91: ="a."&L91 -> a.
A92: 19.5 | B92: 2 | P92: ="a."&L92 -> a.
A93: 19.5 | B93: 3 | P93: a.
A94: 19.5 | B94: 4 | P94: a.
A95: 19.5 | B95: 5 | P95: a.
A96: 19.5 | B96: 6 | P96: a.
A97: 19.5 | B97: 7 | P97: a.
A98: 19.5 | B98: 8 | P98: a.
A99: =$A$2 -> 9
A100: =$A$2*2 -> 18 | B100: 1) | C100: Numer PESEL wpisują podatnicy będący osobami fizycznymi objętymi rejestrem PESEL, nieprowadzący działalności gospodarczej lub niebędący zarejestrowanymi podatnikami podatku od towarów i usług. Identyfikator podatkowy NIP wpisują pozostali podatnicy.
A101: =$A$2 -> 9 | B101: 2) | C101: Numer obrębu należy podać wraz z numerem arkusza mapy ewidencyjnej w przypadku, gdy działki numerowane są w ramach arkusza mapy.
A102: =$A$2*2 -> 18 | B102: 3) | C102: Powierzchnię w ha należy wykazać wyłącznie w przypadku gruntów pod wodami powierzchniowymi stojącymi lub wodami powierzchniowymi płynącymi jezior i zbiorników sztucznych (z dokładnością do czterech miejsc po przecinku).
A103: =$A$8 -> 16.5 | C103: =Wersja -> 2022.1.8.15.0.44596 | N103: ZDN-1(1) | O103: 1/2
A104: =$A$2 -> 9
A105: =$A$2 -> 9 | B105: WYPEŁNIĆ DUŻYMI, DRUKOWANYMI LITERAMI, CZARNYM LUB NIEBIESKIM KOLOREM.
A106: 4.5
A107: =$A$8 -> 16.5 | B107: B.2. BUDYNKI LUB ICH CZĘŚCI
A108: =$A$8*1.5 -> 24.75 | B108: Lp. | C108: Położenie (adres, w tym dzielnica) | H108: Nr księgi wieczystej (zbioru dokumentów) | I108: Nr obrębu (arkusza mapy)2) | J108: Nr działki | K108: Powierzchnia użytkowa w m2 | L108: Stawka Podatku4) | N108: Forma władania5)
A109: =$A$2 -> 9 | C109: a | H109: b | I109: c | J109: d | K109: e | L109: f | N109: g
A110: =$A$6 -> 19.5 | B110: 1 | P110: ="b."&L110 -> b.
A111: 19.5 | B111: 2 | P111: ="b."&L111 -> b.
A112: 19.5 | B112: 3 | P112: b.
A113: 19.5 | B113: 4 | P113: b.
A114: 19.5 | B114: 5 | P114: b.
A115: 19.5 | B115: 6 | P115: b.
A116: 19.5 | B116: 7 | P116: b.
A117: 19.5 | B117: 8 | P117: b.
A118: =$A$8 -> 16.5 | B118: B.3. BUDOWLE LUB ICH CZĘŚCI ZWIĄZANE Z PROWADZENIEM DZIAŁALNOŚCI GOSPODARCZEJ
A119: 16.5 | B119: Lp. | C119: Nazwa budowli | F119: Nr inwentarzowy | G119: Położenie (adres, w tym dzielnica) | I119: Nr obrębu (arkusza mapy)2) | J119: Nr działki | K119: Wartość w zł | L119: Stawka Podatku4) | N119: Forma władania5)
A120: =$A$2 -> 9 | C120: a | F120: b | H120: c | I120: d | J120: e | K120: f | L120: g | N120: h
A121: =$A$6 -> 19.5 | B121: 1 | P121: ="c."&L121 -> c.
A122: 19.5 | B122: 2 | P122: ="c."&L122 -> c.
A123: 19.5 | B123: 3 | P123: c.
A124: 19.5 | B124: 4 | P124: c.
A125: 19.5 | B125: 5 | P125: c.
A126: 19.5 | B126: 6 | P126: c.
A127: 19.5 | B127: 7 | P127: c.
A128: 19.5 | B128: 8 | P128: c.
A129: =$A$2 -> 9
A130: 9 | B130: 4) | C130: Należy podać stawkę właściwą dla rodzaju przedmiotu opodatkowania zgodną z uchwałą rady gminy.
A131: 9 | B131: 5) | C131: Należy podać jedną z form władania: własność, użytkowanie wieczyste, posiadanie samoistne, posiadanie zależne lub posiadanie bez tytułu prawnego.
A132: =$A$2 -> 9
A133: 9
A134: 9
A135: 9
A136: =$A$8 -> 16.5 | C136: ZDN-1(1) | D136: 2/2 | M136: =Wersja -> 2022.1.8.15.0.44596
A137: 9
A138: 9 | B138: Załącznik nr 6
A139: =$A$2 -> 9 | B139: WYPEŁNIĆ DUŻYMI, DRUKOWANYMI LITERAMI, CZARNYM LUB NIEBIESKIM KOLOREM.
A140: 4.5
A141: =$A$2 -> 9 | B141: 1. Identyfikator podatkowy NIP/numer PESEL (niepotrzebne skreślić)1) └────┴────┴────┴────┴────┴────┴────┴────┴────┴────┴────┘ | I141: 2. Nr dokumentu
A142: =$A$6 -> 19.5 | C142: =$C$6 -> 0
A143: =$A$2 -> 9
A144: 16.5 | B144: ZDN-1
A145: =$A$8 -> 16.5 | B145: ZAŁĄCZNIK DO DEKLARACJI NA PODATEK OD NIERUCHOMOŚCI
B146: - DANE O PRZEDMIOTACH OPODATKOWANIA PODLEGAJĄCYCH OPODATKOWANIU
A147: =$A$2 -> 9 | M147: 3. Nr załącznika
A148: =$A$6 -> 19.5 | M148: =M80+1 -> 3 | Q148: =IF(COUNTA(C159:O166,C178:O185,C189:O196)=0,0,1) -> 0
A149: =$A$4 -> 4.5
A150: =$A$4 -> 4.5
A151: =$A$8*1.5 -> 24.75 | B151: A. DANE PODATNIKA WSKAZANEGO W CZĘŚCI C.1 DEKLARACJI DN-1 * - dotyczy podatnika niebędącego osobą fizyczną ** - dotyczy podatnika będącego osobą fizyczną
A152: =$A$2 -> 9 | C152: 4. Nazwa pełna * / Nazwisko ** | I152: 5. Nazwa skrócona * / Pierwsze imię **
A153: =$A$6 -> 19.5 | C153: =""&$C$17 ->  | I153: =""&$I$17 -> 
A154: =$A$4 -> 4.5
A155: =$A$8 -> 16.5 | B155: B. DANE O POSZCZEGÓLNYCH PRZEDMIOTACH OPODATKOWANIA PODLEGAJĄCYCH OPODATKOWANIU
A156: 16.5 | B156: B.1. GRUNTY
A157: =$A$8*1.5 -> 24.75 | B157: Lp. | C157: Położenie (adres, w tym dzielnica) | H157: Nr księgi wieczystej (zbioru dokumentów) | I157: Nr obrębu (arkusza mapy)2) | J157: Nr działki | K157: Powierzchnia w m2 / ha3) | L157: Stawka Podatku4) | N157: Forma władania5)
A158: =$A$2 -> 9 | C158: a | H158: b | I158: c | J158: d | K158: e | L158: f | N158: g
A159: =$A$6 -> 19.5 | B159: 1 | P159: ="a."&L159 -> a.
A160: 19.5 | B160: 2 | P160: ="a."&L160 -> a.
A161: 19.5 | B161: 3 | P161: a.
A162: 19.5 | B162: 4 | P162: a.
A163: 19.5 | B163: 5 | P163: a.
A164: 19.5 | B164: 6 | P164: a.
A165: 19.5 | B165: 7 | P165: a.
A166: 19.5 | B166: 8 | P166: a.
A167: =$A$2 -> 9
A168: =$A$2*2 -> 18 | B168: 1) | C168: Numer PESEL wpisują podatnicy będący osobami fizycznymi objętymi rejestrem PESEL, nieprowadzący działalności gospodarczej lub niebędący zarejestrowanymi podatnikami podatku od towarów i usług. Identyfikator podatkowy NIP wpisują pozostali podatnicy.
A169: =$A$2 -> 9 | B169: 2) | C169: Numer obrębu należy podać wraz z numerem arkusza mapy ewidencyjnej w przypadku, gdy działki numerowane są w ramach arkusza mapy.
A170: =$A$2*2 -> 18 | B170: 3) | C170: Powierzchnię w ha należy wykazać wyłącznie w przypadku gruntów pod wodami powierzchniowymi stojącymi lub wodami powierzchniowymi płynącymi jezior i zbiorników sztucznych (z dokładnością do czterech miejsc po przecinku).
A171: =$A$8 -> 16.5 | C171: =Wersja -> 2022.1.8.15.0.44596 | N171: ZDN-1(1) | O171: 1/2
A172: =$A$2 -> 9
A173: =$A$2 -> 9 | B173: WYPEŁNIĆ DUŻYMI, DRUKOWANYMI LITERAMI, CZARNYM LUB NIEBIESKIM KOLOREM.
A174: 4.5
A175: =$A$8 -> 16.5 | B175: B.2. BUDYNKI LUB ICH CZĘŚCI
A176: =$A$8*1.5 -> 24.75 | B176: Lp. | C176: Położenie (adres, w tym dzielnica) | H176: Nr księgi wieczystej (zbioru dokumentów) | I176: Nr obrębu (arkusza mapy)2) | J176: Nr działki | K176: Powierzchnia użytkowa w m2 | L176: Stawka Podatku4) | N176: Forma władania5)
A177: =$A$2 -> 9 | C177: a | H177: b | I177: c | J177: d | K177: e | L177: f | N177: g
A178: =$A$6 -> 19.5 | B178: 1 | P178: ="b."&L178 -> b.
A179: 19.5 | B179: 2 | P179: ="b."&L179 -> b.
A180: 19.5 | B180: 3 | P180: b.
A181: 19.5 | B181: 4 | P181: b.
A182: 19.5 | B182: 5 | P182: b.
A183: 19.5 | B183: 6 | P183: b.
A184: 19.5 | B184: 7 | P184: b.
A185: 19.5 | B185: 8 | P185: b.
A186: =$A$8 -> 16.5 | B186: B.3. BUDOWLE LUB ICH CZĘŚCI ZWIĄZANE Z PROWADZENIEM DZIAŁALNOŚCI GOSPODARCZEJ
A187: 16.5 | B187: Lp. | C187: Nazwa budowli | F187: Nr inwentarzowy | G187: Położenie (adres, w tym dzielnica) | I187: Nr obrębu (arkusza mapy)2) | J187: Nr działki | K187: Wartość w zł | L187: Stawka Podatku4) | N187: Forma władania5)
A188: =$A$2 -> 9 | C188: a | F188: b | H188: c | I188: d | J188: e | K188: f | L188: g | N188: h
A189: =$A$6 -> 19.5 | B189: 1 | P189: ="c."&L189 -> c.
A190: 19.5 | B190: 2 | P190: ="c."&L190 -> c.
A191: 19.5 | B191: 3 | P191: c.
A192: 19.5 | B192: 4 | P192: c.
A193: 19.5 | B193: 5 | P193: c.
A194: 19.5 | B194: 6 | P194: c.
A195: 19.5 | B195: 7 | P195: c.
A196: 19.5 | B196: 8 | P196: c.
A197: =$A$2 -> 9
A198: 9 | B198: 4) | C198: Należy podać stawkę właściwą dla rodzaju przedmiotu opodatkowania zgodną z uchwałą rady gminy.
A199: 9 | B199: 5) | C199: Należy podać jedną z form władania: własność, użytkowanie wieczyste, posiadanie samoistne, posiadanie zależne lub posiadanie bez tytułu prawnego.
A200: =$A$2 -> 9
... 1841 more rows

Sheet ZDN-2
A1: 17 | B1: 2.5 | C1: =$A$1-D1 -> 11 | D1: 6 | E1: =$A$1*0.5 -> 8.5 | F1: =$A$1*0.6 -> 10.2 | G1: =$A$1 -> 17 | H1: =$A$1 -> 17 | I1: =$A$1*0.6 -> 10.2 | J1: =$A$1*0.6 -> 10.2 | K1: =$A$1 -> 17 | L1: =$A$1*0.3 -> 5.1 | M1: =$A$1-O1 -> 11 | N1: =$A$1*0.3 -> 5.1 | O1: 6
A2: 9 | B2: Załącznik nr 7
A3: =$A$2 -> 9 | B3: WYPEŁNIĆ DUŻYMI, DRUKOWANYMI LITERAMI, CZARNYM LUB NIEBIESKIM KOLOREM.
A4: 4.5
A5: =$A$2 -> 9 | B5: 1. Identyfikator podatkowy NIP/numer PESEL (niepotrzebne skreślić)1) └────┴────┴────┴────┴────┴────┴────┴────┴────┴────┴────┘ | I5: 2. Nr dokumentu
A6: 19.5
A7: =$A$2 -> 9
A8: 16.5 | B8: ZDN-2
A9: =$A$8 -> 16.5 | B9: ZAŁĄCZNIK DO DEKLARACJI NA PODATEK OD NIERUCHOMOŚCI
A10: =$A$8 -> 16.5 | B10: - DANE O PRZEDMIOTACH OPODATKOWANIA ZWOLNIONYCH Z OPODATKOWANIA
A11: =$A$2 -> 9 | M11: 3. Nr załącznika
A12: =$A$6 -> 19.5 | C12: =Wersja -> 2022.1.8.15.0.44596 | M12: 1 | Q12: =IF(COUNTA(C23:O30,C42:O49,C53:O60)=0,0,1) -> 0
A13: =$A$4 -> 4.5
A14: =$A$4 -> 4.5
A15: =$A$8*1.5 -> 24.75 | B15: A. DANE PODATNIKA WSKAZANEGO W CZĘŚCI C.1 DEKLARACJI DN-1 * - dotyczy podatnika niebędącego osobą fizyczną ** - dotyczy podatnika będącego osobą fizyczną
A16: =$A$2 -> 9 | C16: 4. Nazwa pełna * / Nazwisko ** | I16: 5. Nazwa skrócona * / Pierwsze imię **
A17: =$A$6 -> 19.5
A18: =$A$4 -> 4.5
A19: =$A$8 -> 16.5 | B19: B. DANE O POSZCZEGÓLNYCH PRZEDMIOTACH OPODATKOWANIA ZWOLNIONYCH Z OPODATKOWANIA
A20: 16.5 | B20: B.1. GRUNTY
A21: =$A$8*1.5 -> 24.75 | B21: Lp. | C21: Położenie (adres, w tym dzielnica) | H21: Nr księgi wieczystej (zbioru dokumentów) | I21: Nr obrębu (arkusza mapy)2) | J21: Nr działki | K21: Powierzchnia w m2 / ha3) | L21: Podstawa prawna zwolnienia4) | N21: Stawka Podatku5)
A22: =$A$2 -> 9 | C22: a | H22: b | I22: c | J22: d | K22: e | L22: f | N22: g
A23: =$A$6 -> 19.5 | B23: 1
A24: 19.5 | B24: 2
A25: 19.5 | B25: 3
A26: 19.5 | B26: 4
A27: 19.5 | B27: 5
A28: 19.5 | B28: 6
A29: 19.5 | B29: 7
A30: 19.5 | B30: 8
A31: =$A$2 -> 9
A32: =$A$2*2 -> 18 | B32: 1) | C32: Numer PESEL wpisują podatnicy będący osobami fizycznymi objętymi rejestrem PESEL, nieprowadzący działalności gospodarczej lub niebędący zarejestrowanymi podatnikami podatku od towarów i usług. Identyfikator podatkowy NIP wpisują pozostali podatnicy.
A33: =$A$2 -> 9 | B33: 2) | C33: Numer obrębu należy podać wraz z numerem arkusza mapy ewidencyjnej w przypadku, gdy działki numerowane są w ramach arkusza mapy.
A34: =$A$2*2 -> 18 | B34: 3) | C34: Powierzchnię w ha należy wykazać wyłącznie w przypadku gruntów pod wodami powierzchniowymi stojącymi lub wodami powierzchniowymi płynącymi jezior i zbiorników sztucznych (z dokładnością do czterech miejsc po przecinku).
A35: =$A$8 -> 16.5 | M35: ZDN-2(1) | N35: 1/2
A36: =$A$2 -> 9
A37: =$A$2 -> 9 | B37: WYPEŁNIĆ DUŻYMI, DRUKOWANYMI LITERAMI, CZARNYM LUB NIEBIESKIM KOLOREM.
A38: =$A$4 -> 4.5
A39: =$A$8 -> 16.5 | B39: B.2. BUDYNKI LUB ICH CZĘŚCI
A40: =$A$8*1.5 -> 24.75 | B40: Lp. | C40: Położenie (adres, w tym dzielnica) | H40: Nr księgi wieczystej (zbioru dokumentów) | I40: Nr obrębu (arkusza mapy)2) | J40: Nr działki | K40: Powierzchnia użytkowa w m2 | L40: Podstawa prawna zwolnienia4) | N40: Stawka Podatku5)
A41: =$A$2 -> 9 | C41: a | H41: b | I41: c | J41: d | K41: e | L41: f | N41: g
A42: =$A$6 -> 19.5 | B42: 1
A43: 19.5 | B43: 2
A44: 19.5 | B44: 3
A45: 19.5 | B45: 4
A46: 19.5 | B46: 5
A47: 19.5 | B47: 6
A48: 19.5 | B48: 7
A49: 19.5 | B49: 8
A50: =$A$8 -> 16.5 | B50: B.3. BUDOWLE LUB ICH CZĘŚCI ZWIĄZANE Z PROWADZENIEM DZIAŁALNOŚCI GOSPODARCZEJ
A51: =$A$8*1.5 -> 24.75 | B51: Lp. | C51: Nazwa budowli | F51: Nr inwentarzowy | G51: Położenie (adres, w tym dzielnica) | I51: Nr obrębu (arkusza mapy)2) | J51: Nr działki | K51: Wartość w zł | L51: Podstawa prawna zwolnienia4) | N51: Stawka Podatku5)
A52: =$A$2 -> 9 | C52: a | F52: b | H52: c | I52: d | J52: e | K52: f | L52: g | N52: h
A53: =$A$6 -> 19.5 | B53: 1
A54: 19.5 | B54: 2
A55: 19.5 | B55: 3
A56: 19.5 | B56: 4
A57: 19.5 | B57: 5
A58: 19.5 | B58: 6
A59: 19.5 | B59: 7
A60: 19.5 | B60: 8
A61: =$A$2 -> 9
A62: 9 | B62: 4) | C62: Należy podać jednostkę redakcyjną z ustawy lub uchwały rady gminy.
A63: 9 | B63: 5) | C63: Należy podać stawkę właściwą dla rodzaju przedmiotu opodatkowania zgodną z uchwałą rady gminy.
A64: =$A$2 -> 9
A65: 9
A66: 9
A67: 9
A68: =$A$8 -> 16.5 | C68: ZDN-2(1) | D68: 2/2 | M68: =Wersja -> 2022.1.8.15.0.44596
A69: 9
A70: 9 | B70: Załącznik nr 7
A71: =$A$2 -> 9 | B71: WYPEŁNIĆ DUŻYMI, DRUKOWANYMI LITERAMI, CZARNYM LUB NIEBIESKIM KOLOREM.
A72: =$A$4 -> 4.5
A73: =$A$2 -> 9 | B73: 1. Identyfikator podatkowy NIP/numer PESEL (niepotrzebne skreślić)1) └────┴────┴────┴────┴────┴────┴────┴────┴────┴────┴────┘ | I73: 2. Nr dokumentu
A74: =$A$6 -> 19.5 | C74: =$C$6 -> 0
A75: =$A$2 -> 9
A76: 16.5 | B76: ZDN-2
A77: =$A$8 -> 16.5 | B77: ZAŁĄCZNIK DO DEKLARACJI NA PODATEK OD NIERUCHOMOŚCI
A78: =$A$8 -> 16.5 | B78: - DANE O PRZEDMIOTACH OPODATKOWANIA ZWOLNIONYCH Z OPODATKOWANIA
A79: =$A$2 -> 9 | M79: 3. Nr załącznika
A80: =$A$6 -> 19.5 | M80: =M12+1 -> 2 | Q80: =IF(COUNTA(C91:O98,C110:O117,C121:O128)=0,0,1) -> 0
A81: =$A$4 -> 4.5
A82: =$A$4 -> 4.5
A83: =$A$8*1.5 -> 24.75 | B83: A. DANE PODATNIKA WSKAZANEGO W CZĘŚCI C.1 DEKLARACJI DN-1 * - dotyczy podatnika niebędącego osobą fizyczną ** - dotyczy podatnika będącego osobą fizyczną
A84: =$A$2 -> 9 | C84: 4. Nazwa pełna * / Nazwisko ** | I84: 5. Nazwa skrócona * / Pierwsze imię **
A85: =$A$6 -> 19.5 | C85: =""&$C$17 ->  | I85: =""&$I$17 -> 
A86: =$A$4 -> 4.5
A87: =$A$8 -> 16.5 | B87: B. DANE O POSZCZEGÓLNYCH PRZEDMIOTACH OPODATKOWANIA ZWOLNIONYCH Z OPODATKOWANIA
A88: 16.5 | B88: B.1. GRUNTY
A89: =$A$8*1.5 -> 24.75 | B89: Lp. | C89: Położenie (adres, w tym dzielnica) | H89: Nr księgi wieczystej (zbioru dokumentów) | I89: Nr obrębu (arkusza mapy)2) | J89: Nr działki | K89: Powierzchnia w m2 / ha3) | L89: Podstawa prawna zwolnienia4) | N89: Stawka Podatku5)
A90: =$A$2 -> 9 | C90: a | H90: b | I90: c | J90: d | K90: e | L90: f | N90: g
A91: =$A$6 -> 19.5 | B91: 1
A92: 19.5 | B92: 2
A93: 19.5 | B93: 3
A94: 19.5 | B94: 4
A95: 19.5 | B95: 5
A96: 19.5 | B96: 6
A97: 19.5 | B97: 7
A98: 19.5 | B98: 8
A99: =$A$2 -> 9
A100: =$A$2*2 -> 18 | B100: 1) | C100: Numer PESEL wpisują podatnicy będący osobami fizycznymi objętymi rejestrem PESEL, nieprowadzący działalności gospodarczej lub niebędący zarejestrowanymi podatnikami podatku od towarów i usług. Identyfikator podatkowy NIP wpisują pozostali podatnicy.
A101: =$A$2 -> 9 | B101: 2) | C101: Numer obrębu należy podać wraz z numerem arkusza mapy ewidencyjnej w przypadku, gdy działki numerowane są w ramach arkusza mapy.
A102: =$A$2*2 -> 18 | B102: 3) | C102: Powierzchnię w ha należy wykazać wyłącznie w przypadku gruntów pod wodami powierzchniowymi stojącymi lub wodami powierzchniowymi płynącymi jezior i zbiorników sztucznych (z dokładnością do czterech miejsc po przecinku).
A103: =$A$8 -> 16.5 | C103: =Wersja -> 2022.1.8.15.0.44596 | M103: ZDN-2(1) | N103: 1/2
A104: =$A$2 -> 9
A105: =$A$2 -> 9 | B105: WYPEŁNIĆ DUŻYMI, DRUKOWANYMI LITERAMI, CZARNYM LUB NIEBIESKIM KOLOREM.
A106: =$A$4 -> 4.5
A107: =$A$8 -> 16.5 | B107: B.2. BUDYNKI LUB ICH CZĘŚCI
A108: =$A$8*1.5 -> 24.75 | B108: Lp. | C108: Położenie (adres, w tym dzielnica) | H108: Nr księgi wieczystej (zbioru dokumentów) | I108: Nr obrębu (arkusza mapy)2) | J108: Nr działki | K108: Powierzchnia użytkowa w m2 | L108: Podstawa prawna zwolnienia4) | N108: Stawka Podatku5)
A109: =$A$2 -> 9 | C109: a | H109: b | I109: c | J109: d | K109: e | L109: f | N109: g
A110: =$A$6 -> 19.5 | B110: 1
A111: 19.5 | B111: 2
A112: 19.5 | B112: 3
A113: 19.5 | B113: 4
A114: 19.5 | B114: 5
A115: 19.5 | B115: 6
A116: 19.5 | B116: 7
A117: 19.5 | B117: 8
A118: =$A$8 -> 16.5 | B118: B.3. BUDOWLE LUB ICH CZĘŚCI ZWIĄZANE Z PROWADZENIEM DZIAŁALNOŚCI GOSPODARCZEJ
A119: =$A$8*1.5 -> 24.75 | B119: Lp. | C119: Nazwa budowli | F119: Nr inwentarzowy | G119: Położenie (adres, w tym dzielnica) | I119: Nr obrębu (arkusza mapy)2) | J119: Nr działki | K119: Wartość w zł | L119: Podstawa prawna zwolnienia4) | N119: Stawka Podatku5)
A120: =$A$2 -> 9 | C120: a | F120: b | H120: c | I120: d | J120: e | K120: f | L120: g | N120: h
A121: =$A$6 -> 19.5 | B121: 1
A122: 19.5 | B122: 2
A123: 19.5 | B123: 3
A124: 19.5 | B124: 4
A125: 19.5 | B125: 5
A126: 19.5 | B126: 6
A127: 19.5 | B127: 7
A128: 19.5 | B128: 8
A129: =$A$2 -> 9
A130: 9 | B130: 4) | C130: Należy podać jednostkę redakcyjną z ustawy lub uchwały rady gminy.
A131: 9 | B131: 5) | C131: Należy podać stawkę właściwą dla rodzaju przedmiotu opodatkowania zgodną z uchwałą rady gminy.
A132: =$A$2 -> 9
A133: 9
A134: 9
A135: 9
A136: =$A$8 -> 16.5 | C136: ZDN-2(1) | D136: 2/2 | M136: =Wersja -> 2022.1.8.15.0.44596
A137: 9
A138: 9 | B138: Załącznik nr 7
A139: =$A$2 -> 9 | B139: WYPEŁNIĆ DUŻYMI, DRUKOWANYMI LITERAMI, CZARNYM LUB NIEBIESKIM KOLOREM.
A140: =$A$4 -> 4.5
A141: =$A$2 -> 9 | B141: 1. Identyfikator podatkowy NIP/numer PESEL (niepotrzebne skreślić)1) └────┴────┴────┴────┴────┴────┴────┴────┴────┴────┴────┘ | I141: 2. Nr dokumentu
A142: =$A$6 -> 19.5 | C142: =$C$6 -> 0
A143: =$A$2 -> 9
A144: 16.5 | B144: ZDN-2
A145: =$A$8 -> 16.5 | B145: ZAŁĄCZNIK DO DEKLARACJI NA PODATEK OD NIERUCHOMOŚCI
A146: =$A$8 -> 16.5 | B146: - DANE O PRZEDMIOTACH OPODATKOWANIA ZWOLNIONYCH Z OPODATKOWANIA
A147: =$A$2 -> 9 | M147: 3. Nr załącznika
A148: =$A$6 -> 19.5 | M148: =M80+1 -> 3 | Q148: =IF(COUNTA(C159:O166,C178:O185,C189:O196)=0,0,1) -> 0
A149: =$A$4 -> 4.5
A150: =$A$4 -> 4.5
A151: =$A$8*1.5 -> 24.75 | B151: A. DANE PODATNIKA WSKAZANEGO W CZĘŚCI C.1 DEKLARACJI DN-1 * - dotyczy podatnika niebędącego osobą fizyczną ** - dotyczy podatnika będącego osobą fizyczną
A152: =$A$2 -> 9 | C152: 4. Nazwa pełna * / Nazwisko ** | I152: 5. Nazwa skrócona * / Pierwsze imię **
A153: =$A$6 -> 19.5 | C153: =""&$C$17 ->  | I153: =""&$I$17 -> 
A154: =$A$4 -> 4.5
A155: =$A$8 -> 16.5 | B155: B. DANE O POSZCZEGÓLNYCH PRZEDMIOTACH OPODATKOWANIA ZWOLNIONYCH Z OPODATKOWANIA
A156: 16.5 | B156: B.1. GRUNTY
A157: =$A$8*1.5 -> 24.75 | B157: Lp. | C157: Położenie (adres, w tym dzielnica) | H157: Nr księgi wieczystej (zbioru dokumentów) | I157: Nr obrębu (arkusza mapy)2) | J157: Nr działki | K157: Powierzchnia w m2 / ha3) | L157: Podstawa prawna zwolnienia4) | N157: Stawka Podatku5)
A158: =$A$2 -> 9 | C158: a | H158: b | I158: c | J158: d | K158: e | L158: f | N158: g
A159: =$A$6 -> 19.5 | B159: 1
A160: 19.5 | B160: 2
A161: 19.5 | B161: 3
A162: 19.5 | B162: 4
A163: 19.5 | B163: 5
A164: 19.5 | B164: 6
A165: 19.5 | B165: 7
A166: 19.5 | B166: 8
A167: =$A$2 -> 9
A168: =$A$2*2 -> 18 | B168: 1) | C168: Numer PESEL wpisują podatnicy będący osobami fizycznymi objętymi rejestrem PESEL, nieprowadzący działalności gospodarczej lub niebędący zarejestrowanymi podatnikami podatku od towarów i usług. Identyfikator podatkowy NIP wpisują pozostali podatnicy.
A169: =$A$2 -> 9 | B169: 2) | C169: Numer obrębu należy podać wraz z numerem arkusza mapy ewidencyjnej w przypadku, gdy działki numerowane są w ramach arkusza mapy.
A170: =$A$2*2 -> 18 | B170: 3) | C170: Powierzchnię w ha należy wykazać wyłącznie w przypadku gruntów pod wodami powierzchniowymi stojącymi lub wodami powierzchniowymi płynącymi jezior i zbiorników sztucznych (z dokładnością do czterech miejsc po przecinku).
A171: =$A$8 -> 16.5 | C171: =Wersja -> 2022.1.8.15.0.44596 | M171: ZDN-2(1) | N171: 1/2
A172: =$A$2 -> 9
A173: =$A$2 -> 9 | B173: WYPEŁNIĆ DUŻYMI, DRUKOWANYMI LITERAMI, CZARNYM LUB NIEBIESKIM KOLOREM.
A174: =$A$4 -> 4.5
A175: =$A$8 -> 16.5 | B175: B.2. BUDYNKI LUB ICH CZĘŚCI
A176: =$A$8*1.5 -> 24.75 | B176: Lp. | C176: Położenie (adres, w tym dzielnica) | H176: Nr księgi wieczystej (zbioru dokumentów) | I176: Nr obrębu (arkusza mapy)2) | J176: Nr działki | K176: Powierzchnia użytkowa w m2 | L176: Podstawa prawna zwolnienia4) | N176: Stawka Podatku5)
A177: =$A$2 -> 9 | C177: a | H177: b | I177: c | J177: d | K177: e | L177: f | N177: g
A178: =$A$6 -> 19.5 | B178: 1
A179: 19.5 | B179: 2
A180: 19.5 | B180: 3
A181: 19.5 | B181: 4
A182: 19.5 | B182: 5
A183: 19.5 | B183: 6
A184: 19.5 | B184: 7
A185: 19.5 | B185: 8
A186: =$A$8 -> 16.5 | B186: B.3. BUDOWLE LUB ICH CZĘŚCI ZWIĄZANE Z PROWADZENIEM DZIAŁALNOŚCI GOSPODARCZEJ
A187: =$A$8*1.5 -> 24.75 | B187: Lp. | C187: Nazwa budowli | F187: Nr inwentarzowy | G187: Położenie (adres, w tym dzielnica) | I187: Nr obrębu (arkusza mapy)2) | J187: Nr działki | K187: Wartość w zł | L187: Podstawa prawna zwolnienia4) | N187: Stawka Podatku5)
A188: =$A$2 -> 9 | C188: a | F188: b | H188: c | I188: d | J188: e | K188: f | L188: g | N188: h
A189: =$A$6 -> 19.5 | B189: 1
A190: 19.5 | B190: 2
A191: 19.5 | B191: 3
A192: 19.5 | B192: 4
A193: 19.5 | B193: 5
A194: 19.5 | B194: 6
A195: 19.5 | B195: 7
A196: 19.5 | B196: 8
A197: =$A$2 -> 9
A198: 9 | B198: 4) | C198: Należy podać jednostkę redakcyjną z ustawy lub uchwały rady gminy.
A199: 9 | B199: 5) | C199: Należy podać stawkę właściwą dla rodzaju przedmiotu opodatkowania zgodną z uchwałą rady gminy.
A200: =$A$2 -> 9
... 1841 more rows

Sheet DR-1
A1: 15 | B1: 2.5 | C1: 3.83 | D1: =$C$1 -> 3.83 | E1: 2.5 | F1: =$C$1-E1 -> 1.33 | G1: =$C$1-H1 -> 1.33 | H1: 2.5 | I1: =$C$1 -> 3.83 | J1: 3.83 | K1: 2.5 | L1: =$C$1-K1 -> 1.33 | M1: 3.83 | N1: 3.83 | O1: 3.83 | P1: 2.5 | Q1: =C1-P1 -> 1.33 | R1: 3.83 | S1: 3.83 | T1: 3.83 | U1: 3.83 | V1: 3.83 | W1: 3.83 | X1: 3.83 | Y1: 3.83 | Z1: 3.83 | AA1: sumy | BA1: =COUNTA(BC:BC) -> 61 | BC1: =B6&";"&K21&";"&P21&";"&Q24&";"&E28&";"&P28&";"&E35&";"&K35&";"&P35&";"&C38&";"&P38&";"&J40&";"&C43&";"&N43&";"&U43&";"&C46&";"&J46&";"&S46&";"&C48&";"&K48&";"&U48&";"&X48&";"&C50&";"&P50&";"&C53&";"&J53&";"&S53&";"&C55&";"&K55&";"&U55&";"&X55&";"&C57&";"&P57&";"&C137&";"&P137&";"&C144&";"&P144&";"&F146&";"&C154&";"&P154&";"&F156&";"&C158&";"&P158&";"&F160=Dane!E19 -> FALSE
A2: =$A$3 -> 9 | B2: Załącznik nr 5 | AA2: kontrolne | BA2: =SUM(BB:BB) -> 18
A3: 9 | B3: WYPEŁNIĆ DUŻYMI, DRUKOWANYMI LITERAMI, CZARNYM LUB NIEBIESKIM KOLOREM. | BA3: =IF(LEN(C137&P137)=0,1,0) -> 1 | BC3: Czy podano dane kontaktowe 104 i 105
A4: 4.5 | BA4: 137
A5: =$A$3 -> 9 | B5: 1. Identyfikator podatkowy NIP/numer PESEL (niepotrzebne skreślić)1) | O5: 2. Nr dokumentu | AY5: wiersz błędu | AZ5: kolumna błedu | BA5: 3
A6: 16.5 | AA6: =LEN(B6) -> 0 | AY6: 6 | AZ6: 2 | BA6: 1 | BB6: =IF(E35<>"",IF(B6<>"",0,1),IF(B6<>"",0,1)) -> 1 | BC6: =IF(E35<>"",IF(B6<>"","ok","Pole 1 [Identyfikator podatkowy NIP/numer PESEL]. Jeżeli deklarację składa osoba fizyczna nieprowadząca działalności gospodarczej, której nie nadano nr PESEL należy wpisać -brak."),IF(B6<>"","ok","Pole 1 [Identyfikator podatkowy NIP/numer PESEL]. Jeżeli deklarację składa inny podmiot niż osoba fizyczna należy wipsać NIP.")) -> Pole 1 [Identyfikator podatkowy NIP/numer PESEL]. Jeżeli deklarację składa inny podmiot niż osoba fizyczna należy wipsać NIP.
A7: 16.5 | B7: DR-1 | AA7: =SUM(BB7:BB10) -> 1 | AY7: 6 | AZ7: 2 | BA7: 1 długość 10 lub 11 | BB7: =IF(OR(LEN(B6)=10,LEN(B6)=11,B6="brak"),0,1) -> 1 | BC7: Pole 1 [Identyfikator podatkowy NIP/numer PESEL] zawiera błąd.
A8: =$A$7 -> 16.5 | B8: DEKLARACJA NA PODATEK ROLNY | AY8: 6 | AZ8: 2 | BA8: 1 NIP | BB8: =IF(B6="nie nadano",0,IF(LEN(B6)=10,IF(MOD(MOD(6*MID(B6,1,1)+5*MID(B6,2,1)+7*MID(B6,3,1)+2*MID(B6,4,1)+3*MID(B6,5,1)+4*MID(B6,6,1)+5*MID(B6,7,1)+6*MID(B6,8,1)+7*MID(B6,9,1),11),10) = 1*MID(B6,10,1),0,1),0)) -> 0 | BC8: Podany w polu 1 NIP jest błędny.
A9: =$A$3 -> 9 | M9: 3. Rok | AY9: 6 | AZ9: 2 | BA9: 1 PESEL | BB9: =IF(LEN(B6)=11,IF(MOD(10-MOD(1*MID(B6,1,1)+3*MID(B6,2,1)+7*MID(B6,3,1)+9*MID(B6,4,1)+1*MID(B6,5,1)+3*MID(B6,6,1)+5*MID(B6,7,1)+9*MID(B6,8,1)+1*MID(B6,9,1)+ 3*MID(B6,10,1),10),10)=1*MID(B6,11,1),0,1),0) -> 0 | BC9: Podany w polu 1 PESEL jest błędny.
A10: =$A$6 -> 16.5 | B10: NA ROK | M10: =Dane!AN1 -> 2022 | AY10: 6 | AZ10: 2 | BA10: 1 PESEL | BB10: =IF(AND(LEN(B6)=11,OR(K35<>"",P35<>"") ),1,0) -> 0 | BC10: W polu 1 PESEL podają wyłącznie osoby fizyczne, które nie prowadzą działalności gospodarczej.
A11: =$A$4 -> 4.5
A12: 17.25 | B12: Podstawa prawna: | E12: Art. 6a ust. 8, 9 i 10 ustawy z dnia 15 listopada 1984 r. o podatku rolnym (Dz. U. z 2017 r. poz. 1892, z późn. zm.), zwanej dalej „ustawą”.
A13: 51 | B13: Składający: | E13: Osoby prawne, jednostki organizacyjne, w tym spółki, nieposiadające osobowości prawnej, jednostki organizacyjne Krajowego Ośrodka Wsparcia Rolnictwa, a także jednostki organizacyjne Lasów Państwowych, będące właścicielami gruntów, posiadaczami samoistnymi gruntów, użytkownikami wieczystymi gruntów, posiadaczami gruntów stanowiących własność Skarbu Państwa lub jednostki samorządu terytorialnego oraz osoby fizyczne będące współwłaścicielami lub współposiadaczami gruntów z osobami prawnymi lub z jednostkami organizacyjnymi, w tym spółkami, nieposiadającymi osobowości prawnej.
A14: 24.75 | B14: Termin składania: | E14: Do dnia 15 stycznia danego roku podatkowego lub w terminie 14 dni od dnia zaistnienia okoliczności uzasadniających powstanie obowiązku podatkowego lub od dnia zaistnienia zmian mających wpływ na wysokość opodatkowania, o których mowa w art. 6a ust. 4 ustawy.
A15: =$A$3 -> 9 | B15: Miejsce składania: | E15: Organ podatkowy właściwy ze względu na miejsce położenia przedmiotów opodatkowania.
A16: =$A$4 -> 4.5
A17: =$A$7 -> 16.5 | B17: A. MIEJSCE I CEL SKŁADANIA DEKLARACJI2)
A18: =$A$3 -> 9 | C18: 4. Nazwa i adres siedziby organu podatkowego
A19: =$A$6 -> 16.5 | C19: =Organ -> Burmistrz Miasta Kluczborka, ul.Katowicka 1, 46-200 Kluczbork
A20: =$A$3 -> 9 | C20: 5. Cel złożenia formularza (zaznaczyć właściwy kwadrat):
A21: 15 | L21: 1. złożenie deklaracji | Q21: 2. korekta deklaracji3) | AY21: 21 | AZ21: 11 | BA21: 5a i 5b | BB21: =IF(LEN(K21&P21)=1,0,1) -> 1 | BC21: W polu 5 [Cel złożenia formularza] powinna być zaznaczona jedna wartość.
A22: =$A$4 -> 4.5
A23: =$A$3 -> 9 | C23: 6. Okres – od którego deklaracja obowiązuje
A24: =$A$6 -> 16.5 | C24: (miesiąc) | AA24: =IF(Q24="",0,13-Q24) -> 0 | AY24: 24 | AZ24: 17 | BA24: 6 | BB24: =IF(AND(Q24>=1,Q24<=12),0,1) -> 1 | BC24: Pole 6 [Okres – od którego deklaracja obowiązuje] powinno mieć wartość 1 - 12
A25: =$A$4 -> 4.5
A26: =$A$7 -> 16.5 | B26: B. PODMIOT ZOBOWIĄZANY DO ZŁOŻENIA DEKLARACJI
A27: =$A$3 -> 9 | C27: 7. Rodzaj podmiotu (zaznaczyć właściwy kwadrat):
A28: =$A$21 -> 15 | F28: 1. właściciel, użytkownik wieczysty lub posiadacz | Q28: 2. współwłaściciel, współużytkownik wieczysty lub współposiadacz | AY28: 28 | AZ28: 5 | BA28: 7a i 7b | BB28: =IF(LEN(E28&P28)=1,0,1) -> 1 | BC28: W polu 7 [Rodzaj podmiotu] powinna być zaznaczona jedna wartość.
A29: =$A$4 -> 4.5
A30: 4.5
A31: =$A$7 -> 16.5 | B31: C. DANE PODATNIKA
A32: =$A$3 -> 9 | B32: * - dotyczy podatnika niebędącego osobą fizyczną ** - dotyczy podatnika będącego osobą fizyczną | AY32: 35 | AZ32: 5 | BA32: 8a, 8b i 8c | BB32: =IF(LEN(E35&K35&P35)<>1,1,0) -> 1 | BC32: W polu 8 [Rodzaj podatnika] powinno być zaznaczona jedna wartość.
A33: =$A$7 -> 16.5 | B33: C.1. DANE IDENTYFIKACYJNE | AY33: 35 | AZ33: 5 | BA33: 8b i nip | BB33: =IF(AND(LEN(B6)<>10,K35<>""),1-BB32,0) -> 0 | BC33: W polu 8 wybrano [Rodzaj podatnika - osoba prawna], więc pole 1 powinno zawierać NIP.
A34: =$A$3 -> 9 | C34: 8. Rodzaj podatnika (zaznaczyć właściwy kwadrat): | AY34: 35 | AZ34: 5 | BA34: 8c i nip | BB34: =IF(AND(LEN(B6)<>10,P35<>""),1-BB32,0) -> 0 | BC34: W polu 8 wybrano [Rodzaj podatnika - jednostka organizacyjna ...], więc pole 1 powinno zawierać NIP.
A35: =$A$21 -> 15 | F35: 1. osoba fizyczna | L35: 2. osoba prawna | Q35: 3. jednostka organizacyjna, wtym spółka nieposiadająca osobowości prawnej | AA35: =SUM(BB32:BB34) -> 1
A36: =$A$4 -> 4.5
A37: =$A$3 -> 9 | C37: 9. Nazwa pełna * / Nazwisko ** | P37: 10. Nazwa skrócona * / Pierwsze imię** | AB37: 12345678512347
A38: =$A$6 -> 16.5 | AB38: ="00000000000000"&J40 -> 00000000000000 | AY38: 38 | AZ38: 3 | BA38: 9 | BB38: =IF(C38="",1,0) -> 1 | BC38: Pole 9 [Nazwa pełna / Nazwisko] powinno być wypełnione
A39: =$A$3 -> 9 | C39: 11. Identyfikator REGON (w przypadku osób fizycznych REGON podaje się, o ile został nadany) | AC39: REGON | AD39: regon9 | AE39: regon14 | AF39: regon9 | AG39: regon14 | AY39: 38 | AZ39: 16 | BA39: 10 | BB39: =IF(P38="",1,0) -> 1 | BC39: Pole 10 Nazwa skrócona / Pierwsze imię] powinno być wypełnione
A40: =$A$6 -> 16.5 | AA40: =LEN(J40) -> 0 | AB40: 14 | AC40: =LEFT(RIGHT($AB$38,AB40),1) -> 0 | AE40: 2 | AF40: =AD40*$AC40 -> 0 | AG40: =AE40*$AC40 -> 0 | AY40: 40 | AZ40: 10 | BA40: REGON | BB40: =IF(LEN(J40)>14,"Podany REGON jest za długi.",IF(LEN(J40)<=9,IF(AC53+0=AF53,0,1),IF(LEN(J40)>9,IF(AC53+0=AG53,0,1),1))) -> 0 | BC40: =IF(LEN(J40)>14,"Podany REGON jest za długi.",IF(LEN(J40)<=9,IF(AC53+0=AF53,"REGON 9 cyfr ok","Podany REGON jest błędny"),IF(LEN(J40)>9,IF(AC53+0=AG53,"REGON 14 cyfr ok","Podany REGON jest błędny"),1))) -> REGON 9 cyfr ok
A41: =$A$3 -> 9 | B41: Pola 12, 13, 14 wypełnia osoba fizyczna w przypadku, gdy numer PESEL nie został nadany. | AB41: =AB40-1 -> 13 | AC41: =LEFT(RIGHT($AB$38,AB41),1) -> 0 | AE41: 4 | AF41: =AD41*$AC41 -> 0 | AG41: 0
A42: =$A$3 -> 9 | C42: 12. Data urodzenia (dzień - miesiąc - rok) | N42: 13. Imię ojca | U42: 14. Imię matki | AB42: =AB41-1 -> 12 | AC42: 0 | AE42: 8 | AF42: 0 | AG42: 0 | AY42: 43 | AZ42: 3 | BA42: 12 | BB42: =IF(AND(E35<>"",C43="",B6="brak"),1,0) -> 0 | BC42: Pole 12 [Data urodzenia] wypełniają osoby fizyczne, którym nie nadano PESEL.
A43: =$A$6 -> 16.5 | AB43: 11 | AC43: 0 | AE43: 5 | AF43: 0 | AG43: 0 | AY43: 43 | AZ43: 14 | BA43: 13 | BB43: =IF(AND(E35<>"",N43="",B6="brak"),1,0) -> 0 | BC43: Pole 13 [Imię ojca] wypełniają osoby fizyczne, którym nie nadano PESEL.
A44: =$A$7 -> 16.5 | B44: C.2. ADRES SIEDZIBY * / ADRES ZAMIESZKANIA ** | AB44: 10 | AC44: 0 | AE44: 0 | AF44: 0 | AG44: 0 | AY44: 43 | AZ44: 21 | BA44: 14 | BB44: =IF(AND(E35<>"",U43="",B6="brak"),1,0) -> 0 | BC44: Pole 12 [Imię matki] wypełniają osoby fizyczne, którym nie nadano PESEL.
A45: =$A$3 -> 9 | C45: 15. Kraj | J45: 16. Województwo | S45: 17. Powiat | AB45: 9 | AC45: 0 | AD45: 8 | AE45: 9 | AF45: 0 | AG45: 0 | AY45: 46 | AZ45: 3 | BA45: 15 | BB45: =IF(C46="",1,0) -> 1 | BC45: Pole 15 [Kraj] powinno być wypełnione
A46: =$A$6 -> 16.5 | AB46: 8 | AC46: 0 | AD46: 9 | AE46: 7 | AF46: 0 | AG46: 0 | AY46: 46 | AZ46: 10 | BA46: 16 | BB46: =IF(J46="",1,0) -> 1 | BC46: Pole 16 [Województwo] powinno być wypełnione
A47: =$A$3 -> 9 | C47: 18. Gmina | K47: 19. Ulica | U47: 20. Nr domu | X47: 21. Nr lokalu | AB47: 7 | AC47: 0 | AD47: 2 | AE47: 3 | AF47: 0 | AG47: 0 | AY47: 46 | AZ47: 19 | BA47: 17 | BB47: =IF(S46="",1,0) -> 1 | BC47: Pole 17 [Powiat] powinno być wypełnione
A48: =$A$6 -> 16.5 | AB48: 6 | AC48: 0 | AD48: 3 | AE48: 6 | AF48: 0 | AG48: 0 | AY48: 48 | AZ48: 3 | BA48: 18 | BB48: =IF(C48="",1,0) -> 1 | BC48: Pole 18 [Gmina] powinno być wypełnione
A49: =$A$3 -> 9 | C49: 22. Miejscowość | P49: 23. Kod pocztowy | AB49: 5 | AC49: 0 | AD49: 4 | AE49: 1 | AF49: 0 | AG49: 0 | AY49: 48 | AZ49: 11 | BA49: 19, 20,21 | BB49: =IF(AND(K48="",U48="",X48=""),1,0) -> 1 | BC49: Pola 19 - 21 powinny zawierać dokładny adres
A50: =$A$6 -> 16.5 | AB50: 4 | AC50: 0 | AD50: 5 | AE50: 2 | AF50: 0 | AG50: 0 | AY50: 50 | AZ50: 3 | BA50: 22 | BB50: =IF(C50="",1,0) -> 1 | BC50: Pole 22 [Miejscowość] powinno być wypełnione
A51: =$A$7 -> 16.5 | B51: C.3. ADRES DO DORĘCZEŃ Należy wypełnić tylko wówczas, gdy adres do doręczeń jest inny niż w części C.2. | AB51: 3 | AC51: 0 | AD51: 6 | AE51: 4 | AF51: 0 | AG51: 0 | AY51: 50 | AZ51: 16 | BA51: 23 | BB51: =IF(P50="",1,0) -> 1 | BC51: Pole 23 [Kod pocztowy] powinno być wypełnione
A52: =$A$3 -> 9 | C52: 24. Kraj | J52: 25. Województwo | S52: 26. Powiat | AB52: 2 | AC52: 0 | AD52: 7 | AE52: 8 | AF52: 0 | AG52: 0
A53: =$A$6 -> 16.5 | AB53: 1 | AC53: 0 | AF53: =MOD(MOD(SUM(AF40:AF52),11),10) -> 0 | AG53: =MOD(MOD(SUM(AG40:AG52),11),10) -> 0 | AY53: 53 | AZ53: 3 | BA53: 24 - 32 | BB53: =IF(AND(C46=C53,J46=J53,S46=S53,C48=C55,K48=K55,U48=U55,X48=X55,C50=C57,P50=P57),1,0) -> 1 | BC53: ADRES DO DORĘCZEŃ Należy wypełnić tylko wówczas, gdy adres do doręczeń jest inny niż w części C.2.
A54: =$A$3 -> 9 | C54: 27. Gmina | K54: 28. Ulica | U54: 29. Nr domu | X54: 30. Nr lokalu
A55: =$A$6 -> 16.5
A56: =$A$3 -> 9 | C56: 31. Miejscowość | P56: 32. Kod pocztowy
A57: =$A$6 -> 16.5
A58: =$A$3 -> 9
A59: =$A$3 -> 9
A60: =$A$6 -> 16.5 | C60: =Wersja -> 2022.1.8.15.0.44596 | V60: DR-1(1) | Z60: 1/4
A61: =$A$3 -> 9
A62: 9 | B62: WYPEŁNIĆ DUŻYMI, DRUKOWANYMI LITERAMI, CZARNYM LUB NIEBIESKIM KOLOREM.
A63: =$A$4 -> 4.5
A64: 4.5
A65: =$A$7 -> 16.5 | B65: D. OŚWIADCZENIE O POSIADANIU GOSPODARSTWA ROLNEGO4) | BA65: 33 | BB65: =IF(AND(P67<>"",AA117>1),1,0) -> 0 | BC65: Jeżeli w polu 33 [Oświadczenie] zaznaczono pole 2 to suma gruntów wykazana w załącznikach ZDR-1 i ZDR-2 nie może być większa od 1ha
A66: =$A$3 -> 9 | C66: 33. Oświadczenie (zaznaczyć właściwy kwadrat): | AA66: =IF(P67<>"",1,0) -> 0 | BA66: 33 | BB66: =IF(AND(P67<>"",SUM(G74:M79,G83:M86,G90:M95,D100,D110)>0),1,0) -> 0 | BC66: Jeżeli w polu 33 [Oświadczenie] zaznaczono pole 2 to suma gruntów w części E. powinna wynosic 0
A67: =$A$21 -> 15 | F67: 1. posiadam gospodarstwo rolne | Q67: 2. nie posiadam gospodarstwa rolnego | AA67: =IF(E67<>"",1,0) -> 0 | BA67: 33 | BB67: =IF(LEN(E67&P67)=1,0,1) -> 1 | BC67: W polu 33 [Oświadczenie] powinna być zaznaczona jedna wartość.
A68: =$A$4 -> 4.5
A69: 4.5
A70: =$A$7*2 -> 33 | B70: E. DANE O UŻYTKACH ROLNYCH STANOWIĄCYCH GOSPODARSTWO ROLNE - PODLEGAJĄCYCH OPODATKOWANIU | BA70: 33 i 90 | BB70: =IF(AND(E67="",OR(AA114>1,AA116>1)),1,0) -> 0 | BC70: Powierzchnia gruntów tworzy gospodarstwo rolne. W polu 33 należy zaznaczyć pole 1.
A71: =$A$7 -> 16.5 | B71: E.1. GRUNTY ORNE
A72: =$A$7 -> 16.5 | C72: Klasa | E72: Powierzchnia w ha5) | N72: Przelicznik | U72: Powierzchnia w ha przeliczeniowych5)
A73: =$A$3 -> 9 | E73: a | N73: b | U73: c
A74: =$A$6+6 -> 22.5 | C74: I | E74: 34. | N74: 35. | O74: 1.95 | U74: 36. | V74: =ROUND(G74*O74,4) -> 0 | AA74: =Dane!CJ2*$AA$67 -> 0 | AY74: 74 | AZ74: 7 | BA74: 34 | BB74: =IF(G74=AA74,0,1) -> 0 | BC74: ="W DR-1 wykazano gruntów ornych klasy " &C74& " " &SUM(G74) &" ha, a w ZDR-1 "&AA74&" ha" -> W DR-1 wykazano gruntów ornych klasy I 0 ha, a w ZDR-1 0 ha
A75: =$A$74 -> 22.5 | C75: II | E75: 37. | N75: 38. | O75: 1.8 | U75: 39. | V75: =ROUND(G75*O75,4) -> 0 | AA75: =Dane!CJ3*$AA$67 -> 0 | AY75: 75 | AZ75: 7 | BA75: 37 | BB75: =IF(G75=AA75,0,1) -> 0 | BC75: ="W DR-1 wykazano gruntów ornych klasy " &C75& " " &SUM(G75) &" ha, a w ZDR-1 "&AA75&" ha" -> W DR-1 wykazano gruntów ornych klasy II 0 ha, a w ZDR-1 0 ha
A76: =$A$74 -> 22.5 | C76: IIIa | E76: 40. | N76: 41. | O76: 1.65 | U76: 42. | V76: 0 | AA76: =Dane!CJ4*$AA$67 -> 0 | AY76: 76 | AZ76: 7 | BA76: 40 | BB76: 0 | BC76: W DR-1 wykazano gruntów ornych klasy IIIa 0 ha, a w ZDR-1 0 ha
A77: 22.5 | C77: IIIb | E77: 43. | N77: 44. | O77: 1.35 | U77: 45. | V77: 0 | AA77: =Dane!CJ5*$AA$67 -> 0 | AY77: 77 | AZ77: 7 | BA77: 43 | BB77: 0 | BC77: W DR-1 wykazano gruntów ornych klasy IIIb 0 ha, a w ZDR-1 0 ha
A78: 22.5 | C78: IVa | E78: 46. | N78: 47. | O78: 1.1 | U78: 48. | V78: 0 | AA78: =Dane!CJ6*$AA$67 -> 0 | AY78: 78 | AZ78: 7 | BA78: 46 | BB78: 0 | BC78: W DR-1 wykazano gruntów ornych klasy IVa 0 ha, a w ZDR-1 0 ha
A79: 22.5 | C79: IVb | E79: 49. | N79: 50. | O79: 0.8 | U79: 51. | V79: 0 | AA79: =Dane!CJ7*$AA$67 -> 0 | AY79: 79 | AZ79: 7 | BA79: 49 | BB79: 0 | BC79: W DR-1 wykazano gruntów ornych klasy IVb 0 ha, a w ZDR-1 0 ha
A80: =$A$7 -> 16.5 | B80: E.2. ŁĄKI I PASTWISKA
A81: =$A$7 -> 16.5 | C81: Klasa | E81: Powierzchnia w ha5) | N81: Przelicznik | U81: Powierzchnia w ha przeliczeniowych5)
A82: =$A$3 -> 9 | E82: a | N82: b | U82: c
A83: =$A$74 -> 22.5 | C83: I | E83: 52. | N83: 53. | O83: 1.75 | U83: 54. | V83: =ROUND(G83*O83,4) -> 0 | AA83: =Dane!CJ8*$AA$67 -> 0 | AY83: 83 | AZ83: 7 | BA83: 52 | BB83: =IF(G83=AA83,0,1) -> 0 | BC83: ="W DR-1 wykazano łąk i pastwisk klasy " &C83& " " &SUM(G83) &" ha, a w ZDR-1 "&AA83&" ha" -> W DR-1 wykazano łąk i pastwisk klasy I 0 ha, a w ZDR-1 0 ha
A84: 22.5 | C84: II | E84: 55. | N84: 56. | O84: 1.45 | U84: 57. | V84: 0 | AA84: =Dane!CJ9*$AA$67 -> 0 | AY84: 84 | AZ84: 7 | BA84: 55 | BB84: 0 | BC84: ="W DR-1 wykazano łąk i pastwisk klasy " &C84& " " &SUM(G84) &" ha, a w ZDR-1 "&AA84&" ha" -> W DR-1 wykazano łąk i pastwisk klasy II 0 ha, a w ZDR-1 0 ha
A85: 22.5 | C85: III | E85: 58. | N85: 59. | O85: 1.25 | U85: 60. | V85: 0 | AA85: =Dane!CJ10*$AA$67 -> 0 | AY85: 85 | AZ85: 7 | BA85: 58 | BB85: 0 | BC85: ="W DR-1 wykazano łąk i pastwisk klasy " &C85& " " &SUM(G85) &" ha, a w ZDR-1 "&AA85&" ha" -> W DR-1 wykazano łąk i pastwisk klasy III 0 ha, a w ZDR-1 0 ha
A86: 22.5 | C86: IV | E86: 61. | N86: 62. | O86: 0.75 | U86: 63. | V86: 0 | AA86: =Dane!CJ11*$AA$67 -> 0 | AY86: 86 | AZ86: 7 | BA86: 61 | BB86: 0 | BC86: ="W DR-1 wykazano łąk i pastwisk klasy " &C86& " " &SUM(G86) &" ha, a w ZDR-1 "&AA86&" ha" -> W DR-1 wykazano łąk i pastwisk klasy IV 0 ha, a w ZDR-1 0 ha
A87: =$A$7 -> 16.5 | B87: E.3. SADY
A88: =$A$7 -> 16.5 | C88: Klasa | E88: Powierzchnia w ha5) | N88: Przelicznik | U88: Powierzchnia w ha przeliczeniowych5)
A89: =$A$3 -> 9 | E89: a | N89: b | U89: c
A90: =$A$74 -> 22.5 | C90: I | E90: 64. | N90: 65. | O90: 1.95 | U90: 66. | V90: =ROUND(G90*O90,4) -> 0 | AA90: =Dane!CJ12*$AA$67 -> 0 | AY90: 90 | AZ90: 7 | BA90: 64 | BB90: =IF(G90=AA90,0,1) -> 0 | BC90: ="W DR-1 wykazano sadów klasy " &C90& " " &SUM(G90) &" ha, a w ZDR-1 "&AA90&" ha" -> W DR-1 wykazano sadów klasy I 0 ha, a w ZDR-1 0 ha
A91: 22.5 | C91: II | E91: 67. | N91: 68. | O91: 1.8 | U91: 69. | V91: 0 | AA91: =Dane!CJ13*$AA$67 -> 0 | AY91: 91 | AZ91: 7 | BA91: 67 | BB91: =IF(G91=AA91,0,1) -> 0 | BC91: W DR-1 wykazano sadów klasy II 0 ha, a w ZDR-1 0 ha
A92: 22.5 | C92: III, IIIa | E92: 70. | N92: 71. | O92: 1.65 | U92: 72. | V92: 0 | AA92: =Dane!CJ14*$AA$67 -> 0 | AY92: 92 | AZ92: 7 | BA92: 70 | BB92: 0 | BC92: W DR-1 wykazano sadów klasy III, IIIa 0 ha, a w ZDR-1 0 ha
A93: 22.5 | C93: IIIb | E93: 73. | N93: 74. | O93: 1.35 | U93: 75. | V93: 0 | AA93: =Dane!CJ15*$AA$67 -> 0 | AY93: 93 | AZ93: 7 | BA93: 73 | BB93: 0 | BC93: W DR-1 wykazano sadów klasy IIIb 0 ha, a w ZDR-1 0 ha
A94: 22.5 | C94: IV, IVa | E94: 76. | N94: 77. | O94: 1.1 | U94: 78. | V94: 0 | AA94: =Dane!CJ16*$AA$67 -> 0 | AY94: 94 | AZ94: 7 | BA94: 76 | BB94: 0 | BC94: W DR-1 wykazano sadów klasy IV, IVa 0 ha, a w ZDR-1 0 ha
A95: 22.5 | C95: IVb | E95: 79. | N95: 80. | O95: 0.8 | U95: 81. | V95: =ROUND(G95*O95,4) -> 0 | AA95: =Dane!CJ17*$AA$67 -> 0 | AY95: 95 | AZ95: 7 | BA95: 79 | BB95: 0 | BC95: W DR-1 wykazano sadów klasy IVb 0 ha, a w ZDR-1 0 ha
A96: =$A$7 -> 16.5 | B96: E.4. GRUNTY POD STAWAMI ZARYBIONYMI - łososiem, trocią, głowacicą, palią i pstrągiem,
A97: =$A$7*2 -> 33 | C97: GRUNTY ROLNE ZABUDOWANE oraz UŻYTKI ROLNE O NIEUSTALONYM PRZELICZNIKU POWIERZCHNI
A98: =$A$7 -> 16.5 | C98: Powierzchnia w ha5) | M98: Przelicznik | T98: Powierzchnia w ha przeliczeniowych5)
A99: =$A$3 -> 9 | C99: a | M99: b | T99: c
A100: =$A$74 -> 22.5 | C100: 82. | M100: 83. | N100: 1 | T100: 84. | U100: =ROUND(D100*N100,4) -> 0 | AA100: =Dane!CJ18*$AA$67 -> 0 | AY100: 100 | AZ100: 4 | BA100: 82 i 83 | BB100: =IF(SUM(D100,D110)=SUM(AA100,AA110:AA111),0,1) -> 0 | BC100: ="W DR-1 gruntów pod stawani, gruntów rolnych zabudowanych, gróntów pod rowami i gruntów o nieustalonym przeliczniku [pola 82 i 85] wykazano " &SUM(D100,D110) &" ha, a w zał. ZDR-1 "&SUM(AA100,AA110:AA111)&" ha" -> W DR-1 gruntów pod stawani, gruntów rolnych zabudowanych, gróntów pod rowami i gruntów o nieustalonym przeliczniku [pola 82 i 85] wykazano 0 ha, a w zał. ZDR-1 0 ha
A101: =$A$3 -> 9
A102: =$A$3*3 -> 27
A103: =$A$6 -> 16.5 | B103: DR-1(1) | F103: 2/4 | S103: =Wersja -> 2022.1.8.15.0.44596
A104: =$A$3 -> 9
A105: =$A$3 -> 9 | B105: WYPEŁNIĆ DUŻYMI, DRUKOWANYMI LITERAMI, CZARNYM LUB NIEBIESKIM KOLOREM.
A106: =$A$4 -> 4.5
A107: =$A$7*2 -> 33 | B107: E.5. GRUNTY POD STAWAMI ZARYBIONYMI - innymi gatunkami ryb, GRUNTY POD STAWAMI NIEZARYBIONYMI, GRUNTY POD ROWAMI
A108: =$A$7 -> 16.5 | C108: Powierzchnia w ha5) | M108: Przelicznik | T108: Powierzchnia w ha przeliczeniowych5)
A109: =$A$3 -> 9 | C109: a | M109: b | T109: c
A110: 21.75 | C110: 85. | M110: 86. | N110: 0.2 | T110: 87. | U110: =ROUND(D110*N110,4) -> 0 | AA110: =Dane!CJ19*$AA$67+Dane!CJ20*$AA$67 -> 0
A111: 13.5 | B111: E.6. ŁĄCZNA POWIERZCHNIA UŻYTKÓW ROLNYCH STANOWIĄCYCH GOSPODARSTWO
A112: 15.75 | B112: ROLNE5)
A113: =$A$3 -> 9 | C113: 88. Powierzchnia w ha (suma z części od E.1 do E.5 kol. a) | P113: 89. Powierzchnia w ha przeliczeniowych (suma z części od E.1 do E.5 kol. c)
A114: =$A$110 -> 21.75 | C114: =IF(E67="",0,AA114) -> 0 | P114: =IF(E67="",0,AA116) -> 0 | AA114: =SUM(G74:M79,G83:M86,G90:M95,D100,D110) -> 0
A115: =$A$4 -> 4.5
A116: =$A$7*2 -> 33 | B116: F. DANE O UŻYTKACH ROLNYCH NIESTANOWIĄCYCH GOSPODARSTWA ROLNEGO - PODLEGAJĄCYCH OPODATKOWANIU | AA116: =SUM(V74:Z79,V83:Z86,V90:Z95,U100,U110) -> 0
A117: =$A$110 -> 21.75 | C117: Powierzchnia w ha5) | V117: 90. | W117: 0 | AA117: =SUM(Dane!CJ2:CJ20)*AA66 -> 0 | AY117: 117 | AZ117: 23 | BA117: 90 | BB117: =IF(W117>1,1,0) -> 0 | BC117: Powierzchnia wykazana w polu 90 nie może być większa od 1 ha.
A118: =$A$4 -> 4.5
A119: =$A$7 -> 16.5 | B119: G. WYSOKOŚĆ ZOBOWIĄZANIA PODATKOWEGO I RAT PODATKU | AY119: 117 | AZ119: 23 | BA119: 90 | BB119: =IF(W117=AA117,0,1) -> 0 | BC119: =IF(AA117-W117>0,"Powierzchnia wykazana w polu 90 jest mniejsza od sumy powierzchni wykazanych w zał. ZDR-1.","Powierzchnia wykazana w polu 90 jest większa od sumy powierzchni wykazanych w zał. ZDR-1.") -> Powierzchnia wykazana w polu 90 jest większa od sumy powierzchni wykazanych w zał. ZDR-1.
A120: =$A$6*2 -> 33 | C120: Podstawa opodatkowania5) W przypadku użytków rolnych stanowiących gospodarstwo rolne podać powierzchnię z poz. 89, w przypadku użytków rolnych niestanowiących gospodarstwa rolnego należy podać powierzchnię z poz. 90. | P120: 91. | R120: =IF(E67="",W117,P114) -> 0 | AA120: =Dane!AN15 -> 61.48
A121: =$A$110 -> 21.75 | C121: Stawka podatku | P121: 92. | R121: =AA121 -> 307.4 | Z121: zł | AA121: =IF(E67="",5,2.5)*AA120 -> 307.4 | AY121: 124 | AZ121: 18 | BA121: 95 | BB121: =IF(AND(AA124>0,Q24=1),1,0) -> 0 | BC121: Ponieważ w polu 6 [Okres – od którego deklaracja obowiązuje] wpisano 1, pole 95 [Kwota podatku za miesiące nieobjęte deklaracją] powinna być równa 0.
A122: =$A$110 -> 21.75 | C122: Kwota podatku, za okres którego dotyczy deklaracja6) | P122: 93. | R122: =QUOTIENT(AA122,1) -> 0 | X122: zł, | Y122: =MOD(AA122*100,100) -> 0 | Z122: gr | AA122: =ROUND(R120*AA121*AA24/12,2) -> 0 | AY122: 124 | AZ122: 18 | BA122: 95 | BB122: =IF(AND(K21<>"",AA124<>0),1,0) -> 0 | BC122: Jeżeli w poz. 5 zaznaczono kwadrat 1, w pole 95 należy wpisać 0.
A123: =$A$110 -> 21.75 | C123: Kwota przysługującej ulgi w podatku rolnym, za okres którego dotyczy deklaracja | P123: 94. | X123: zł, | Z123: gr | AA123: =R123+Y123/100 -> 0 | AY123: 123 | AZ123: 18 | BA123: 94 | BB123: =IF(AA123>AA122,1,0) -> 0 | BC123: Kwota ulgi wykazana w polu 94 nie może być większa od kwoty podatku wykazanego w polu 93
A124: =$A$110 -> 21.75 | C124: Kwota podatku za miesiące nieobjęte deklaracją7) Jeżeli w poz. 5 zaznaczono kwadrat nr 1, należy wpisać 0. | P124: 95. | X124: zł, | Z124: gr | AA124: =R124+Y124/100 -> 0
A125: 25.5 | C125: Kwota przysługującej ulgi w podatku rolnym, za miesiące nieobjęte deklaracją Jeżeli w poz. 5 zaznaczono kwadrat nr 1, należy wpisać 0. | P125: 96. | X125: zł, | Z125: gr | AA125: =R125+Y125/100 -> 0 | AY125: 125 | AZ125: 18 | BA125: 96 | BB125: =IF(AA125>AA124,1,0) -> 0 | BC125: Kwota ulgi wykazana w polu 96 nie może być większa od kwoty podatku wykazanego w polu 95
A126: =A125 -> 25.5 | C126: Wysokość zobowiązania podatkowego8) Suma kwot z poz. 93 i 95 pomniejszona o sumę kwot z poz. 94 i 96 (po zaokrągleniu do pełnych złotych). | P126: 97. | R126: =ROUND(SUM(AA122,-AA123,AA124,-AA125),0) -> 0 | Z126: zł | BA126: 97 | BB126: =IF(R126<0,1,0) -> 0 | BC126: Kwota podatku nie może mieć wartości ujemnej.
A127: =$A$6 -> 16.5 | B127: Suma kwot z poz. od 98 do 101 musi być równa kwocie z poz. 978). W przypadku korekty deklaracji raty, które nie zostały objęte korektą, pozostają bez zmian. | AA127: =SUM(K128:N129,W128:Y129) -> 0 | AY127: 128 | AZ127: 11 | BA127: 98 - 101 | BB127: =IF(AA127>R126,1,0) -> 0 | BC127: ="Suma rat jest większa od kwoty podatku o " & ROUND(AA127-R126,0) & " zł" -> Suma rat jest większa od kwoty podatku o 0 zł
A128: =$A$110 -> 21.75 | C128: Kwota I raty | J128: 98. | O128: zł | P128: Kwota II raty | V128: 99. | Z128: zł | AY128: 128 | AZ128: 11 | BA128: 98 - 101 | BB128: =IF(AA127<R126,1,0) -> 0 | BC128: ="Suma rat jest mniejsza od kwoty podatku o " & ROUND(R126-AA127,0) & " zł" -> Suma rat jest mniejsza od kwoty podatku o 0 zł
A129: 21.75 | C129: Kwota III raty | J129: 100. | O129: zł | P129: Kwota IV raty | V129: 101. | Z129: zł | AA129: =COUNTIF(W128:Y129,">0")+COUNTIF(K128:N129,">0") -> 0
A130: =$A$4 -> 4.5
A131: =$A$7 -> 16.5 | B131: H. INFORMACJA O ZAŁĄCZNIKACH Deklarację należy składać wraz z odpowiednimi załącznikami, które stanowią jej integralną część.
A132: =$A$3 -> 9 | C132: 102. Liczba załączników ZDR-1 | P132: 103. Liczba załączników ZDR-2 | AA132: ='ZDR-1'!P12 -> 0 | AY132: 133 | AZ132: 9 | BA132: 102 | BB132: =IF(I133=AA132,0,1) -> 0 | BC132: ="Wypełniono "&AA132&" zał. ZDR-1, a w polu 102 wpisano "&SUM(I133)&"." -> Wypełniono 0 zał. ZDR-1, a w polu 102 wpisano 0.
A133: =$A$110 -> 21.75 | AA133: ='ZDR-2'!P12 -> 0 | AY133: 133 | AZ133: 21 | BA133: 103 | BB133: =IF(U133=AA133,0,1) -> 0 | BC133: ="Wypełniono "&AA133&" zał. ZDR-2, a w polu 103 wpisano "&SUM(U133)&"." -> Wypełniono 0 zał. ZDR-2, a w polu 103 wpisano 0.
A134: =$A$4 -> 4.5
A135: =$A$7*2 -> 33 | B135: I. KONTAKT DO OSOBY ODPOWIEDZIALNEJ ZA SPORZĄDZENIE DEKLARACJI I DODATKOWE INFORMACJE Podanie informacji w części I nie jest obowiązkowe.
A136: =$A$3 -> 9 | C136: 104. Telefon | P136: 105. E-mail
A137: =$A$110 -> 21.75
A138: =$A$3 -> 9 | C138: 106. Inne (np. określenie zdarzenia powodującego obowiązek złożenia deklaracji, wskazanie gmin, na terenie których położone są użytki rolne stanowiące gospodarstwo rolne)
A139: =$A$6*2 -> 33
A140: =$A$4 -> 4.5
A141: =$A$7 -> 16.5 | B141: J. PODPIS PODATNIKA I OSÓB REPREZENTUJĄCYCH PODATNIKA
A142: =$A$7 -> 16.5 | B142: J.1. PODPIS PODATNIKA
A143: =$A$3 -> 9 | C143: 107. Pierwsze imię | P143: 108. Nazwisko
A144: =$A$110 -> 21.75 | AY144: 144 | AZ144: 3 | BA144: 107-110 | BB144: =IF(AND(LEN(K35&P35)>0,LEN(C144&P144)),1,0) -> 0 | BC144: Pola 107 - 110 wypełniają wyłącznie osoby fizyczne.
A145: =$A$3 -> 9 | C145: 109. Data wypełnienia (dzień - miesiąc - rok) | P145: 110. Podpis podatnika | AY145: 154 | AZ145: 3 | BA145: 111-118 | BB145: =IF(LEN(C144&P144&C154&P154&C158&P158)=0,1,0) -> 1 | BC145: Brak informacji o osobach reprezentujących podatnika
A146: =$A$69 -> 4.5 | P146: =IF(BA2>0,InfoBłędy & " [ "&BA2&" ] !!!","") -> Arkusz zawiera błędy [ 18 ] !!!
A147: =$A$3 -> 9
A148: =$A$6 -> 16.5 | C148: =Wersja -> 2022.1.8.15.0.44596 | V148: DR-1(1) | Z148: 3/4
A149: =$A$3 -> 9
A150: =$A$3 -> 9 | B150: WYPEŁNIĆ DUŻYMI, DRUKOWANYMI LITERAMI, CZARNYM LUB NIEBIESKIM KOLOREM.
A151: =$A$4 -> 4.5
A152: =$A$7 -> 16.5 | B152: J.2. PODPISY OSÓB REPREZENTUJĄCYCH PODATNIKA
A153: =$A$3 -> 9 | C153: 111. Pierwsze imię | P153: 112. Nazwisko
A154: =$A$110 -> 21.75
A155: =$A$3 -> 9 | C155: 113. Data wypełnienia (dzień - miesiąc - rok) | P155: 114. Podpis osoby reprezentującej podatnika
A156: =$A$69 -> 4.5 | P156: =IF(BA2>0,InfoBłędy & " [ "&BA2&" ] !!!","") -> Arkusz zawiera błędy [ 18 ] !!!
A157: =$A$3 -> 9 | C157: 115. Pierwsze imię | P157: 116. Nazwisko
A158: =$A$110 -> 21.75
A159: =$A$3 -> 9 | C159: 117. Data wypełnienia (dzień - miesiąc - rok) | P159: 118. Podpis osoby reprezentującej podatnika
A160: =$A$69 -> 4.5 | P160: =IF(BA2>0,InfoBłędy & " [ "&BA2&" ] !!!","") -> Arkusz zawiera błędy [ 18 ] !!!
A161: =$A$4 -> 4.5
A162: =$A$7 -> 16.5 | B162: K. ADNOTACJE ORGANU PODATKOWEGO
A163: =$A$3 -> 9 | C163: 119. Uwagi organu podatkowego
A164: =$A$6*5 -> 82.5
A165: 9
A166: 9 | B166: Objaśnienia
A167: =$A$3*2 -> 18 | B167: 1) | C167: Numer PESEL wpisują podatnicy będący osobami fizycznymi objętymi rejestrem PESEL, nieprowadzący działalności gospodarczej lub niebędący zarejestrowanymi podatnikami podatku od towarów i usług. Identyfikator podatkowy NIP wpisują pozostali podatnicy.
A168: 9 | B168: 2) | C168: Z wyjątkiem poz. 5 kwadrat 1, ilekroć jest mowa o deklaracji, rozumie się przez to również korektę deklaracji.
A169: 9 | B169: 3) | C169: Zgodnie z przepisami Ordynacji podatkowej.
A170: =$A$3*4 -> 36 | B170: 4) | C170: Za gospodarstwo rolne uważa się obszar gruntów sklasyfikowanych w ewidencji gruntów i budynków jako użytki rolne, z wyjątkiem gruntów zajętych na prowadzenie działalności gospodarczej innej niż działalność rolnicza, o łącznej powierzchni przekraczającej 1 ha lub 1ha przeliczeniowy, stanowiących własność lub znajdujących się w posiadaniu osoby fizycznej, osoby prawnej albo jednostki organizacyjnej, w tym spółki, nieposiadającej osobowości prawnej.
A171: 9 | B171: 5) | C171: Należy podać z dokładnością do czterech miejsc po przecinku.
A172: =$A$3*2 -> 18 | B172: 6) | C172: Kwotę podatku należy obliczyć, mnożąc podstawę opodatkowania przez stawkę podatku, proporcjonalnie do liczby miesięcy, których dotyczy deklaracja.
A173: 9 | B173: 7) | C173: W przypadku korekty deklaracji należy wpisać sumę miesięcznych kwot podatku za miesiące nieobjęte składaną korektą deklaracji.
A174: =$A$3*2 -> 18 | B174: 8) | C174: Kwotę podatku (rat podatku) zaokrągla się do pełnych złotych, w ten sposób, że końcówki kwot wynoszące mniej niż 50 groszy pomija się, a końcówki kwot wynoszące 50 i więcej groszy podwyższa się do pełnych złotych.
A175: 9 | C175: W ostatniej racie następuje wyrównanie do kwoty zobowiązania podatkowego (poz. 97).
A176: =$A$3*2 -> 18 | C176: Obliczony w deklaracji podatek należy wpłacać w ratach proporcjonalnych do czasu trwania obowiązku podatkowego w terminach: do dnia 15 marca, 15 maja, 15 września i 15 listopada.
A177: 9 | C177: W przypadku gdy kwota podatku nie przekracza 100 zł, podatek jest płatny jednorazowo w terminie płatności pierwszej raty.
A178: =$A$6 -> 16.5
A179: 9 | B179: Pouczenia
A180: =$A$3*3 -> 27 | C180: W przypadku niewpłacenia w obowiązujących terminach zobowiązania podatkowego lub raty podatku lub wpłacenia ich w niepełnej wysokości niniejsza deklaracja stanowi podstawę do wystawienia tytułu wykonawczego, zgodnie z przepisami ustawy o postępowaniu egzekucyjnym w administracji.
A181: 9
A182: =$A$3*2 -> 18 | C182: Za podanie nieprawdy lub zatajenie prawdy i przez to narażenie podatku na uszczuplenie grozi odpowiedzialność przewidziana w Kodeksie karnym skarbowym.
A183: 16.5
A184: 16.5
A185: 16.5
A186: 16.5
A187: 16.5
A188: 16.5
A189: 16.5
A190: 16.5
A191: 16.5
A192: 16.5
A193: =$A$6 -> 16.5 | B193: DR-1(1) | F193: 4/4 | S193: =Wersja -> 2022.1.8.15.0.44596

Sheet ZDR-1
A1: 18.5 | B1: 2.5 | C1: =$A$1-D1 -> 12.5 | D1: 6 | E1: =$A$1*0.5 -> 9.25 | F1: =$A$1 -> 18.5 | G1: =$A$1*0.5 -> 9.25 | H1: =$A$1*0.5 -> 9.25 | I1: =$A$1*0.5 -> 9.25 | J1: =$A$1*0.5-3.5 -> 5.75 | K1: =$A$1*0.6 -> 11.1 | L1: =K1 -> 11.1 | M1: =K1+3.5 -> 14.6 | N1: =$A$1-O1 -> 12.5 | O1: 6
A2: 9 | B2: Załącznik nr 6
A3: =$A$2 -> 9 | B3: WYPEŁNIĆ DUŻYMI, DRUKOWANYMI LITERAMI, CZARNYM LUB NIEBIESKIM KOLOREM.
A4: 4.5
A5: =$A$2 -> 9 | B5: 1. Identyfikator podatkowy NIP/numer PESEL (niepotrzebne skreślić)1) └────┴────┴────┴────┴────┴────┴────┴────┴────┴────┴────┘ | I5: 2. Nr dokumentu
A6: 19.5
A7: =$A$2 -> 9
A8: 16.5 | B8: ZDR-1
A9: =$A$8 -> 16.5 | B9: ZAŁĄCZNIK DO DEKLARACJI NA PODATEK ROLNY
A10: =$A$8 -> 16.5 | B10: - DANE O PRZEDMIOTACH OPODATKOWANIA PODLEGAJĄCYCH OPODATKOWANIU
A11: =$A$2 -> 9 | N11: 3. Nr załącznika
A12: =$A$6 -> 19.5 | N12: 1 | P12: =SUM(Q:Q) -> 0 | Q12: =IF(COUNTA(C22:J29,C43:J62,L43:O62,L22:O29)=0,0,1) -> 0
A13: =$A$4 -> 4.5
A14: =$A$4 -> 4.5
A15: =$A$8*1.5 -> 24.75 | B15: A. DANE PODATNIKA WSKAZANEGO W CZĘŚCI C.1 DEKLARACJI DR-1 * - dotyczy podatnika niebędącego osobą fizyczną ** - dotyczy podatnika będącego osobą fizyczną
A16: =$A$2 -> 9 | C16: 4. Nazwa pełna * / Nazwisko ** | I16: 5. Nazwa skrócona * / Pierwsze imię **
A17: =$A$6 -> 19.5
A18: =$A$4 -> 4.5
A19: =$A$8 -> 16.5 | B19: B. DANE O POSZCZEGÓLNYCH PRZEDMIOTACH OPODATKOWANIA PODLEGAJĄCYCH OPODATKOWANIU
A20: =$A$8*1.5 -> 24.75 | B20: Lp. | C20: Położenie (adres, w tym dzielnica) | F20: Nr księgi wieczystej (zbioru dokumentów) | G20: Nr obrębu (arkusza mapy)2) | H20: Nr działki | I20: Powierzchnia w ha3) | K20: Rodzaj użytku | L20: Klasa użytku | M20: Forma władania 4) | N20: Podstawa prawna ulgi 5)
A21: =$A$2 -> 9 | C21: a | F21: b | G21: c | H21: d | I21: e | K21: f | L21: g | M21: h | N21: i
A22: =$A$6 -> 19.5 | B22: 1
A23: 19.5 | B23: 2
A24: 19.5 | B24: 3
A25: 19.5 | B25: 4
A26: 19.5 | B26: 5
A27: 19.5 | B27: 6
A28: 19.5 | B28: 7
A29: 19.5 | B29: 8
A30: =$A$2 -> 9
A31: =$A$2 -> 9
A32: =$A$2*2 -> 18 | B32: 1) | C32: Numer PESEL wpisują podatnicy będący osobami fizycznymi objętymi rejestrem PESEL, nieprowadzący działalności gospodarczej lub niebędący zarejestrowanymi podatnikami podatku od towarów i usług. Identyfikator podatkowy NIP wpisują pozostali podatnicy.
A33: =$A$2 -> 9 | B33: 2) | C33: Numer obrębu należy podać wraz z numerem arkusza mapy ewidencyjnej w przypadku, gdy działki numerowane są w ramach arkusza mapy.
A34: =$A$2 -> 9 | B34: 3) | C34: Należy podać z dokładnością do czterech miejsc po przecinku.
A35: =$A$2 -> 9 | B35: 4) | C35: Należy podać jedną z form władania: własność, użytkowanie wieczyste, posiadanie samoistne, posiadanie zależne lub posiadanie bez tytułu prawnego.
A36: =$A$2 -> 9 | B36: 5) | C36: Należy podać jednostkę redakcyjną z ustawy lub uchwały rady gminy.
A37: =$A$8 -> 16.5 | C37: =Wersja -> 2022.1.8.15.0.44596 | N37: ZDR-1(1) | O37: 1/2
A38: =$A$2 -> 9
A39: =$A$2 -> 9 | B39: WYPEŁNIĆ DUŻYMI, DRUKOWANYMI LITERAMI, CZARNYM LUB NIEBIESKIM KOLOREM.
A40: 4.5
A41: =$A$8*1.5 -> 24.75 | B41: Lp. | C41: Położenie (adres, w tym dzielnica) | F41: Nr księgi wieczystej (zbioru dokumentów) | G41: Nr obrębu (arkusza mapy)2) | H41: Nr działki | I41: Powierzchnia w ha3) | K41: Rodzaj użytku | L41: Klasa użytku | M41: Forma władania 4) | N41: Podstawa prawna ulgi 5)
A42: =$A$2 -> 9 | C42: a | F42: b | G42: c | H42: d | I42: e | K42: f | L42: g | M42: h | N42: i
A43: =$A$6 -> 19.5 | B43: 9
A44: 19.5 | B44: =B43+1 -> 10
A45: 19.5 | B45: =B44+1 -> 11
A46: 19.5 | B46: 12
A47: 19.5 | B47: 13
A48: 19.5 | B48: 14
A49: 19.5 | B49: 15
A50: 19.5 | B50: 16
A51: 19.5 | B51: 17
A52: 19.5 | B52: 18
A53: 19.5 | B53: 19
A54: 19.5 | B54: 20
A55: 19.5 | B55: 21
A56: 19.5 | B56: 22
A57: 19.5 | B57: 23
A58: 19.5 | B58: 24
A59: 19.5 | B59: 25
A60: 19.5 | B60: 26
A61: 19.5 | B61: 27
A62: 19.5 | B62: 28
A63: =$A$2 -> 9
A64: =$A$2 -> 9
A65: 9
A66: 9
A67: 9
A68: =$A$8 -> 16.5 | C68: ZDR-1(1) | D68: 2/2 | M68: =Wersja -> 2022.1.8.15.0.44596
A69: 9
A70: =$A$2 -> 9 | B70: Załącznik nr 6
A71: =$A$2 -> 9 | B71: WYPEŁNIĆ DUŻYMI, DRUKOWANYMI LITERAMI, CZARNYM LUB NIEBIESKIM KOLOREM.
A72: =$A$4 -> 4.5
A73: =$A$2 -> 9 | B73: 1. Identyfikator podatkowy NIP/numer PESEL (niepotrzebne skreślić)1) └────┴────┴────┴────┴────┴────┴────┴────┴────┴────┴────┘ | I73: 2. Nr dokumentu
A74: =$A$6 -> 19.5 | C74: =$C$6 -> 0
A75: =$A$2 -> 9
A76: =$A$8 -> 16.5 | B76: ZDR-1
A77: =$A$8 -> 16.5 | B77: ZAŁĄCZNIK DO DEKLARACJI NA PODATEK ROLNY
A78: =$A$8 -> 16.5 | B78: - DANE O PRZEDMIOTACH OPODATKOWANIA PODLEGAJĄCYCH OPODATKOWANIU
A79: =$A$2 -> 9 | N79: 3. Nr załącznika
A80: =$A$6 -> 19.5 | N80: =N12+1 -> 2 | Q80: =IF(COUNTA(C90:J97,C111:J130,L111:O130,L90:O97)=0,0,1) -> 0
A81: =$A$4 -> 4.5
A82: =$A$4 -> 4.5
A83: =$A$8*1.5 -> 24.75 | B83: A. DANE PODATNIKA WSKAZANEGO W CZĘŚCI C.1 DEKLARACJI DR-1 * - dotyczy podatnika niebędącego osobą fizyczną ** - dotyczy podatnika będącego osobą fizyczną
A84: =$A$2 -> 9 | C84: 4. Nazwa pełna * / Nazwisko ** | I84: 5. Nazwa skrócona * / Pierwsze imię **
A85: =$A$6 -> 19.5 | C85: =""&$C$17 ->  | I85: =""&I17 -> 
A86: =$A$4 -> 4.5
A87: =$A$8 -> 16.5 | B87: B. DANE O POSZCZEGÓLNYCH PRZEDMIOTACH OPODATKOWANIA PODLEGAJĄCYCH OPODATKOWANIU
A88: =$A$8*1.5 -> 24.75 | B88: Lp. | C88: Położenie (adres, w tym dzielnica) | F88: Nr księgi wieczystej (zbioru dokumentów) | G88: Nr obrębu (arkusza mapy)2) | H88: Nr działki | I88: Powierzchnia w ha3) | K88: Rodzaj użytku | L88: Klasa użytku | M88: Forma władania 4) | N88: Podstawa prawna ulgi 5)
A89: =$A$2 -> 9 | C89: a | F89: b | G89: c | H89: d | I89: e | K89: f | L89: g | M89: h | N89: i
A90: =$A$6 -> 19.5 | B90: 1
A91: 19.5 | B91: 2
A92: 19.5 | B92: 3
A93: 19.5 | B93: 4
A94: 19.5 | B94: 5
A95: 19.5 | B95: 6
A96: 19.5 | B96: 7
A97: 19.5 | B97: 8
A98: =$A$2 -> 9
A99: =$A$2 -> 9
A100: =$A$2*2 -> 18 | B100: 1) | C100: Numer PESEL wpisują podatnicy będący osobami fizycznymi objętymi rejestrem PESEL, nieprowadzący działalności gospodarczej lub niebędący zarejestrowanymi podatnikami podatku od towarów i usług. Identyfikator podatkowy NIP wpisują pozostali podatnicy.
A101: =$A$2 -> 9 | B101: 2) | C101: Numer obrębu należy podać wraz z numerem arkusza mapy ewidencyjnej w przypadku, gdy działki numerowane są w ramach arkusza mapy.
A102: =$A$2 -> 9 | B102: 3) | C102: Należy podać z dokładnością do czterech miejsc po przecinku.
A103: =$A$2 -> 9 | B103: 4) | C103: Należy podać jedną z form władania: własność, użytkowanie wieczyste, posiadanie samoistne, posiadanie zależne lub posiadanie bez tytułu prawnego.
A104: =$A$2 -> 9 | B104: 5) | C104: Należy podać jednostkę redakcyjną z ustawy lub uchwały rady gminy.
A105: =$A$8 -> 16.5 | C105: =Wersja -> 2022.1.8.15.0.44596 | N105: ZDR-1(1) | O105: 1/2
A106: =$A$2 -> 9
A107: =$A$2 -> 9 | B107: WYPEŁNIĆ DUŻYMI, DRUKOWANYMI LITERAMI, CZARNYM LUB NIEBIESKIM KOLOREM.
A108: 4.5
A109: =$A$8*1.5 -> 24.75 | B109: Lp. | C109: Położenie (adres, w tym dzielnica) | F109: Nr księgi wieczystej (zbioru dokumentów) | G109: Nr obrębu (arkusza mapy)2) | H109: Nr działki | I109: Powierzchnia w ha3) | K109: Rodzaj użytku | L109: Klasa użytku | M109: Forma władania 4) | N109: Podstawa prawna ulgi 5)
A110: =$A$2 -> 9 | C110: a | F110: b | G110: c | H110: d | I110: e | K110: f | L110: g | M110: h | N110: i
A111: =$A$6 -> 19.5 | B111: 9
A112: 19.5 | B112: =B111+1 -> 10
A113: 19.5 | B113: =B112+1 -> 11
A114: 19.5 | B114: 12
A115: 19.5 | B115: 13
A116: 19.5 | B116: 14
A117: 19.5 | B117: 15
A118: 19.5 | B118: 16
A119: 19.5 | B119: 17
A120: 19.5 | B120: 18
A121: 19.5 | B121: 19
A122: 19.5 | B122: 20
A123: 19.5 | B123: 21
A124: 19.5 | B124: 22
A125: 19.5 | B125: 23
A126: 19.5 | B126: 24
A127: 19.5 | B127: 25
A128: 19.5 | B128: 26
A129: 19.5 | B129: 27
A130: 19.5 | B130: 28
A131: =$A$2 -> 9
A132: =$A$2 -> 9
A133: 9
A134: 9
A135: 9
A136: =$A$8 -> 16.5 | C136: ZDR-1(1) | D136: 2/2 | M136: =Wersja -> 2022.1.8.15.0.44596
A137: 9
A138: =$A$2 -> 9 | B138: Załącznik nr 6
A139: =$A$2 -> 9 | B139: WYPEŁNIĆ DUŻYMI, DRUKOWANYMI LITERAMI, CZARNYM LUB NIEBIESKIM KOLOREM.
A140: =$A$4 -> 4.5
A141: =$A$2 -> 9 | B141: 1. Identyfikator podatkowy NIP/numer PESEL (niepotrzebne skreślić)1) └────┴────┴────┴────┴────┴────┴────┴────┴────┴────┴────┘ | I141: 2. Nr dokumentu
A142: =$A$6 -> 19.5 | C142: =$C$6 -> 0
A143: =$A$2 -> 9
A144: =$A$8 -> 16.5 | B144: ZDR-1
A145: =$A$8 -> 16.5 | B145: ZAŁĄCZNIK DO DEKLARACJI NA PODATEK ROLNY
A146: =$A$8 -> 16.5 | B146: - DANE O PRZEDMIOTACH OPODATKOWANIA PODLEGAJĄCYCH OPODATKOWANIU
A147: =$A$2 -> 9 | N147: 3. Nr załącznika
A148: =$A$6 -> 19.5 | N148: =N80+1 -> 3 | Q148: =IF(COUNTA(C158:J165,C179:J198,L179:O198,L158:O165)=0,0,1) -> 0
A149: =$A$4 -> 4.5
A150: =$A$4 -> 4.5
A151: =$A$8*1.5 -> 24.75 | B151: A. DANE PODATNIKA WSKAZANEGO W CZĘŚCI C.1 DEKLARACJI DR-1 * - dotyczy podatnika niebędącego osobą fizyczną ** - dotyczy podatnika będącego osobą fizyczną
A152: =$A$2 -> 9 | C152: 4. Nazwa pełna * / Nazwisko ** | I152: 5. Nazwa skrócona * / Pierwsze imię **
A153: =$A$6 -> 19.5 | C153: =""&$C$17 ->  | I153: =""&I85 -> 
A154: =$A$4 -> 4.5
A155: =$A$8 -> 16.5 | B155: B. DANE O POSZCZEGÓLNYCH PRZEDMIOTACH OPODATKOWANIA PODLEGAJĄCYCH OPODATKOWANIU
A156: =$A$8*1.5 -> 24.75 | B156: Lp. | C156: Położenie (adres, w tym dzielnica) | F156: Nr księgi wieczystej (zbioru dokumentów) | G156: Nr obrębu (arkusza mapy)2) | H156: Nr działki | I156: Powierzchnia w ha3) | K156: Rodzaj użytku | L156: Klasa użytku | M156: Forma władania 4) | N156: Podstawa prawna ulgi 5)
A157: =$A$2 -> 9 | C157: a | F157: b | G157: c | H157: d | I157: e | K157: f | L157: g | M157: h | N157: i
A158: =$A$6 -> 19.5 | B158: 1
A159: 19.5 | B159: 2
A160: 19.5 | B160: 3
A161: 19.5 | B161: 4
A162: 19.5 | B162: 5
A163: 19.5 | B163: 6
A164: 19.5 | B164: 7
A165: 19.5 | B165: 8
A166: =$A$2 -> 9
A167: =$A$2 -> 9
A168: =$A$2*2 -> 18 | B168: 1) | C168: Numer PESEL wpisują podatnicy będący osobami fizycznymi objętymi rejestrem PESEL, nieprowadzący działalności gospodarczej lub niebędący zarejestrowanymi podatnikami podatku od towarów i usług. Identyfikator podatkowy NIP wpisują pozostali podatnicy.
A169: =$A$2 -> 9 | B169: 2) | C169: Numer obrębu należy podać wraz z numerem arkusza mapy ewidencyjnej w przypadku, gdy działki numerowane są w ramach arkusza mapy.
A170: =$A$2 -> 9 | B170: 3) | C170: Należy podać z dokładnością do czterech miejsc po przecinku.
A171: =$A$2 -> 9 | B171: 4) | C171: Należy podać jedną z form władania: własność, użytkowanie wieczyste, posiadanie samoistne, posiadanie zależne lub posiadanie bez tytułu prawnego.
A172: =$A$2 -> 9 | B172: 5) | C172: Należy podać jednostkę redakcyjną z ustawy lub uchwały rady gminy.
A173: =$A$8 -> 16.5 | C173: =Wersja -> 2022.1.8.15.0.44596 | N173: ZDR-1(1) | O173: 1/2
A174: =$A$2 -> 9
A175: =$A$2 -> 9 | B175: WYPEŁNIĆ DUŻYMI, DRUKOWANYMI LITERAMI, CZARNYM LUB NIEBIESKIM KOLOREM.
A176: 4.5
A177: =$A$8*1.5 -> 24.75 | B177: Lp. | C177: Położenie (adres, w tym dzielnica) | F177: Nr księgi wieczystej (zbioru dokumentów) | G177: Nr obrębu (arkusza mapy)2) | H177: Nr działki | I177: Powierzchnia w ha3) | K177: Rodzaj użytku | L177: Klasa użytku | M177: Forma władania 4) | N177: Podstawa prawna ulgi 5)
A178: =$A$2 -> 9 | C178: a | F178: b | G178: c | H178: d | I178: e | K178: f | L178: g | M178: h | N178: i
A179: =$A$6 -> 19.5 | B179: 9
A180: 19.5 | B180: =B179+1 -> 10
A181: 19.5 | B181: =B180+1 -> 11
A182: 19.5 | B182: 12
A183: 19.5 | B183: 13
A184: 19.5 | B184: 14
A185: 19.5 | B185: 15
A186: 19.5 | B186: 16
A187: 19.5 | B187: 17
A188: 19.5 | B188: 18
A189: 19.5 | B189: 19
A190: 19.5 | B190: 20
A191: 19.5 | B191: 21
A192: 19.5 | B192: 22
A193: 19.5 | B193: 23
A194: 19.5 | B194: 24
A195: 19.5 | B195: 25
A196: 19.5 | B196: 26
A197: 19.5 | B197: 27
A198: 19.5 | B198: 28
A199: =$A$2 -> 9
A200: =$A$2 -> 9
... 2181 more rows

Sheet ZDR-2
A1: 18.5 | B1: 2.5 | C1: =$A$1-D1 -> 12.5 | D1: 6 | E1: =$A$1*0.5 -> 9.25 | F1: =$A$1 -> 18.5 | G1: =$A$1*0.5 -> 9.25 | H1: =$A$1*0.5 -> 9.25 | I1: =$A$1*0.5 -> 9.25 | J1: =$A$1*0.5 -> 9.25 | K1: =$A$1*0.6 -> 11.1 | L1: =K1 -> 11.1 | M1: =K1 -> 11.1 | N1: =$A$1-O1 -> 12.5 | O1: 6
A2: 9 | B2: Załącznik nr 6
A3: =$A$2 -> 9 | B3: WYPEŁNIĆ DUŻYMI, DRUKOWANYMI LITERAMI, CZARNYM LUB NIEBIESKIM KOLOREM.
A4: 4.5
A5: =$A$2 -> 9 | B5: 1. Identyfikator podatkowy NIP/numer PESEL (niepotrzebne skreślić)1) └────┴────┴────┴────┴────┴────┴────┴────┴────┴────┴────┘ | I5: 2. Nr dokumentu
A6: 19.5
A7: =$A$2 -> 9
A8: 16.5 | B8: ZDR-2
A9: =$A$8 -> 16.5 | B9: ZAŁĄCZNIK DO DEKLARACJI NA PODATEK OD ROLNY
B10: - DANE O PRZEDMIOTACH OPODATKOWANIA ZWOLNIONYCH Z OPODATKOWANIA
A11: =$A$2 -> 9 | N11: 3. Nr załącznika
A12: =$A$6 -> 19.5 | N12: 1 | P12: =SUM(Q:Q) -> 0 | Q12: =IF(COUNTA(C22:O29,C43:O62)=0,0,1) -> 0
A13: =$A$4 -> 4.5
A14: =$A$4 -> 4.5
A15: =$A$8*1.5 -> 24.75 | B15: A. DANE PODATNIKA WSKAZANEGO W CZĘŚCI C.1 DEKLARACJI DR-1 * - dotyczy podatnika niebędącego osobą fizyczną ** - dotyczy podatnika będącego osobą fizyczną
A16: =$A$2 -> 9 | C16: 4. Nazwa pełna * / Nazwisko ** | I16: 5. Nazwa skrócona * / Pierwsze imię **
A17: =$A$6 -> 19.5
A18: =$A$4 -> 4.5
A19: =$A$8 -> 16.5 | B19: B. DANE O POSZCZEGÓLNYCH PRZEDMIOTACH OPODATKOWANIA PODLEGAJĄCYCH OPODATKOWANIU
A20: =$A$8*1.5 -> 24.75 | B20: Lp. | C20: Położenie (adres, w tym dzielnica) | F20: Nr księgi wieczystej (zbioru dokumentów) | G20: Nr obrębu (arkusza mapy)2) | H20: Nr działki | I20: Powierzchnia w ha3) | K20: Rodzaj użytku | L20: Klasa użytku | M20: Podstawa prawna zwolnienia 4)
A21: =$A$2 -> 9 | C21: a | F21: b | G21: c | H21: d | I21: e | K21: f | L21: g | M21: h
A22: =$A$6 -> 19.5 | B22: 1
A23: 19.5 | B23: 2
A24: 19.5 | B24: 3
A25: 19.5 | B25: 4
A26: 19.5 | B26: 5
A27: 19.5 | B27: 6
A28: 19.5 | B28: 7
A29: 19.5 | B29: 8
A30: =$A$2 -> 9
A31: =$A$2 -> 9
A32: =$A$2*2 -> 18 | B32: 1) | C32: Numer PESEL wpisują podatnicy będący osobami fizycznymi objętymi rejestrem PESEL, nieprowadzący działalności gospodarczej lub niebędący zarejestrowanymi podatnikami podatku od towarów i usług. Identyfikator podatkowy NIP wpisują pozostali podatnicy.
A33: =$A$2 -> 9 | B33: 2) | C33: Numer obrębu należy podać wraz z numerem arkusza mapy ewidencyjnej w przypadku, gdy działki numerowane są w ramach arkusza mapy.
A34: =$A$2 -> 9 | B34: 3) | C34: Należy podać z dokładnością do czterech miejsc po przecinku.
A35: =$A$2 -> 9 | B35: 4) | C35: Należy podać jednostkę redakcyjną z ustawy lub uchwały rady gminy.
A36: =$A$2 -> 9
A37: =$A$8 -> 16.5 | C37: =Wersja -> 2022.1.8.15.0.44596 | N37: ZDR-2(1) | O37: 1/2
A38: =$A$2 -> 9
A39: =$A$2 -> 9 | B39: WYPEŁNIĆ DUŻYMI, DRUKOWANYMI LITERAMI, CZARNYM LUB NIEBIESKIM KOLOREM.
A40: 4.5
A41: =$A$8*1.5 -> 24.75 | B41: Lp. | C41: Położenie (adres, w tym dzielnica) | F41: Nr księgi wieczystej (zbioru dokumentów) | G41: Nr obrębu (arkusza mapy)2) | H41: Nr działki | I41: Powierzchnia w ha3) | K41: Rodzaj użytku | L41: Klasa użytku | M41: Podstawa prawna zwolnienia 4)
A42: =$A$2 -> 9 | C42: a | F42: b | G42: c | H42: d | I42: e | K42: f | L42: g | M42: h
A43: =$A$6 -> 19.5 | B43: 9
A44: 19.5 | B44: =B43+1 -> 10
A45: 19.5 | B45: =B44+1 -> 11
A46: 19.5 | B46: 12
A47: 19.5 | B47: 13
A48: 19.5 | B48: 14
A49: 19.5 | B49: 15
A50: 19.5 | B50: 16
A51: 19.5 | B51: 17
A52: 19.5 | B52: 18
A53: 19.5 | B53: 19
A54: 19.5 | B54: 20
A55: 19.5 | B55: 21
A56: 19.5 | B56: 22
A57: 19.5 | B57: 23
A58: 19.5 | B58: 24
A59: 19.5 | B59: 25
A60: 19.5 | B60: 26
A61: 19.5 | B61: 27
A62: 19.5 | B62: 28
A63: =$A$2 -> 9
A64: =$A$2 -> 9
A65: 9
A66: 9
A67: 9
A68: =$A$8 -> 16.5 | C68: ZDR-2(1) | D68: 2/2 | M68: =Wersja -> 2022.1.8.15.0.44596
A69: 9
A70: 9 | B70: Załącznik nr 6
A71: =$A$2 -> 9 | B71: WYPEŁNIĆ DUŻYMI, DRUKOWANYMI LITERAMI, CZARNYM LUB NIEBIESKIM KOLOREM.
A72: 4.5
A73: =$A$2 -> 9 | B73: 1. Identyfikator podatkowy NIP/numer PESEL (niepotrzebne skreślić)1) └────┴────┴────┴────┴────┴────┴────┴────┴────┴────┴────┘ | I73: 2. Nr dokumentu
A74: 19.5 | C74: =$C$6 -> 0
A75: =$A$2 -> 9
A76: 16.5 | B76: ZDR-2
A77: =$A$8 -> 16.5 | B77: ZAŁĄCZNIK DO DEKLARACJI NA PODATEK OD ROLNY
B78: - DANE O PRZEDMIOTACH OPODATKOWANIA ZWOLNIONYCH Z OPODATKOWANIA
A79: =$A$2 -> 9 | N79: 3. Nr załącznika
A80: =$A$6 -> 19.5 | N80: =N12+1 -> 2 | Q80: =IF(COUNTA(C90:O97,C111:O130)=0,0,1) -> 0
A81: =$A$4 -> 4.5
A82: =$A$4 -> 4.5
A83: =$A$8*1.5 -> 24.75 | B83: A. DANE PODATNIKA WSKAZANEGO W CZĘŚCI C.1 DEKLARACJI DR-1 * - dotyczy podatnika niebędącego osobą fizyczną ** - dotyczy podatnika będącego osobą fizyczną
A84: =$A$2 -> 9 | C84: 4. Nazwa pełna * / Nazwisko ** | I84: 5. Nazwa skrócona * / Pierwsze imię **
A85: =$A$6 -> 19.5 | C85: =""&C17 ->  | I85: =""&I17 -> 
A86: =$A$4 -> 4.5
A87: =$A$8 -> 16.5 | B87: B. DANE O POSZCZEGÓLNYCH PRZEDMIOTACH OPODATKOWANIA PODLEGAJĄCYCH OPODATKOWANIU
A88: =$A$8*1.5 -> 24.75 | B88: Lp. | C88: Położenie (adres, w tym dzielnica) | F88: Nr księgi wieczystej (zbioru dokumentów) | G88: Nr obrębu (arkusza mapy)2) | H88: Nr działki | I88: Powierzchnia w ha3) | K88: Rodzaj użytku | L88: Klasa użytku | M88: Podstawa prawna zwolnienia 4)
A89: =$A$2 -> 9 | C89: a | F89: b | G89: c | H89: d | I89: e | K89: f | L89: g | M89: h
A90: =$A$6 -> 19.5 | B90: 1
A91: 19.5 | B91: 2
A92: 19.5 | B92: 3
A93: 19.5 | B93: 4
A94: 19.5 | B94: 5
A95: 19.5 | B95: 6
A96: 19.5 | B96: 7
A97: 19.5 | B97: 8
A98: =$A$2 -> 9
A99: =$A$2 -> 9
A100: =$A$2*2 -> 18 | B100: 1) | C100: Numer PESEL wpisują podatnicy będący osobami fizycznymi objętymi rejestrem PESEL, nieprowadzący działalności gospodarczej lub niebędący zarejestrowanymi podatnikami podatku od towarów i usług. Identyfikator podatkowy NIP wpisują pozostali podatnicy.
A101: =$A$2 -> 9 | B101: 2) | C101: Numer obrębu należy podać wraz z numerem arkusza mapy ewidencyjnej w przypadku, gdy działki numerowane są w ramach arkusza mapy.
A102: =$A$2 -> 9 | B102: 3) | C102: Należy podać z dokładnością do czterech miejsc po przecinku.
A103: =$A$2 -> 9 | B103: 4) | C103: Należy podać jednostkę redakcyjną z ustawy lub uchwały rady gminy.
A104: =$A$2 -> 9
A105: =$A$8 -> 16.5 | C105: =Wersja -> 2022.1.8.15.0.44596 | N105: ZDR-2(1) | O105: 1/2
A106: =$A$2 -> 9
A107: =$A$2 -> 9 | B107: WYPEŁNIĆ DUŻYMI, DRUKOWANYMI LITERAMI, CZARNYM LUB NIEBIESKIM KOLOREM.
A108: 4.5
A109: =$A$8*1.5 -> 24.75 | B109: Lp. | C109: Położenie (adres, w tym dzielnica) | F109: Nr księgi wieczystej (zbioru dokumentów) | G109: Nr obrębu (arkusza mapy)2) | H109: Nr działki | I109: Powierzchnia w ha3) | K109: Rodzaj użytku | L109: Klasa użytku | M109: Podstawa prawna zwolnienia 4)
A110: =$A$2 -> 9 | C110: a | F110: b | G110: c | H110: d | I110: e | K110: f | L110: g | M110: h
A111: =$A$6 -> 19.5 | B111: 9
A112: 19.5 | B112: =B111+1 -> 10
A113: 19.5 | B113: =B112+1 -> 11
A114: 19.5 | B114: 12
A115: 19.5 | B115: 13
A116: 19.5 | B116: 14
A117: 19.5 | B117: 15
A118: 19.5 | B118: 16
A119: 19.5 | B119: 17
A120: 19.5 | B120: 18
A121: 19.5 | B121: 19
A122: 19.5 | B122: 20
A123: 19.5 | B123: 21
A124: 19.5 | B124: 22
A125: 19.5 | B125: 23
A126: 19.5 | B126: 24
A127: 19.5 | B127: 25
A128: 19.5 | B128: 26
A129: 19.5 | B129: 27
A130: 19.5 | B130: 28
A131: =$A$2 -> 9
A132: =$A$2 -> 9
A133: 9
A134: 9
A135: 9
A136: =$A$8 -> 16.5 | C136: ZDR-2(1) | D136: 2/2 | M136: =Wersja -> 2022.1.8.15.0.44596
A137: 9
A138: 9 | B138: Załącznik nr 6
A139: =$A$2 -> 9 | B139: WYPEŁNIĆ DUŻYMI, DRUKOWANYMI LITERAMI, CZARNYM LUB NIEBIESKIM KOLOREM.
A140: 4.5
A141: =$A$2 -> 9 | B141: 1. Identyfikator podatkowy NIP/numer PESEL (niepotrzebne skreślić)1) └────┴────┴────┴────┴────┴────┴────┴────┴────┴────┴────┘ | I141: 2. Nr dokumentu
A142: 19.5 | C142: =$C$6 -> 0
A143: =$A$2 -> 9
A144: 16.5 | B144: ZDR-2
A145: =$A$8 -> 16.5 | B145: ZAŁĄCZNIK DO DEKLARACJI NA PODATEK OD ROLNY
B146: - DANE O PRZEDMIOTACH OPODATKOWANIA ZWOLNIONYCH Z OPODATKOWANIA
A147: =$A$2 -> 9 | N147: 3. Nr załącznika
A148: =$A$6 -> 19.5 | N148: =N80+1 -> 3 | Q148: =IF(COUNTA(C158:O165,C179:O198)=0,0,1) -> 0
A149: =$A$4 -> 4.5
A150: =$A$4 -> 4.5
A151: =$A$8*1.5 -> 24.75 | B151: A. DANE PODATNIKA WSKAZANEGO W CZĘŚCI C.1 DEKLARACJI DR-1 * - dotyczy podatnika niebędącego osobą fizyczną ** - dotyczy podatnika będącego osobą fizyczną
A152: =$A$2 -> 9 | C152: 4. Nazwa pełna * / Nazwisko ** | I152: 5. Nazwa skrócona * / Pierwsze imię **
A153: =$A$6 -> 19.5 | C153: =""&C85 ->  | I153: =""&I85 -> 
A154: =$A$4 -> 4.5
A155: =$A$8 -> 16.5 | B155: B. DANE O POSZCZEGÓLNYCH PRZEDMIOTACH OPODATKOWANIA PODLEGAJĄCYCH OPODATKOWANIU
A156: =$A$8*1.5 -> 24.75 | B156: Lp. | C156: Położenie (adres, w tym dzielnica) | F156: Nr księgi wieczystej (zbioru dokumentów) | G156: Nr obrębu (arkusza mapy)2) | H156: Nr działki | I156: Powierzchnia w ha3) | K156: Rodzaj użytku | L156: Klasa użytku | M156: Podstawa prawna zwolnienia 4)
A157: =$A$2 -> 9 | C157: a | F157: b | G157: c | H157: d | I157: e | K157: f | L157: g | M157: h
A158: =$A$6 -> 19.5 | B158: 1
A159: 19.5 | B159: 2
A160: 19.5 | B160: 3
A161: 19.5 | B161: 4
A162: 19.5 | B162: 5
A163: 19.5 | B163: 6
A164: 19.5 | B164: 7
A165: 19.5 | B165: 8
A166: =$A$2 -> 9
A167: =$A$2 -> 9
A168: =$A$2*2 -> 18 | B168: 1) | C168: Numer PESEL wpisują podatnicy będący osobami fizycznymi objętymi rejestrem PESEL, nieprowadzący działalności gospodarczej lub niebędący zarejestrowanymi podatnikami podatku od towarów i usług. Identyfikator podatkowy NIP wpisują pozostali podatnicy.
A169: =$A$2 -> 9 | B169: 2) | C169: Numer obrębu należy podać wraz z numerem arkusza mapy ewidencyjnej w przypadku, gdy działki numerowane są w ramach arkusza mapy.
A170: =$A$2 -> 9 | B170: 3) | C170: Należy podać z dokładnością do czterech miejsc po przecinku.
A171: =$A$2 -> 9 | B171: 4) | C171: Należy podać jednostkę redakcyjną z ustawy lub uchwały rady gminy.
A172: =$A$2 -> 9
A173: =$A$8 -> 16.5 | C173: =Wersja -> 2022.1.8.15.0.44596 | N173: ZDR-2(1) | O173: 1/2
A174: =$A$2 -> 9
A175: =$A$2 -> 9 | B175: WYPEŁNIĆ DUŻYMI, DRUKOWANYMI LITERAMI, CZARNYM LUB NIEBIESKIM KOLOREM.
A176: 4.5
A177: =$A$8*1.5 -> 24.75 | B177: Lp. | C177: Położenie (adres, w tym dzielnica) | F177: Nr księgi wieczystej (zbioru dokumentów) | G177: Nr obrębu (arkusza mapy)2) | H177: Nr działki | I177: Powierzchnia w ha3) | K177: Rodzaj użytku | L177: Klasa użytku | M177: Podstawa prawna zwolnienia 4)
A178: =$A$2 -> 9 | C178: a | F178: b | G178: c | H178: d | I178: e | K178: f | L178: g | M178: h
A179: =$A$6 -> 19.5 | B179: 9
A180: 19.5 | B180: =B179+1 -> 10
A181: 19.5 | B181: =B180+1 -> 11
A182: 19.5 | B182: 12
A183: 19.5 | B183: 13
A184: 19.5 | B184: 14
A185: 19.5 | B185: 15
A186: 19.5 | B186: 16
A187: 19.5 | B187: 17
A188: 19.5 | B188: 18
A189: 19.5 | B189: 19
A190: 19.5 | B190: 20
A191: 19.5 | B191: 21
A192: 19.5 | B192: 22
A193: 19.5 | B193: 23
A194: 19.5 | B194: 24
A195: 19.5 | B195: 25
A196: 19.5 | B196: 26
A197: 19.5 | B197: 27
A198: 19.5 | B198: 28
A199: =$A$2 -> 9
A200: =$A$2 -> 9
... 481 more rows

Sheet DL-1
A1: 15 | B1: 2.5 | C1: 3.83 | D1: =$C$1 -> 3.83 | E1: 2.5 | F1: =$C$1-E1 -> 1.33 | G1: =$C$1-H1 -> 1.33 | H1: 2.5 | I1: =$C$1 -> 3.83 | J1: 3.83 | K1: 2.5 | L1: =$C$1-K1 -> 1.33 | M1: 3.83 | N1: 3.83 | O1: 3.83 | P1: 2.5 | Q1: =C1-P1 -> 1.33 | R1: 3.83 | S1: 3.83 | T1: 3.83 | U1: 3.83 | V1: 3.83 | W1: 3.83 | X1: 3.83 | Y1: 3.83 | Z1: 3.83 | AA1: sumy | BA1: =COUNTA(BC:BC) -> 50 | BC1: =B6&";"&K21&";"&P21&";"&Q24&";"&E28&";"&P28&";"&E35&";"&K35&";"&P35&";"&C38&";"&P38&";"&J40&";"&C43&";"&N43&";"&U43&";"&C46&";"&J46&";"&S46&";"&C48&";"&K48&";"&U48&";"&X48&";"&C50&";"&P50&";"&C53&";"&J53&";"&S53&";"&C55&";"&K55&";"&U55&";"&X55&";"&C57&";"&P57&";"&C91&";"&P91&";"&C98&";"&P98&";"&F100&";"&C103&";"&P103&";"&F105&";"&C107&";"&P107&";"&F109=Dane!E19 -> FALSE
A2: =$A$3 -> 9 | B2: Załącznik nr 5 | AA2: kontrolne | BA2: =SUM(BB:BB) -> 17
A3: 9 | B3: WYPEŁNIĆ DUŻYMI, DRUKOWANYMI LITERAMI, CZARNYM LUB NIEBIESKIM KOLOREM. | BA3: =IF(LEN(C91&P91)=0,1,0) -> 1 | BC3: Czy podano dane kontaktowe 56 i 57
A4: 4.5 | BA4: 91
A5: =$A$3 -> 9 | B5: 1. Identyfikator podatkowy NIP/numer PESEL (niepotrzebne skreślić)1) | O5: 2. Nr dokumentu | AY5: wiersz błędu | AZ5: kolumna błedu | BA5: 3
A6: 16.5 | AA6: =LEN(B6) -> 0 | AY6: 6 | AZ6: 2 | BA6: 1 | BB6: =IF(E35<>"",IF(B6<>"",0,1),IF(B6<>"",0,1)) -> 1 | BC6: =IF(E35<>"",IF(B6<>"","ok","Pole 1 [Identyfikator podatkowy NIP/numer PESEL]. Jeżeli deklarację składa osoba fizyczna nieprowadząca działalności gospodarczej, której nie nadano nr PESEL należy wpisać -brak."),IF(B6<>"","ok","Pole 1 [Identyfikator podatkowy NIP/numer PESEL]. Jeżeli deklarację składa inny podmiot niż osoba fizyczna należy wipsać NIP.")) -> Pole 1 [Identyfikator podatkowy NIP/numer PESEL]. Jeżeli deklarację składa inny podmiot niż osoba fizyczna należy wipsać NIP.
A7: 16.5 | B7: DL-1 | AA7: =SUM(BB7:BB10) -> 1 | AY7: 6 | AZ7: 2 | BA7: 1 długość 10 lub 11 | BB7: =IF(OR(LEN(B6)=10,LEN(B6)=11,B6="brak"),0,1) -> 1 | BC7: Pole 1 [Identyfikator podatkowy NIP/numer PESEL] zawiera błąd.
A8: =$A$7 -> 16.5 | B8: DEKLARACJA NA PODATEK LEŚNY | AY8: 6 | AZ8: 2 | BA8: 1 NIP | BB8: =IF(B6="nie nadano",0,IF(LEN(B6)=10,IF(MOD(MOD(6*MID(B6,1,1)+5*MID(B6,2,1)+7*MID(B6,3,1)+2*MID(B6,4,1)+3*MID(B6,5,1)+4*MID(B6,6,1)+5*MID(B6,7,1)+6*MID(B6,8,1)+7*MID(B6,9,1),11),10) = 1*MID(B6,10,1),0,1),0)) -> 0 | BC8: Podany w polu 1 NIP jest błędny.
A9: =$A$3 -> 9 | M9: 3. Rok | AY9: 6 | AZ9: 2 | BA9: 1 PESEL | BB9: =IF(LEN(B6)=11,IF(MOD(10-MOD(1*MID(B6,1,1)+3*MID(B6,2,1)+7*MID(B6,3,1)+9*MID(B6,4,1)+1*MID(B6,5,1)+3*MID(B6,6,1)+5*MID(B6,7,1)+9*MID(B6,8,1)+1*MID(B6,9,1)+ 3*MID(B6,10,1),10),10)=1*MID(B6,11,1),0,1),0) -> 0 | BC9: Podany w polu 1 PESEL jest błędny.
A10: =$A$6 -> 16.5 | B10: NA ROK | M10: =Dane!AN1 -> 2022 | AY10: 6 | AZ10: 2 | BA10: 1 PESEL | BB10: =IF(AND(LEN(B6)=11,OR(K35<>"",P35<>"") ),1,0) -> 0 | BC10: W polu 1 PESEL podają wyłącznie osoby fizyczne, które nie prowadzą działalności gospodarczej.
A11: =$A$4 -> 4.5
A12: 9 | B12: Podstawa prawna: | E12: Art. 6 ust. 5, 6 i 7 ustawy z dnia 30 października 2002 r. o podatku leśnym (Dz. U. z 2019 r. poz. 888), zwanej dalej „ustawą”.
A13: 42 | B13: Składający: | E13: Osoby prawne, jednostki organizacyjne, w tym spółki, nieposiadające osobowości prawnej, jednostki organizacyjne Lasów Państwowych, a także jednostki organizacyjne Krajowego Ośrodka Wsparcia Rolnictwa będące właścicielami lasów, posiadaczami samoistnymi lasów, użytkownikami wieczystymi lasów, posiadaczami lasów stanowiących własność Skarbu Państwa lub jednostki samorządu terytorialnego oraz osoby fizyczne będące współwłaścicielami lub współposiadaczami lasów z osobami prawnymi lub z jednostkami organizacyjnymi, w tym spółkami, nieposiadającymi osobowości prawnej.
A14: 24.75 | B14: Termin składania: | E14: Do dnia 15 stycznia danego roku podatkowego lub w terminie 14 dni od dnia wystąpienia okoliczności uzasadniających powstanie obowiązku podatkowego lub od dnia zaistnienia zmian mających wpływ na wysokość opodatkowania, o których mowa w art. 5 ust. 4 ustawy.
A15: =$A$3 -> 9 | B15: Miejsce składania: | E15: Organ podatkowy właściwy ze względu na miejsce położenia przedmiotów opodatkowania.
A16: =$A$4 -> 4.5
A17: =$A$7 -> 16.5 | B17: A. MIEJSCE I CEL SKŁADANIA DEKLARACJI2)
A18: =$A$3 -> 9 | C18: 4. Nazwa i adres siedziby organu podatkowego
A19: =$A$6 -> 16.5 | C19: =Organ -> Burmistrz Miasta Kluczborka, ul.Katowicka 1, 46-200 Kluczbork
A20: =$A$3 -> 9 | C20: 5. Cel złożenia formularza (zaznaczyć właściwy kwadrat):
A21: 15 | L21: 1. złożenie deklaracji | Q21: 2. korekta deklaracji3) | AY21: 21 | AZ21: 11 | BA21: 5a i 5b | BB21: =IF(LEN(K21&P21)=1,0,1) -> 1 | BC21: W polu 5 [Cel złożenia formularza] powinna być zaznaczona jedna wartość.
A22: =$A$4 -> 4.5
A23: =$A$3 -> 9 | C23: 6. Okres – od którego deklaracja obowiązuje
A24: =$A$6 -> 16.5 | C24: (miesiąc) | AA24: =13-Q24 -> 13 | AY24: 24 | AZ24: 17 | BA24: 6 | BB24: =IF(AND(Q24>=1,Q24<=12),0,1) -> 1 | BC24: Pole 6 [Okres – od którego deklaracja obowiązuje] powinno mieć wartość 1 - 12
A25: =$A$4 -> 4.5
A26: =$A$7 -> 16.5 | B26: B. PODMIOT ZOBOWIĄZANY DO ZŁOŻENIA DEKLARACJI
A27: =$A$3 -> 9 | C27: 7. Rodzaj podmiotu (zaznaczyć właściwy kwadrat):
A28: =$A$21 -> 15 | F28: 1. właściciel, użytkownik wieczysty lub posiadacz | Q28: 2. współwłaściciel, współużytkownik wieczysty lub współposiadacz | AY28: 28 | AZ28: 5 | BA28: 7a i 7b | BB28: =IF(LEN(E28&P28)=1,0,1) -> 1 | BC28: W polu 7 [Rodzaj podmiotu] powinna być zaznaczona jedna wartość.
A29: =$A$4 -> 4.5
A30: 4.5
A31: =$A$7 -> 16.5 | B31: C. DANE PODATNIKA
A32: =$A$3 -> 9 | B32: * - dotyczy podatnika niebędącego osobą fizyczną ** - dotyczy podatnika będącego osobą fizyczną | AY32: 35 | AZ32: 5 | BA32: 8a, 8b i 8c | BB32: =IF(LEN(E35&K35&P35)<>1,1,0) -> 1 | BC32: W polu 8 [Rodzaj podatnika] powinno być zaznaczona jedna wartość.
A33: =$A$7 -> 16.5 | B33: C.1. DANE IDENTYFIKACYJNE | AY33: 35 | AZ33: 5 | BA33: 8b i nip | BB33: =IF(AND(LEN(B6)<>10,K35<>""),1-BB32,0) -> 0 | BC33: W polu 8 wybrano [Rodzaj podatnika - osoba prawna], więc pole 1 powinno zawierać NIP.
A34: =$A$3 -> 9 | C34: 8. Rodzaj podatnika (zaznaczyć właściwy kwadrat): | AY34: 35 | AZ34: 5 | BA34: 8c i nip | BB34: =IF(AND(LEN(B6)<>10,P35<>""),1-BB32,0) -> 0 | BC34: W polu 8 wybrano [Rodzaj podatnika - jednostka organizacyjna ...], więc pole 1 powinno zawierać NIP.
A35: =$A$21 -> 15 | F35: 1. osoba fizyczna | L35: 2. osoba prawna | Q35: 3. jednostka organizacyjna, wtym spółka nieposiadająca osobowości prawnej | AA35: =SUM(BB32:BB34) -> 1
A36: =$A$4 -> 4.5
A37: =$A$3 -> 9 | C37: 9. Nazwa pełna * / Nazwisko ** | P37: 10. Nazwa skrócona * / Pierwsze imię** | AB37: 12345678512347
A38: =$A$6 -> 16.5 | AB38: ="00000000000000"&J40 -> 00000000000000 | AY38: 38 | AZ38: 3 | BA38: 9 | BB38: =IF(C38="",1,0) -> 1 | BC38: Pole 9 [Nazwa pełna / Nazwisko] powinno być wypełnione
A39: =$A$3 -> 9 | C39: 11. Identyfikator REGON (w przypadku osób fizycznych REGON podaje się, o ile został nadany) | AC39: REGON | AD39: regon9 | AE39: regon14 | AF39: regon9 | AG39: regon14 | AY39: 38 | AZ39: 16 | BA39: 10 | BB39: =IF(P38="",1,0) -> 1 | BC39: Pole 10 Nazwa skrócona / Pierwsze imię] powinno być wypełnione
A40: =$A$6 -> 16.5 | AA40: =LEN(J40) -> 0 | AB40: 14 | AC40: =LEFT(RIGHT($AB$38,AB40),1) -> 0 | AE40: 2 | AF40: =AD40*$AC40 -> 0 | AG40: =AE40*$AC40 -> 0 | AY40: 40 | AZ40: 10 | BA40: REGON | BB40: =IF(LEN(J40)>14,"Podany REGON jest za długi.",IF(LEN(J40)<=9,IF(AC53+0=AF53,0,1),IF(LEN(J40)>9,IF(AC53+0=AG53,0,1),1))) -> 0 | BC40: =IF(LEN(J40)>14,"Podany REGON jest za długi.",IF(LEN(J40)<=9,IF(AC53+0=AF53,"REGON 9 cyfr ok","Podany REGON jest błędny"),IF(LEN(J40)>9,IF(AC53+0=AG53,"REGON 14 cyfr ok","Podany REGON jest błędny"),1))) -> REGON 9 cyfr ok
A41: =$A$3 -> 9 | B41: Pola 12, 13, 14 wypełnia osoba fizyczna w przypadku, gdy numer PESEL nie został nadany. | AB41: =AB40-1 -> 13 | AC41: =LEFT(RIGHT($AB$38,AB41),1) -> 0 | AE41: 4 | AF41: =AD41*$AC41 -> 0 | AG41: 0
A42: =$A$3 -> 9 | C42: 12. Data urodzenia (dzień - miesiąc - rok) | N42: 13. Imię ojca | U42: 14. Imię matki | AB42: =AB41-1 -> 12 | AC42: 0 | AE42: 8 | AF42: 0 | AG42: 0 | AY42: 43 | AZ42: 3 | BA42: 12 | BB42: =IF(AND(E35<>"",C43="",B6="brak"),1,0) -> 0 | BC42: Pole 12 [Data urodzenia] wypełniają osoby fizyczne, którym nie nadano PESEL.
A43: =$A$6 -> 16.5 | AB43: 11 | AC43: 0 | AE43: 5 | AF43: 0 | AG43: 0 | AY43: 43 | AZ43: 14 | BA43: 13 | BB43: =IF(AND(E35<>"",N43="",B6="brak"),1,0) -> 0 | BC43: Pole 13 [Imię ojca] wypełniają osoby fizyczne, którym nie nadano PESEL.
A44: =$A$7 -> 16.5 | B44: C.2. ADRES SIEDZIBY * / ADRES ZAMIESZKANIA ** | AB44: 10 | AC44: 0 | AE44: 0 | AF44: 0 | AG44: 0 | AY44: 43 | AZ44: 21 | BA44: 14 | BB44: =IF(AND(E35<>"",U43="",B6="brak"),1,0) -> 0 | BC44: Pole 12 [Imię matki] wypełniają osoby fizyczne, którym nie nadano PESEL.
A45: =$A$3 -> 9 | C45: 15. Kraj | J45: 16. Województwo | S45: 17. Powiat | AB45: 9 | AC45: 0 | AD45: 8 | AE45: 9 | AF45: 0 | AG45: 0 | AY45: 46 | AZ45: 3 | BA45: 15 | BB45: =IF(C46="",1,0) -> 1 | BC45: Pole 15 [Kraj] powinno być wypełnione
A46: =$A$6 -> 16.5 | AB46: 8 | AC46: 0 | AD46: 9 | AE46: 7 | AF46: 0 | AG46: 0 | AY46: 46 | AZ46: 10 | BA46: 16 | BB46: =IF(J46="",1,0) -> 1 | BC46: Pole 16 [Województwo] powinno być wypełnione
A47: =$A$3 -> 9 | C47: 18. Gmina | K47: 19. Ulica | U47: 20. Nr domu | X47: 21. Nr lokalu | AB47: 7 | AC47: 0 | AD47: 2 | AE47: 3 | AF47: 0 | AG47: 0 | AY47: 46 | AZ47: 19 | BA47: 17 | BB47: =IF(S46="",1,0) -> 1 | BC47: Pole 17 [Powiat] powinno być wypełnione
A48: =$A$6 -> 16.5 | AB48: 6 | AC48: 0 | AD48: 3 | AE48: 6 | AF48: 0 | AG48: 0 | AY48: 48 | AZ48: 3 | BA48: 18 | BB48: =IF(C48="",1,0) -> 1 | BC48: Pole 18 [Gmina] powinno być wypełnione
A49: =$A$3 -> 9 | C49: 22. Miejscowość | P49: 23. Kod pocztowy | AB49: 5 | AC49: 0 | AD49: 4 | AE49: 1 | AF49: 0 | AG49: 0 | AY49: 48 | AZ49: 11 | BA49: 19, 20,21 | BB49: =IF(AND(K48="",U48="",X48=""),1,0) -> 1 | BC49: Pola 19 - 21 powinny zawierać dokładny ADRES
A50: =$A$6 -> 16.5 | AB50: 4 | AC50: 0 | AD50: 5 | AE50: 2 | AF50: 0 | AG50: 0 | AY50: 50 | AZ50: 3 | BA50: 22 | BB50: =IF(C50="",1,0) -> 1 | BC50: Pole 22 [Miejscowość] powinno być wypełnione
A51: =$A$7 -> 16.5 | B51: C.3. ADRES DO DORĘCZEŃ Należy wypełnić tylko wówczas, gdy ADRES do doręczeń jest inny niż w części C.2. | AB51: 3 | AC51: 0 | AD51: 6 | AE51: 4 | AF51: 0 | AG51: 0 | AY51: 50 | AZ51: 16 | BA51: 23 | BB51: =IF(P50="",1,0) -> 1 | BC51: Pole 23 [Kod pocztowy] powinno być wypełnione
A52: =$A$3 -> 9 | C52: 24. Kraj | J52: 25. Województwo | S52: 26. Powiat | AB52: 2 | AC52: 0 | AD52: 7 | AE52: 8 | AF52: 0 | AG52: 0
A53: =$A$6 -> 16.5 | AB53: 1 | AC53: 0 | AF53: =MOD(MOD(SUM(AF40:AF52),11),10) -> 0 | AG53: =MOD(MOD(SUM(AG40:AG52),11),10) -> 0 | AY53: 53 | AZ53: 3 | BA53: 24 - 32 | BB53: =IF(AND(C46=C53,J46=J53,S46=S53,C48=C55,K48=K55,U48=U55,X48=X55,C50=C57,P50=P57),1,0) -> 1 | BC53: ADRES DO DORĘCZEŃ Należy wypełnić tylko wówczas, gdy ADRES do doręczeń jest inny niż w części C.2.
A54: =$A$3 -> 9 | C54: 27. Gmina | K54: 28. Ulica | U54: 29. Nr domu | X54: 30. Nr lokalu
A55: =$A$6 -> 16.5
A56: =$A$3 -> 9 | C56: 31. Miejscowość | P56: 32. Kod pocztowy
A57: =$A$6 -> 16.5
A58: =$A$3 -> 9
A59: =$A$3 -> 9
A60: 9
A61: 9
A62: =$A$6 -> 16.5 | C62: =Wersja -> 2022.1.8.15.0.44596 | V62: DL-1(1) | Z62: 1/3
A63: =$A$3 -> 9
A64: 9 | B64: WYPEŁNIĆ DUŻYMI, DRUKOWANYMI LITERAMI, CZARNYM LUB NIEBIESKIM KOLOREM.
A65: =$A$4 -> 4.5
A66: =$A$4 -> 4.5
A67: =$A$7 -> 16.5 | B67: D. DANE O LASACH PODLEGAJĄCYCH OPODATKOWANIU
A68: 18 | N68: Powierzchnia w ha4) | S68: Stawka podatku | W68: Kwota podatku za okres, którego dotyczy deklaracja5)
A69: =$A$3 -> 9 | S69: zł gr | W69: zł gr
A70: 24.75 | C70: Lasy (z wyjątkiem lasów wchodzących w skład rezerwatów przyrody i parków narodowych) | N70: 33. | S70: 34. | T70: =ROUND(Dane!AN16*0.22,4) -> 46.6972 | W70: 35. | X70: =IF(AND(AA24>=1,AA24<=12),ROUND(O70*T70*AA24/12,2),"Pole 6 - ???") -> Pole 6 - ??? | AA70: ='ZDL-1'!R19 -> 0 | AY70: 70 | AZ70: 15 | BA70: 33 | BB70: =IF(O70<>AA70,1,0) -> 0 | BC70: ="W DL-1 polu. 33 wykazano powierzchnię "& O70 &" ha, a w ZDL-1 "&AA70&" ha" -> W DL-1 polu. 33 wykazano powierzchnię ha, a w ZDL-1 0 ha
A71: 21 | C71: Lasy wchodzące w skład rezerwatów przyrody i parków narodowych | N71: 36. | S71: 37. | T71: =ROUND(Dane!AN16*0.22*0.5,4) -> 23.3486 | W71: 38. | X71: =IF(AND(AA24>=1,AA24<=12),ROUND(O71*T71*AA24/12,2),"Pole 6 - ???") -> Pole 6 - ??? | AA71: ='ZDL-1'!R20 -> 0 | AY71: 71 | AZ71: 15 | BA71: 36 | BB71: =IF(O71<>AA71,1,0) -> 0 | BC71: ="W DL-1 polu. 36 wykazano powierzchnię "& O71 &" ha, a w ZDL-1 "&AA71&" ha" -> W DL-1 polu. 36 wykazano powierzchnię ha, a w ZDL-1 0 ha
A72: =$A$4 -> 4.5
A73: =$A$7 -> 16.5 | B73: E. WYSOKOŚĆ ZOBOWIĄZANIA PODATKOWEGO I RAT PODATKU | AY73: 75 | AZ73: 18 | BA73: 40 | BB73: =IF(AND(AA75>0,Q24=1),1,0) -> 0 | BC73: Ponieważ w polu 6 [Okres – od którego deklaracja obowiązuje] wpisano 1, pole 40 [Kwota podatku za miesiące nieobjęte deklaracją] powinna być równa 0.
A74: =$A$71 -> 21 | C74: Łączna kwota podatku za okres, którego dotyczy deklaracja Suma kwot podatku z poz. 35 i 38. | P74: 39. | R74: =IF(AND($Q$24>=1,$Q$24<=12),QUOTIENT(SUM(X70:Z71),1),"Pole 6 - ???") -> Pole 6 - ??? | X74: zł, | Y74: =IF(AND(AA24>=1,AA24<=12),(AA74-R74)*100,"???") -> ??? | Z74: gr | AA74: =SUM(X70:Z71) -> 0 | AY74: 75 | AZ74: 18 | BA74: 40 | BB74: =IF(AND(K21<>"",AA75<>0),1,0) -> 0 | BC74: Jeżeli w poz. 5 zaznaczono kwadrat 1, w pole 95 należy wpisać 0.
A75: 21 | C75: Kwota podatku za miesiące nieobjęte deklaracją6) Jeżeli w poz. 5 zaznaczono kwadrat 1, należy wpisać 0. | P75: 40. | X75: zł, | Z75: gr | AA75: =R75+Y75/100*SIGN(R75) -> 0 | BA75: 41 | BB75: =IF(R76<0,1,0) -> 0 | BC75: Kwota podatku nie może mieć wartości ujemnej.
A76: 21 | C76: Wysokość zobowiązania podatkowego7) Suma kwot z poz. 39 i 40 (po zaokrągleniu do pełnych złotych). | P76: 41. | R76: =ROUND(SUM(AA74:AA75),0) -> 0 | Z76: zł | AA76: =SUM(K78:N83,W78:Y83) -> 0 | AY76: 78 | AZ76: 11 | BA76: 42-53 | BB76: =IF(AA76>R76,1,0) -> 0 | BC76: ="Suma rat jest większa od kwoty podatku o " & ROUND(AA76-R76,0) & " zł" -> Suma rat jest większa od kwoty podatku o 0 zł
A77: 21 | B77: Suma kwot z poz. od 42 do 53 musi być równa kwocie z poz. 417). W przypadku korekty deklaracji raty, które nie zostały objęte korektą, pozostają bez zmian. | AY77: 78 | AZ77: 11 | BA77: 42-53 | BB77: =IF(AA76<R76,1,0) -> 0 | BC77: ="Suma rat jest mniejsza od kwoty podatku o " & ROUND(R76-AA76,0) & " zł" -> Suma rat jest mniejsza od kwoty podatku o 0 zł
A78: 21 | C78: Kwota I raty | J78: 42. | O78: zł | P78: Kwota II raty | V78: 43. | Z78: zł | AY78: 78 | AZ78: 11 | BA78: 42 | BB78: =IF(K78<0,1,0) -> 0 | BC78: ="Kwota raty "&BA78-41&" nie może być mniejsza od zera" -> Kwota raty 1 nie może być mniejsza od zera
A79: 21 | C79: Kwota III raty | J79: 44. | O79: zł | P79: Kwota IV raty | V79: 45. | Z79: zł | AY79: 78 | AZ79: 23 | BA79: =BA78+1 -> 43 | BB79: =IF(W78<0,1,0) -> 0 | BC79: ="Kwota raty "&BA79-41&" nie może być mniejsza od zera" -> Kwota raty 2 nie może być mniejsza od zera
A80: 21 | C80: Kwota V raty | J80: 46. | O80: zł | P80: Kwota VI raty | V80: 47. | Z80: zł | AY80: 79 | AZ80: 11 | BA80: =BA79+1 -> 44 | BB80: =IF(K79<0,1,0) -> 0 | BC80: Kwota raty 3 nie może być mniejsza od zera
A81: 21 | C81: Kwota VII raty | J81: 48. | O81: zł | P81: Kwota VIII raty | V81: 49. | Z81: zł | AY81: 79 | AZ81: 23 | BA81: 45 | BB81: =IF(W79<0,1,0) -> 0 | BC81: Kwota raty 4 nie może być mniejsza od zera
A82: 21 | C82: Kwota IX raty | J82: 50. | O82: zł | P82: Kwota X raty | V82: 51. | Z82: zł | AY82: 80 | AZ82: 11 | BA82: 46 | BB82: =IF(K80<0,1,0) -> 0 | BC82: Kwota raty 5 nie może być mniejsza od zera
A83: 21 | C83: Kwota XI raty | J83: 52. | O83: zł | P83: Kwota XII raty | V83: 53. | Z83: zł | AY83: 80 | AZ83: 23 | BA83: 47 | BB83: =IF(W80<0,1,0) -> 0 | BC83: Kwota raty 6 nie może być mniejsza od zera
A84: =$A$4 -> 4.5 | AY84: 81 | AZ84: 11 | BA84: 48 | BB84: =IF(K81<0,1,0) -> 0 | BC84: Kwota raty 7 nie może być mniejsza od zera
A85: =$A$7 -> 16.5 | B85: F. INFORMACJA O ZAŁĄCZNIKACH Deklarację należy składać wraz z odpowiednimi załącznikami, które stanowią jej integralną część. | AY85: 81 | AZ85: 23 | BA85: 49 | BB85: =IF(W81<0,1,0) -> 0 | BC85: Kwota raty 8 nie może być mniejsza od zera
A86: =$A$3 -> 9 | C86: 54. Liczba załączników ZDL-1 | P86: 55. Liczba załączników ZDL-2 | AA86: ='ZDL-1'!P12 -> 0 | AY86: 82 | AZ86: 11 | BA86: 50 | BB86: =IF(K82<0,1,0) -> 0 | BC86: Kwota raty 9 nie może być mniejsza od zera
A87: =$A$71 -> 21 | AA87: ='ZDL-2'!P12 -> 0 | AY87: 82 | AZ87: 23 | BA87: 51 | BB87: =IF(W82<0,1,0) -> 0 | BC87: Kwota raty 10 nie może być mniejsza od zera
A88: =$A$4 -> 4.5 | AY88: 83 | AZ88: 11 | BA88: 52 | BB88: =IF(K83<0,1,0) -> 0 | BC88: Kwota raty 11 nie może być mniejsza od zera
A89: =$A$7*2 -> 33 | B89: G. KONTAKT DO OSOBY ODPOWIEDZIALNEJ ZA SPORZĄDZENIE DEKLARACJI I DODATKOWE INFORMACJE Podanie informacji w części G nie jest obowiązkowe. | AY89: 83 | AZ89: 23 | BA89: 53 | BB89: =IF(W83<0,1,0) -> 0 | BC89: Kwota raty 12 nie może być mniejsza od zera
A90: =$A$3 -> 9 | C90: 56. Telefon | P90: 57. E-mail
A91: =$A$71 -> 21 | AY91: 87 | AZ91: 9 | BA91: 54 | BB91: =IF(I87=AA86,0,1) -> 0 | BC91: ="Wypełniono "&AA86&" zał. ZDL-1, a w polu 54 wpisano "&SUM(I87)&"." -> Wypełniono 0 zał. ZDL-1, a w polu 54 wpisano 0.
A92: =$A$3 -> 9 | C92: 58. Inne (np. określenie zdarzenia powodującego obowiązek złożenia deklaracji) | AY92: 87 | AZ92: 21 | BA92: 57 | BB92: =IF(U87=AA87,0,1) -> 0 | BC92: ="Wypełniono "&AA87&" zał. ZDL-2, a w polu 55 wpisano "&SUM(U87)&"." -> Wypełniono 0 zał. ZDL-2, a w polu 55 wpisano 0.
A93: =$A$6*2 -> 33
A94: =$A$4 -> 4.5
A95: =$A$7 -> 16.5 | B95: H. PODPIS PODATNIKA I OSÓB REPREZENTUJĄCYCH PODATNIKA
A96: =$A$7 -> 16.5 | B96: H.1. PODPIS PODATNIKA
A97: =$A$3 -> 9 | C97: 59. Pierwsze imię | P97: 60. Nazwisko
A98: =$A$71 -> 21 | AY98: 98 | AZ98: 3 | BA98: 59 - 61 | BB98: =IF(AND(LEN(K35&P35)>0,LEN(C98&P98)),1,0) -> 0 | BC98: Pola 59 - 62 wypełniają wyłącznie osoby fizyczne.
A99: =$A$3 -> 9 | C99: 61. Data wypełnienia (dzień - miesiąc - rok) | P99: 62. Podpis podatnika | AY99: 103 | AZ99: 3 | BA99: 63 - 69 | BB99: =IF(LEN(C98&P98&C103&P103&C107&P107)=0,1,0) -> 1 | BC99: Brak informacji o osobach reprezentujących podatnika
A100: =$A$71 -> 21 | P100: =IF(BA2>0,InfoBłędy & " [ "&BA2&" ] !!!","") -> Arkusz zawiera błędy [ 17 ] !!!
A101: =$A$7 -> 16.5 | B101: H.2. PODPISY OSÓB REPREZENTUJĄCYCH PODATNIKA
A102: =$A$3 -> 9 | C102: 63. Pierwsze imię | P102: 64. Nazwisko
A103: =$A$71 -> 21
A104: =$A$3 -> 9 | C104: 65. Data wypełnienia (dzień - miesiąc - rok) | P104: 66. Podpis osoby reprezentującej podatnika
A105: =$A$71 -> 21 | P105: =IF(BA2>0,InfoBłędy & " [ "&BA2&" ] !!!","") -> Arkusz zawiera błędy [ 17 ] !!!
A106: =$A$3 -> 9 | C106: 67. Pierwsze imię | P106: 68. Nazwisko
A107: =$A$71 -> 21
A108: =$A$3 -> 9 | C108: 69. Data wypełnienia (dzień - miesiąc - rok) | P108: 70. Podpis osoby reprezentującej podatnika
A109: =$A$71 -> 21 | P109: =IF(BA2>0,InfoBłędy & " [ "&BA2&" ] !!!","") -> Arkusz zawiera błędy [ 17 ] !!!
A110: =$A$4 -> 4.5
A111: =$A$6 -> 16.5 | B111: DL-1(1) | F111: 2/3 | R111: =Wersja -> 2022.1.8.15.0.44596
A112: =$A$4 -> 4.5
A113: =$A$3 -> 9 | B113: WYPEŁNIĆ DUŻYMI, DRUKOWANYMI LITERAMI, CZARNYM LUB NIEBIESKIM KOLOREM.
A114: =$A$4 -> 4.5
A115: =$A$4 -> 4.5
A116: =$A$7 -> 16.5 | B116: I. ADNOTACJE ORGANU PODATKOWEGO
A117: =$A$3 -> 9 | C117: 71. Uwagi organu podatkowego
A118: =$A$6*5 -> 82.5
A119: 9
A120: =$A$3 -> 9
A121: 9 | B121: Objaśnienia
A122: =$A$3*2 -> 18 | B122: 1) | C122: Numer PESEL wpisują podatnicy będący osobami fizycznymi objętymi rejestrem PESEL, nieprowadzący działalności gospodarczej lub niebędący zarejestrowanymi podatnikami podatku od towarów i usług. Identyfikator podatkowy NIP wpisują pozostali podatnicy.
A123: 9 | B123: 2) | C123: Z wyjątkiem poz. 5 kwadrat 1, ilekroć jest mowa o deklaracji, rozumie się przez to również korektę deklaracji.
A124: 9 | B124: 3) | C124: Zgodnie z przepisami Ordynacji podatkowej.
A125: 9 | B125: 4) | C125: Należy podać z dokładnością do czterech miejsc po przecinku.
A126: =$A$3*2 -> 18 | B126: 5) | C126: Kwotę podatku należy obliczyć, mnożąc podstawę opodatkowania przez stawkę podatku, proporcjonalnie do liczby miesięcy, których dotyczy deklaracja.
A127: =$A$3*2 -> 18 | B127: 6) | C127: W przypadku korekty deklaracji należy wpisać sumę miesięcznych kwot podatku za miesiące nieobjęte składaną korektą deklaracji.
A128: =$A$3*2 -> 18 | B128: 7) | C128: Kwotę podatku (rat podatku) zaokrągla się do pełnych złotych, w ten sposób, że końcówki kwot wynoszące mniej niż 50 groszy pomija się, a końcówki kwot wynoszące 50 i więcej groszy podwyższa się do pełnych złotych.
A129: 9 | C129: W ostatniej racie następuje wyrównanie do kwoty zobowiązania podatkowego (poz. 41).
A130: =$A$3*2 -> 18 | C130: Obliczony w deklaracji podatek należy wpłacać w ratach proporcjonalnych do czasu trwania obowiązku podatkowego w terminach do dnia 15 każdego miesiąca.
A131: 9 | C131: W przypadku gdy kwota podatku nie przekracza 100 zł, podatek jest płatny jednorazowo w terminie płatności pierwszej raty.
A132: 9
A133: 9 | B133: Pouczenia
A134: =$A$3*2 -> 18 | C134: W przypadku niewpłacenia w obowiązujących terminach zobowiązania podatkowego lub raty podatku lub wpłacenia ich w niepełnej wysokości niniejsza deklaracja stanowi podstawę do wystawienia tytułu wykonawczego, zgodnie z przepisami ustawy o postępowaniu egzekucyjnym w administracji.
A135: 9
A136: =$A$3*2 -> 18 | C136: Za podanie nieprawdy lub zatajenie prawdy i przez to narażenie podatku na uszczuplenie grozi odpowiedzialność przewidziana w Kodeksie karnym skarbowym.
A137: =$A$6 -> 16.5
A138: 16.5
A139: 16.5
A140: 16.5
A141: 16.5
A142: 16.5
A143: 16.5
A144: 16.5
A145: 16.5
A146: 16.5
A147: 16.5
A148: 16.5
A149: 16.5
A150: 16.5
A151: 16.5
A152: 16.5
A153: 16.5
A154: 16.5
A155: 16.5
A156: 16.5
A157: 16.5
A158: 16.5
A159: 16.5
A160: =$A$6 -> 16.5 | C160: =Wersja -> 2022.1.8.15.0.44596 | V160: DL-1(1) | Z160: 3/3
A161: =$A$3 -> 9

Sheet ZDL-1
A1: 17 | B1: 2.5 | C1: =$A$1-D1 -> 11 | D1: 6 | E1: =$A$1*0.5 -> 8.5 | F1: =$A$1*0.6 -> 10.2 | G1: =$A$1 -> 17 | H1: =$A$1 -> 17 | I1: =$A$1*0.6 -> 10.2 | J1: =$A$1*0.6 -> 10.2 | K1: =$A$1 -> 17 | L1: =$A$1*0.3 -> 5.1 | M1: =$A$1*0.3 -> 5.1 | N1: =$A$1-O1 -> 11 | O1: 6
A2: 9 | B2: Załącznik nr 6
A3: =$A$2 -> 9 | B3: WYPEŁNIĆ DUŻYMI, DRUKOWANYMI LITERAMI, CZARNYM LUB NIEBIESKIM KOLOREM.
A4: 4.5
A5: =$A$2 -> 9 | B5: 1. Identyfikator podatkowy NIP/numer PESEL (niepotrzebne skreślić)1) └────┴────┴────┴────┴────┴────┴────┴────┴────┴────┴────┘ | I5: 2. Nr dokumentu
A6: 19.5
A7: =$A$2 -> 9
A8: 16.5 | B8: ZDL-1
A9: =$A$8 -> 16.5 | B9: ZAŁĄCZNIK DO DEKLARACJI NA PODATEK LEŚNY
A10: =$A$8 -> 16.5 | B10: - DANE O PRZEDMIOTACH OPODATKOWANIA PODLEGAJĄCYCH OPODATKOWANIU
A11: =$A$2 -> 9 | N11: 3. Nr załącznika
A12: =$A$6 -> 19.5 | N12: 1 | P12: =SUM(Q:Q) -> 0 | Q12: =IF(COUNTA(C23:O30,C43:O50)=0,0,1) -> 0
A13: =$A$4 -> 4.5
A14: =$A$4 -> 4.5
A15: =$A$8*1.5 -> 24.75 | B15: A. DANE PODATNIKA WSKAZANEGO W CZĘŚCI C.1 DEKLARACJI DL-1 * - dotyczy podatnika niebędącego osobą fizyczną ** - dotyczy podatnika będącego osobą fizyczną
A16: =$A$2 -> 9 | C16: 4. Nazwa pełna * / Nazwisko ** | I16: 5. Nazwa skrócona * / Pierwsze imię **
A17: =$A$6 -> 19.5
A18: =$A$4 -> 4.5
A19: =$A$8 -> 16.5 | B19: B. DANE O POSZCZEGÓLNYCH PRZEDMIOTACH OPODATKOWANIA PODLEGAJĄCYCH OPODATKOWANIU | R19: =SUMIF(P:P,"a",K:K) -> 0
A20: 16.5 | B20: B.1. LASY (z wyjątkiem lasów wchodzących w skład rezerwatów przyrody i parków narodowych) | R20: =SUMIF(P:P,"b",K:K) -> 0
A21: =$A$8*1.5 -> 24.75 | B21: Lp. | C21: Położenie (adres, w tym dzielnica) | H21: Nr księgi wieczystej (zbioru dokumentów) | I21: Nr obrębu (arkusza mapy)2) | J21: Nr działki | K21: Powierzchnia w ha3) | L21: Forma władania4)
A22: =$A$2 -> 9 | C22: a | H22: b | I22: c | J22: d | K22: e | L22: f
A23: =$A$6 -> 19.5 | B23: 1 | P23: a
A24: 19.5 | B24: 2 | P24: a
A25: 19.5 | B25: 3 | P25: a
A26: 19.5 | B26: 4 | P26: a
A27: 19.5 | B27: 5 | P27: a
A28: 19.5 | B28: 6 | P28: a
A29: 19.5 | B29: 7 | P29: a
A30: 19.5 | B30: 8 | P30: a
A31: =$A$2 -> 9
A32: =$A$2*2 -> 18 | B32: 1) | C32: Numer PESEL wpisują podatnicy będący osobami fizycznymi objętymi rejestrem PESEL, nieprowadzący działalności gospodarczej lub niebędący zarejestrowanymi podatnikami podatku od towarów i usług. Identyfikator podatkowy NIP wpisują pozostali podatnicy.
A33: =$A$2 -> 9 | B33: 2) | C33: Numer obrębu należy podać wraz z numerem arkusza mapy ewidencyjnej w przypadku, gdy działki numerowane są w ramach arkusza mapy.
A34: =$A$2 -> 9 | B34: 3) | C34: Należy podać z dokładnością do czterech miejsc po przecinku.
A35: =$A$2 -> 9 | B35: 4) | C35: Należy podać jedną z form władania: własność, użytkowanie wieczyste, posiadanie samoistne, posiadanie zależne lub posiadanie bez tytułu prawnego.
A36: =$A$8 -> 16.5 | C36: =Wersja -> 2022.1.8.15.0.44596 | N36: ZDL-1(1) | O36: 1/2
A37: =$A$2 -> 9
A38: =$A$2 -> 9 | B38: WYPEŁNIĆ DUŻYMI, DRUKOWANYMI LITERAMI, CZARNYM LUB NIEBIESKIM KOLOREM.
A39: 4.5
A40: =$A$8 -> 16.5 | B40: B.2. LASY WCHODZĄCE W SKŁAD REZERWATÓW PRZYRODY I PARKÓW NARODOWYCH
A41: =$A$8*1.5 -> 24.75 | B41: Lp. | C41: Położenie (adres, w tym dzielnica) | H41: Nr księgi wieczystej (zbioru dokumentów) | I41: Nr obrębu (arkusza mapy)2) | J41: Nr działki | K41: Powierzchnia w ha3) | L41: Forma władania4)
A42: =$A$2 -> 9 | C42: a | H42: b | I42: c | J42: d | K42: e | L42: f
A43: =$A$6 -> 19.5 | B43: 1 | P43: b
A44: 19.5 | B44: 2 | P44: b
A45: 19.5 | B45: 3 | P45: b
A46: 19.5 | B46: 4 | P46: b
A47: 19.5 | B47: 5 | P47: b
A48: 19.5 | B48: 6 | P48: b
A49: 19.5 | B49: 7 | P49: b
A50: 19.5 | B50: 8 | P50: b
A51: =$A$2 -> 9
A52: =$A$2 -> 9
A53: 9
A54: 9
A55: 9
A56: 9
A57: 9
A58: 9
A59: 9
A60: 9
A61: 9
A62: 9
A63: 9
A64: 9
A65: 9
A66: 9
A67: 9
A68: 9
A69: 9
A70: 9
A71: 9
A72: 9
A73: 9
A74: 9
A75: 9
A76: 9
A77: 9
A78: 9
A79: 9
A80: 9
A81: =$A$8 -> 16.5 | C81: ZDL-1(1) | D81: 2/2 | M81: =Wersja -> 2022.1.8.15.0.44596
A82: 9 | B82: Załącznik nr 6
A83: =$A$2 -> 9 | B83: WYPEŁNIĆ DUŻYMI, DRUKOWANYMI LITERAMI, CZARNYM LUB NIEBIESKIM KOLOREM.
A84: 4.5
A85: =$A$2 -> 9 | B85: 1. Identyfikator podatkowy NIP/numer PESEL (niepotrzebne skreślić)1) └────┴────┴────┴────┴────┴────┴────┴────┴────┴────┴────┘ | I85: 2. Nr dokumentu
A86: 19.5 | C86: =$C$6 -> 0
A87: =$A$2 -> 9
A88: 16.5 | B88: ZDL-1
A89: =$A$8 -> 16.5 | B89: ZAŁĄCZNIK DO DEKLARACJI NA PODATEK LEŚNY
A90: =$A$8 -> 16.5 | B90: - DANE O PRZEDMIOTACH OPODATKOWANIA PODLEGAJĄCYCH OPODATKOWANIU
A91: =$A$2 -> 9 | N91: 3. Nr załącznika
A92: =$A$6 -> 19.5 | N92: =N12+1 -> 2 | P92: =SUM(Q:Q) -> 0 | Q92: =IF(COUNTA(C103:O110,C123:O130)=0,0,1) -> 0
A93: =$A$4 -> 4.5
A94: =$A$4 -> 4.5
A95: =$A$8*1.5 -> 24.75 | B95: A. DANE PODATNIKA WSKAZANEGO W CZĘŚCI C.1 DEKLARACJI DL-1 * - dotyczy podatnika niebędącego osobą fizyczną ** - dotyczy podatnika będącego osobą fizyczną
A96: =$A$2 -> 9 | C96: 4. Nazwa pełna * / Nazwisko ** | I96: 5. Nazwa skrócona * / Pierwsze imię **
A97: =$A$6 -> 19.5 | C97: =""&$C$17 ->  | I97: =""&$I$17 -> 
A98: =$A$4 -> 4.5
A99: =$A$8 -> 16.5 | B99: B. DANE O POSZCZEGÓLNYCH PRZEDMIOTACH OPODATKOWANIA PODLEGAJĄCYCH OPODATKOWANIU
A100: 16.5 | B100: B.1. LASY (z wyjątkiem lasów wchodzących w skład rezerwatów przyrody i parków narodowych)
A101: =$A$8*1.5 -> 24.75 | B101: Lp. | C101: Położenie (adres, w tym dzielnica) | H101: Nr księgi wieczystej (zbioru dokumentów) | I101: Nr obrębu (arkusza mapy)2) | J101: Nr działki | K101: Powierzchnia w ha3) | L101: Forma władania5)
A102: =$A$2 -> 9 | C102: a | H102: b | I102: c | J102: d | K102: e | L102: f
A103: =$A$6 -> 19.5 | B103: 1 | P103: a
A104: 19.5 | B104: 2 | P104: a
A105: 19.5 | B105: 3 | P105: a
A106: 19.5 | B106: 4 | P106: a
A107: 19.5 | B107: 5 | P107: a
A108: 19.5 | B108: 6 | P108: a
A109: 19.5 | B109: 7 | P109: a
A110: 19.5 | B110: 8 | P110: a
A111: =$A$2 -> 9
A112: =$A$2*2 -> 18 | B112: 1) | C112: Numer PESEL wpisują podatnicy będący osobami fizycznymi objętymi rejestrem PESEL, nieprowadzący działalności gospodarczej lub niebędący zarejestrowanymi podatnikami podatku od towarów i usług. Identyfikator podatkowy NIP wpisują pozostali podatnicy.
A113: =$A$2 -> 9 | B113: 2) | C113: Numer obrębu należy podać wraz z numerem arkusza mapy ewidencyjnej w przypadku, gdy działki numerowane są w ramach arkusza mapy.
A114: =$A$2 -> 9 | B114: 3) | C114: Należy podać z dokładnością do czterech miejsc po przecinku.
A115: =$A$2 -> 9 | B115: 4) | C115: Należy podać jedną z form władania: własność, użytkowanie wieczyste, posiadanie samoistne, posiadanie zależne lub posiadanie bez tytułu prawnego.
A116: =$A$8 -> 16.5 | C116: =Wersja -> 2022.1.8.15.0.44596 | N116: ZDL-1(1) | O116: 1/2
A117: =$A$2 -> 9
A118: =$A$2 -> 9 | B118: WYPEŁNIĆ DUŻYMI, DRUKOWANYMI LITERAMI, CZARNYM LUB NIEBIESKIM KOLOREM.
A119: 4.5
A120: =$A$8 -> 16.5 | B120: B.2. LASY WCHODZĄCE W SKŁAD REZERWATÓW PRZYRODY I PARKÓW NARODOWYCH
A121: =$A$8*1.5 -> 24.75 | B121: Lp. | C121: Położenie (adres, w tym dzielnica) | H121: Nr księgi wieczystej (zbioru dokumentów) | I121: Nr obrębu (arkusza mapy)2) | J121: Nr działki | K121: Powierzchnia w ha3) | L121: Forma władania5)
A122: =$A$2 -> 9 | C122: a | H122: b | I122: c | J122: d | K122: e | L122: f
A123: =$A$6 -> 19.5 | B123: 1 | P123: b
A124: 19.5 | B124: 2 | P124: b
A125: 19.5 | B125: 3 | P125: b
A126: 19.5 | B126: 4 | P126: b
A127: 19.5 | B127: 5 | P127: b
A128: 19.5 | B128: 6 | P128: b
A129: 19.5 | B129: 7 | P129: b
A130: 19.5 | B130: 8 | P130: b
A131: =$A$2 -> 9
A132: 9
A133: 9
A134: 9
A135: 9
A136: 9
A137: 9
A138: 9
A139: 9
A140: 9
A141: 9
A142: 9
A143: 9
A144: 9
A145: 9
A146: 9
A147: 9
A148: 9
A149: 9
A150: 9
A151: 9
A152: 9
A153: 9
A154: 9
A155: 9
A156: 9
A157: 9
A158: 9
A159: 9
A160: 9
A161: =$A$8 -> 16.5 | C161: ZDL-1(1) | D161: 2/2 | M161: =Wersja -> 2022.1.8.15.0.44596
A162: 9 | B162: Załącznik nr 6
A163: =$A$2 -> 9 | B163: WYPEŁNIĆ DUŻYMI, DRUKOWANYMI LITERAMI, CZARNYM LUB NIEBIESKIM KOLOREM.
A164: 4.5
A165: =$A$2 -> 9 | B165: 1. Identyfikator podatkowy NIP/numer PESEL (niepotrzebne skreślić)1) └────┴────┴────┴────┴────┴────┴────┴────┴────┴────┴────┘ | I165: 2. Nr dokumentu
A166: 19.5 | C166: =$C$6 -> 0
A167: =$A$2 -> 9
A168: 16.5 | B168: ZDL-1
A169: =$A$8 -> 16.5 | B169: ZAŁĄCZNIK DO DEKLARACJI NA PODATEK LEŚNY
A170: =$A$8 -> 16.5 | B170: - DANE O PRZEDMIOTACH OPODATKOWANIA PODLEGAJĄCYCH OPODATKOWANIU
A171: =$A$2 -> 9 | N171: 3. Nr załącznika
A172: =$A$6 -> 19.5 | N172: =N92+1 -> 3 | P172: =SUM(Q:Q) -> 0 | Q172: =IF(COUNTA(C183:O190,C203:O210)=0,0,1) -> 0
A173: =$A$4 -> 4.5
A174: =$A$4 -> 4.5
A175: =$A$8*1.5 -> 24.75 | B175: A. DANE PODATNIKA WSKAZANEGO W CZĘŚCI C.1 DEKLARACJI DL-1 * - dotyczy podatnika niebędącego osobą fizyczną ** - dotyczy podatnika będącego osobą fizyczną
A176: =$A$2 -> 9 | C176: 4. Nazwa pełna * / Nazwisko ** | I176: 5. Nazwa skrócona * / Pierwsze imię **
A177: =$A$6 -> 19.5 | C177: =""&$C$17 ->  | I177: =""&$I$17 -> 
A178: =$A$4 -> 4.5
A179: =$A$8 -> 16.5 | B179: B. DANE O POSZCZEGÓLNYCH PRZEDMIOTACH OPODATKOWANIA PODLEGAJĄCYCH OPODATKOWANIU
A180: 16.5 | B180: B.1. LASY (z wyjątkiem lasów wchodzących w skład rezerwatów przyrody i parków narodowych)
A181: =$A$8*1.5 -> 24.75 | B181: Lp. | C181: Położenie (adres, w tym dzielnica) | H181: Nr księgi wieczystej (zbioru dokumentów) | I181: Nr obrębu (arkusza mapy)2) | J181: Nr działki | K181: Powierzchnia w ha3) | L181: Forma władania5)
A182: =$A$2 -> 9 | C182: a | H182: b | I182: c | J182: d | K182: e | L182: f
A183: =$A$6 -> 19.5 | B183: 1 | P183: a
A184: 19.5 | B184: 2 | P184: a
A185: 19.5 | B185: 3 | P185: a
A186: 19.5 | B186: 4 | P186: a
A187: 19.5 | B187: 5 | P187: a
A188: 19.5 | B188: 6 | P188: a
A189: 19.5 | B189: 7 | P189: a
A190: 19.5 | B190: 8 | P190: a
A191: =$A$2 -> 9
A192: =$A$2*2 -> 18 | B192: 1) | C192: Numer PESEL wpisują podatnicy będący osobami fizycznymi objętymi rejestrem PESEL, nieprowadzący działalności gospodarczej lub niebędący zarejestrowanymi podatnikami podatku od towarów i usług. Identyfikator podatkowy NIP wpisują pozostali podatnicy.
A193: =$A$2 -> 9 | B193: 2) | C193: Numer obrębu należy podać wraz z numerem arkusza mapy ewidencyjnej w przypadku, gdy działki numerowane są w ramach arkusza mapy.
A194: =$A$2 -> 9 | B194: 3) | C194: Należy podać z dokładnością do czterech miejsc po przecinku.
A195: =$A$2 -> 9 | B195: 4) | C195: Należy podać jedną z form władania: własność, użytkowanie wieczyste, posiadanie samoistne, posiadanie zależne lub posiadanie bez tytułu prawnego.
A196: =$A$8 -> 16.5 | C196: =Wersja -> 2022.1.8.15.0.44596 | N196: ZDL-1(1) | O196: 1/2
A197: =$A$2 -> 9
A198: =$A$2 -> 9 | B198: WYPEŁNIĆ DUŻYMI, DRUKOWANYMI LITERAMI, CZARNYM LUB NIEBIESKIM KOLOREM.
A199: 4.5
A200: =$A$8 -> 16.5 | B200: B.2. LASY WCHODZĄCE W SKŁAD REZERWATÓW PRZYRODY I PARKÓW NARODOWYCH
... 2601 more rows

Sheet ZDL-2
A1: 17 | B1: 2.5 | C1: =$A$1-D1 -> 11 | D1: 6 | E1: =$A$1*0.5 -> 8.5 | F1: =$A$1*0.6 -> 10.2 | G1: =$A$1 -> 17 | H1: =$A$1 -> 17 | I1: =$A$1*0.6 -> 10.2 | J1: =$A$1*0.6 -> 10.2 | K1: =$A$1 -> 17 | L1: =$A$1*0.3 -> 5.1 | M1: =$A$1*0.3 -> 5.1 | N1: =$A$1-O1 -> 11 | O1: 6
A2: 9 | B2: Załącznik nr 7
A3: =$A$2 -> 9 | B3: WYPEŁNIĆ DUŻYMI, DRUKOWANYMI LITERAMI, CZARNYM LUB NIEBIESKIM KOLOREM.
A4: 4.5
A5: =$A$2 -> 9 | B5: 1. Identyfikator podatkowy NIP/numer PESEL (niepotrzebne skreślić)1) └────┴────┴────┴────┴────┴────┴────┴────┴────┴────┴────┘ | I5: 2. Nr dokumentu
A6: 19.5
A7: =$A$2 -> 9
A8: 16.5 | B8: ZDL-2
A9: =$A$8 -> 16.5 | B9: ZAŁĄCZNIK DO DEKLARACJI NA PODATEK LEŚNY
A10: =$A$8 -> 16.5 | B10: - DANE O PRZEDMIOTACH OPODATKOWANIA ZWOLNIONYCH Z OPODATKOWANIA
A11: =$A$2 -> 9 | N11: 3. Nr załącznika └────┴────┴────┘
A12: =$A$6 -> 19.5 | N12: 1 | P12: =SUM(Q:Q) -> 0 | Q12: =IF(COUNTA(C23:O30,C43:O50)=0,0,1) -> 0
A13: =$A$4 -> 4.5
A14: =$A$4 -> 4.5
A15: =$A$8*1.5 -> 24.75 | B15: A. DANE PODATNIKA WSKAZANEGO W CZĘŚCI C.1 DEKLARACJI DL-1 * - dotyczy podatnika niebędącego osobą fizyczną ** - dotyczy podatnika będącego osobą fizyczną
A16: =$A$2 -> 9 | C16: 4. Nazwa pełna * / Nazwisko ** | I16: 5. Nazwa skrócona * / Pierwsze imię **
A17: =$A$6 -> 19.5
A18: =$A$4 -> 4.5
A19: =$A$8 -> 16.5 | B19: B. DANE O POSZCZEGÓLNYCH PRZEDMIOTACH OPODATKOWANIA ZWOLNIONYCH Z OPODATKOWANIA
A20: 16.5 | B20: B.1. LASY (z wyjątkiem lasów wchodzących w skład rezerwatów przyrody i parków narodowych)
A21: =$A$8*1.5 -> 24.75 | B21: Lp. | C21: Położenie (adres, w tym dzielnica) | H21: Nr księgi wieczystej (zbioru dokumentów) | I21: Nr obrębu (arkusza mapy)2) | J21: Nr działki | K21: Powierzchnia w/ ha3) | L21: Podstawa prawna zwolnienia4)
A22: =$A$2 -> 9 | C22: a | H22: b | I22: c | J22: d | K22: e | L22: f
A23: =$A$6 -> 19.5 | B23: 1
A24: 19.5 | B24: 2
A25: 19.5 | B25: 3
A26: 19.5 | B26: 4
A27: 19.5 | B27: 5
A28: 19.5 | B28: 6
A29: 19.5 | B29: 7
A30: 19.5 | B30: 8
A31: =$A$2 -> 9
A32: =$A$2*2 -> 18 | B32: 1) | C32: Numer PESEL wpisują podatnicy będący osobami fizycznymi objętymi rejestrem PESEL, nieprowadzący działalności gospodarczej lub niebędący zarejestrowanymi podatnikami podatku od towarów i usług. Identyfikator podatkowy NIP wpisują pozostali podatnicy.
A33: =$A$2 -> 9 | B33: 2) | C33: Numer obrębu należy podać wraz z numerem arkusza mapy ewidencyjnej w przypadku, gdy działki numerowane są w ramach arkusza mapy.
A34: =$A$2 -> 9 | B34: 3) | C34: Należy podać z dokładnością do czterech miejsc po przecinku.
A35: =$A$2 -> 9 | B35: 4) | C35: Należy podać jednostkę redakcyjną z ustawy lub uchwały rady gminy.
A36: =$A$8 -> 16.5 | C36: =Wersja -> 2022.1.8.15.0.44596 | N36: ZDL-2(1) | O36: 1/2
A37: =$A$2 -> 9
A38: =$A$2 -> 9 | B38: WYPEŁNIĆ DUŻYMI, DRUKOWANYMI LITERAMI, CZARNYM LUB NIEBIESKIM KOLOREM.
A39: 4.5
A40: =$A$8 -> 16.5 | B40: B.2. LASY WCHODZĄCE W SKŁAD REZERWATÓW PRZYRODY I PARKÓW NARODOWYCH
A41: =$A$8*1.5 -> 24.75 | B41: Lp. | C41: Położenie (adres, w tym dzielnica) | H41: Nr księgi wieczystej (zbioru dokumentów) | I41: Nr obrębu (arkusza mapy)2) | J41: Nr działki | K41: Powierzchnia w/ ha3) | L41: Podstawa prawna zwolnienia4)
A42: =$A$2 -> 9 | C42: a | H42: b | I42: c | J42: d | K42: e | L42: f
A43: =$A$6 -> 19.5 | B43: 1
A44: 19.5 | B44: 2
A45: 19.5 | B45: 3
A46: 19.5 | B46: 4
A47: 19.5 | B47: 5
A48: 19.5 | B48: 6
A49: 19.5 | B49: 7
A50: 19.5 | B50: 8
A51: =$A$2 -> 9
A52: =$A$2 -> 9
A53: 9
A54: 9
A55: 9
A56: 9
A57: 9
A58: 9
A59: 9
A60: 9
A61: 9
A62: 9
A63: 9
A64: 9
A65: 9
A66: 9
A67: 9
A68: 9
A69: 9
A70: 9
A71: 9
A72: 9
A73: 9
A74: 9
A75: 9
A76: 9
A77: 9
A78: 9
A79: 9
A80: 9
A81: =$A$8 -> 16.5 | C81: ZDL-2(1) | D81: 2/2 | M81: =Wersja -> 2022.1.8.15.0.44596
A82: 9 | B82: Załącznik nr 6
A83: =$A$2 -> 9 | B83: WYPEŁNIĆ DUŻYMI, DRUKOWANYMI LITERAMI, CZARNYM LUB NIEBIESKIM KOLOREM.
A84: 4.5
A85: =$A$2 -> 9 | B85: 1. Identyfikator podatkowy NIP/numer PESEL (niepotrzebne skreślić)1) └────┴────┴────┴────┴────┴────┴────┴────┴────┴────┴────┘ | I85: 2. Nr dokumentu
A86: 19.5 | C86: =C6 -> 0
A87: =$A$2 -> 9
A88: 16.5 | B88: ZDL-2
A89: =$A$8 -> 16.5 | B89: ZAŁĄCZNIK DO DEKLARACJI NA PODATEK LEŚNY
A90: =$A$8 -> 16.5 | B90: - DANE O PRZEDMIOTACH OPODATKOWANIA ZWOLNIONYCH Z OPODATKOWANIA
A91: =$A$2 -> 9 | N91: 3. Nr załącznika
A92: =$A$6 -> 19.5 | N92: =N12+1 -> 2 | Q92: =IF(COUNTA(C103:O110,C123:O130)=0,0,1) -> 0
A93: =$A$4 -> 4.5
A94: =$A$4 -> 4.5
A95: =$A$8*1.5 -> 24.75 | B95: A. DANE PODATNIKA WSKAZANEGO W CZĘŚCI C.1 DEKLARACJI DL-1 * - dotyczy podatnika niebędącego osobą fizyczną ** - dotyczy podatnika będącego osobą fizyczną
A96: =$A$2 -> 9 | C96: 4. Nazwa pełna * / Nazwisko ** | I96: 5. Nazwa skrócona * / Pierwsze imię **
A97: =$A$6 -> 19.5 | C97: =""&$C$17 ->  | I97: =""&$I$17 -> 
A98: =$A$4 -> 4.5
A99: =$A$8 -> 16.5 | B99: B. DANE O POSZCZEGÓLNYCH PRZEDMIOTACH OPODATKOWANIA ZWOLNIONYCH Z OPODATKOWANIA
A100: 16.5 | B100: B.1. LASY (z wyjątkiem lasów wchodzących w skład rezerwatów przyrody i parków narodowych)
A101: =$A$8*1.5 -> 24.75 | B101: Lp. | C101: Położenie (adres, w tym dzielnica) | H101: Nr księgi wieczystej (zbioru dokumentów) | I101: Nr obrębu (arkusza mapy)2) | J101: Nr działki | K101: Powierzchnia w/ ha3) | L101: Podstawa prawna zwolnienia4)
A102: =$A$2 -> 9 | C102: a | H102: b | I102: c | J102: d | K102: e | L102: f
A103: =$A$6 -> 19.5 | B103: 1
A104: 19.5 | B104: 2
A105: 19.5 | B105: 3
A106: 19.5 | B106: 4
A107: 19.5 | B107: 5
A108: 19.5 | B108: 6
A109: 19.5 | B109: 7
A110: 19.5 | B110: 8
A111: =$A$2 -> 9
A112: =$A$2*2 -> 18 | B112: 1) | C112: Numer PESEL wpisują podatnicy będący osobami fizycznymi objętymi rejestrem PESEL, nieprowadzący działalności gospodarczej lub niebędący zarejestrowanymi podatnikami podatku od towarów i usług. Identyfikator podatkowy NIP wpisują pozostali podatnicy.
A113: =$A$2 -> 9 | B113: 2) | C113: Numer obrębu należy podać wraz z numerem arkusza mapy ewidencyjnej w przypadku, gdy działki numerowane są w ramach arkusza mapy.
A114: =$A$2 -> 9 | B114: 3) | C114: Należy podać z dokładnością do czterech miejsc po przecinku.
A115: =$A$2 -> 9 | B115: 4) | C115: Należy podać jednostkę redakcyjną z ustawy lub uchwały rady gminy.
A116: =$A$8 -> 16.5 | C116: =Wersja -> 2022.1.8.15.0.44596 | N116: ZDL-2(1) | O116: 1/2
A117: =$A$2 -> 9
A118: =$A$2 -> 9 | B118: WYPEŁNIĆ DUŻYMI, DRUKOWANYMI LITERAMI, CZARNYM LUB NIEBIESKIM KOLOREM.
A119: 4.5
A120: =$A$8 -> 16.5 | B120: B.2. LASY WCHODZĄCE W SKŁAD REZERWATÓW PRZYRODY I PARKÓW NARODOWYCH
A121: =$A$8*1.5 -> 24.75 | B121: Lp. | C121: Położenie (adres, w tym dzielnica) | H121: Nr księgi wieczystej (zbioru dokumentów) | I121: Nr obrębu (arkusza mapy)2) | J121: Nr działki | K121: Powierzchnia w/ ha3) | L121: Podstawa prawna zwolnienia4)
A122: =$A$2 -> 9 | C122: a | H122: b | I122: c | J122: d | K122: e | L122: f
A123: =$A$6 -> 19.5 | B123: 1
A124: 19.5 | B124: 2
A125: 19.5 | B125: 3
A126: 19.5 | B126: 4
A127: 19.5 | B127: 5
A128: 19.5 | B128: 6
A129: 19.5 | B129: 7
A130: 19.5 | B130: 8
A131: =$A$2 -> 9
A132: 9
A133: 9
A134: 9
A135: 9
A136: 9
A137: 9
A138: 9
A139: 9
A140: 9
A141: 9
A142: 9
A143: 9
A144: 9
A145: 9
A146: 9
A147: 9
A148: 9
A149: 9
A150: 9
A151: 9
A152: 9
A153: 9
A154: 9
A155: 9
A156: 9
A157: 9
A158: 9
A159: 9
A160: 9
A161: =$A$8 -> 16.5 | C161: ZDL-2(1) | D161: 2/2 | M161: =Wersja -> 2022.1.8.15.0.44596
A162: 9 | B162: Załącznik nr 6
A163: =$A$2 -> 9 | B163: WYPEŁNIĆ DUŻYMI, DRUKOWANYMI LITERAMI, CZARNYM LUB NIEBIESKIM KOLOREM.
A164: 4.5
A165: =$A$2 -> 9 | B165: 1. Identyfikator podatkowy NIP/numer PESEL (niepotrzebne skreślić)1) └────┴────┴────┴────┴────┴────┴────┴────┴────┴────┴────┘ | I165: 2. Nr dokumentu
A166: 19.5 | C166: =C86 -> 0
A167: =$A$2 -> 9
A168: 16.5 | B168: ZDL-2
A169: =$A$8 -> 16.5 | B169: ZAŁĄCZNIK DO DEKLARACJI NA PODATEK LEŚNY
A170: =$A$8 -> 16.5 | B170: - DANE O PRZEDMIOTACH OPODATKOWANIA ZWOLNIONYCH Z OPODATKOWANIA
A171: =$A$2 -> 9 | N171: 3. Nr załącznika
A172: =$A$6 -> 19.5 | N172: =N92+1 -> 3 | Q172: =IF(COUNTA(C183:O190,C203:O210)=0,0,1) -> 0
A173: =$A$4 -> 4.5
A174: 4.5
A175: =$A$8*1.5 -> 24.75 | B175: A. DANE PODATNIKA WSKAZANEGO W CZĘŚCI C.1 DEKLARACJI DL-1 * - dotyczy podatnika niebędącego osobą fizyczną ** - dotyczy podatnika będącego osobą fizyczną
A176: =$A$2 -> 9 | C176: 4. Nazwa pełna * / Nazwisko ** | I176: 5. Nazwa skrócona * / Pierwsze imię **
A177: =$A$6 -> 19.5 | C177: =""&$C$17 ->  | I177: =""&$I$17 -> 
A178: =$A$4 -> 4.5
A179: =$A$8 -> 16.5 | B179: B. DANE O POSZCZEGÓLNYCH PRZEDMIOTACH OPODATKOWANIA ZWOLNIONYCH Z OPODATKOWANIA
A180: 16.5 | B180: B.1. LASY (z wyjątkiem lasów wchodzących w skład rezerwatów przyrody i parków narodowych)
A181: =$A$8*1.5 -> 24.75 | B181: Lp. | C181: Położenie (adres, w tym dzielnica) | H181: Nr księgi wieczystej (zbioru dokumentów) | I181: Nr obrębu (arkusza mapy)2) | J181: Nr działki | K181: Powierzchnia w/ ha3) | L181: Podstawa prawna zwolnienia4)
A182: =$A$2 -> 9 | C182: a | H182: b | I182: c | J182: d | K182: e | L182: f
A183: =$A$6 -> 19.5 | B183: 1
A184: 19.5 | B184: 2
A185: 19.5 | B185: 3
A186: 19.5 | B186: 4
A187: 19.5 | B187: 5
A188: 19.5 | B188: 6
A189: 19.5 | B189: 7
A190: 19.5 | B190: 8
A191: =$A$2 -> 9
A192: =$A$2*2 -> 18 | B192: 1) | C192: Numer PESEL wpisują podatnicy będący osobami fizycznymi objętymi rejestrem PESEL, nieprowadzący działalności gospodarczej lub niebędący zarejestrowanymi podatnikami podatku od towarów i usług. Identyfikator podatkowy NIP wpisują pozostali podatnicy.
A193: =$A$2 -> 9 | B193: 2) | C193: Numer obrębu należy podać wraz z numerem arkusza mapy ewidencyjnej w przypadku, gdy działki numerowane są w ramach arkusza mapy.
A194: 9 | B194: 3) | C194: Należy podać z dokładnością do czterech miejsc po przecinku.
A195: 9 | B195: 4) | C195: Należy podać jednostkę redakcyjną z ustawy lub uchwały rady gminy.
A196: =$A$8 -> 16.5 | C196: =Wersja -> 2022.1.8.15.0.44596 | N196: ZDL-2(1) | O196: 1/2
A197: =$A$2 -> 9
A198: 9 | B198: WYPEŁNIĆ DUŻYMI, DRUKOWANYMI LITERAMI, CZARNYM LUB NIEBIESKIM KOLOREM.
A199: 4.5
A200: =$A$8 -> 16.5 | B200: B.2. LASY WCHODZĄCE W SKŁAD REZERWATÓW PRZYRODY I PARKÓW NARODOWYCH
... 601 more rows

Sheet Grunty (hidden)

Sheet Budynki i budowle (hidden)
B1: 2) Numer obrębu należy podać wraz z numerem arkusza mapy ewidencyjnej w przypadku, gdy działki numerowane są w ramach arkusza mapy. | K1: =COUNTA(A:A)+4 -> 5
B2: 4) Należy podać stawkę właściwą dla rodzaju przedmiotu opodatkowania zgodną z uchwałą rady gminy. | N2: Suma powierzchni budynków | U2: Suma wartości budowli
B3: 5) Należy podać jedną z form władania: własność, użytkowanie wieczyste, posiadanie samoistne, posiadanie zależne lub posiadanie bez tytułu prawnego. | N3: 0.85 | O3: 24.35 | P3: 0.1 | Q3: 11.88 | R3: 5.21 | S3: 6.69 | T3: =SUM(T4:T5) -> 0 | U3: 0.5 | V3: 2 | W3: =SUM(W4:W5) -> 0
A4: L.p. | B4: Nazwa budowli | C4: Nr inwentarzowy | D4: Położenie (adres, w tym dzielnica) | E4: Nr księgi wieczystej (zbioru dokumentów) | F4: Nr obrębu (arkusza mapy)2) | G4: Nr działki | H4: Powierzchnia użytkowa w m2 (budynki) | I4: Stawka Podatku4) | J4: Forma władania5) | K4: Podstawa prawna zwolnienia | M4: przedmioty opodatkowne | N4: =SUMIFS(H:H,I:I,N3,K:K,"") -> 0 | O4: =SUMIFS(H:H,I:I,O3,K:K,"") -> 0 | P4: =SUMIFS(H:H,I:I,P3,K:K,"") -> 0 | Q4: =SUMIFS(H:H,I:I,Q3,K:K,"") -> 0 | R4: =SUMIFS(H:H,I:I,R3,K:K,"") -> 0 | S4: =SUMIFS(H:H,I:I,S3,K:K,"") -> 0 | T4: =SUM(N4:S4) -> 0 | U4: =SUMIFS(H:H,I:I,U3,K:K,"") -> 0 | V4: =SUMIFS(H:H,I:I,V3,K:K,"") -> 0 | W4: =SUM(U4:V4) -> 0
B5: wypełnić wyłącznie dla budowli | E5: wypełnić wyłącznie dla budynków | H5: Wartość w zł (budowle) | M5: przedmioty zwolnione | N5: =SUMIFS(H:H,I:I,N3)-N4 -> 0 | O5: =SUMIFS(H:H,I:I,O3)-O4 -> 0 | P5: =SUMIFS(H:H,I:I,P3)-P4 -> 0 | Q5: =SUMIFS(H:H,I:I,Q3)-Q4 -> 0 | R5: =SUMIFS(H:H,I:I,R3)-R4 -> 0 | S5: =SUMIFS(H:H,I:I,S3)-S4 -> 0 | T5: =SUM(N5:S5) -> 0 | U5: =SUMIFS(H:H,I:I,U3)-U4 -> 0 | V5: =SUMIFS(H:H,I:I,V3)-V4 -> 0 | W5: =SUM(U5:V5) -> 0

Sheet Dane (hidden)
A1: Nazwa komórki | B1: Wartość | C1: Wartość | E1: Dane | G1: DN-1 | H1: 1 | I1: 5 | J1: DN-1 | K1: =COUNTA(J:J)+1 -> 87 | L1: ZDN-1 | M1: =COUNTA(L:L)+1 -> 187 | N1: ZDN-2 | O1: =COUNTA(N:N)+1 -> 187 | P1: DR-1 | Q1: =COUNTA(P:P)+1 -> 89 | R1: ZDR-1 | S1: =COUNTA(R:R)+1 -> 147 | T1: ZDR-2 | U1: =COUNTA(T:T)+1 -> 47 | V1: DL-1 | W1: =COUNTA(V:V)+1 -> 69 | X1: ZDL-1 | Y1: =COUNTA(X:X)+1 -> 147 | Z1: ZDL-2 | AA1: =COUNTA(Z:Z)+1 -> 47 | AC1: 2 | AE1: 2 | AG1: 2 | AJ1: rodzaj użytku | AK1: Forma władania | AM1: Stawki | AN1: 2022 | AO1: 2020 | AP1: =AO1+1 -> 2021 | AQ1: =AP1+1 -> 2022 | AR1: 2023 | AS1: 2024 | AU1: suma ZDN-1 | AX1: pesel | AY1: nip | AZ1: regon9 | BC1: Klasa uż. | BE1: Poz. do sumy | BG1: SumaPow. ZD* | BI1: OznaczenieUżytku | BJ1: l.p. | BK1: Klasa uż. | BL1: (1, 63) | BM1: Załącznik | BN1: Zwolnienie | BO1: Suma CSWDE | BP1: Suma ZD?-1 i ZD?-2 | BQ1: Poz. do sumy | BR1: Warstwa | BS1: WierszOF | BT1: KolumnaOF | BU1: WierszOP | BV1: KolumnaOP | CE1: OznaczenieUżytku | CF1: Poz. do sumy | CG1: wiersz | CH1: kolumna | CI1: SumaPow. CSWDE | CJ1: SumaPow. ZD* | CU1: Nazwa miejscowości | CV1: Kod | CW1: Gmina | CX1: Powiat (miasto na prawach powiatu) | CY1: Województwo | DA1: Zwolnienia ZDN-2 | DB1: Zwolnienia ZDR-1 ZDR-2 | DC1: Zwolnienia ZDL-2 | DE1: Podmiot zwolniony | DF1: Nieruchomość | DG1: Rola | DH1: Las | DI1: stawka
A2: NIP | E2: P:\Podatki\Druczki\KopieDeklaracji\KopieDeklaracji2022\ | G2: ZDN-1 | H2: 2 | I2: ='DN-1'!AA204 -> 0 | J2: w | K2: k | L2: w | M2: k | N2: w | O2: k | P2: w | Q2: k | R2: w | S2: k | T2: w | U2: k | V2: w | W2: k | X2: w | Y2: k | Z2: w | AA2: k | AB2: w | AC2: k | AD2: w | AE2: k | AF2: w | AG2: k | AJ2: łąki trwałe | AK2: własność | AL2: 2 | AM2: grunty działalność | AN2: =HLOOKUP($AN$1,Stawki,$AL2,FALSE) -> 0.99 | AO2: 0.92 | AP2: 0.92 | AQ2: 0.99 | AR2: 11 | AS2: 11 | AT2: ="a."&AN2 -> a.0,99 | AU2: =SUMIF('ZDN-1'!P:P,Dane!AT2,'ZDN-1'!K:K) -> 0 | AX2: 1 | AY2: 6 | AZ2: 8 | BC2: Ls | BD2: lasy | BI2: Ls | BJ2: =ROW() -> 2 | BK2: Ls | BL2: lasy | BM2: ZDL-1 | BN2: brak | BO2: =SUMIF(Grunty!H:H,BI2,Grunty!I:I) -> 0 | BQ2: 31 | BR2: 5 | CE2: RI | CF2: 1 | CG2: 70 | CH2: 6 | CI2: =SUMIF(BQ:BQ,CF2,BO:BO) -> 0 | CJ2: =SUMIF(BQ:BQ,CF2,BP:BP) -> 0 | CU2: Bażany | CW2: Kluczbork | CX2: kluczborski | CY2: opolskie | DE2: Centrum Łukasiewicz i instytuty działające w ramach Sieci Badawczej Łukasiewicz | DF2: Art.7 ust.2 pkt 5b | DG2: Art.12 ust.2 pkt 8 | DH2: Art.7 ust.2 pkt 8 | DI2: 0.45
A3: Nazwa i siedziba org.pod. | E3: Kliknij obok na guzik [Zmień] i wybierz właściwy katalog z plikiem *.txt | G3: ZDN-2 | H3: 3 | I3: ='DN-1'!AA205 -> 0 | J3: 21 | K3: 11 | L3: 17 | M3: 3 | N3: 17 | O3: 3 | P3: 21 | Q3: 11 | R3: 17 | S3: 3 | T3: 17 | U3: 3 | V3: 21 | W3: 11 | X3: 17 | Y3: 3 | Z3: 17 | AA3: 3 | AJ3: orne | AK3: użytkowanie wieczyste | AL3: =AL2+1 -> 3 | AM3: grunty jeziora | AN3: 5.13 | AO3: 4.79 | AP3: 4.79 | AQ3: 5.13 | AR3: 22 | AS3: 22 | AT3: ="a."&AN3 -> a.5,13 | AU3: =SUMIF('ZDN-1'!P:P,Dane!AT3,'ZDN-1'!K:K) -> 0 | AX3: 3 | AY3: 5 | AZ3: 9 | BC3: B | BD3: nieruchomość | BI3: Ls-LsII | BJ3: =ROW() -> 3 | BK3: Ls | BL3: lasy | BM3: ZDL-1 | BN3: brak | BO3: =SUMIF(Grunty!H:H,BI3,Grunty!I:I) -> 0 | BQ3: 31 | BR3: 5 | CE3: RII | CF3: 2 | CG3: 70 | CH3: 8 | CI3: 0 | CJ3: =SUMIF(BQ:BQ,CF3,BP:BP) -> 0 | CU3: Bąków | CV3: 46-233 | CW3: Kluczbork | CX3: kluczborski | CY3: opolskie | DA3: Art.7 ust.1 pkt.1 lit.a uopiol | DB3: Art.12 ust.1 pkt.1 uopr | DC3: Art.7 ust.1 pkt.1 uopl | DE3: Dom dziecka | DF3: §2 uchwły nr XII/104/03 z 03.07.2003r. | DG3: §3 uchwły nr XII/104/03 z 03.07.2003r. | DH3: §4 uchwły nr XII/104/03 z 03.07.2003r. | DI3: 0.45
A4: cel złożenia form. 1 | B4: × | G4: DR-1 | H4: 4 | I4: 4 | J4: 21 | K4: 11 | L4: 17 | M4: 9 | N4: 17 | O4: 9 | P4: 21 | Q4: 11 | R4: 17 | S4: 9 | T4: 17 | U4: 9 | V4: 21 | W4: 11 | X4: 17 | Y4: 9 | Z4: 17 | AA4: 9 | AJ4: pastwiska | AK4: posiadanie samoistne | AL4: =AL3+1 -> 4 | AM4: grunty pozostałe | AN4: 0.49 | AO4: 0.45 | AP4: 0.45 | AQ4: 0.49 | AR4: 33 | AS4: 33 | AT4: a.0,49 | AU4: =SUMIF('ZDN-1'!P:P,Dane!AT4,'ZDN-1'!K:K) -> 0 | AX4: 7 | AY4: 7 | AZ4: 2 | BC4: Ba | BD4: nieruchomość | BI4: Ls-LsIII | BJ4: =ROW() -> 4 | BK4: Ls | BL4: lasy | BM4: ZDL-1 | BN4: brak | BO4: =SUMIF(Grunty!H:H,BI4,Grunty!I:I) -> 0 | BQ4: 31 | BR4: 5 | CE4: RIIIa | CF4: 3 | CG4: 70 | CH4: 10 | CI4: 0 | CJ4: 0 | CU4: Biadacz | CW4: Kluczbork | CX4: kluczborski | CY4: opolskie | DA4: Art.7 ust.1 pkt.1 lit.b uopiol | DB4: Art.12 ust.1 pkt.2 uopr | DC4: Art.7 ust.1 pkt.2 uopl | DE4: federacje podmiotów systemu szkolnictwa wyższego i nauki | DF4: Art.7 ust.2 pkt 1a | DG4: Art.12 ust.2 pkt 1a | DH4: Art.7 ust.2 pkt 1a | DI4: 0.45
A5: cel złożenia form. 2 | G5: ZDR-1 | H5: 5 | I5: ='DR-1'!AA132 -> 0 | J5: 21 | K5: 16 | L5: 23 | M5: 3 | N5: 23 | O5: 3 | P5: 21 | Q5: 16 | R5: 22 | S5: 3 | T5: 22 | U5: 3 | V5: 21 | W5: 16 | X5: 23 | Y5: 3 | Z5: 23 | AA5: 3 | AJ5: rolne zabudowane | AK5: posiadanie zależne | AL5: 5 | AM5: grunty pozostałe (drogi) | AN5: 0.24 | AO5: 0.22 | AP5: 0.22 | AQ5: 0.24 | AR5: 44 | AS5: 44 | AT5: a.0,24 | AU5: =SUMIF('ZDN-1'!P:P,Dane!AT5,'ZDN-1'!K:K) -> 0 | AX5: 9 | AY5: 2 | AZ5: 3 | BC5: Bi | BD5: nieruchomość | BI5: Ls-LsIV | BJ5: =ROW() -> 5 | BK5: Ls | BL5: lasy | BM5: ZDL-1 | BN5: brak | BO5: =SUMIF(Grunty!H:H,BI5,Grunty!I:I) -> 0 | BQ5: 31 | BR5: 5 | CE5: RIIIb | CF5: 4 | CG5: 70 | CH5: 13 | CI5: 0 | CJ5: 0 | CU5: Biskupice | CW5: Byczyna | CX5: kluczborski | CY5: opolskie | DA5: Art.7 ust.1 pkt.1 lit.c uopiol | DB5: Art.12 ust.1 pkt.3 uopr | DC5: Art.7 ust.1 pkt.3 uopl | DE5: instytuty badawcze | DF5: Art.7 ust.2 pkt 5 | DG5: Art.12 ust.2 pkt 5 | DH5: Art.7 ust.2 pkt 5 | DI5: 0.45
A6: okres obowiązywania | B6: 1 | E6: Info o błędach | G6: ZDR-2 | H6: 6 | I6: ='DR-1'!AA133 -> 0 | J6: 21 | K6: 16 | L6: 30 | M6: 14 | N6: 30 | O6: 14 | P6: 21 | Q6: 16 | R6: 29 | S6: 14 | T6: 29 | U6: 13 | V6: 21 | W6: 16 | X6: 30 | Y6: 12 | Z6: 30 | AA6: 12 | AJ6: rowy | AK6: posiadanie zależne (sp) | AL6: 6 | AM6: grunty rewitalizacja | AN6: 3.28 | AO6: 3.06 | AP6: 3.06 | AQ6: 3.28 | AR6: 55 | AS6: 55 | AT6: a.3,28 | AU6: =SUMIF('ZDN-1'!P:P,Dane!AT6,'ZDN-1'!K:K) -> 0 | AX6: 1 | AY6: 3 | AZ6: 4 | BC6: Bp | BD6: nieruchomość | BI6: Ls-LsV | BJ6: =ROW() -> 6 | BK6: Ls | BL6: lasy | BM6: ZDL-1 | BN6: brak | BO6: =SUMIF(Grunty!H:H,BI6,Grunty!I:I) -> 0 | BQ6: 31 | BR6: 5 | CE6: RIVa | CF6: 5 | CG6: 70 | CH6: 15 | CI6: 0 | CJ6: 0 | CU6: Bogacica | CW6: Kluczbork | CX6: kluczborski | CY6: opolskie | DA6: Art.7 ust.1 pkt.1a uopiol | DB6: Art.12 ust.1 pkt.4 lit.a uopr | DC6: Art.7 ust.2 pkt.1 uopl | DE6: instytuty naukowe i pomocnicze jednostki naukowe Polskiej Akademii Nauk | DF6: Art.7 ust.2 pkt 3 | DG6: Art.12 ust.2 pkt 3 | DH6: Art.7 ust.2 pkt 3 | DI6: 0.45
A7: rodzaj podmiotu 1 | B7: × | E7: Arkusz zawiera błędy | G7: DL-1 | H7: 7 | I7: 3 | J7: 24 | K7: 17 | L7: 42 | M7: 3 | N7: 42 | O7: 3 | P7: 24 | Q7: 17 | R7: 43 | S7: 3 | T7: 43 | U7: 3 | V7: 24 | W7: 17 | X7: 43 | Y7: 3 | Z7: 43 | AA7: 3 | AJ7: sady | AK7: posiadanie zależne (tz) | AL7: 7 | AM7: budynki mieszkalne | AN7: 0.85 | AO7: 0.79 | AP7: 0.79 | AQ7: 0.85 | AR7: 66 | AS7: 66 | AT7: ="b."&AN7 -> b.0,85 | AU7: =SUMIF('ZDN-1'!P:P,Dane!AT7,'ZDN-1'!K:K) -> 0 | AX7: 3 | AY7: 4 | AZ7: 5 | BC7: Bz | BD7: nieruchomość | BI7: Ls-LsVI | BJ7: =ROW() -> 7 | BK7: Ls | BL7: lasy | BM7: ZDL-1 | BN7: brak | BO7: =SUMIF(Grunty!H:H,BI7,Grunty!I:I) -> 0 | BQ7: 31 | BR7: 5 | CE7: RIVb | CF7: 6 | CG7: 70 | CH7: 18 | CI7: 0 | CJ7: 0 | CU7: Bogacka Szklarnia | CW7: Kluczbork | CX7: kluczborski | CY7: opolskie | DA7: Art.7 ust.1 pkt.2 uopiol | DB7: Art.12 ust.1 pkt.4 lit.b uopr | DC7: Art.7 ust.2 pkt.1a uopl | DE7: kościoły | DF7: Art. 1b ust.1 | DI7: 0.45
A8: rodzaj podmiotu 2 | G8: ZDL-1 | H8: 8 | I8: ='DL-1'!AA86 -> 0 | J8: 24 | K8: 17 | L8: 49 | M8: 14 | N8: 49 | O8: 14 | P8: 24 | Q8: 17 | R8: 62 | S8: 14 | T8: 62 | U8: 13 | V8: 24 | W8: 17 | X8: 50 | Y8: 12 | Z8: 50 | AA8: 12 | AJ8: stawy | AK8: posiadanie bez tytułu prawnego | AL8: 8 | AM8: budynki działalność do 45000 | AN8: 24.35 | AO8: 22.75 | AP8: 22.75 | AQ8: 24.35 | AR8: 77 | AS8: 77 | AT8: ="b."&AN8 -> b.24,35 | AU8: =SUMIF('ZDN-1'!P:P,Dane!AT8,'ZDN-1'!K:K) -> 0 | AX8: 7 | AY8: 5 | AZ8: 6 | BC8: dr | BD8: nieruchomość | BI8: B | BJ8: =ROW() -> 8 | BK8: B | BL8: nieruchomość | BM8: ZDN-1 | BN8: brak | BO8: =SUMIF(Grunty!H:H,BI8,Grunty!I:I) -> 0 | BR8: 1 | CE8: ŁI | CF8: 7 | CG8: 74 | CH8: 6 | CI8: 0 | CJ8: 0 | CU8: Bogdańczowice | CW8: Kluczbork | CX8: kluczborski | CY8: opolskie | DA8: Art.7 ust.1 pkt.2a uopiol | DB8: Art.12 ust.1 pkt.4 lit.c uopr | DC8: Art.7 ust.2 pkt.2 uopl | DE8: Krajowy Zasób Nieruchomości | DG8: Art.12 ust.2 pkt 7 | DH8: Art.7 ust.2 pkt 7 | DI8: 0.45
A9: osoba fizyczna | E9: Wersja arkusza | G9: ZDL-2 | H9: 9 | I9: ='DL-1'!AA87 -> 0 | J9: 28 | K9: 5 | L9: 53 | M9: 3 | N9: 53 | O9: 3 | P9: 28 | Q9: 5 | R9: 90 | S9: 3 | T9: 90 | U9: 3 | V9: 28 | W9: 5 | X9: =X5+80 -> 103 | Y9: =Y5 -> 3 | Z9: 103 | AA9: 3 | AJ9: zadrzewione i zakrzewione | AL9: 9 | AM9: budynki działalność pow. 45000 | AN9: 0.1 | AO9: 0.1 | AP9: 0.1 | AQ9: 0.1 | AR9: 88 | AS9: 88 | AT9: b.0,1 | AU9: =SUMIF('ZDN-1'!P:P,Dane!AT9,'ZDN-1'!K:K) -> 0 | AX9: 9 | AY9: 6 | AZ9: 7 | BC9: K | BD9: nieruchomość | BI9: Ba | BJ9: =ROW() -> 9 | BK9: Ba | BL9: nieruchomość | BM9: ZDN-1 | BN9: brak | BO9: =SUMIF(Grunty!H:H,BI9,Grunty!I:I) -> 0 | BR9: 1 | CE9: ŁII | CF9: 8 | CG9: 74 | CH9: 9 | CI9: 0 | CJ9: 0 | CU9: Borek | CW9: Byczyna | CX9: kluczborski | CY9: opolskie | DA9: Art.7 ust.1 pkt.3 uopiol | DB9: Art.12 ust.1 pkt.5 uopr | DC9: Art.7 ust.2 pkt.3 uopl | DE9: Organizacje pożytku pudlicznego - działalność nieodpłatna | DF9: Art.7 ust.1 pkt 14 | DI9: 0.45
A10: osoba prawna | B10: × | E10: =AN1&"."&B6&".8."&INFO("wersja")&"."&TODAY() -> 2022.1.8.15.0.44596 | J10: 28 | K10: 5 | L10: 60 | M10: 14 | N10: 60 | O10: 14 | P10: 28 | Q10: 5 | R10: 97 | S10: 14 | T10: 97 | U10: 13 | V10: 28 | W10: 5 | X10: =X6+80 -> 110 | Y10: =Y6 -> 12 | Z10: 110 | AA10: 12 | AL10: 10 | AM10: budynki mat.siewny | AN10: 11.88 | AO10: 11.1 | AP10: 11.1 | AQ10: 11.88 | AR10: 99 | AS10: 99 | AT10: b.11,88 | AU10: =SUMIF('ZDN-1'!P:P,Dane!AT10,'ZDN-1'!K:K) -> 0 | AX10: 1 | AY10: 7 | BC10: Ti | BD10: nieruchomość | BI10: Bi | BJ10: =ROW() -> 10 | BK10: Bi | BL10: nieruchomość | BM10: ZDN-1 | BN10: brak | BO10: =SUMIF(Grunty!H:H,BI10,Grunty!I:I) -> 0 | BR10: 1 | CE10: ŁIII | CF10: 9 | CG10: 74 | CH10: 13 | CI10: 0 | CJ10: 0 | CU10: Borki Małe | CW10: Lasowice Wielkie | CX10: kluczborski | CY10: opolskie | DA10: Art.7 ust.1 pkt.4 lit.a uopiol | DB10: Art.12 ust.1 pkt.6 uopr | DC10: Art.7 ust.2 pkt.4 uopl | DE10: Pracowniczae Ogrody Działkowe | DF10: Art.7 ust.1 pkt 12 | DI10: 0.45
A11: jednostka ... | J11: 28 | K11: 16 | L11: 91 | M11: 3 | N11: 91 | O11: 3 | P11: 28 | Q11: 16 | R11: 111 | S11: 3 | T11: 111 | U11: 3 | V11: 28 | W11: 16 | X11: 123 | Y11: 3 | Z11: 123 | AA11: 3 | AL11: 11 | AM11: budynki św.zdrowotne | AN11: 5.21 | AO11: 4.86 | AP11: 4.86 | AQ11: 5.21 | AR11: 111 | AS11: 111 | AT11: b.5,21 | AU11: =SUMIF('ZDN-1'!P:P,Dane!AT11,'ZDN-1'!K:K) -> 0 | AX11: 3 | BC11: Tk | BD11: nieruchomość | BI11: Bp | BJ11: =ROW() -> 11 | BK11: Bp | BL11: nieruchomość | BM11: ZDN-1 | BN11: brak | BO11: =SUMIF(Grunty!H:H,BI11,Grunty!I:I) -> 0 | BR11: 1 | CE11: ŁIV | CF11: 10 | CG11: 74 | CH11: 17 | CI11: 0 | CJ11: 0 | CU11: Borki Wielkie | CW11: Lasowice Wielkie | CX11: kluczborski | CY11: opolskie | DA11: Art.7 ust.1 pkt.4 lit.b uopiol | DB11: Art.12 ust.1 pkt.7 uopr | DC11: Art.7 ust.2 pkt.5 uopl | DE11: prowadzących zakłady pracy chronionej | DF11: Art.7 ust.2 pkt 4 | DG11: Art.12 ust.2 pkt 4 | DH11: Art.7 ust.2 pkt 4 | DI11: 0.45
A12: nazwisko | J12: 28 | K12: 16 | L12: 98 | M12: 14 | N12: 98 | O12: 14 | P12: 28 | Q12: 16 | R12: 130 | S12: 14 | T12: 130 | U12: 13 | V12: 28 | W12: 16 | X12: 130 | Y12: 12 | Z12: 130 | AA12: 12 | AL12: 12 | AM12: budynki pozostałe | AN12: 6.69 | AO12: 6.25 | AP12: 6.25 | AQ12: 6.69 | AR12: 222 | AS12: 222 | AT12: b.6,69 | AU12: =SUMIF('ZDN-1'!P:P,Dane!AT12,'ZDN-1'!K:K) -> 0 | BC12: Tp | BD12: nieruchomość | BI12: Bz | BJ12: =ROW() -> 12 | BK12: Bz | BL12: nieruchomość | BM12: ZDN-1 | BN12: brak | BO12: =SUMIF(Grunty!H:H,BI12,Grunty!I:I) -> 0 | BR12: 1 | CE12: S-RI | CF12: 11 | CG12: 78 | CH12: 6 | CI12: 0 | CJ12: 0 | CU12: Borkowice | CV12: 46-243 | CW12: Kluczbork | CX12: kluczborski | CY12: opolskie | DA12: Art.7 ust.1 pkt.4 lit.c uopiol | DB12: Art.12 ust.1 pkt.8 uopr | DC12: Art.7 ust.2 pkt.6 uopl | DE12: przedsiębiorców o statusie centrum badawczo-rozwojowego | DF12: Art.7 ust.2 pkt 5a | DG12: Art.12 ust.2 pkt 5a | DH12: Art.7 ust.2 pkt 6 | DI12: 0.45
A13: imię | E13: Organ podatkowy | J13: 35 | K13: 5 | L13: 110 | M13: 3 | N13: 110 | O13: 3 | P13: 35 | Q13: 5 | R13: 158 | S13: 3 | T13: 158 | U13: 3 | V13: 35 | W13: 5 | X13: =X9+80 -> 183 | Y13: =Y9 -> 3 | Z13: 183 | AA13: 3 | AL13: 13 | AM13: budowle sanitarne | AN13: 0.5 | AO13: 0.5 | AP13: 0.5 | AQ13: 0.5 | AR13: 0.5 | AS13: 0.5 | AT13: ="c."&AN13 -> c.0,5 | AU13: =SUMIF('ZDN-1'!P:P,Dane!AT13,'ZDN-1'!K:K) -> 0 | BC13: Tr | BD13: nieruchomość | BI13: dr | BJ13: =ROW() -> 13 | BK13: dr | BL13: nieruchomość | BM13: ZDN-1 | BN13: brak | BO13: =SUMIF(Grunty!H:H,BI13,Grunty!I:I) -> 0 | BR13: 1 | CE13: S-RII | CF13: 12 | CG13: 78 | CH13: 8 | CI13: 0 | CJ13: 0 | CU13: Borownia | CW13: Wołczyn | CX13: kluczborski | CY13: opolskie | DA13: Art.7 ust.1 pkt.5 uopiol | DB13: Art.12 ust.1 pkt.9 uopr | DC13: Art.7 ust.2 pkt.7 uopl | DE13: publiczne i niepubliczne jednostki organizacyjne objęte systemem oświaty oraz prowadzące je organy | DF13: Art.7 ust.2 pkt 2 | DG13: Art.12 ust.2 pkt 2 | DH13: Art.7 ust.2 pkt 2 | DI13: 0.45
A14: REGON | B14: 362932217 | E14: Burmistrz Miasta Kluczborka, ul.Katowicka 1, 46-200 Kluczbork | J14: 35 | K14: 5 | L14: 117 | M14: 14 | N14: 117 | O14: 14 | P14: 35 | Q14: 5 | R14: 165 | S14: 14 | T14: 165 | U14: 14 | V14: 35 | W14: 5 | X14: 190 | Y14: 12 | Z14: 190 | AA14: 12 | AL14: 14 | AM14: budowle pozostałe | AN14: 2 | AO14: 2 | AP14: 2 | AQ14: 2 | AR14: 2 | AS14: 2 | AT14: ="c."&AN14 -> c.2 | AU14: =SUMIF('ZDN-1'!P:P,Dane!AT14,'ZDN-1'!K:K) -> 0 | BC14: Ws | BD14: nieruchomość | BI14: K | BJ14: =ROW() -> 14 | BK14: K | BL14: nieruchomość | BM14: ZDN-1 | BN14: brak | BO14: =SUMIF(Grunty!H:H,BI14,Grunty!I:I) -> 0 | BR14: 1 | CE14: S-RIIIa | CF14: 13 | CG14: 78 | CH14: 10 | CI14: 0 | CJ14: 0 | CU14: Brodnica | CW14: Kluczbork | CX14: kluczborski | CY14: opolskie | DA14: Art.7 ust.1 pkt.6 uopiol | DB14: Art.12 ust.1 pkt.10 uopr | DC14: §4 uchwły nr XII/104/03 z 03.07.2003r. | DE14: uczelnie | DF14: Art.7 ust.2 pkt 1 | DG14: Art.12 ust.2 pkt 1 | DH14: Art.7 ust.2 pkt 1 | DI14: 0.45
A15: data urodzenia | J15: 35 | K15: 11 | L15: 121 | M15: 3 | N15: 121 | O15: 3 | P15: 35 | Q15: 11 | R15: 179 | S15: 3 | T15: 179 | U15: 3 | V15: 35 | W15: 11 | X15: 203 | Y15: 3 | Z15: 203 | AA15: 3 | AL15: 15 | AM15: żyto | AN15: 61.48 | AO15: 58.46 | AP15: 58.55 | AQ15: 61.48 | AR15: 555 | AS15: 555 | BC15: Lz | BD15: nieruchomość | BI15: Ti | BJ15: =ROW() -> 15 | BK15: Ti | BL15: nieruchomość | BM15: ZDN-1 | BN15: brak | BO15: =SUMIF(Grunty!H:H,BI15,Grunty!I:I) -> 0 | BR15: 1 | CE15: S-RIIIb | CF15: 14 | CG15: 78 | CH15: 13 | CI15: 0 | CJ15: 0 | CU15: Bruny | CW15: Wołczyn | CX15: kluczborski | CY15: opolskie | DA15: Art.7 ust.1 pkt.7 uopiol | DB15: Art.12 ust.1 pkt.11 uopr | DE15: żłobki i kluby dziecięce oraz prowadzące je podmioty | DF15: Art.7 ust.2 pkt 2a | DI15: 0.45
A16: i.ojca | J16: 35 | K16: 11 | L16: 128 | M16: 14 | N16: 128 | O16: 14 | P16: 35 | Q16: 11 | R16: 198 | S16: 14 | T16: 198 | U16: 14 | V16: 35 | W16: 11 | X16: 210 | Y16: 12 | Z16: 210 | AA16: 12 | AL16: 16 | AM16: drewno | AN16: 212.26 | AO16: 194.24 | AP16: 196.84 | AQ16: 212.26 | AR16: 666 | AS16: 666 | BC16: N | BD16: nieruchomość | BI16: Tk | BJ16: =ROW() -> 16 | BK16: Tk | BL16: nieruchomość | BM16: ZDN-1 | BN16: brak | BO16: =SUMIF(Grunty!H:H,BI16,Grunty!I:I) -> 0 | BR16: 1 | CE16: S-RIVa | CF16: 15 | CG16: 78 | CH16: 15 | CI16: 0 | CJ16: 0 | CU16: Brynica | CW16: Wołczyn | CX16: kluczborski | CY16: opolskie | DA16: Art.7 ust.1 pkt.8 lit.a uopiol | DB16: Art.12 ust.1 pkt.12 lit.a uopr
A17: I.matki | J17: 35 | K17: 16 | L17: 159 | M17: 3 | N17: 159 | O17: 3 | P17: 35 | Q17: 16 | R17: 226 | S17: 3 | T17: 226 | U17: 3 | V17: 35 | W17: 16 | X17: =X13+80 -> 263 | Y17: =Y13 -> 3 | Z17: 263 | AA17: 3 | BC17: R-RI | BD17: orne | BE17: 1 | BI17: Tp | BJ17: =ROW() -> 17 | BK17: Tp | BL17: nieruchomość | BM17: ZDN-1 | BN17: brak | BO17: =SUMIF(Grunty!H:H,BI17,Grunty!I:I) -> 0 | BR17: 1 | CE17: S-RIVb | CF17: 16 | CG17: 78 | CH17: 18 | CI17: 0 | CJ17: 0 | CU17: Brzezinka | CW17: Kluczbork | CX17: kluczborski | CY17: opolskie | DA17: Art.7 ust.1 pkt.8 lit.b uopiol | DB17: Art.12 ust.1 pkt.12 lit.b uopr
A18: kraj | B18: Polska | J18: 35 | K18: 16 | L18: 166 | M18: 14 | N18: 166 | O18: 14 | P18: 35 | Q18: 16 | R18: 233 | S18: 14 | T18: 233 | U18: 14 | V18: 35 | W18: 16 | X18: 270 | Y18: 12 | Z18: 270 | AA18: 12 | BC18: R-RII | BD18: orne | BE18: 2 | BI18: Tr | BJ18: =ROW() -> 18 | BK18: Tr | BL18: nieruchomość | BM18: ZDN-1 | BN18: brak | BO18: =SUMIF(Grunty!H:H,BI18,Grunty!I:I) -> 0 | BR18: 1 | CE18: Br | CF18: 17 | CG18: 83 | CH18: 14 | CI18: 0 | CJ18: 0 | CU18: Brzezinki | CW18: Wołczyn | CX18: kluczborski | CY18: opolskie | DA18: Art.7 ust.1 pkt.8a uopiol | DB18: Art.12 ust.1 pkt.12 lit.c uopr
A19: woj. | B19: opolskie | D19: Dane | E19: =B2&";"&B4&";"&B5&";"&B6&";"&B7&";"&B8&";"&B9&";"&B10&";"&B11&";"&B12&";"&B13&";"&B14&";"&B15&";"&B16&";"&B17&";"&B18&";"&B19&";"&B20&";"&B21&";"&B22&";"&B23&";"&B24&";"&B25&";"&B26&";"&B27&";"&B28&";"&B29&";"&B30&";"&B31&";"&B32&";"&B33&";"&B34&";"&B35&";"&B45&";"&B46&";"&B36&";"&B37&";"&B38&";"&B39&";"&B40&";"&B41&";"&B42&";"&B43&";"&B44 -> ;×;;1;×;;;×;;;;362932217;;;;Polska;opolskie;kluczborski;Kluczbork;;8;;Maciejów;46-200;;;;;;;;;;792-236-388;tomasz.paluch@maciejów.eu;;;;Tomasz;Paluch;17012022;Edyta;Stabrawa;17012022 | J19: 38 | K19: 3 | L19: 178 | M19: 3 | N19: 178 | O19: 3 | P19: 38 | Q19: 3 | R19: 247 | S19: 3 | T19: 247 | U19: 3 | V19: 38 | W19: 3 | X19: 283 | Y19: 3 | Z19: 283 | AA19: 3 | BC19: R-RIIIa | BD19: orne | BE19: 3 | BI19: Ws | BJ19: =ROW() -> 19 | BK19: Ws | BL19: nieruchomość | BM19: ZDN-1 | BN19: brak | BO19: =SUMIF(Grunty!H:H,BI19,Grunty!I:I) -> 0 | BR19: 1 | CE19: W | CF19: 18 | CG19: 87 | CH19: 14 | CI19: 0 | CJ19: 0 | CU19: Brzózki | CW19: Byczyna | CX19: kluczborski | CY19: opolskie | DA19: Art.7 ust.1 pkt.9 uopiol | DB19: Art.12 ust.1 pkt.12 lit.d uopr
A20: powiat | B20: kluczborski | J20: 38 | K20: 16 | L20: 185 | M20: 14 | N20: 185 | O20: 14 | P20: 38 | Q20: 16 | R20: 266 | S20: 14 | T20: 266 | U20: 14 | V20: 38 | W20: 16 | X20: 290 | Y20: 12 | Z20: 290 | AA20: 12 | BC20: R-RIIIb | BD20: orne | BE20: 4 | BI20: Lz | BJ20: =ROW() -> 20 | BK20: Lz | BL20: nieruchomość | BM20: ZDN-2 | BN20: art.7 ust.1 pkt.10 uopiol | BO20: =SUMIF(Grunty!H:H,BI20,Grunty!I:I) -> 0 | BQ20: 201 | BR20: 2 | CE20: Wsr | CF20: 19 | CG20: 87 | CH20: 14 | CI20: 0 | CJ20: 0 | CU20: Byczyna | CW20: Byczyna | CX20: kluczborski | CY20: opolskie | DA20: Art.7 ust.1 pkt.10 uopiol | DB20: Art.12 ust.1 pkt.13 uopr
A21: gmina | B21: Kluczbork | J21: 40 | K21: 10 | L21: 189 | M21: 3 | N21: 189 | O21: 3 | P21: 40 | Q21: 10 | R21: 294 | S21: 3 | T21: 294 | U21: 3 | V21: 40 | W21: 10 | X21: =X17+80 -> 343 | Y21: =Y17 -> 3 | Z21: 343 | AA21: 3 | BC21: R-RIVa | BD21: orne | BE21: 5 | BI21: N | BJ21: =ROW() -> 21 | BK21: N | BL21: nieruchomość | BM21: ZDN-2 | BN21: art.7 ust.1 pkt.10 uopiol | BO21: =SUMIF(Grunty!H:H,BI21,Grunty!I:I) -> 0 | BQ21: 201 | BR21: 2 | CE21: Zw R | CF21: 101 | CI21: 0 | CJ21: =SUMIF(BQ:BQ,CF21,BP:BP) -> 0 | CU21: Cegielnia | CW21: Byczyna | CX21: kluczborski | CY21: opolskie | DA21: Art.7 ust.1 pkt.11 uopiol | DB21: Art.12 ust.2 pkt.1 uopr
A22: ulica | J22: 40 | K22: 10 | L22: 196 | M22: 14 | N22: 196 | O22: 14 | P22: 40 | Q22: 10 | R22: 301 | S22: 14 | T22: 301 | U22: 14 | V22: 40 | W22: 10 | X22: 350 | Y22: 12 | Z22: 350 | AA22: 12 | BC22: R-RIVb | BD22: orne | BE22: 6 | BI22: R-RI | BJ22: =ROW() -> 22 | BK22: RI | BL22: orne | BM22: ZDR-1 | BN22: brak | BO22: =SUMIF(Grunty!H:H,BI22,Grunty!I:I) -> 0 | BP22: =SUMIF('ZDR-1'!L:L,BI22,'ZDR-1'!I:I) -> 0 | BQ22: 1 | BR22: 3 | BU22: 74 | BV22: 7 | CG22: 66 | CH22: 16 | CI22: 0 | CJ22: 0 | CU22: Cegielnia | CW22: Wołczyn | CX22: kluczborski | CY22: opolskie | DA22: Art.7 ust.1 pkt.12 uopiol | DB22: Art.12 ust.2 pkt.1a uopr
A23: nrD | B23: 8 | J23: 43 | K23: 3 | L23: 227 | M23: 3 | N23: 227 | O23: 3 | P23: 43 | Q23: 3 | R23: 315 | S23: 3 | T23: 315 | U23: 3 | V23: 43 | W23: 3 | X23: 363 | Y23: 3 | Z23: 363 | AA23: 3 | BC23: Ł-ŁI | BD23: łąki trwałe | BE23: 7 | BI23: R-RII | BJ23: =ROW() -> 23 | BK23: RII | BL23: orne | BM23: ZDR-1 | BN23: brak | BO23: =SUMIF(Grunty!H:H,BI23,Grunty!I:I) -> 0 | BP23: =SUMIF('ZDR-1'!L:L,BI23,'ZDR-1'!I:I) -> 0 | BQ23: 2 | BR23: 3 | BU23: 75 | BV23: 7 | CE23: Ws | CG23: 68 | CH23: 16 | CI23: 0 | CJ23: 0 | CU23: Chałupki | CW23: Byczyna | CX23: kluczborski | CY23: opolskie | DA23: Art.7 ust.1 pkt.13 uopiol | DB23: Art.12 ust.2 pkt.2 uopr
A24: nrL | J24: 43 | K24: 21 | L24: 234 | M24: 14 | N24: 234 | O24: 14 | P24: 43 | Q24: 21 | R24: 334 | S24: 14 | T24: 334 | U24: 14 | V24: 43 | W24: 21 | X24: 370 | Y24: 12 | Z24: 370 | AA24: 12 | BC24: Ps-PsI | BD24: pastwiska | BE24: 7 | BI24: R-RIIIa | BJ24: =ROW() -> 24 | BK24: RIIIa | BL24: orne | BM24: ZDR-1 | BN24: brak | BO24: =SUMIF(Grunty!H:H,BI24,Grunty!I:I) -> 0 | BP24: =SUMIF('ZDR-1'!L:L,BI24,'ZDR-1'!I:I) -> 0 | BQ24: 3 | BR24: 3 | BU24: 76 | BV24: 7 | CE24: B | CG24: 70 | CH24: 16 | CI24: 0 | CJ24: 0 | CU24: Chałupska | CW24: Kluczbork | CX24: kluczborski | CY24: opolskie | DA24: Art.7 ust.1 pkt.14 uopiol | DB24: Art.12 ust.2 pkt.3 uopr
A25: miejscowość | B25: Maciejów | D25: DN | E25: ='DN-1'!BC1 -> FALSE | J25: 46 | K25: 3 | L25: 246 | M25: 3 | N25: 246 | O25: 3 | P25: 46 | Q25: 3 | R25: 362 | S25: 3 | T25: 362 | U25: 3 | V25: 46 | W25: 3 | X25: 423 | Y25: 3 | Z25: 423 | AA25: 3 | BC25: Ł-ŁII | BD25: łąki trwałe | BE25: 8 | BI25: R-RIIIb | BJ25: =ROW() -> 25 | BK25: RIIIb | BL25: orne | BM25: ZDR-1 | BN25: brak | BO25: =SUMIF(Grunty!H:H,BI25,Grunty!I:I) -> 0 | BP25: =SUMIF('ZDR-1'!L:L,BI25,'ZDR-1'!I:I) -> 0 | BQ25: 4 | BR25: 3 | BU25: 77 | BV25: 7 | CG25: 72 | CH25: 16 | CI25: 0 | CJ25: 0 | CU25: Chałupy | CW25: Lasowice Wielkie | CX25: kluczborski | CY25: opolskie | DA25: Art.7 ust.1 pkt.15 uopiol | DB25: Art.12 ust.2 pkt.4 uopr
A26: kod-pocztowy | B26: 46-200 | D26: DR | E26: ='DR-1'!BC1 -> FALSE | J26: 46 | K26: 19 | L26: 253 | M26: 14 | N26: 253 | O26: 14 | P26: 46 | Q26: 19 | R26: 369 | S26: 14 | T26: 369 | U26: 14 | V26: 46 | W26: 19 | X26: 430 | Y26: 12 | Z26: 430 | AA26: 12 | AO26: Ls | BC26: Ps-PsII | BD26: pastwiska | BE26: 8 | BI26: RIVa | BJ26: =ROW() -> 26 | BK26: RIVa | BL26: orne | BM26: ZDR-1 | BN26: brak | BO26: =SUMIF(Grunty!H:H,BI26,Grunty!I:I) -> 0 | BP26: =SUMIF('ZDR-1'!L:L,BI26,'ZDR-1'!I:I) -> 0 | BQ26: 5 | BR26: 3 | BU26: 78 | BV26: 7 | CE26: dr | CG26: 75 | CH26: 16 | CI26: 0 | CJ26: 0 | CU26: Chocianowice | CW26: Lasowice Wielkie | CX26: kluczborski | CY26: opolskie | DA26: Art.7 ust.1 pkt.16 uopiol | DB26: Art.12 ust.2 pkt.5 uopr
A27: kraj | D27: DL | E27: ='DL-1'!BC1 -> FALSE | J27: 48 | K27: 3 | L27: 257 | M27: 3 | N27: 257 | O27: 3 | P27: 48 | Q27: 3 | R27: 383 | S27: 3 | T27: 383 | U27: 3 | V27: 48 | W27: 3 | X27: 443 | Y27: 3 | Z27: 443 | AA27: 3 | BC27: Ł-ŁIII | BD27: łąki trwałe | BE27: 9 | BI27: R-RIVa | BJ27: =ROW() -> 27 | BK27: RIVa | BL27: orne | BM27: ZDR-1 | BN27: brak | BO27: =SUMIF(Grunty!H:H,BI27,Grunty!I:I) -> 0 | BP27: =SUMIF('ZDR-1'!L:L,BI27,'ZDR-1'!I:I) -> 0 | BQ27: 5 | BR27: 3 | BU27: 78 | BV27: 7 | CG27: 77 | CH27: 16 | CI27: 0 | CJ27: 0 | CU27: Chomącko | CW27: Wołczyn | CX27: kluczborski | CY27: opolskie | DA27: Art.7 ust.2 pkt.1 uopiol | DB27: Art.12 ust.2 pkt.5a uopr
A28: woj. | J28: 48 | K28: 24 | L28: 264 | M28: 14 | N28: 264 | O28: 14 | P28: 48 | Q28: 24 | R28: 402 | S28: 14 | T28: 402 | U28: 14 | V28: 48 | W28: 24 | X28: 450 | Y28: 12 | Z28: 450 | AA28: 12 | BC28: Ps-PsIII | BD28: pastwiska | BE28: 9 | BI28: RIVb | BJ28: =ROW() -> 28 | BK28: RIVb | BL28: orne | BM28: ZDR-1 | BN28: brak | BO28: =SUMIF(Grunty!H:H,BI28,Grunty!I:I) -> 0 | BP28: =SUMIF('ZDR-1'!L:L,BI28,'ZDR-1'!I:I) -> 0 | BQ28: 6 | BR28: 3 | BU28: 79 | BV28: 7 | CG28: 80 | CH28: 16 | CI28: 0 | CJ28: 0 | CU28: Chudoba | CW28: Byczyna | CX28: kluczborski | CY28: opolskie | DA28: Art.7 ust.2 pkt.1a uopiol | DB28: Art.12 ust.2 pkt.7 uopr
A29: powiat | J29: 50 | K29: 3 | L29: 295 | M29: 3 | N29: 295 | O29: 3 | P29: 50 | Q29: 3 | R29: 430 | S29: 3 | T29: 430 | U29: 3 | V29: 50 | W29: 3 | X29: 503 | Y29: 3 | Z29: 503 | AA29: 3 | BC29: Ł-ŁIV | BD29: łąki trwałe | BE29: 10 | BI29: R-RIVb | BJ29: =ROW() -> 29 | BK29: RIVb | BL29: orne | BM29: ZDR-1 | BN29: brak | BO29: =SUMIF(Grunty!H:H,BI29,Grunty!I:I) -> 0 | BP29: =SUMIF('ZDR-1'!L:L,BI29,'ZDR-1'!I:I) -> 0 | BQ29: 6 | BR29: 3 | BU29: 79 | BV29: 7 | CG29: 82 | CH29: 16 | CI29: 0 | CJ29: 0 | CU29: Chudoba | CW29: Lasowice Wielkie | CX29: kluczborski | CY29: opolskie | DA29: Art.7 ust.2 pkt.2 uopiol | DB29: Art.13 ust.1 pkt.1 uopr
A30: gmina | J30: 50 | K30: 16 | L30: 302 | M30: 14 | N30: 302 | O30: 14 | P30: 50 | Q30: 16 | R30: 437 | S30: 14 | T30: 437 | U30: 14 | V30: 50 | W30: 16 | X30: 510 | Y30: 12 | Z30: 510 | AA30: 12 | BC30: Ps-PsIV | BD30: pastwiska | BE30: 10 | BI30: Ł-ŁI | BJ30: =ROW() -> 30 | BK30: ŁI | BL30: łąki trwałe | BM30: ZDR-1 | BN30: brak | BO30: =SUMIF(Grunty!H:H,BI30,Grunty!I:I) -> 0 | BP30: =SUMIF('ZDR-1'!L:L,BI30,'ZDR-1'!I:I) -> 0 | BQ30: 7 | BR30: 3 | BU30: 83 | BV30: 7 | CE30: Zw N | CF30: 201 | CI30: =SUMIF(BQ:BQ,CF30,BO:BO) -> 0 | CJ30: =SUMIF(BQ:BQ,CF30,BP:BP) -> 0 | CU30: Chwalęcice | CW30: Lasowice Wielkie | CX30: kluczborski | CY30: opolskie | DA30: Art.7 ust.2 pkt.2a uopiol | DB30: Art.13 ust.1 pkt.2 lit.a uopr
A31: ulica | J31: 53 | K31: 3 | L31: 314 | M31: 3 | N31: 314 | O31: 3 | P31: 53 | Q31: 3 | R31: 451 | S31: 3 | T31: 451 | U31: 3 | V31: 53 | W31: 3 | X31: 523 | Y31: 3 | Z31: 523 | AA31: 3 | BC31: S-ŁI | BD31: sady | BE31: 11 | BI31: Ps-PsI | BJ31: =ROW() -> 31 | BK31: PsI | BL31: pastwiska | BM31: ZDR-1 | BN31: brak | BO31: =SUMIF(Grunty!H:H,BI31,Grunty!I:I) -> 0 | BP31: =SUMIF('ZDR-1'!L:L,BI31,'ZDR-1'!I:I) -> 0 | BQ31: 7 | BR31: 3 | BU31: 83 | BV31: 7 | CE31: Ls | CF31: 31 | CG31: 58 | CH31: 10 | CI31: 0 | CJ31: 0 | CU31: Ciarka | CW31: Lasowice Wielkie | CX31: kluczborski | CY31: opolskie | DA31: Art.7 ust.2 pkt.3 uopiol | DB31: Art.13 ust.1 pkt.2 lit.b uopr
A32: nrD | J32: 53 | K32: 19 | L32: 321 | M32: 14 | N32: 321 | O32: 14 | P32: 53 | Q32: 19 | R32: 470 | S32: 14 | T32: 470 | U32: 14 | V32: 53 | W32: 19 | X32: 530 | Y32: 12 | Z32: 530 | AA32: 12 | BC32: S-PsI | BD32: sady | BE32: 11 | BI32: Ł-ŁII | BJ32: =ROW() -> 32 | BK32: ŁII | BL32: łąki trwałe | BM32: ZDR-1 | BN32: brak | BO32: =SUMIF(Grunty!H:H,BI32,Grunty!I:I) -> 0 | BP32: =SUMIF('ZDR-1'!L:L,BI32,'ZDR-1'!I:I) -> 0 | BQ32: 8 | BR32: 3 | BU32: 84 | BV32: 7 | CF32: 32 | CG32: 60 | CH32: 10 | CI32: 0 | CJ32: 0 | CU32: Ciarski Młyn | CW32: Lasowice Wielkie | CX32: kluczborski | CY32: opolskie | DA32: Art.7 ust.2 pkt.4 uopiol | DB32: Art.13 ust.1 pkt.2 lit.c uopr
A33: nrL | J33: 55 | K33: 3 | L33: 325 | M33: 3 | N33: 325 | O33: 3 | P33: 55 | Q33: 3 | R33: 498 | S33: 3 | T33: 498 | U33: 3 | V33: 55 | W33: 3 | X33: 583 | Y33: 3 | Z33: 583 | AA33: 3 | BC33: S-RI | BD33: sady | BE33: 11 | BI33: Ps-PsII | BJ33: =ROW() -> 33 | BK33: PsII | BL33: pastwiska | BM33: ZDR-1 | BN33: brak | BO33: =SUMIF(Grunty!H:H,BI33,Grunty!I:I) -> 0 | BP33: =SUMIF('ZDR-1'!L:L,BI33,'ZDR-1'!I:I) -> 0 | BQ33: 8 | BR33: 3 | BU33: 83 | BV33: 7 | CE33: Zw L | CF33: 301 | CI33: 0 | CJ33: 0 | CU33: Ciecierski Młyn | CW33: Byczyna | CX33: kluczborski | CY33: opolskie | DA33: Art.7 ust.2 pkt.5 uopiol | DB33: §3 uchwły nr XII/104/03 z 03.07.2003r.
A34: miejscowość | J34: 55 | K34: 24 | L34: 332 | M34: 14 | N34: 332 | O34: 14 | P34: 55 | Q34: 24 | R34: 505 | S34: 14 | T34: 505 | U34: 14 | V34: 55 | W34: 24 | X34: 590 | Y34: 12 | Z34: 590 | AA34: 12 | BC34: S-ŁII | BD34: sady | BE34: 12 | BI34: Ł-ŁIII | BJ34: =ROW() -> 34 | BK34: ŁIII | BL34: łąki trwałe | BM34: ZDR-1 | BN34: brak | BO34: =SUMIF(Grunty!H:H,BI34,Grunty!I:I) -> 0 | BP34: =SUMIF('ZDR-1'!L:L,BI34,'ZDR-1'!I:I) -> 0 | BQ34: 9 | BR34: 3 | BU34: 85 | BV34: 7 | CE34: Wp | CI34: 0 | CJ34: 0 | CU34: Ciecierzyn | CW34: Byczyna | CX34: kluczborski | CY34: opolskie | DA34: Art.7 ust.2 pkt.5a uopiol
A35: kod-pocztowy | J35: 57 | K35: 3 | L35: 363 | M35: 3 | N35: 363 | O35: 3 | P35: 57 | Q35: 3 | R35: 519 | S35: 3 | T35: 519 | U35: 3 | V35: 57 | W35: 3 | X35: 603 | Y35: 3 | Z35: 603 | AA35: 3 | BC35: S-PsII | BD35: sady | BE35: 12 | BI35: Ps-PsIII | BJ35: =ROW() -> 35 | BK35: PsIII | BL35: pastwiska | BM35: ZDR-1 | BN35: brak | BO35: =SUMIF(Grunty!H:H,BI35,Grunty!I:I) -> 0 | BP35: =SUMIF('ZDR-1'!L:L,BI35,'ZDR-1'!I:I) -> 0 | BQ35: 9 | BR35: 3 | BU35: 84 | BV35: 7 | CI35: 0 | CJ35: 0 | CU35: Ciecierzyn-Piekło | CW35: Byczyna | CX35: kluczborski | CY35: opolskie | DA35: §2 uchwły nr XII/104/03 z 03.07.2003r.
A36: Podatnik imię | J36: 57 | K36: 16 | L36: 370 | M36: 14 | N36: 370 | O36: 14 | P36: 57 | Q36: 16 | R36: 538 | S36: 14 | T36: 538 | U36: 14 | V36: 57 | W36: 16 | X36: 610 | Y36: 12 | Z36: 610 | AA36: 12 | BC36: S-RII | BD36: sady | BE36: 12 | BI36: Ł-ŁIV | BJ36: =ROW() -> 36 | BK36: ŁIV | BL36: łąki trwałe | BM36: ZDR-1 | BN36: brak | BO36: =SUMIF(Grunty!H:H,BI36,Grunty!I:I) -> 0 | BP36: =SUMIF('ZDR-1'!L:L,BI36,'ZDR-1'!I:I) -> 0 | BQ36: 10 | BR36: 3 | BU36: 86 | BV36: 7 | CU36: Cygany | CW36: Wołczyn | CX36: kluczborski | CY36: opolskie | DA36: Art.1b ust.1 uopiol
A37: Podatnik nazwisko | J37: 68 | K37: 15 | L37: 382 | M37: 3 | N37: 382 | O37: 3 | P37: 67 | Q37: 5 | R37: 566 | S37: 3 | T37: 566 | U37: 3 | V37: 70 | W37: 15 | X37: 663 | Y37: 3 | Z37: 663 | AA37: 3 | BC37: S-ŁIII | BD37: sady | BE37: 13 | BI37: Ps-PsIV | BJ37: =ROW() -> 37 | BK37: PsIV | BL37: pastwiska | BM37: ZDR-1 | BN37: brak | BO37: =SUMIF(Grunty!H:H,BI37,Grunty!I:I) -> 0 | BP37: =SUMIF('ZDR-1'!L:L,BI37,'ZDR-1'!I:I) -> 0 | BQ37: 10 | BR37: 3 | BU37: 85 | BV37: 7 | CU37: Czaple Wolne | CW37: Kluczbork | CX37: kluczborski | CY37: opolskie
A38: Podatnik data | J38: 74 | K38: 15 | L38: 389 | M38: 14 | N38: 389 | O38: 14 | P38: 67 | Q38: 5 | R38: 573 | S38: 14 | T38: 573 | U38: 14 | V38: 71 | W38: 15 | X38: 670 | Y38: 12 | Z38: 670 | AA38: 12 | BC38: S-PsIII | BD38: sady | BE38: 13 | BI38: S-ŁI | BJ38: =ROW() -> 38 | BK38: S-ŁI | BL38: sady | BM38: ZDR-1 | BN38: brak | BO38: =SUMIF(Grunty!H:H,BI38,Grunty!I:I) -> 0 | BP38: =SUMIF('ZDR-1'!L:L,BI38,'ZDR-1'!I:I) -> 0 | BQ38: 11 | BR38: 3 | BU38: 90 | BV38: 7 | CU38: Czerwona | CW38: Lasowice Wielkie | CX38: kluczborski | CY38: opolskie
A39: Os. reprezentująca 1 imię | B39: Tomasz | J39: 77 | K39: 15 | L39: 393 | M39: 3 | N39: 393 | O39: 3 | P39: 67 | Q39: 16 | R39: 587 | S39: 3 | T39: 587 | U39: 3 | V39: 75 | W39: 18 | X39: 683 | Y39: 3 | Z39: 683 | AA39: 3 | BC39: S-RIIIa | BD39: sady | BE39: 13 | BI39: S-PsI | BJ39: =ROW() -> 39 | BK39: S-PsI | BL39: sady | BM39: ZDR-1 | BN39: brak | BO39: =SUMIF(Grunty!H:H,BI39,Grunty!I:I) -> 0 | BP39: =SUMIF('ZDR-1'!L:L,BI39,'ZDR-1'!I:I) -> 0 | BQ39: 11 | BR39: 3 | BU39: 90 | BV39: 7 | CU39: Damnik | CW39: Kluczbork | CX39: kluczborski | CY39: opolskie
A40: Os. reprezentująca 1 nazwisko | B40: Paluch | J40: 77 | K40: 15 | L40: 400 | M40: 14 | N40: 400 | O40: 14 | P40: 67 | Q40: 16 | R40: 606 | S40: 14 | T40: 606 | U40: 14 | V40: 75 | W40: 18 | X40: 690 | Y40: 12 | Z40: 690 | AA40: 12 | BC40: S-RIIIb | BD40: sady | BE40: 14 | BI40: S-RI | BJ40: =ROW() -> 40 | BK40: S-RI | BL40: sady | BM40: ZDR-1 | BN40: brak | BO40: =SUMIF(Grunty!H:H,BI40,Grunty!I:I) -> 0 | BP40: =SUMIF('ZDR-1'!L:L,BI40,'ZDR-1'!I:I) -> 0 | BQ40: 11 | BR40: 3 | BU40: 90 | BV40: 7 | CU40: Danielaczka | CW40: Lasowice Wielkie | CX40: kluczborski | CY40: opolskie
A41: Os. reprezentująca 1 data | B41: 17012022 | J41: 92 | K41: 15 | L41: 431 | M41: 3 | N41: 431 | O41: 3 | P41: 74 | Q41: 7 | R41: =R37+68 -> 634 | S41: =S37 -> 3 | T41: 634 | U41: 3 | V41: 75 | W41: 25 | X41: 743 | Y41: 3 | Z41: 743 | AA41: 3 | BC41: S-ŁIV | BD41: sady | BE41: 15 | BI41: S-ŁII | BJ41: =ROW() -> 41 | BK41: S-ŁII | BL41: sady | BM41: ZDR-1 | BN41: brak | BO41: =SUMIF(Grunty!H:H,BI41,Grunty!I:I) -> 0 | BP41: =SUMIF('ZDR-1'!L:L,BI41,'ZDR-1'!I:I) -> 0 | BQ41: 12 | BR41: 3 | BU41: 91 | BV41: 7 | CU41: Daniszów | CW41: Byczyna | CX41: kluczborski | CY41: opolskie
A42: Os. reprezentująca 2 imię | B42: Edyta | J42: 94 | K42: 15 | L42: 438 | M42: 14 | N42: 438 | O42: 14 | P42: 79 | Q42: 7 | R42: =R38+68 -> 641 | S42: =S38 -> 14 | T42: 641 | U42: 14 | V42: 75 | W42: 25 | X42: 750 | Y42: 12 | Z42: 750 | AA42: 12 | BC42: S-PsIV | BD42: sady | BE42: 15 | BI42: S-PsII | BJ42: =ROW() -> 42 | BK42: S-PsII | BL42: sady | BM42: ZDR-1 | BN42: brak | BO42: =SUMIF(Grunty!H:H,BI42,Grunty!I:I) -> 0 | BP42: =SUMIF('ZDR-1'!L:L,BI42,'ZDR-1'!I:I) -> 0 | BQ42: 12 | BR42: 3 | BU42: 91 | BV42: 7 | CU42: Dąbrowa | CW42: Kluczbork | CX42: kluczborski | CY42: opolskie
A43: Os. reprezentująca 2 nazwisko | B43: Stabrawa | J43: 116 | K43: 15 | L43: 450 | M43: 3 | N43: 450 | O43: 3 | P43: 83 | Q43: 7 | R43: 655 | S43: 3 | T43: 655 | U43: 3 | V43: 78 | W43: 11 | X43: 763 | Y43: 3 | Z43: 763 | AA43: 3 | BC43: S-RIVa | BD43: sady | BE43: 15 | BI43: S-RII | BJ43: =ROW() -> 43 | BK43: S-RII | BL43: sady | BM43: ZDR-1 | BN43: brak | BO43: =SUMIF(Grunty!H:H,BI43,Grunty!I:I) -> 0 | BP43: =SUMIF('ZDR-1'!L:L,BI43,'ZDR-1'!I:I) -> 0 | BQ43: 12 | BR43: 3 | BU43: 91 | BV43: 7 | CU43: Dąbrówka | CW43: Byczyna | CX43: kluczborski | CY43: opolskie
A44: Os. reprezentująca 2 data | B44: 17012022 | J44: 118 | K44: 15 | L44: 457 | M44: 14 | N44: 457 | O44: 14 | P44: 86 | Q44: 7 | R44: 674 | S44: 14 | T44: 674 | U44: 14 | V44: 83 | W44: 11 | X44: 770 | Y44: 12 | Z44: 770 | AA44: 12 | BC44: S-RIVb | BD44: sady | BE44: 16 | BI44: S-ŁIII | BJ44: =ROW() -> 44 | BK44: S-ŁIII | BL44: sady | BM44: ZDR-1 | BN44: brak | BO44: =SUMIF(Grunty!H:H,BI44,Grunty!I:I) -> 0 | BP44: =SUMIF('ZDR-1'!L:L,BI44,'ZDR-1'!I:I) -> 0 | BQ44: 13 | BR44: 3 | BU44: 92 | BV44: 7 | CU44: Dębień | CW44: Lasowice Wielkie | CX44: kluczborski | CY44: opolskie
A45: Dane kontaktowe tel | B45: 792-236-388 | J45: 122 | K45: 15 | L45: 461 | M45: 3 | N45: 461 | O45: 3 | P45: 90 | Q45: 7 | R45: =R41+68 -> 702 | S45: =S41 -> 3 | T45: 6 | U45: 3 | V45: 78 | W45: 23 | X45: 823 | Y45: 3 | Z45: 6 | AA45: 3 | BC45: Br-ŁI | BD45: rolne zabudowane | BE45: 17 | BI45: S-PsIII | BJ45: =ROW() -> 45 | BK45: S-PsIII | BL45: sady | BM45: ZDR-1 | BN45: brak | BO45: =SUMIF(Grunty!H:H,BI45,Grunty!I:I) -> 0 | BP45: =SUMIF('ZDR-1'!L:L,BI45,'ZDR-1'!I:I) -> 0 | BQ45: 13 | BR45: 3 | BU45: 92 | BV45: 7 | CU45: Dębniak | CW45: Wołczyn | CX45: kluczborski | CY45: opolskie
A46: Dane kontaktowe mail | B46: tomasz.paluch@maciejów.eu | J46: 124 | K46: 15 | L46: 468 | M46: 14 | N46: 468 | O46: 14 | P46: 95 | Q46: 7 | R46: 709 | S46: 14 | T46: 6 | U46: 3 | V46: 83 | W46: 23 | X46: 830 | Y46: 12 | Z46: 6 | AA46: 3 | BC46: Br-ŁII | BD46: rolne zabudowane | BE46: 17 | BI46: S-RIIIa | BJ46: =ROW() -> 46 | BK46: S-RIIIa | BL46: sady | BM46: ZDR-1 | BN46: brak | BO46: =SUMIF(Grunty!H:H,BI46,Grunty!I:I) -> 0 | BP46: =SUMIF('ZDR-1'!L:L,BI46,'ZDR-1'!I:I) -> 0 | BQ46: 13 | BR46: 3 | BU46: 92 | BV46: 7 | CU46: Długa | CW46: Byczyna | CX46: kluczborski | CY46: opolskie
J47: 128 | K47: 15 | L47: 499 | M47: 3 | N47: 499 | O47: 3 | P47: 100 | Q47: 4 | R47: 723 | S47: 3 | V47: 87 | W47: 9 | X47: 843 | Y47: 3 | BC47: Br-ŁIII | BD47: rolne zabudowane | BE47: 17 | BI47: S-RIIIb | BJ47: =ROW() -> 47 | BK47: S-RIIIb | BL47: sady | BM47: ZDR-1 | BN47: brak | BO47: =SUMIF(Grunty!H:H,BI47,Grunty!I:I) -> 0 | BP47: =SUMIF('ZDR-1'!L:L,BI47,'ZDR-1'!I:I) -> 0 | BQ47: 14 | BR47: 3 | BU47: 93 | BV47: 7 | CU47: Dobiercice | CW47: Byczyna | CX47: kluczborski | CY47: opolskie
J48: 130 | K48: 15 | L48: 506 | M48: 14 | N48: 506 | O48: 14 | P48: 100 | Q48: 4 | R48: 742 | S48: 14 | V48: 87 | W48: 9 | X48: 850 | Y48: 12 | BC48: Br-ŁIV | BD48: rolne zabudowane | BE48: 17 | BI48: S-ŁIV | BJ48: =ROW() -> 48 | BK48: S-ŁIV | BL48: sady | BM48: ZDR-1 | BN48: brak | BO48: =SUMIF(Grunty!H:H,BI48,Grunty!I:I) -> 0 | BP48: =SUMIF('ZDR-1'!L:L,BI48,'ZDR-1'!I:I) -> 0 | BQ48: 15 | BR48: 3 | BU48: 94 | BV48: 7 | CU48: Dobrzyny | CW48: Kluczbork | CX48: kluczborski | CY48: opolskie
J49: 134 | K49: 15 | L49: 518 | M49: 3 | N49: 518 | O49: 3 | P49: 110 | Q49: 4 | R49: =R45+68 -> 770 | S49: =S45 -> 3 | V49: 87 | W49: 21 | X49: 903 | Y49: 3 | BC49: Br-PsI | BD49: rolne zabudowane | BE49: 17 | BI49: S-PsIV | BJ49: =ROW() -> 49 | BK49: S-PsIV | BL49: sady | BM49: ZDR-1 | BN49: brak | BO49: =SUMIF(Grunty!H:H,BI49,Grunty!I:I) -> 0 | BP49: =SUMIF('ZDR-1'!L:L,BI49,'ZDR-1'!I:I) -> 0 | BQ49: 15 | BR49: 3 | BU49: 94 | BV49: 7 | CU49: Drogomin | CW49: Kluczbork | CX49: kluczborski | CY49: opolskie
J50: 136 | K50: 15 | L50: 525 | M50: 14 | N50: 525 | O50: 14 | P50: 110 | Q50: 4 | R50: 777 | S50: 14 | V50: 87 | W50: 21 | X50: 910 | Y50: 12 | BC50: Br-PsII | BD50: rolne zabudowane | BE50: 17 | BI50: S-RIVa | BJ50: =ROW() -> 50 | BK50: S-RIVa | BL50: sady | BM50: ZDR-1 | BN50: brak | BO50: =SUMIF(Grunty!H:H,BI50,Grunty!I:I) -> 0 | BP50: =SUMIF('ZDR-1'!L:L,BI50,'ZDR-1'!I:I) -> 0 | BQ50: 15 | BR50: 3 | BU50: 94 | BV50: 7 | CU50: Drzewiec | CW50: Kluczbork | CX50: kluczborski | CY50: opolskie
J51: 141 | K51: 15 | L51: 529 | M51: 3 | N51: 529 | O51: 3 | P51: 123 | Q51: 18 | R51: 791 | S51: 3 | V51: 91 | W51: 3 | X51: 923 | Y51: 3 | BC51: Br-PsIII | BD51: rolne zabudowane | BE51: 17 | BI51: S-RIVb | BJ51: =ROW() -> 51 | BK51: S-RIVb | BL51: sady | BM51: ZDR-1 | BN51: brak | BO51: =SUMIF(Grunty!H:H,BI51,Grunty!I:I) -> 0 | BP51: =SUMIF('ZDR-1'!L:L,BI51,'ZDR-1'!I:I) -> 0 | BQ51: 16 | BR51: 3 | BU51: 95 | BV51: 7 | CU51: Duczów Mały | CW51: Wołczyn | CX51: kluczborski | CY51: opolskie
J52: 143 | K52: 15 | L52: 536 | M52: 14 | N52: 536 | O52: 14 | P52: 123 | Q52: 18 | R52: 810 | S52: 14 | V52: 91 | W52: 16 | X52: 930 | Y52: 12 | BC52: Br-PsIV | BD52: rolne zabudowane | BE52: 17 | BI52: Br-ŁI | BJ52: =ROW() -> 52 | BK52: Br-ŁI | BL52: rolne zabudowane | BM52: ZDR-1 | BN52: brak | BO52: =SUMIF(Grunty!H:H,BI52,Grunty!I:I) -> 0 | BP52: =SUMIF('ZDR-1'!L:L,BI52,'ZDR-1'!I:I) -> 0 | BQ52: 17 | BR52: 3 | BU52: 100 | BV52: 4 | CU52: Duczów Wielki | CW52: Wołczyn | CX52: kluczborski | CY52: opolskie
J53: 179 | K53: 15 | L53: 567 | M53: 3 | N53: 567 | O53: 3 | P53: 123 | Q53: 25 | R53: =R49+68 -> 838 | S53: =S49 -> 3 | V53: 93 | W53: 3 | X53: 983 | Y53: 3 | BC53: Br-RI | BD53: rolne zabudowane | BE53: 17 | BI53: Br-ŁII | BJ53: =ROW() -> 53 | BK53: Br-ŁII | BL53: rolne zabudowane | BM53: ZDR-1 | BN53: brak | BO53: =SUMIF(Grunty!H:H,BI53,Grunty!I:I) -> 0 | BP53: =SUMIF('ZDR-1'!L:L,BI53,'ZDR-1'!I:I) -> 0 | BQ53: 17 | BR53: 3 | BU53: 100 | BV53: 4 | CU53: Gierałcice | CW53: Wołczyn | CX53: kluczborski | CY53: opolskie
J54: 179 | K54: 15 | L54: 574 | M54: 14 | N54: 574 | O54: 14 | P54: 123 | Q54: 25 | R54: 845 | S54: 14 | V54: 93 | W54: 3 | X54: 990 | Y54: 12 | BC54: Br-RII | BD54: rolne zabudowane | BE54: 17 | BI54: Br-ŁIII | BJ54: =ROW() -> 54 | BK54: Br-ŁIII | BL54: rolne zabudowane | BM54: ZDR-1 | BN54: brak | BO54: =SUMIF(Grunty!H:H,BI54,Grunty!I:I) -> 0 | BP54: =SUMIF('ZDR-1'!L:L,BI54,'ZDR-1'!I:I) -> 0 | BQ54: 17 | BR54: 3 | BU54: 100 | BV54: 4 | CU54: Gierałcice Małe | CW54: Wołczyn | CX54: kluczborski | CY54: opolskie
J55: 182 | K55: 15 | L55: 586 | M55: 3 | N55: 586 | O55: 3 | P55: 124 | Q55: 18 | R55: 859 | S55: 3 | V55: 98 | W55: 3 | X55: 1003 | Y55: 3 | BC55: Br-RIIIa | BD55: rolne zabudowane | BE55: 17 | BI55: Br-ŁIV | BJ55: =ROW() -> 55 | BK55: Br-ŁIV | BL55: rolne zabudowane | BM55: ZDR-1 | BN55: brak | BO55: =SUMIF(Grunty!H:H,BI55,Grunty!I:I) -> 0 | BP55: =SUMIF('ZDR-1'!L:L,BI55,'ZDR-1'!I:I) -> 0 | BQ55: 17 | BR55: 3 | BU55: 100 | BV55: 4 | CU55: Godzików | CW55: Byczyna | CX55: kluczborski | CY55: opolskie
J56: 182 | K56: 15 | L56: 593 | M56: 14 | N56: 593 | O56: 14 | P56: 124 | Q56: 18 | R56: 878 | S56: 14 | V56: 98 | W56: 16 | X56: 1010 | Y56: 12 | BC56: Br-RIIIb | BD56: rolne zabudowane | BE56: 17 | BI56: Br-PsI | BJ56: =ROW() -> 56 | BK56: Br-PsI | BL56: rolne zabudowane | BM56: ZDR-1 | BN56: brak | BO56: =SUMIF(Grunty!H:H,BI56,Grunty!I:I) -> 0 | BP56: =SUMIF('ZDR-1'!L:L,BI56,'ZDR-1'!I:I) -> 0 | BQ56: 17 | BR56: 3 | BU56: 100 | BV56: 4 | CU56: Gołkowice | CW56: Byczyna | CX56: kluczborski | CY56: opolskie
J57: 192 | K57: 21 | L57: 597 | M57: 3 | N57: 597 | O57: 3 | P57: 124 | Q57: 25 | R57: =R53+68 -> 906 | S57: =S53 -> 3 | V57: 100 | W57: 6 | X57: 1063 | Y57: 3 | BC57: Br-RIVa | BD57: rolne zabudowane | BE57: 17 | BI57: Br-PsII | BJ57: =ROW() -> 57 | BK57: Br-PsII | BL57: rolne zabudowane | BM57: ZDR-1 | BN57: brak | BO57: =SUMIF(Grunty!H:H,BI57,Grunty!I:I) -> 0 | BP57: =SUMIF('ZDR-1'!L:L,BI57,'ZDR-1'!I:I) -> 0 | BQ57: 17 | BR57: 3 | BU57: 100 | BV57: 4 | CU57: Gosław | CW57: Byczyna | CX57: kluczborski | CY57: opolskie
J58: 192 | K58: 21 | L58: 604 | M58: 14 | N58: 604 | O58: 14 | P58: 124 | Q58: 25 | R58: 913 | S58: 14 | V58: 100 | W58: 6 | X58: 1070 | Y58: 12 | BC58: Br-RIVb | BD58: rolne zabudowane | BE58: 17 | BI58: Br-PsIII | BJ58: =ROW() -> 58 | BK58: Br-PsIII | BL58: rolne zabudowane | BM58: ZDR-1 | BN58: brak | BO58: =SUMIF(Grunty!H:H,BI58,Grunty!I:I) -> 0 | BP58: =SUMIF('ZDR-1'!L:L,BI58,'ZDR-1'!I:I) -> 0 | BQ58: 17 | BR58: 3 | BU58: 100 | BV58: 4 | CU58: Gotartów | CW58: Kluczbork | CX58: kluczborski | CY58: opolskie
H59: 635 | J59: 192 | K59: 25 | L59: =L53+68 -> 635 | M59: =M53 -> 3 | N59: 635 | O59: 3 | P59: 125 | Q59: 18 | R59: 927 | S59: 3 | V59: 103 | W59: 3 | X59: 1083 | Y59: 3 | BC59: W | BD59: rowy | BE59: 18 | BI59: Br-PsIV | BJ59: =ROW() -> 59 | BK59: Br-PsIV | BL59: rolne zabudowane | BM59: ZDR-1 | BN59: brak | BO59: =SUMIF(Grunty!H:H,BI59,Grunty!I:I) -> 0 | BP59: =SUMIF('ZDR-1'!L:L,BI59,'ZDR-1'!I:I) -> 0 | BQ59: 17 | BR59: 3 | BU59: 100 | BV59: 4 | CU59: Gotartów-Ogrodnictwo | CW59: Kluczbork | CX59: kluczborski | CY59: opolskie
H60: 642 | J60: 192 | K60: 25 | L60: 642 | M60: 14 | N60: 642 | O60: 14 | P60: 125 | Q60: 18 | R60: 946 | S60: 14 | V60: 103 | W60: 16 | X60: 1090 | Y60: 12 | BC60: W-ŁI | BD60: rowy | BE60: 18 | BI60: Br-RI | BJ60: =ROW() -> 60 | BK60: Br-RI | BL60: rolne zabudowane | BM60: ZDR-1 | BN60: brak | BO60: =SUMIF(Grunty!H:H,BI60,Grunty!I:I) -> 0 | BP60: =SUMIF('ZDR-1'!L:L,BI60,'ZDR-1'!I:I) -> 0 | BQ60: 17 | BR60: 3 | BU60: 100 | BV60: 4 | CU60: Gronowice | CW60: Lasowice Wielkie | CX60: kluczborski | CY60: opolskie
H61: 654 | J61: 196 | K61: 11 | L61: 654 | M61: 3 | N61: 654 | O61: 3 | P61: 125 | Q61: 25 | R61: =R57+68 -> 974 | S61: =S57 -> 3 | V61: 105 | W61: 6 | X61: 1143 | Y61: 3 | BC61: W-ŁII | BD61: rowy | BE61: 18 | BI61: Br-RII | BJ61: =ROW() -> 61 | BK61: Br-RII | BL61: rolne zabudowane | BM61: ZDR-1 | BN61: brak | BO61: =SUMIF(Grunty!H:H,BI61,Grunty!I:I) -> 0 | BP61: =SUMIF('ZDR-1'!L:L,BI61,'ZDR-1'!I:I) -> 0 | BQ61: 17 | BR61: 3 | BU61: 100 | BV61: 4 | CU61: Hanower | CW61: Lasowice Wielkie | CX61: kluczborski | CY61: opolskie
H62: 661 | J62: 201 | K62: 11 | L62: 661 | M62: 14 | N62: 661 | O62: 14 | P62: 125 | Q62: 25 | R62: 981 | S62: 14 | V62: 105 | W62: 6 | X62: 1150 | Y62: 12 | BC62: W-ŁIII | BD62: rowy | BE62: 18 | BI62: Br-RIIIa | BJ62: =ROW() -> 62 | BK62: Br-RIIIa | BL62: rolne zabudowane | BM62: ZDR-1 | BN62: brak | BO62: =SUMIF(Grunty!H:H,BI62,Grunty!I:I) -> 0 | BP62: =SUMIF('ZDR-1'!L:L,BI62,'ZDR-1'!I:I) -> 0 | BQ62: 17 | BR62: 3 | BU62: 100 | BV62: 4 | CU62: Jakubowice | CW62: Byczyna | CX62: kluczborski | CY62: opolskie
H63: 665 | J63: 196 | K63: 23 | L63: 665 | M63: 3 | N63: 665 | O63: 3 | P63: 128 | Q63: 11 | R63: 995 | S63: 3 | V63: 107 | W63: 3 | X63: 1163 | Y63: 3 | BC63: W-ŁIV | BD63: rowy | BE63: 18 | BI63: Br-RIIIb | BJ63: =ROW() -> 63 | BK63: Br-RIIIb | BL63: rolne zabudowane | BM63: ZDR-1 | BN63: brak | BO63: =SUMIF(Grunty!H:H,BI63,Grunty!I:I) -> 0 | BP63: =SUMIF('ZDR-1'!L:L,BI63,'ZDR-1'!I:I) -> 0 | BQ63: 17 | BR63: 3 | BU63: 100 | BV63: 4 | CU63: Janówka | CW63: Byczyna | CX63: kluczborski | CY63: opolskie
H64: 672 | J64: 201 | K64: 23 | L64: 672 | M64: 14 | N64: 672 | O64: 14 | P64: 129 | Q64: 11 | R64: 1014 | S64: 14 | V64: 107 | W64: 16 | X64: 1170 | Y64: 12 | BC64: W-PsI | BD64: rowy | BE64: 18 | BI64: Br-RIVa | BJ64: =ROW() -> 64 | BK64: Br-RIVa | BL64: rolne zabudowane | BM64: ZDR-1 | BN64: brak | BO64: =SUMIF(Grunty!H:H,BI64,Grunty!I:I) -> 0 | BP64: =SUMIF('ZDR-1'!L:L,BI64,'ZDR-1'!I:I) -> 0 | BQ64: 17 | BR64: 3 | BU64: 100 | BV64: 4 | CU64: Jasienie | CW64: Lasowice Wielkie | CX64: kluczborski | CY64: opolskie
J65: 205 | K65: 9 | L65: 703 | M65: 3 | N65: =N59+68 -> 703 | O65: =O59 -> 3 | P65: 128 | Q65: 23 | R65: =R61+68 -> 1042 | S65: =S61 -> 3 | V65: 109 | W65: 6 | X65: 1223 | Y65: 3 | BC65: W-PsII | BD65: rowy | BE65: 18 | BI65: Br-RIVb | BJ65: =ROW() -> 65 | BK65: Br-RIVb | BL65: rolne zabudowane | BM65: ZDR-1 | BN65: brak | BO65: =SUMIF(Grunty!H:H,BI65,Grunty!I:I) -> 0 | BP65: =SUMIF('ZDR-1'!L:L,BI65,'ZDR-1'!I:I) -> 0 | BQ65: 17 | BR65: 3 | BU65: 100 | BV65: 4 | CU65: Jaśkowice | CW65: Byczyna | CX65: kluczborski | CY65: opolskie
J66: 205 | K66: 9 | L66: 710 | M66: 14 | N66: 710 | O66: 14 | P66: 129 | Q66: 23 | R66: 1049 | S66: 14 | V66: 109 | W66: 6 | X66: 1230 | Y66: 12 | BC66: W-PsIII | BD66: rowy | BE66: 18 | BI66: W | BJ66: =ROW() -> 66 | BK66: W | BL66: rowy | BM66: ZDR-1 | BN66: brak | BO66: =SUMIF(Grunty!H:H,BI66,Grunty!I:I) -> 0 | BP66: =SUMIF('ZDR-1'!L:L,BI66,'ZDR-1'!I:I) -> 0 | BQ66: 18 | BR66: 3 | BU66: 110 | BV66: 7 | CU66: Jedliska | CW66: Wołczyn | CX66: kluczborski | CY66: opolskie
J67: 205 | K67: 21 | L67: 722 | M67: 3 | N67: 722 | O67: 3 | P67: 133 | Q67: 9 | R67: 1063 | S67: 3 | V67: 6 | W67: 2 | X67: 1243 | Y67: 3 | BC67: W-PsIV | BD67: rowy | BE67: 18 | BI67: W-ŁI | BJ67: =ROW() -> 67 | BK67: W-ŁI | BL67: rowy | BM67: ZDR-1 | BN67: brak | BO67: =SUMIF(Grunty!H:H,BI67,Grunty!I:I) -> 0 | BP67: =SUMIF('ZDR-1'!L:L,BI67,'ZDR-1'!I:I) -> 0 | BQ67: 18 | BR67: 3 | BU67: 110 | BV67: 7 | CU67: Jędrzejowice | CW67: Wołczyn | CX67: kluczborski | CY67: opolskie
J68: 205 | K68: 21 | L68: 729 | M68: 14 | N68: 729 | O68: 14 | P68: 133 | Q68: 9 | R68: 1082 | S68: 14 | V68: 6 | W68: 2 | X68: 1250 | Y68: 12 | BC68: W-RI | BD68: rowy | BE68: 18 | BI68: W-ŁII | BJ68: =ROW() -> 68 | BK68: W-ŁII | BL68: rowy | BM68: ZDR-1 | BN68: brak | BO68: =SUMIF(Grunty!H:H,BI68,Grunty!I:I) -> 0 | BP68: =SUMIF('ZDR-1'!L:L,BI68,'ZDR-1'!I:I) -> 0 | BQ68: 18 | BR68: 3 | BU68: 110 | BV68: 7 | CU68: Kamieniec | CW68: Lasowice Wielkie | CX68: kluczborski | CY68: opolskie
J69: 209 | K69: 3 | L69: 733 | M69: 3 | N69: 733 | O69: 3 | P69: 133 | Q69: 21 | R69: =R65+68 -> 1110 | S69: =S65 -> 3 | X69: 1303 | Y69: 3 | BC69: W-RII | BD69: rowy | BE69: 18 | BI69: W-ŁIII | BJ69: =ROW() -> 69 | BK69: W-ŁIII | BL69: rowy | BM69: ZDR-1 | BN69: brak | BO69: =SUMIF(Grunty!H:H,BI69,Grunty!I:I) -> 0 | BP69: =SUMIF('ZDR-1'!L:L,BI69,'ZDR-1'!I:I) -> 0 | BQ69: 18 | BR69: 3 | BU69: 110 | BV69: 7 | CU69: Kamienisko | CW69: Kluczbork | CX69: kluczborski | CY69: opolskie
J70: 209 | K70: 16 | L70: 740 | M70: 14 | N70: 740 | O70: 14 | P70: 133 | Q70: 21 | R70: 1117 | S70: 14 | X70: 1310 | Y70: 12 | BC70: W-RIIIa | BD70: rowy | BE70: 18 | BI70: W-ŁIV | BJ70: =ROW() -> 70 | BK70: W-ŁIV | BL70: rowy | BM70: ZDR-1 | BN70: brak | BO70: =SUMIF(Grunty!H:H,BI70,Grunty!I:I) -> 0 | BP70: =SUMIF('ZDR-1'!L:L,BI70,'ZDR-1'!I:I) -> 0 | BQ70: 18 | BR70: 3 | BU70: 110 | BV70: 7 | CU70: Kania | CW70: Byczyna | CX70: kluczborski | CY70: opolskie
J71: 219 | K71: 3 | L71: 771 | M71: 3 | N71: 771 | O71: 3 | P71: 137 | Q71: 3 | R71: 1131 | S71: 3 | X71: 1323 | Y71: 3 | BC71: W-RIIIb | BD71: rowy | BE71: 18 | BI71: W-PsI | BJ71: =ROW() -> 71 | BK71: W-PsI | BL71: rowy | BM71: ZDR-1 | BN71: brak | BO71: =SUMIF(Grunty!H:H,BI71,Grunty!I:I) -> 0 | BP71: =SUMIF('ZDR-1'!L:L,BI71,'ZDR-1'!I:I) -> 0 | BQ71: 18 | BR71: 3 | BU71: 110 | BV71: 7 | CU71: Kanimierów | CW71: Kluczbork | CX71: kluczborski | CY71: opolskie
J72: 219 | K72: 3 | L72: 778 | M72: 14 | N72: 778 | O72: 14 | P72: 137 | Q72: 16 | R72: 1150 | S72: 14 | X72: 1330 | Y72: 12 | BC72: W-RIVa | BD72: rowy | BE72: 18 | BI72: W-PsII | BJ72: =ROW() -> 72 | BK72: W-PsII | BL72: rowy | BM72: ZDR-1 | BN72: brak | BO72: =SUMIF(Grunty!H:H,BI72,Grunty!I:I) -> 0 | BP72: =SUMIF('ZDR-1'!L:L,BI72,'ZDR-1'!I:I) -> 0 | BQ72: 18 | BR72: 3 | BU72: 110 | BV72: 7 | CU72: Kluczbork | CV72: 46-200 | CW72: Kluczbork | CX72: kluczborski | CY72: opolskie
J73: 224 | K73: 3 | L73: 790 | M73: 3 | N73: 790 | O73: 3 | P73: 139 | Q73: 3 | R73: =R69+68 -> 1178 | S73: =S69 -> 3 | X73: 1383 | Y73: 3 | BC73: W-RIVb | BD73: rowy | BE73: 18 | BI73: W-PsIII | BJ73: =ROW() -> 73 | BK73: W-PsIII | BL73: rowy | BM73: ZDR-1 | BN73: brak | BO73: =SUMIF(Grunty!H:H,BI73,Grunty!I:I) -> 0 | BP73: =SUMIF('ZDR-1'!L:L,BI73,'ZDR-1'!I:I) -> 0 | BQ73: 18 | BR73: 3 | BU73: 110 | BV73: 7 | CU73: Kluczbork | CV73: 46-203 | CW73: Kluczbork | CX73: kluczborski | CY73: opolskie
J74: 224 | K74: 16 | L74: 797 | M74: 14 | N74: 797 | O74: 14 | P74: 139 | Q74: 3 | R74: 1185 | S74: 14 | X74: =X70+80 -> 1390 | Y74: =Y70 -> 12 | BC74: Wsr | BD74: stawy | BE74: 19 | BI74: W-PsIV | BJ74: =ROW() -> 74 | BK74: W-PsIV | BL74: rowy | BM74: ZDR-1 | BN74: brak | BO74: =SUMIF(Grunty!H:H,BI74,Grunty!I:I) -> 0 | BP74: =SUMIF('ZDR-1'!L:L,BI74,'ZDR-1'!I:I) -> 0 | BQ74: 18 | BR74: 3 | BU74: 110 | BV74: 7 | CU74: Kluczów | CW74: Byczyna | CX74: kluczborski | CY74: opolskie
J75: 226 | K75: 6 | L75: 801 | M75: 3 | N75: 801 | O75: 3 | P75: 144 | Q75: 3 | R75: 1199 | S75: 3 | X75: 1403 | Y75: 3 | BC75: Wsr-ŁI | BD75: stawy | BE75: 19 | BI75: W-RI | BJ75: =ROW() -> 75 | BK75: W-RI | BL75: rowy | BM75: ZDR-1 | BN75: brak | BO75: =SUMIF(Grunty!H:H,BI75,Grunty!I:I) -> 0 | BP75: =SUMIF('ZDR-1'!L:L,BI75,'ZDR-1'!I:I) -> 0 | BQ75: 18 | BR75: 3 | BU75: 110 | BV75: 7 | CU75: Kłapaczka | CW75: Lasowice Wielkie | CX75: kluczborski | CY75: opolskie
J76: 226 | K76: 6 | L76: 808 | M76: 14 | N76: 808 | O76: 14 | P76: 144 | Q76: 16 | R76: 1218 | S76: 14 | X76: 1410 | Y76: 12 | BC76: Wsr-ŁII | BD76: stawy | BE76: 19 | BI76: W-RII | BJ76: =ROW() -> 76 | BK76: W-RII | BL76: rowy | BM76: ZDR-1 | BN76: brak | BO76: =SUMIF(Grunty!H:H,BI76,Grunty!I:I) -> 0 | BP76: =SUMIF('ZDR-1'!L:L,BI76,'ZDR-1'!I:I) -> 0 | BQ76: 18 | BR76: 3 | BU76: 110 | BV76: 7 | CU76: Kochłowice | CW76: Byczyna | CX76: kluczborski | CY76: opolskie
J77: 229 | K77: 3 | L77: 839 | M77: 3 | N77: 839 | O77: 3 | P77: 146 | Q77: 6 | R77: =R73+68 -> 1246 | S77: =S73 -> 3 | X77: 1463 | Y77: 3 | BC77: Wsr-ŁIII | BD77: stawy | BE77: 19 | BI77: W-RIIIa | BJ77: =ROW() -> 77 | BK77: W-RIIIa | BL77: rowy | BM77: ZDR-1 | BN77: brak | BO77: =SUMIF(Grunty!H:H,BI77,Grunty!I:I) -> 0 | BP77: =SUMIF('ZDR-1'!L:L,BI77,'ZDR-1'!I:I) -> 0 | BQ77: 18 | BR77: 3 | BU77: 110 | BV77: 7 | CU77: Kolonia Ciarki | CW77: Lasowice Wielkie | CX77: kluczborski | CY77: opolskie
J78: 229 | K78: 16 | L78: 846 | M78: 14 | N78: 846 | O78: 14 | P78: 146 | Q78: 6 | R78: 1253 | S78: 14 | X78: 1470 | Y78: 12 | BC78: Wsr-ŁIV | BD78: stawy | BE78: 19 | BI78: W-RIIIb | BJ78: =ROW() -> 78 | BK78: W-RIIIb | BL78: rowy | BM78: ZDR-1 | BN78: brak | BO78: =SUMIF(Grunty!H:H,BI78,Grunty!I:I) -> 0 | BP78: =SUMIF('ZDR-1'!L:L,BI78,'ZDR-1'!I:I) -> 0 | BQ78: 18 | BR78: 3 | BU78: 110 | BV78: 7 | CU78: Kolonia Piecowa | CW78: Kluczbork | CX78: kluczborski | CY78: opolskie
J79: 231 | K79: 6 | L79: 858 | M79: 3 | N79: 858 | O79: 3 | P79: 154 | Q79: 3 | R79: 1267 | S79: 3 | X79: 1483 | Y79: 3 | BC79: Wsr-PsI | BD79: stawy | BE79: 19 | BI79: W-RIVa | BJ79: =ROW() -> 79 | BK79: W-RIVa | BL79: rowy | BM79: ZDR-1 | BN79: brak | BO79: =SUMIF(Grunty!H:H,BI79,Grunty!I:I) -> 0 | BP79: =SUMIF('ZDR-1'!L:L,BI79,'ZDR-1'!I:I) -> 0 | BQ79: 18 | BR79: 3 | BU79: 110 | BV79: 7 | CU79: Kołoczek | CW79: Wołczyn | CX79: kluczborski | CY79: opolskie
J80: 231 | K80: 6 | L80: 865 | M80: 14 | N80: 865 | O80: 14 | P80: 154 | Q80: 16 | R80: 1286 | S80: 14 | X80: 1490 | Y80: 12 | BC80: Wsr-PsII | BD80: stawy | BE80: 19 | BI80: W-RIVb | BJ80: =ROW() -> 80 | BK80: W-RIVb | BL80: rowy | BM80: ZDR-1 | BN80: brak | BO80: =SUMIF(Grunty!H:H,BI80,Grunty!I:I) -> 0 | BP80: =SUMIF('ZDR-1'!L:L,BI80,'ZDR-1'!I:I) -> 0 | BQ80: 18 | BR80: 3 | BU80: 110 | BV80: 7 | CU80: Komorzno | CW80: Wołczyn | CX80: kluczborski | CY80: opolskie
J81: 233 | K81: 3 | L81: 869 | M81: 3 | N81: 869 | O81: 3 | P81: 156 | Q81: 6 | R81: =R77+68 -> 1314 | S81: =S77 -> 3 | X81: 1543 | Y81: 3 | BC81: Wsr-PsIII | BD81: stawy | BE81: 19 | BI81: Wsr | BJ81: =ROW() -> 81 | BK81: Wsr | BL81: stawy | BM81: ZDR-1 | BN81: brak | BO81: =SUMIF(Grunty!H:H,BI81,Grunty!I:I) -> 0 | BP81: =SUMIF('ZDR-1'!L:L,BI81,'ZDR-1'!I:I) -> 0 | BQ81: 19 | BR81: 3 | BU81: 110 | BV81: 7 | CU81: Kopaczka | CW81: Lasowice Wielkie | CX81: kluczborski | CY81: opolskie
J82: 233 | K82: 16 | L82: 876 | M82: 14 | N82: 876 | O82: 14 | P82: 156 | Q82: 6 | R82: 1321 | S82: 14 | X82: 1550 | Y82: 12 | BC82: Wsr-PsIV | BD82: stawy | BE82: 19 | BI82: Wsr-ŁI | BJ82: =ROW() -> 82 | BK82: Wsr-ŁI | BL82: stawy | BM82: ZDR-1 | BN82: brak | BO82: =SUMIF(Grunty!H:H,BI82,Grunty!I:I) -> 0 | BP82: =SUMIF('ZDR-1'!L:L,BI82,'ZDR-1'!I:I) -> 0 | BQ82: 19 | BR82: 3 | BU82: 110 | BV82: 7 | CU82: Kopalina | CW82: Lasowice Wielkie | CX82: kluczborski | CY82: opolskie
J83: 235 | K83: 6 | L83: 907 | M83: 3 | N83: 907 | O83: 3 | P83: 158 | Q83: 3 | R83: 1335 | S83: 3 | X83: 1563 | Y83: 3 | BC83: Wsr-RI | BD83: stawy | BE83: 19 | BI83: Wsr-ŁII | BJ83: =ROW() -> 83 | BK83: Wsr-ŁII | BL83: stawy | BM83: ZDR-1 | BN83: brak | BO83: =SUMIF(Grunty!H:H,BI83,Grunty!I:I) -> 0 | BP83: =SUMIF('ZDR-1'!L:L,BI83,'ZDR-1'!I:I) -> 0 | BQ83: 19 | BR83: 3 | BU83: 110 | BV83: 7 | CU83: Korzeniaki | CW83: Kluczbork | CX83: kluczborski | CY83: opolskie
J84: 235 | K84: 6 | L84: 914 | M84: 14 | N84: 914 | O84: 14 | P84: 158 | Q84: 16 | R84: 1354 | S84: 14 | X84: 1570 | Y84: 12 | BC84: Wsr-RII | BD84: stawy | BE84: 19 | BI84: Wsr-ŁIII | BJ84: =ROW() -> 84 | BK84: Wsr-ŁIII | BL84: stawy | BM84: ZDR-1 | BN84: brak | BO84: =SUMIF(Grunty!H:H,BI84,Grunty!I:I) -> 0 | BP84: =SUMIF('ZDR-1'!L:L,BI84,'ZDR-1'!I:I) -> 0 | BQ84: 19 | BR84: 3 | BU84: 110 | BV84: 7 | CU84: Kostów | CW84: Byczyna | CX84: kluczborski | CY84: opolskie
J85: 6 | K85: 2 | L85: 926 | M85: 3 | N85: 926 | O85: 3 | P85: 160 | Q85: 6 | R85: =R81+68 -> 1382 | S85: =S81 -> 3 | X85: 1623 | Y85: 3 | BC85: Wsr-RIIIa | BD85: stawy | BE85: 19 | BI85: Wsr-ŁIV | BJ85: =ROW() -> 85 | BK85: Wsr-ŁIV | BL85: stawy | BM85: ZDR-1 | BN85: brak | BO85: =SUMIF(Grunty!H:H,BI85,Grunty!I:I) -> 0 | BP85: =SUMIF('ZDR-1'!L:L,BI85,'ZDR-1'!I:I) -> 0 | BQ85: 19 | BR85: 3 | BU85: 110 | BV85: 7 | CU85: Krasków | CW85: Kluczbork | CX85: kluczborski | CY85: opolskie
J86: 6 | K86: 2 | L86: 933 | M86: 14 | N86: 933 | O86: 14 | P86: 160 | Q86: 6 | R86: 1389 | S86: 14 | X86: 1630 | Y86: 12 | BC86: Wsr-RIIIb | BD86: stawy | BE86: 19 | BI86: Wsr-PsI | BJ86: =ROW() -> 86 | BK86: Wsr-PsI | BL86: stawy | BM86: ZDR-1 | BN86: brak | BO86: =SUMIF(Grunty!H:H,BI86,Grunty!I:I) -> 0 | BP86: =SUMIF('ZDR-1'!L:L,BI86,'ZDR-1'!I:I) -> 0 | BQ86: 19 | BR86: 3 | BU86: 110 | BV86: 7 | CU86: Krężel | CW86: Kluczbork | CX86: kluczborski | CY86: opolskie
L87: 937 | M87: 3 | N87: 937 | O87: 3 | P87: 6 | Q87: 2 | R87: 1403 | S87: 3 | X87: 1643 | Y87: 3 | BC87: Wsr-RIVa | BD87: stawy | BE87: 19 | BI87: Wsr-PsII | BJ87: =ROW() -> 87 | BK87: Wsr-PsII | BL87: stawy | BM87: ZDR-1 | BN87: brak | BO87: =SUMIF(Grunty!H:H,BI87,Grunty!I:I) -> 0 | BP87: =SUMIF('ZDR-1'!L:L,BI87,'ZDR-1'!I:I) -> 0 | BQ87: 19 | BR87: 3 | BU87: 110 | BV87: 7 | CU87: Krystyna | CW87: Wołczyn | CX87: kluczborski | CY87: opolskie
L88: 944 | M88: 14 | N88: 944 | O88: 14 | P88: 6 | Q88: 2 | R88: 1422 | S88: 14 | X88: 1650 | Y88: 12 | BC88: Wsr-RIVb | BD88: stawy | BE88: 19 | BI88: Wsr-PsIII | BJ88: =ROW() -> 88 | BK88: Wsr-PsIII | BL88: stawy | BM88: ZDR-1 | BN88: brak | BO88: =SUMIF(Grunty!H:H,BI88,Grunty!I:I) -> 0 | BP88: =SUMIF('ZDR-1'!L:L,BI88,'ZDR-1'!I:I) -> 0 | BQ88: 19 | BR88: 3 | BU88: 110 | BV88: 7 | CU88: Krzywiczyny | CW88: Wołczyn | CX88: kluczborski | CY88: opolskie
L89: 975 | M89: 3 | N89: 975 | O89: 3 | R89: =R85+68 -> 1450 | S89: =S85 -> 3 | X89: 1703 | Y89: 3 | BC89: R-RV | BD89: orne | BI89: Wsr-PsIV | BJ89: =ROW() -> 89 | BK89: Wsr-PsIV | BL89: stawy | BM89: ZDR-1 | BN89: brak | BO89: =SUMIF(Grunty!H:H,BI89,Grunty!I:I) -> 0 | BP89: =SUMIF('ZDR-1'!L:L,BI89,'ZDR-1'!I:I) -> 0 | BQ89: 19 | BR89: 3 | BU89: 110 | BV89: 7 | CU89: Krzywiczyny-Kolonia | CW89: Wołczyn | CX89: kluczborski | CY89: opolskie
L90: 982 | M90: 14 | N90: 982 | O90: 14 | R90: 1457 | S90: 14 | X90: 1710 | Y90: 12 | BC90: R-RVI | BD90: orne | BI90: Wsr-RI | BJ90: =ROW() -> 90 | BK90: Wsr-RI | BL90: stawy | BM90: ZDR-1 | BN90: brak | BO90: =SUMIF(Grunty!H:H,BI90,Grunty!I:I) -> 0 | BP90: =SUMIF('ZDR-1'!L:L,BI90,'ZDR-1'!I:I) -> 0 | BQ90: 19 | BR90: 3 | BU90: 110 | BV90: 7 | CU90: Krzywizna | CV90: 46-211 | CW90: Kluczbork | CX90: kluczborski | CY90: opolskie
L91: =L85+68 -> 994 | M91: =M85 -> 3 | N91: 994 | O91: 3 | R91: 1471 | S91: 3 | X91: 1723 | Y91: 3 | BC91: Ł-ŁV | BD91: łąki trwałe | BI91: Wsr-RII | BJ91: =ROW() -> 91 | BK91: Wsr-RII | BL91: stawy | BM91: ZDR-1 | BN91: brak | BO91: =SUMIF(Grunty!H:H,BI91,Grunty!I:I) -> 0 | BP91: =SUMIF('ZDR-1'!L:L,BI91,'ZDR-1'!I:I) -> 0 | BQ91: 19 | BR91: 3 | BU91: 110 | BV91: 7 | CU91: Kujakowice Dolne | CV91: 46-211 | CW91: Kluczbork | CX91: kluczborski | CY91: opolskie
L92: 1001 | M92: 14 | N92: 1001 | O92: 14 | R92: 1490 | S92: 14 | X92: 1730 | Y92: 12 | BC92: Ł-ŁVI | BD92: łąki trwałe | BI92: Wsr-RIIIa | BJ92: =ROW() -> 92 | BK92: Wsr-RIIIa | BL92: stawy | BM92: ZDR-1 | BN92: brak | BO92: =SUMIF(Grunty!H:H,BI92,Grunty!I:I) -> 0 | BP92: =SUMIF('ZDR-1'!L:L,BI92,'ZDR-1'!I:I) -> 0 | BQ92: 19 | BR92: 3 | BU92: 110 | BV92: 7 | CU92: Kujakowice Górne | CV92: 46-211 | CW92: Kluczbork | CX92: kluczborski | CY92: opolskie
L93: 1005 | M93: 3 | N93: 1005 | O93: 3 | R93: =R89+68 -> 1518 | S93: =S89 -> 3 | X93: 1783 | Y93: 3 | BC93: Ps-PsV | BD93: pastwiska | BI93: Wsr-RIIIb | BJ93: =ROW() -> 93 | BK93: Wsr-RIIIb | BL93: stawy | BM93: ZDR-1 | BN93: brak | BO93: =SUMIF(Grunty!H:H,BI93,Grunty!I:I) -> 0 | BP93: =SUMIF('ZDR-1'!L:L,BI93,'ZDR-1'!I:I) -> 0 | BQ93: 19 | BR93: 3 | BU93: 110 | BV93: 7 | CU93: Kuniów | CV93: 46-200 | CW93: Kluczbork | CX93: kluczborski | CY93: opolskie
L94: 1012 | M94: 14 | N94: 1012 | O94: 14 | R94: 1525 | S94: 14 | X94: 1790 | Y94: 12 | BC94: Ps-PsVI | BD94: pastwiska | BI94: Wsr-RIVa | BJ94: =ROW() -> 94 | BK94: Wsr-RIVa | BL94: stawy | BM94: ZDR-1 | BN94: brak | BO94: =SUMIF(Grunty!H:H,BI94,Grunty!I:I) -> 0 | BP94: =SUMIF('ZDR-1'!L:L,BI94,'ZDR-1'!I:I) -> 0 | BQ94: 19 | BR94: 3 | BU94: 110 | BV94: 7 | CU94: Laskowice | CW94: Lasowice Wielkie | CX94: kluczborski | CY94: opolskie
L95: 1043 | M95: 3 | N95: 1043 | O95: 3 | R95: 1539 | S95: 3 | X95: 1803 | Y95: 3 | BC95: Br-ŁV | BD95: rolne zabudowane | BI95: Wsr-RIVb | BJ95: =ROW() -> 95 | BK95: Wsr-RIVb | BL95: stawy | BM95: ZDR-1 | BN95: brak | BO95: =SUMIF(Grunty!H:H,BI95,Grunty!I:I) -> 0 | BP95: =SUMIF('ZDR-1'!L:L,BI95,'ZDR-1'!I:I) -> 0 | BQ95: 19 | BR95: 3 | BU95: 110 | BV95: 7 | CU95: Lasowice Małe | CW95: Lasowice Wielkie | CX95: kluczborski | CY95: opolskie
L96: 1050 | M96: 14 | N96: 1050 | O96: 14 | R96: 1558 | S96: 14 | X96: 1810 | Y96: 12 | BC96: Br-ŁVI | BD96: rolne zabudowane | BI96: Br-ŁV | BJ96: =ROW() -> 96 | BK96: Br-ŁV | BL96: rolne zabudowane | BM96: ZDR-2 | BN96: art.12 ust.1 pkt.1 uopr | BO96: =SUMIF(Grunty!H:H,BI96,Grunty!I:I) -> 0 | BP96: =SUMIF('ZDR-2'!L:L,BI96,'ZDR-2'!I:I) -> 0 | BQ96: 101 | BR96: 4 | CU96: Lasowice Wielkie | CW96: Lasowice Wielkie | CX96: kluczborski | CY96: opolskie
L97: 1062 | M97: 3 | N97: =N91+68 -> 1062 | O97: =O91 -> 3 | R97: =R93+68 -> 1586 | S97: =S93 -> 3 | X97: 1863 | Y97: 3 | BC97: Br-PsV | BD97: rolne zabudowane | BI97: Br-ŁVI | BJ97: =ROW() -> 97 | BK97: Br-ŁVI | BL97: rolne zabudowane | BM97: ZDR-2 | BN97: art.12 ust.1 pkt.1 uopr | BO97: =SUMIF(Grunty!H:H,BI97,Grunty!I:I) -> 0 | BP97: =SUMIF('ZDR-2'!L:L,BI97,'ZDR-2'!I:I) -> 0 | BQ97: 101 | BR97: 4 | CU97: Ligota Dolna | CV97: 46-200 | CW97: Kluczbork | CX97: kluczborski | CY97: opolskie
L98: 1069 | M98: 14 | N98: 1069 | O98: 14 | R98: 1593 | S98: 14 | X98: 1870 | Y98: 12 | BC98: Br-PsVI | BD98: rolne zabudowane | BI98: Br-PsV | BJ98: =ROW() -> 98 | BK98: Br-PsV | BL98: rolne zabudowane | BM98: ZDR-2 | BN98: art.12 ust.1 pkt.1 uopr | BO98: =SUMIF(Grunty!H:H,BI98,Grunty!I:I) -> 0 | BP98: =SUMIF('ZDR-2'!L:L,BI98,'ZDR-2'!I:I) -> 0 | BQ98: 101 | BR98: 4 | CU98: Ligota Górna | CW98: Kluczbork | CX98: kluczborski | CY98: opolskie
L99: 1073 | M99: 3 | N99: 1073 | O99: 3 | R99: 1607 | S99: 3 | X99: 1883 | Y99: 3 | BC99: Br-RV | BD99: rolne zabudowane | BI99: Br-PsVI | BJ99: =ROW() -> 99 | BK99: Br-PsVI | BL99: rolne zabudowane | BM99: ZDR-2 | BN99: art.12 ust.1 pkt.1 uopr | BO99: =SUMIF(Grunty!H:H,BI99,Grunty!I:I) -> 0 | BP99: =SUMIF('ZDR-2'!L:L,BI99,'ZDR-2'!I:I) -> 0 | BQ99: 101 | BR99: 4 | CU99: Ligota Mała | CW99: Wołczyn | CX99: kluczborski | CY99: opolskie
L100: 1080 | M100: 14 | N100: 1080 | O100: 14 | R100: 1626 | S100: 14 | X100: 1890 | Y100: 12 | BC100: Br-RVI | BD100: rolne zabudowane | BI100: Br-RV | BJ100: =ROW() -> 100 | BK100: Br-RV | BL100: rolne zabudowane | BM100: ZDR-2 | BN100: art.12 ust.1 pkt.1 uopr | BO100: =SUMIF(Grunty!H:H,BI100,Grunty!I:I) -> 0 | BP100: =SUMIF('ZDR-2'!L:L,BI100,'ZDR-2'!I:I) -> 0 | BQ100: 101 | BR100: 4 | CU100: Ligota Wołczyńska | CW100: Wołczyn | CX100: kluczborski | CY100: opolskie
L101: 1111 | M101: 3 | N101: 1111 | O101: 3 | R101: =R97+68 -> 1654 | S101: =S97 -> 3 | X101: 1943 | Y101: 3 | BC101: Lzr-ŁI | BD101: zadrzewione i zakrzewione | BI101: Br-RVI | BJ101: =ROW() -> 101 | BK101: Br-RVI | BL101: rolne zabudowane | BM101: ZDR-2 | BN101: art.12 ust.1 pkt.1 uopr | BO101: =SUMIF(Grunty!H:H,BI101,Grunty!I:I) -> 0 | BP101: =SUMIF('ZDR-2'!L:L,BI101,'ZDR-2'!I:I) -> 0 | BQ101: 101 | BR101: 4 | CU101: Ligota Zamecka | CW101: Kluczbork | CX101: kluczborski | CY101: opolskie
L102: 1118 | M102: 14 | N102: 1118 | O102: 14 | R102: 1661 | S102: 14 | X102: 1950 | Y102: 12 | BC102: Lzr-ŁII | BD102: zadrzewione i zakrzewione | BI102: Lzr-ŁI | BJ102: =ROW() -> 102 | BK102: Lzr-ŁI | BL102: zadrzewione i zakrzewione | BM102: ZDR-2 | BN102: art.12 ust.1 pkt.1 uopr | BO102: =SUMIF(Grunty!H:H,BI102,Grunty!I:I) -> 0 | BP102: =SUMIF('ZDR-2'!L:L,BI102,'ZDR-2'!I:I) -> 0 | BQ102: 101 | BR102: 4 | CU102: Lipiny | CW102: Lasowice Wielkie | CX102: kluczborski | CY102: opolskie
L103: 1130 | M103: 3 | N103: 1130 | O103: 3 | R103: 1675 | S103: 3 | X103: 1963 | Y103: 3 | BC103: Lzr-ŁIII | BD103: zadrzewione i zakrzewione | BI103: Lzr-ŁII | BJ103: =ROW() -> 103 | BK103: Lzr-ŁII | BL103: zadrzewione i zakrzewione | BM103: ZDR-2 | BN103: art.12 ust.1 pkt.1 uopr | BO103: =SUMIF(Grunty!H:H,BI103,Grunty!I:I) -> 0 | BP103: =SUMIF('ZDR-2'!L:L,BI103,'ZDR-2'!I:I) -> 0 | BQ103: 101 | BR103: 4 | CU103: Lubiatowice | CW103: Wołczyn | CX103: kluczborski | CY103: opolskie
L104: 1137 | M104: 14 | N104: 1137 | O104: 14 | R104: 1694 | S104: 14 | X104: 1970 | Y104: 12 | BC104: Lzr-ŁIV | BD104: zadrzewione i zakrzewione | BI104: Lzr-ŁIII | BJ104: =ROW() -> 104 | BK104: Lzr-ŁIII | BL104: zadrzewione i zakrzewione | BM104: ZDR-2 | BN104: art.12 ust.1 pkt.1 uopr | BO104: =SUMIF(Grunty!H:H,BI104,Grunty!I:I) -> 0 | BP104: =SUMIF('ZDR-2'!L:L,BI104,'ZDR-2'!I:I) -> 0 | BQ104: 101 | BR104: 4 | CU104: Łowkowice | CV104: 46-211 | CW104: Kluczbork | CX104: kluczborski | CY104: opolskie
L105: 1141 | M105: 3 | N105: 1141 | O105: 3 | R105: =R101+68 -> 1722 | S105: =S101 -> 3 | X105: 2023 | Y105: 3 | BC105: Lzr-ŁV | BD105: zadrzewione i zakrzewione | BI105: Lzr-ŁIV | BJ105: =ROW() -> 105 | BK105: Lzr-ŁIV | BL105: zadrzewione i zakrzewione | BM105: ZDR-2 | BN105: art.12 ust.1 pkt.1 uopr | BO105: =SUMIF(Grunty!H:H,BI105,Grunty!I:I) -> 0 | BP105: =SUMIF('ZDR-2'!L:L,BI105,'ZDR-2'!I:I) -> 0 | BQ105: 101 | BR105: 4 | CU105: Maciejów | CV105: 46-200 | CW105: Kluczbork | CX105: kluczborski | CY105: opolskie
L106: 1148 | M106: 14 | N106: 1148 | O106: 14 | R106: 1729 | S106: 14 | X106: 2030 | Y106: 12 | BC106: Lzr-ŁVI | BD106: zadrzewione i zakrzewione | BI106: Lzr-ŁV | BJ106: =ROW() -> 106 | BK106: Lzr-ŁV | BL106: zadrzewione i zakrzewione | BM106: ZDR-2 | BN106: art.12 ust.1 pkt.1 uopr | BO106: =SUMIF(Grunty!H:H,BI106,Grunty!I:I) -> 0 | BP106: =SUMIF('ZDR-2'!L:L,BI106,'ZDR-2'!I:I) -> 0 | BQ106: 101 | BR106: 4 | CU106: Malicz | CW106: Lasowice Wielkie | CX106: kluczborski | CY106: opolskie
L107: 1179 | M107: 3 | N107: 1179 | O107: 3 | R107: =R103+68 -> 1743 | S107: =S103 -> 3 | X107: 2043 | Y107: 3 | BC107: Lzr-PsI | BD107: zadrzewione i zakrzewione | BI107: Lzr-ŁVI | BJ107: =ROW() -> 107 | BK107: Lzr-ŁVI | BL107: zadrzewione i zakrzewione | BM107: ZDR-2 | BN107: art.12 ust.1 pkt.1 uopr | BO107: =SUMIF(Grunty!H:H,BI107,Grunty!I:I) -> 0 | BP107: =SUMIF('ZDR-2'!L:L,BI107,'ZDR-2'!I:I) -> 0 | BQ107: 101 | BR107: 4 | CU107: Markotów Duży | CW107: Wołczyn | CX107: kluczborski | CY107: opolskie
L108: 1186 | M108: 14 | N108: 1186 | O108: 14 | R108: 1762 | S108: 14 | X108: 2050 | Y108: 12 | BC108: Lzr-PsII | BD108: zadrzewione i zakrzewione | BI108: Lzr-PsI | BJ108: =ROW() -> 108 | BK108: Lzr-PsI | BL108: zadrzewione i zakrzewione | BM108: ZDR-2 | BN108: art.12 ust.1 pkt.1 uopr | BO108: =SUMIF(Grunty!H:H,BI108,Grunty!I:I) -> 0 | BP108: =SUMIF('ZDR-2'!L:L,BI108,'ZDR-2'!I:I) -> 0 | BQ108: 101 | BR108: 4 | CU108: Markotów Mały | CW108: Wołczyn | CX108: kluczborski | CY108: opolskie
L109: 1198 | M109: 3 | N109: 1198 | O109: 3 | R109: =R105+68 -> 1790 | S109: =S105 -> 3 | X109: 2103 | Y109: 3 | BC109: Lzr-PsIII | BD109: zadrzewione i zakrzewione | BI109: Lzr-PsII | BJ109: =ROW() -> 109 | BK109: Lzr-PsII | BL109: zadrzewione i zakrzewione | BM109: ZDR-2 | BN109: art.12 ust.1 pkt.1 uopr | BO109: =SUMIF(Grunty!H:H,BI109,Grunty!I:I) -> 0 | BP109: =SUMIF('ZDR-2'!L:L,BI109,'ZDR-2'!I:I) -> 0 | BQ109: 101 | BR109: 4 | CU109: Markowe | CW109: Wołczyn | CX109: kluczborski | CY109: opolskie
L110: 1205 | M110: 14 | N110: 1205 | O110: 14 | R110: =R106+68 -> 1797 | S110: =S106 -> 14 | X110: 2110 | Y110: 12 | BC110: Lzr-PsIV | BD110: zadrzewione i zakrzewione | BI110: Lzr-PsIII | BJ110: =ROW() -> 110 | BK110: Lzr-PsIII | BL110: zadrzewione i zakrzewione | BM110: ZDR-2 | BN110: art.12 ust.1 pkt.1 uopr | BO110: =SUMIF(Grunty!H:H,BI110,Grunty!I:I) -> 0 | BP110: =SUMIF('ZDR-2'!L:L,BI110,'ZDR-2'!I:I) -> 0 | BQ110: 101 | BR110: 4 | CU110: Miechowa | CW110: Byczyna | CX110: kluczborski | CY110: opolskie
L111: 1209 | M111: 3 | N111: 1209 | O111: 3 | R111: 1811 | S111: 3 | X111: 2123 | Y111: 3 | BC111: Lzr-PsV | BD111: zadrzewione i zakrzewione | BI111: Lzr-PsIV | BJ111: =ROW() -> 111 | BK111: Lzr-PsIV | BL111: zadrzewione i zakrzewione | BM111: ZDR-2 | BN111: art.12 ust.1 pkt.1 uopr | BO111: =SUMIF(Grunty!H:H,BI111,Grunty!I:I) -> 0 | BP111: =SUMIF('ZDR-2'!L:L,BI111,'ZDR-2'!I:I) -> 0 | BQ111: 101 | BR111: 4 | CU111: Miłoszowice | CW111: Kluczbork | CX111: kluczborski | CY111: opolskie
L112: 1216 | M112: 14 | N112: 1216 | O112: 14 | R112: 1830 | S112: 14 | X112: 2130 | Y112: 12 | BC112: Lzr-PsVI | BD112: zadrzewione i zakrzewione | BI112: Lzr-PsV | BJ112: =ROW() -> 112 | BK112: Lzr-PsV | BL112: zadrzewione i zakrzewione | BM112: ZDR-2 | BN112: art.12 ust.1 pkt.1 uopr | BO112: =SUMIF(Grunty!H:H,BI112,Grunty!I:I) -> 0 | BP112: =SUMIF('ZDR-2'!L:L,BI112,'ZDR-2'!I:I) -> 0 | BQ112: 101 | BR112: 4 | CU112: Miskowe | CW112: Lasowice Wielkie | CX112: kluczborski | CY112: opolskie
L113: 1247 | M113: 3 | N113: 1247 | O113: 3 | R113: =R109+68 -> 1858 | S113: =S109 -> 3 | X113: 2183 | Y113: 3 | BC113: Lzr-RI | BD113: zadrzewione i zakrzewione | BI113: Lzr-PsVI | BJ113: =ROW() -> 113 | BK113: Lzr-PsVI | BL113: zadrzewione i zakrzewione | BM113: ZDR-2 | BN113: art.12 ust.1 pkt.1 uopr | BO113: =SUMIF(Grunty!H:H,BI113,Grunty!I:I) -> 0 | BP113: =SUMIF('ZDR-2'!L:L,BI113,'ZDR-2'!I:I) -> 0 | BQ113: 101 | BR113: 4 | CU113: Mrówka | CW113: Byczyna | CX113: kluczborski | CY113: opolskie
L114: 1254 | M114: 14 | N114: 1254 | O114: 14 | R114: =R110+68 -> 1865 | S114: =S110 -> 14 | X114: 2190 | Y114: 12 | BC114: Lzr-RII | BD114: zadrzewione i zakrzewione | BI114: Lzr-RI | BJ114: =ROW() -> 114 | BK114: Lzr-RI | BL114: zadrzewione i zakrzewione | BM114: ZDR-2 | BN114: art.12 ust.1 pkt.1 uopr | BO114: =SUMIF(Grunty!H:H,BI114,Grunty!I:I) -> 0 | BP114: =SUMIF('ZDR-2'!L:L,BI114,'ZDR-2'!I:I) -> 0 | BQ114: 101 | BR114: 4 | CU114: Mścisław | CW114: Wołczyn | CX114: kluczborski | CY114: opolskie
L115: 1266 | M115: 3 | N115: 1266 | O115: 3 | R115: 1879 | S115: 3 | X115: 2203 | Y115: 3 | BC115: Lzr-RIIIa | BD115: zadrzewione i zakrzewione | BI115: Lzr-RII | BJ115: =ROW() -> 115 | BK115: Lzr-RII | BL115: zadrzewione i zakrzewione | BM115: ZDR-2 | BN115: art.12 ust.1 pkt.1 uopr | BO115: =SUMIF(Grunty!H:H,BI115,Grunty!I:I) -> 0 | BP115: =SUMIF('ZDR-2'!L:L,BI115,'ZDR-2'!I:I) -> 0 | BQ115: 101 | BR115: 4 | CU115: Nasale | CW115: Byczyna | CX115: kluczborski | CY115: opolskie
L116: 1273 | M116: 14 | N116: 1273 | O116: 14 | R116: 1898 | S116: 14 | X116: 2210 | Y116: 12 | BC116: Lzr-RIIIb | BD116: zadrzewione i zakrzewione | BI116: Lzr-RIIIa | BJ116: =ROW() -> 116 | BK116: Lzr-RIIIa | BL116: zadrzewione i zakrzewione | BM116: ZDR-2 | BN116: art.12 ust.1 pkt.1 uopr | BO116: =SUMIF(Grunty!H:H,BI116,Grunty!I:I) -> 0 | BP116: =SUMIF('ZDR-2'!L:L,BI116,'ZDR-2'!I:I) -> 0 | BQ116: 101 | BR116: 4 | CU116: Nasale Dolne | CW116: Byczyna | CX116: kluczborski | CY116: opolskie
L117: 1277 | M117: 3 | N117: 1277 | O117: 3 | R117: =R113+68 -> 1926 | S117: =S113 -> 3 | X117: 2263 | Y117: 3 | BC117: Lzr-RIVa | BD117: zadrzewione i zakrzewione | BI117: Lzr-RIIIb | BJ117: =ROW() -> 117 | BK117: Lzr-RIIIb | BL117: zadrzewione i zakrzewione | BM117: ZDR-2 | BN117: art.12 ust.1 pkt.1 uopr | BO117: =SUMIF(Grunty!H:H,BI117,Grunty!I:I) -> 0 | BP117: =SUMIF('ZDR-2'!L:L,BI117,'ZDR-2'!I:I) -> 0 | BQ117: 101 | BR117: 4 | CU117: Niwy | CW117: Lasowice Wielkie | CX117: kluczborski | CY117: opolskie
L118: 1284 | M118: 14 | N118: 1284 | O118: 14 | R118: =R114+68 -> 1933 | S118: =S114 -> 14 | X118: 2270 | Y118: 12 | BC118: Lzr-RIVb | BD118: zadrzewione i zakrzewione | BI118: Lzr-RIVa | BJ118: =ROW() -> 118 | BK118: Lzr-RIVa | BL118: zadrzewione i zakrzewione | BM118: ZDR-2 | BN118: art.12 ust.1 pkt.1 uopr | BO118: =SUMIF(Grunty!H:H,BI118,Grunty!I:I) -> 0 | BP118: =SUMIF('ZDR-2'!L:L,BI118,'ZDR-2'!I:I) -> 0 | BQ118: 101 | BR118: 4 | CU118: Niwy | CW118: Wołczyn | CX118: kluczborski | CY118: opolskie
L119: 1315 | M119: 3 | N119: 1315 | O119: 3 | R119: 1947 | S119: 3 | X119: 2283 | Y119: 3 | BC119: Lzr-RV | BD119: zadrzewione i zakrzewione | BI119: Lzr-RIVb | BJ119: =ROW() -> 119 | BK119: Lzr-RIVb | BL119: zadrzewione i zakrzewione | BM119: ZDR-2 | BN119: art.12 ust.1 pkt.1 uopr | BO119: =SUMIF(Grunty!H:H,BI119,Grunty!I:I) -> 0 | BP119: =SUMIF('ZDR-2'!L:L,BI119,'ZDR-2'!I:I) -> 0 | BQ119: 101 | BR119: 4 | CU119: Nowa Bogacica | CW119: Kluczbork | CX119: kluczborski | CY119: opolskie
L120: 1322 | M120: 14 | N120: 1322 | O120: 14 | R120: 1966 | S120: 14 | X120: 2290 | Y120: 12 | BC120: Lzr-RVI | BD120: zadrzewione i zakrzewione | BI120: Lzr-RV | BJ120: =ROW() -> 120 | BK120: Lzr-RV | BL120: zadrzewione i zakrzewione | BM120: ZDR-2 | BN120: art.12 ust.1 pkt.1 uopr | BO120: =SUMIF(Grunty!H:H,BI120,Grunty!I:I) -> 0 | BP120: =SUMIF('ZDR-2'!L:L,BI120,'ZDR-2'!I:I) -> 0 | BQ120: 101 | BR120: 4 | CU120: Nowa Wieś | CW120: Wołczyn | CX120: kluczborski | CY120: opolskie
L121: 1334 | M121: 3 | N121: 1334 | O121: 3 | R121: =R117+68 -> 1994 | S121: =S117 -> 3 | X121: 2343 | Y121: 3 | BC121: S-ŁV | BD121: sady | BI121: Lzr-RVI | BJ121: =ROW() -> 121 | BK121: Lzr-RVI | BL121: zadrzewione i zakrzewione | BM121: ZDR-2 | BN121: art.12 ust.1 pkt.1 uopr | BO121: =SUMIF(Grunty!H:H,BI121,Grunty!I:I) -> 0 | BP121: =SUMIF('ZDR-2'!L:L,BI121,'ZDR-2'!I:I) -> 0 | BQ121: 101 | BR121: 4 | CU121: Nowy Dwór | CW121: Kluczbork | CX121: kluczborski | CY121: opolskie
L122: 1341 | M122: 14 | N122: 1341 | O122: 14 | R122: =R118+68 -> 2001 | S122: =S118 -> 14 | X122: 2350 | Y122: 12 | BC122: S-ŁVI | BD122: sady | BI122: Ł-ŁV | BJ122: =ROW() -> 122 | BK122: ŁV | BL122: łąki trwałe | BM122: ZDR-2 | BN122: art.12 ust.1 pkt.1 uopr | BO122: =SUMIF(Grunty!H:H,BI122,Grunty!I:I) -> 0 | BP122: =SUMIF('ZDR-2'!L:L,BI122,'ZDR-2'!I:I) -> 0 | BQ122: 101 | BR122: 4 | CU122: Nowy Gródek | CW122: Byczyna | CX122: kluczborski | CY122: opolskie
L123: =L117+68 -> 1345 | M123: =M117 -> 3 | N123: 1345 | O123: 3 | R123: 2015 | S123: 3 | X123: 2363 | Y123: 3 | BC123: S-PsV | BD123: sady | BI123: Ł-ŁVI | BJ123: =ROW() -> 123 | BK123: ŁVI | BL123: łąki trwałe | BM123: ZDR-2 | BN123: art.12 ust.1 pkt.1 uopr | BO123: =SUMIF(Grunty!H:H,BI123,Grunty!I:I) -> 0 | BP123: =SUMIF('ZDR-2'!L:L,BI123,'ZDR-2'!I:I) -> 0 | BQ123: 101 | BR123: 4 | CU123: Olbin | CW123: Lasowice Wielkie | CX123: kluczborski | CY123: opolskie
L124: 1352 | M124: 14 | N124: 1352 | O124: 14 | R124: 2034 | S124: 14 | X124: 2370 | Y124: 12 | BC124: S-PsVI | BD124: sady | BI124: Ps-PsV | BJ124: =ROW() -> 124 | BK124: PsV | BL124: pastwiska | BM124: ZDR-2 | BN124: art.12 ust.1 pkt.1 uopr | BO124: =SUMIF(Grunty!H:H,BI124,Grunty!I:I) -> 0 | BP124: =SUMIF('ZDR-2'!L:L,BI124,'ZDR-2'!I:I) -> 0 | BQ124: 101 | BR124: 4 | BU124: 86 | BV124: 7 | CU124: Olek | CW124: Byczyna | CX124: kluczborski | CY124: opolskie
L125: 1383 | M125: 3 | N125: 1383 | O125: 3 | R125: =R121+68 -> 2062 | S125: =S121 -> 3 | X125: 2423 | Y125: 3 | BC125: S-RV | BD125: sady | BI125: Ps-PsVI | BJ125: =ROW() -> 125 | BK125: PsVI | BL125: pastwiska | BM125: ZDR-2 | BN125: art.12 ust.1 pkt.1 uopr | BO125: =SUMIF(Grunty!H:H,BI125,Grunty!I:I) -> 0 | BP125: =SUMIF('ZDR-2'!L:L,BI125,'ZDR-2'!I:I) -> 0 | BQ125: 101 | BR125: 4 | CU125: Ostrołęka | CW125: Lasowice Wielkie | CX125: kluczborski | CY125: opolskie
L126: 1390 | M126: 14 | N126: 1390 | O126: 14 | R126: =R122+68 -> 2069 | S126: =S122 -> 14 | X126: 2430 | Y126: 12 | BC126: S-RVI | BD126: sady | BI126: R-RV | BJ126: =ROW() -> 126 | BK126: RV | BL126: orne | BM126: ZDR-2 | BN126: art.12 ust.1 pkt.1 uopr | BO126: =SUMIF(Grunty!H:H,BI126,Grunty!I:I) -> 0 | BP126: =SUMIF('ZDR-2'!L:L,BI126,'ZDR-2'!I:I) -> 0 | BQ126: 101 | BR126: 4 | CU126: Oś | CW126: Lasowice Wielkie | CX126: kluczborski | CY126: opolskie
L127: 1402 | M127: 3 | N127: 1402 | O127: 3 | R127: 2083 | S127: 3 | X127: 2443 | Y127: 3 | BC127: W-ŁV | BD127: rowy | BI127: R-RVI | BJ127: =ROW() -> 127 | BK127: RVI | BL127: orne | BM127: ZDR-2 | BN127: art.12 ust.1 pkt.1 uopr | BO127: =SUMIF(Grunty!H:H,BI127,Grunty!I:I) -> 0 | BP127: =SUMIF('ZDR-2'!L:L,BI127,'ZDR-2'!I:I) -> 0 | BQ127: 101 | BR127: 4 | CU127: Owczarnia | CW127: Lasowice Wielkie | CX127: kluczborski | CY127: opolskie
L128: 1409 | M128: 14 | N128: 1409 | O128: 14 | R128: 2102 | S128: 14 | X128: 2450 | Y128: 12 | BC128: W-ŁVI | BD128: rowy | BI128: RV | BJ128: =ROW() -> 128 | BK128: RV | BL128: orne | BM128: ZDR-2 | BN128: art.12 ust.1 pkt.1 uopr | BO128: =SUMIF(Grunty!H:H,BI128,Grunty!I:I) -> 0 | BP128: =SUMIF('ZDR-2'!L:L,BI128,'ZDR-2'!I:I) -> 0 | BQ128: 101 | BR128: 4 | CU128: Paruszowice | CW128: Byczyna | CX128: kluczborski | CY128: opolskie
L129: 1413 | M129: 3 | N129: =N123+68 -> 1413 | O129: =O123 -> 3 | R129: =R125+68 -> 2130 | S129: =S125 -> 3 | X129: 2503 | Y129: 3 | BC129: W-PsV | BD129: rowy | BI129: RVI | BJ129: =ROW() -> 129 | BK129: RVI | BL129: orne | BM129: ZDR-2 | BN129: art.12 ust.1 pkt.1 uopr | BO129: =SUMIF(Grunty!H:H,BI129,Grunty!I:I) -> 0 | BP129: =SUMIF('ZDR-2'!L:L,BI129,'ZDR-2'!I:I) -> 0 | BQ129: 101 | BR129: 4 | CU129: Pogorzałka | CW129: Byczyna | CX129: kluczborski | CY129: opolskie
L130: 1420 | M130: 14 | N130: 1420 | O130: 14 | R130: =R126+68 -> 2137 | S130: =S126 -> 14 | X130: 2510 | Y130: 12 | BC130: W-PsVI | BD130: rowy | BI130: S-ŁV | BJ130: =ROW() -> 130 | BK130: S-ŁV | BL130: sady | BM130: ZDR-2 | BN130: art.12 ust.1 pkt.1 uopr | BO130: =SUMIF(Grunty!H:H,BI130,Grunty!I:I) -> 0 | BP130: =SUMIF('ZDR-2'!L:L,BI130,'ZDR-2'!I:I) -> 0 | BQ130: 101 | BR130: 4 | CU130: Polanowice | CW130: Byczyna | CX130: kluczborski | CY130: opolskie
L131: 1451 | M131: 3 | N131: 1451 | O131: 3 | R131: 2151 | S131: 3 | X131: 2523 | Y131: 3 | BC131: W-RV | BD131: rowy | BI131: S-ŁVI | BJ131: =ROW() -> 131 | BK131: S-ŁVI | BL131: sady | BM131: ZDR-2 | BN131: art.12 ust.1 pkt.1 uopr | BO131: =SUMIF(Grunty!H:H,BI131,Grunty!I:I) -> 0 | BP131: =SUMIF('ZDR-2'!L:L,BI131,'ZDR-2'!I:I) -> 0 | BQ131: 101 | BR131: 4 | CU131: Polowice | CW131: Byczyna | CX131: kluczborski | CY131: opolskie
L132: 1458 | M132: 14 | N132: 1458 | O132: 14 | R132: 2170 | S132: 14 | X132: 2530 | Y132: 12 | BC132: W-RVI | BD132: rowy | BI132: S-PsV | BJ132: =ROW() -> 132 | BK132: S-PsV | BL132: sady | BM132: ZDR-2 | BN132: art.12 ust.1 pkt.1 uopr | BO132: =SUMIF(Grunty!H:H,BI132,Grunty!I:I) -> 0 | BP132: =SUMIF('ZDR-2'!L:L,BI132,'ZDR-2'!I:I) -> 0 | BQ132: 101 | BR132: 4 | CU132: Proślice | CW132: Byczyna | CX132: kluczborski | CY132: opolskie
L133: 1470 | M133: 3 | N133: 1470 | O133: 3 | R133: =R129+68 -> 2198 | S133: =S129 -> 3 | X133: 2583 | Y133: 3 | BC133: Wsr-ŁV | BD133: stawy | BI133: S-PsVI | BJ133: =ROW() -> 133 | BK133: S-PsVI | BL133: sady | BM133: ZDR-2 | BN133: art.12 ust.1 pkt.1 uopr | BO133: =SUMIF(Grunty!H:H,BI133,Grunty!I:I) -> 0 | BP133: =SUMIF('ZDR-2'!L:L,BI133,'ZDR-2'!I:I) -> 0 | BQ133: 101 | BR133: 4 | CU133: Przybkowice | CW133: Kluczbork | CX133: kluczborski | CY133: opolskie
L134: 1477 | M134: 14 | N134: 1477 | O134: 14 | R134: =R130+68 -> 2205 | S134: =S130 -> 14 | X134: 2590 | Y134: 12 | BC134: Wsr-ŁVI | BD134: stawy | BI134: S-RV | BJ134: =ROW() -> 134 | BK134: S-RV | BL134: sady | BM134: ZDR-2 | BN134: art.12 ust.1 pkt.1 uopr | BO134: =SUMIF(Grunty!H:H,BI134,Grunty!I:I) -> 0 | BP134: =SUMIF('ZDR-2'!L:L,BI134,'ZDR-2'!I:I) -> 0 | BQ134: 101 | BR134: 4 | CU134: Pszczonki | CW134: Byczyna | CX134: kluczborski | CY134: opolskie
L135: 1481 | M135: 3 | N135: 1481 | O135: 3 | R135: 2219 | S135: 3 | X135: 2603 | Y135: 3 | BC135: Wsr-PsV | BD135: stawy | BI135: S-RVI | BJ135: =ROW() -> 135 | BK135: S-RVI | BL135: sady | BM135: ZDR-2 | BN135: art.12 ust.1 pkt.1 uopr | BO135: =SUMIF(Grunty!H:H,BI135,Grunty!I:I) -> 0 | BP135: =SUMIF('ZDR-2'!L:L,BI135,'ZDR-2'!I:I) -> 0 | BQ135: 101 | BR135: 4 | CU135: Pustki | CW135: Kluczbork | CX135: kluczborski | CY135: opolskie
L136: 1488 | M136: 14 | N136: 1488 | O136: 14 | R136: 2238 | S136: 14 | X136: 2610 | Y136: 12 | BC136: Wsr-PsVI | BD136: stawy | BI136: W-ŁV | BJ136: =ROW() -> 136 | BK136: W-ŁV | BL136: rowy | BM136: ZDR-2 | BN136: art.12 ust.1 pkt.1 uopr | BO136: =SUMIF(Grunty!H:H,BI136,Grunty!I:I) -> 0 | BP136: =SUMIF('ZDR-2'!L:L,BI136,'ZDR-2'!I:I) -> 0 | BQ136: 101 | BR136: 4 | CU136: Radlina | CW136: Lasowice Wielkie | CX136: kluczborski | CY136: opolskie
L137: 1519 | M137: 3 | N137: 1519 | O137: 3 | R137: =R133+68 -> 2266 | S137: =S133 -> 3 | X137: 2663 | Y137: 3 | BC137: Wsr-RV | BD137: stawy | BI137: W-ŁVI | BJ137: =ROW() -> 137 | BK137: W-ŁVI | BL137: rowy | BM137: ZDR-2 | BN137: art.12 ust.1 pkt.1 uopr | BO137: =SUMIF(Grunty!H:H,BI137,Grunty!I:I) -> 0 | BP137: =SUMIF('ZDR-2'!L:L,BI137,'ZDR-2'!I:I) -> 0 | BQ137: 101 | BR137: 4 | CU137: Radomil | CW137: Lasowice Wielkie | CX137: kluczborski | CY137: opolskie
L138: 1526 | M138: 14 | N138: 1526 | O138: 14 | R138: =R134+68 -> 2273 | S138: =S134 -> 14 | X138: =X134+80 -> 2670 | Y138: =Y134 -> 12 | BC138: Wsr-RVI | BD138: stawy | BI138: W-PsV | BJ138: =ROW() -> 138 | BK138: W-PsV | BL138: rowy | BM138: ZDR-2 | BN138: art.12 ust.1 pkt.1 uopr | BO138: =SUMIF(Grunty!H:H,BI138,Grunty!I:I) -> 0 | BP138: =SUMIF('ZDR-2'!L:L,BI138,'ZDR-2'!I:I) -> 0 | BQ138: 101 | BR138: 4 | CU138: Roszkowice | CW138: Byczyna | CX138: kluczborski | CY138: opolskie
L139: 1538 | M139: 3 | N139: 1538 | O139: 3 | R139: 2287 | S139: 3 | X139: 2683 | Y139: 3 | BC139: Wp | BD139: Inne | BI139: W-PsVI | BJ139: =ROW() -> 139 | BK139: W-PsVI | BL139: rowy | BM139: ZDR-2 | BN139: art.12 ust.1 pkt.1 uopr | BO139: =SUMIF(Grunty!H:H,BI139,Grunty!I:I) -> 0 | BP139: =SUMIF('ZDR-2'!L:L,BI139,'ZDR-2'!I:I) -> 0 | BQ139: 101 | BR139: 4 | CU139: Rożnów | CW139: Wołczyn | CX139: kluczborski | CY139: opolskie
L140: 1545 | M140: 14 | N140: 1545 | O140: 14 | R140: 2306 | S140: 14 | X140: 2690 | Y140: 12 | BC140: x1 | BD140: x1 | BE140: x1 | BI140: W-RV | BJ140: =ROW() -> 140 | BK140: W-RV | BL140: rowy | BM140: ZDR-2 | BN140: art.12 ust.1 pkt.1 uopr | BO140: =SUMIF(Grunty!H:H,BI140,Grunty!I:I) -> 0 | BP140: =SUMIF('ZDR-2'!L:L,BI140,'ZDR-2'!I:I) -> 0 | BQ140: 101 | BR140: 4 | CU140: Rydzek | CW140: Lasowice Wielkie | CX140: kluczborski | CY140: opolskie
L141: 1549 | M141: 3 | N141: 1549 | O141: 3 | R141: =R137+68 -> 2334 | S141: =S137 -> 3 | X141: 2743 | Y141: 3 | BC141: x10 | BD141: x10 | BE141: x10 | BI141: W-RVI | BJ141: =ROW() -> 141 | BK141: W-RVI | BL141: rowy | BM141: ZDR-2 | BN141: art.12 ust.1 pkt.1 uopr | BO141: =SUMIF(Grunty!H:H,BI141,Grunty!I:I) -> 0 | BP141: =SUMIF('ZDR-2'!L:L,BI141,'ZDR-2'!I:I) -> 0 | BQ141: 101 | BR141: 4 | CU141: Sarnów | CW141: Byczyna | CX141: kluczborski | CY141: opolskie
L142: 1556 | M142: 14 | N142: 1556 | O142: 14 | R142: =R138+68 -> 2341 | S142: =S138 -> 14 | X142: 2750 | Y142: 12 | BC142: x11 | BD142: x11 | BE142: x11 | BI142: Wsr-ŁV | BJ142: =ROW() -> 142 | BK142: Wsr-ŁV | BL142: stawy | BM142: ZDR-2 | BN142: art.12 ust.1 pkt.1 uopr | BO142: =SUMIF(Grunty!H:H,BI142,Grunty!I:I) -> 0 | BP142: =SUMIF('ZDR-2'!L:L,BI142,'ZDR-2'!I:I) -> 0 | BQ142: 101 | BR142: 4 | CU142: Sierosławice | CW142: Byczyna | CX142: kluczborski | CY142: opolskie
L143: 1587 | M143: 3 | N143: 1587 | O143: 3 | R143: 2355 | S143: 3 | X143: 2763 | Y143: 3 | BC143: x12 | BD143: x12 | BE143: x12 | BI143: Wsr-ŁVI | BJ143: =ROW() -> 143 | BK143: Wsr-ŁVI | BL143: stawy | BM143: ZDR-2 | BN143: art.12 ust.1 pkt.1 uopr | BO143: =SUMIF(Grunty!H:H,BI143,Grunty!I:I) -> 0 | BP143: =SUMIF('ZDR-2'!L:L,BI143,'ZDR-2'!I:I) -> 0 | BQ143: 101 | BR143: 4 | CU143: Skałągi | CW143: Wołczyn | CX143: kluczborski | CY143: opolskie
L144: 1594 | M144: 14 | N144: 1594 | O144: 14 | R144: 2374 | S144: 14 | X144: 2770 | Y144: 12 | BC144: x13 | BD144: x13 | BE144: x13 | BI144: Wsr-PsV | BJ144: =ROW() -> 144 | BK144: Wsr-PsV | BL144: stawy | BM144: ZDR-2 | BN144: art.12 ust.1 pkt.1 uopr | BO144: =SUMIF(Grunty!H:H,BI144,Grunty!I:I) -> 0 | BP144: =SUMIF('ZDR-2'!L:L,BI144,'ZDR-2'!I:I) -> 0 | BQ144: 101 | BR144: 4 | CU144: Skorków | CW144: Lasowice Wielkie | CX144: kluczborski | CY144: opolskie
L145: 1606 | M145: 3 | N145: 1606 | O145: 3 | R145: 6 | S145: =S141 -> 3 | X145: 6 | Y145: 3 | BC145: x14 | BD145: x14 | BE145: x14 | BI145: Wsr-PsVI | BJ145: =ROW() -> 145 | BK145: Wsr-PsVI | BL145: stawy | BM145: ZDR-2 | BN145: art.12 ust.1 pkt.1 uopr | BO145: =SUMIF(Grunty!H:H,BI145,Grunty!I:I) -> 0 | BP145: =SUMIF('ZDR-2'!L:L,BI145,'ZDR-2'!I:I) -> 0 | BQ145: 101 | BR145: 4 | CU145: Smardy Dolne | CW145: Kluczbork | CX145: kluczborski | CY145: opolskie
L146: 1613 | M146: 14 | N146: 1613 | O146: 14 | R146: 6 | S146: 3 | X146: 6 | Y146: 3 | BC146: x15 | BD146: x15 | BE146: x15 | BI146: Wsr-RV | BJ146: =ROW() -> 146 | BK146: Wsr-RV | BL146: stawy | BM146: ZDR-2 | BN146: art.12 ust.1 pkt.1 uopr | BO146: =SUMIF(Grunty!H:H,BI146,Grunty!I:I) -> 0 | BP146: =SUMIF('ZDR-2'!L:L,BI146,'ZDR-2'!I:I) -> 0 | BQ146: 101 | BR146: 4 | CU146: Smardy Górne | CV146: 46-200 | CW146: Kluczbork | CX146: kluczborski | CY146: opolskie
L147: 1617 | M147: 3 | N147: 1617 | O147: 3 | BC147: x16 | BD147: x16 | BE147: x16 | BI147: Wsr-RVI | BJ147: =ROW() -> 147 | BK147: Wsr-RVI | BL147: stawy | BM147: ZDR-2 | BN147: art.12 ust.1 pkt.1 uopr | BO147: =SUMIF(Grunty!H:H,BI147,Grunty!I:I) -> 0 | BP147: =SUMIF('ZDR-2'!L:L,BI147,'ZDR-2'!I:I) -> 0 | BQ147: 101 | BR147: 4 | CU147: Smardzka Kolonia | CW147: Kluczbork | CX147: kluczborski | CY147: opolskie
L148: 1624 | M148: 14 | N148: 1624 | O148: 14 | BC148: x17 | BD148: x17 | BE148: x17 | BI148: Wp | BJ148: =ROW() -> 148 | BK148: Wp | BL148: Inne | BM148: brak | BN148: brak | BO148: =SUMIF(Grunty!H:H,BI148,Grunty!I:I) -> 0 | BR148: 7 | CU148: Sobisz | CW148: Lasowice Wielkie | CX148: kluczborski | CY148: opolskie
L149: 1655 | M149: 3 | N149: 1655 | O149: 3 | BC149: x18 | BD149: x18 | BE149: x18 | BI149: x1 | BJ149: =ROW() -> 149 | BK149: x1 | BL149: x1 | BM149: x1 | BN149: x1 | BO149: =SUMIF(Grunty!H:H,BI149,Grunty!I:I) -> 0 | BQ149: x1 | BR149: 9 | CU149: Stara Chudoba | CW149: Lasowice Wielkie | CX149: kluczborski | CY149: opolskie
L150: 1662 | M150: 14 | N150: 1662 | O150: 14 | BC150: x19 | BD150: x19 | BE150: x19 | BI150: x10 | BJ150: =ROW() -> 150 | BK150: x10 | BL150: x10 | BM150: x10 | BN150: x10 | BO150: =SUMIF(Grunty!H:H,BI150,Grunty!I:I) -> 0 | BQ150: x10 | BR150: 9 | CU150: Stara Huta | CW150: Kluczbork | CX150: kluczborski | CY150: opolskie
L151: 1674 | M151: 3 | N151: 1674 | O151: 3 | BC151: x2 | BD151: x2 | BE151: x2 | BI151: x11 | BJ151: =ROW() -> 151 | BK151: x11 | BL151: x11 | BM151: x11 | BN151: x11 | BO151: =SUMIF(Grunty!H:H,BI151,Grunty!I:I) -> 0 | BQ151: x11 | BR151: 9 | CU151: Stare Czaple | CW151: Kluczbork | CX151: kluczborski | CY151: opolskie
L152: 1681 | M152: 14 | N152: 1681 | O152: 14 | BC152: x20 | BD152: x20 | BE152: x20 | BI152: x12 | BJ152: =ROW() -> 152 | BK152: x12 | BL152: x12 | BM152: x12 | BN152: x12 | BO152: =SUMIF(Grunty!H:H,BI152,Grunty!I:I) -> 0 | BQ152: x12 | BR152: 9 | CU152: Stary Folwark | CW152: Wołczyn | CX152: kluczborski | CY152: opolskie
L153: 1685 | M153: 3 | N153: 1685 | O153: 3 | BC153: x21 | BD153: x21 | BE153: x21 | BI153: x13 | BJ153: =ROW() -> 153 | BK153: x13 | BL153: x13 | BM153: x13 | BN153: x13 | BO153: =SUMIF(Grunty!H:H,BI153,Grunty!I:I) -> 0 | BQ153: x13 | BR153: 9 | CU153: Sulikowice | CW153: Kluczbork | CX153: kluczborski | CY153: opolskie
L154: 1692 | M154: 14 | N154: 1692 | O154: 14 | BC154: x22 | BD154: x22 | BE154: x22 | BI154: x14 | BJ154: =ROW() -> 154 | BK154: x14 | BL154: x14 | BM154: x14 | BN154: x14 | BO154: =SUMIF(Grunty!H:H,BI154,Grunty!I:I) -> 0 | BQ154: x14 | BR154: 9 | CU154: Sułaszów | CW154: Wołczyn | CX154: kluczborski | CY154: opolskie
L155: =L149+68 -> 1723 | M155: =M149 -> 3 | N155: 1723 | O155: 3 | BC155: x23 | BD155: x23 | BE155: x23 | BI155: x15 | BJ155: =ROW() -> 155 | BK155: x15 | BL155: x15 | BM155: x15 | BN155: x15 | BO155: =SUMIF(Grunty!H:H,BI155,Grunty!I:I) -> 0 | BQ155: x15 | BR155: 9 | CU155: Sułoszyn | CW155: Kluczbork | CX155: kluczborski | CY155: opolskie
L156: 1730 | M156: 14 | N156: 1730 | O156: 14 | BC156: x24 | BD156: x24 | BE156: x24 | BI156: x16 | BJ156: =ROW() -> 156 | BK156: x16 | BL156: x16 | BM156: x16 | BN156: x16 | BO156: =SUMIF(Grunty!H:H,BI156,Grunty!I:I) -> 0 | BQ156: x16 | BR156: 9 | CU156: Sułoszyn-Karolina | CW156: Kluczbork | CX156: kluczborski | CY156: opolskie
L157: 1742 | M157: 3 | N157: 1742 | O157: 3 | BC157: x25 | BD157: x25 | BE157: x25 | BI157: x17 | BJ157: =ROW() -> 157 | BK157: x17 | BL157: x17 | BM157: x17 | BN157: x17 | BO157: =SUMIF(Grunty!H:H,BI157,Grunty!I:I) -> 0 | BQ157: x17 | BR157: 9 | CU157: Szarawara | CW157: Lasowice Wielkie | CX157: kluczborski | CY157: opolskie
L158: 1749 | M158: 14 | N158: 1749 | O158: 14 | BC158: x26 | BD158: x26 | BE158: x26 | BI158: x18 | BJ158: =ROW() -> 158 | BK158: x18 | BL158: x18 | BM158: x18 | BN158: x18 | BO158: =SUMIF(Grunty!H:H,BI158,Grunty!I:I) -> 0 | BQ158: x18 | BR158: 9 | CU158: Szczepina | CW158: Lasowice Wielkie | CX158: kluczborski | CY158: opolskie
L159: 1753 | M159: 3 | N159: 1753 | O159: 3 | BC159: x27 | BD159: x27 | BE159: x27 | BI159: x19 | BJ159: =ROW() -> 159 | BK159: x19 | BL159: x19 | BM159: x19 | BN159: x19 | BO159: =SUMIF(Grunty!H:H,BI159,Grunty!I:I) -> 0 | BQ159: x19 | BR159: 9 | CU159: Szklarnia | CW159: Wołczyn | CX159: kluczborski | CY159: opolskie
L160: 1760 | M160: 14 | N160: 1760 | O160: 14 | BC160: x28 | BD160: x28 | BE160: x28 | BI160: x2 | BJ160: =ROW() -> 160 | BK160: x2 | BL160: x2 | BM160: x2 | BN160: x2 | BO160: =SUMIF(Grunty!H:H,BI160,Grunty!I:I) -> 0 | BQ160: x2 | BR160: 9 | CU160: Szum | CW160: Wołczyn | CX160: kluczborski | CY160: opolskie
L161: 1791 | M161: 3 | N161: =N155+68 -> 1791 | O161: =O155 -> 3 | BC161: x29 | BD161: x29 | BE161: x29 | BI161: x20 | BJ161: =ROW() -> 161 | BK161: x20 | BL161: x20 | BM161: x20 | BN161: x20 | BO161: =SUMIF(Grunty!H:H,BI161,Grunty!I:I) -> 0 | BQ161: x20 | BR161: 9 | CU161: Szumirad | CW161: Lasowice Wielkie | CX161: kluczborski | CY161: opolskie
L162: 1798 | M162: 14 | N162: 1798 | O162: 14 | BC162: x3 | BD162: x3 | BE162: x3 | BI162: x21 | BJ162: =ROW() -> 162 | BK162: x21 | BL162: x21 | BM162: x21 | BN162: x21 | BO162: =SUMIF(Grunty!H:H,BI162,Grunty!I:I) -> 0 | BQ162: x21 | BR162: 9 | CU162: Szymonków | CW162: Wołczyn | CX162: kluczborski | CY162: opolskie
L163: 1810 | M163: 3 | N163: 1810 | O163: 3 | BC163: x30 | BD163: x30 | BE163: x30 | BI163: x22 | BJ163: =ROW() -> 163 | BK163: x22 | BL163: x22 | BM163: x22 | BN163: x22 | BO163: =SUMIF(Grunty!H:H,BI163,Grunty!I:I) -> 0 | BQ163: x22 | BR163: 9 | CU163: Świniary Małe | CW163: Wołczyn | CX163: kluczborski | CY163: opolskie
L164: 1817 | M164: 14 | N164: 1817 | O164: 14 | BC164: x31 | BD164: x31 | BE164: x31 | BI164: x23 | BJ164: =ROW() -> 164 | BK164: x23 | BL164: x23 | BM164: x23 | BN164: x23 | BO164: =SUMIF(Grunty!H:H,BI164,Grunty!I:I) -> 0 | BQ164: x23 | BR164: 9 | CU164: Świniary Wielkie | CW164: Wołczyn | CX164: kluczborski | CY164: opolskie
L165: 1821 | M165: 3 | N165: 1821 | O165: 3 | BC165: x32 | BD165: x32 | BE165: x32 | BI165: x24 | BJ165: =ROW() -> 165 | BK165: x24 | BL165: x24 | BM165: x24 | BN165: x24 | BO165: =SUMIF(Grunty!H:H,BI165,Grunty!I:I) -> 0 | BQ165: x24 | BR165: 9 | CU165: Teklusia | CW165: Wołczyn | CX165: kluczborski | CY165: opolskie
L166: 1828 | M166: 14 | N166: 1828 | O166: 14 | BC166: x4 | BD166: x4 | BE166: x4 | BI166: x25 | BJ166: =ROW() -> 166 | BK166: x25 | BL166: x25 | BM166: x25 | BN166: x25 | BO166: =SUMIF(Grunty!H:H,BI166,Grunty!I:I) -> 0 | BQ166: x25 | BR166: 9 | CU166: Trzebiszyn | CW166: Lasowice Wielkie | CX166: kluczborski | CY166: opolskie
L167: 1859 | M167: 3 | N167: 1859 | O167: 3 | BC167: x5 | BD167: x5 | BE167: x5 | BI167: x26 | BJ167: =ROW() -> 167 | BK167: x26 | BL167: x26 | BM167: x26 | BN167: x26 | BO167: =SUMIF(Grunty!H:H,BI167,Grunty!I:I) -> 0 | BQ167: x26 | BR167: 9 | CU167: Tuły | CW167: Lasowice Wielkie | CX167: kluczborski | CY167: opolskie
L168: 1866 | M168: 14 | N168: 1866 | O168: 14 | BC168: x6 | BD168: x6 | BE168: x6 | BI168: x27 | BJ168: =ROW() -> 168 | BK168: x27 | BL168: x27 | BM168: x27 | BN168: x27 | BO168: =SUMIF(Grunty!H:H,BI168,Grunty!I:I) -> 0 | BQ168: x27 | BR168: 9 | CU168: Unieszów | CV168: 46-200 | CW168: Kluczbork | CX168: kluczborski | CY168: opolskie
L169: 1878 | M169: 3 | N169: 1878 | O169: 3 | BC169: x7 | BD169: x7 | BE169: x7 | BI169: x28 | BJ169: =ROW() -> 169 | BK169: x28 | BL169: x28 | BM169: x28 | BN169: x28 | BO169: =SUMIF(Grunty!H:H,BI169,Grunty!I:I) -> 0 | BQ169: x28 | BR169: 9 | CU169: Walsztat | CW169: Wołczyn | CX169: kluczborski | CY169: opolskie
L170: 1885 | M170: 14 | N170: 1885 | O170: 14 | BC170: x8 | BD170: x8 | BE170: x8 | BI170: x29 | BJ170: =ROW() -> 170 | BK170: x29 | BL170: x29 | BM170: x29 | BN170: x29 | BO170: =SUMIF(Grunty!H:H,BI170,Grunty!I:I) -> 0 | BQ170: x29 | BR170: 9 | CU170: Wałda | CW170: Wołczyn | CX170: kluczborski | CY170: opolskie
L171: 1889 | M171: 3 | N171: 1889 | O171: 3 | BC171: x9 | BD171: x9 | BE171: x9 | BI171: x3 | BJ171: =ROW() -> 171 | BK171: x3 | BL171: x3 | BM171: x3 | BN171: x3 | BO171: =SUMIF(Grunty!H:H,BI171,Grunty!I:I) -> 0 | BQ171: x3 | BR171: 9 | CU171: Wawrzyńcowskie | CW171: Lasowice Wielkie | CX171: kluczborski | CY171: opolskie
L172: 1896 | M172: 14 | N172: 1896 | O172: 14 | BI172: x30 | BJ172: =ROW() -> 172 | BK172: x30 | BL172: x30 | BM172: x30 | BN172: x30 | BO172: =SUMIF(Grunty!H:H,BI172,Grunty!I:I) -> 0 | BQ172: x30 | BR172: 9 | CU172: Wąsice | CW172: Wołczyn | CX172: kluczborski | CY172: opolskie
L173: 1927 | M173: 3 | N173: 1927 | O173: 3 | BI173: x31 | BJ173: =ROW() -> 173 | BK173: x31 | BL173: x31 | BM173: x31 | BN173: x31 | BO173: =SUMIF(Grunty!H:H,BI173,Grunty!I:I) -> 0 | BQ173: x31 | BR173: 9 | CU173: Wesoła | CW173: Lasowice Wielkie | CX173: kluczborski | CY173: opolskie
L174: 1934 | M174: 14 | N174: 1934 | O174: 14 | BI174: x32 | BJ174: =ROW() -> 174 | BK174: x32 | BL174: x32 | BM174: x32 | BN174: x32 | BO174: =SUMIF(Grunty!H:H,BI174,Grunty!I:I) -> 0 | BQ174: x32 | BR174: 9 | CU174: Wesoła | CW174: Wołczyn | CX174: kluczborski | CY174: opolskie
L175: 1946 | M175: 3 | N175: 1946 | O175: 3 | BI175: x4 | BJ175: =ROW() -> 175 | BK175: x4 | BL175: x4 | BM175: x4 | BN175: x4 | BO175: =SUMIF(Grunty!H:H,BI175,Grunty!I:I) -> 0 | BQ175: x4 | BR175: 9 | CU175: Wędrynia | CW175: Lasowice Wielkie | CX175: kluczborski | CY175: opolskie
L176: 1953 | M176: 14 | N176: 1953 | O176: 14 | BI176: x5 | BJ176: =ROW() -> 176 | BK176: x5 | BL176: x5 | BM176: x5 | BN176: x5 | BO176: =SUMIF(Grunty!H:H,BI176,Grunty!I:I) -> 0 | BQ176: x5 | BR176: 9 | CU176: Wędryńka | CW176: Lasowice Wielkie | CX176: kluczborski | CY176: opolskie
L177: 1957 | M177: 3 | N177: 1957 | O177: 3 | BI177: x6 | BJ177: =ROW() -> 177 | BK177: x6 | BL177: x6 | BM177: x6 | BN177: x6 | BO177: =SUMIF(Grunty!H:H,BI177,Grunty!I:I) -> 0 | BQ177: x6 | BR177: 9 | CU177: Wielodrogi | CW177: Lasowice Wielkie | CX177: kluczborski | CY177: opolskie
L178: 1964 | M178: 14 | N178: 1964 | O178: 14 | BI178: x7 | BJ178: =ROW() -> 178 | BK178: x7 | BL178: x7 | BM178: x7 | BN178: x7 | BO178: =SUMIF(Grunty!H:H,BI178,Grunty!I:I) -> 0 | BQ178: x7 | BR178: 9 | CU178: Wierzbica Dolna | CW178: Wołczyn | CX178: kluczborski | CY178: opolskie
L179: 1995 | M179: 3 | N179: 1995 | O179: 3 | BI179: x8 | BJ179: =ROW() -> 179 | BK179: x8 | BL179: x8 | BM179: x8 | BN179: x8 | BO179: =SUMIF(Grunty!H:H,BI179,Grunty!I:I) -> 0 | BQ179: x8 | BR179: 9 | CU179: Wierzbica Górna | CW179: Wołczyn | CX179: kluczborski | CY179: opolskie
L180: 2002 | M180: 14 | N180: 2002 | O180: 14 | BI180: x9 | BJ180: =ROW() -> 180 | BK180: x9 | BL180: x9 | BM180: x9 | BN180: x9 | BO180: =SUMIF(Grunty!H:H,BI180,Grunty!I:I) -> 0 | BQ180: x9 | BR180: 9 | CU180: Wierzchy | CW180: Wołczyn | CX180: kluczborski | CY180: opolskie
L181: 2014 | M181: 3 | N181: 2014 | O181: 3 | CU181: Wojsławice | CW181: Byczyna | CX181: kluczborski | CY181: opolskie
L182: 2021 | M182: 14 | N182: 2021 | O182: 14 | CU182: Wolna Wieś | CW182: Wołczyn | CX182: kluczborski | CY182: opolskie
L183: 2025 | M183: 3 | N183: 2025 | O183: 3 | CU183: Wołczyn | CW183: Wołczyn | CX183: kluczborski | CY183: opolskie
F184: 9082019 | L184: 2032 | M184: 14 | N184: 2032 | O184: 14 | CU184: Wrzosy | CW184: Kluczbork | CX184: kluczborski | CY184: opolskie
L185: 6 | M185: 3 | N185: 6 | O185: 3 | CU185: Zajdak | CW185: Wołczyn | CX185: kluczborski | CY185: opolskie
L186: 6 | M186: 3 | N186: 6 | O186: 3 | CU186: Zalesie | CW186: Lasowice Wielkie | CX186: kluczborski | CY186: opolskie
CU187: Zameczek | CW187: Kluczbork | CX187: kluczborski | CY187: opolskie
CU188: Zapłotnik | CW188: Wołczyn | CX188: kluczborski | CY188: opolskie
CU189: Zawada | CW189: Lasowice Wielkie | CX189: kluczborski | CY189: opolskie
CU190: Zielona Góra | CW190: Wołczyn | CX190: kluczborski | CY190: opolskie
CU191: Zimnik | CW191: Lasowice Wielkie | CX191: kluczborski | CY191: opolskie
CU192: Żabiniec | CV192: 46-243 | CW192: Kluczbork | CX192: kluczborski | CY192: opolskie
